{"text_format":"2","workbook":"xlsx","n_sheets":28,"sheets":["334","411","412","413","421","422","423","429","431","432","433","434","441","442","443","445","446","452","454","455","456","461","473","474","481","482","483","Tabelle34"],"not_rendered":{"charts":0,"images":0,"macros":0,"external_links":1,"defined_names":4,"comments":0,"pivot_tables":0},"unopened":[],"bounds":{"document_bytes":16777216,"sheet_cells":100000,"run_cost":"one","rows_first":2000,"rows_last":500,"rows_between":2000,"halvings":0,"cell_chars":16384,"cell_head_chars":4096},"cells_cut":0,"cells_raw":0,"read":"whole","date_system":"1900"}

{"sheet":"334","index":0,"n_rows":25,"n_cols":15,"rows_kept":25,"cut":false,"hidden":false,"merged":[]}
[{"$nulls":4},"Inspektion","Wartung","Instandsetzung","Sachverständiger","Sachkundige","Fachkraft",null,"Monate","Monate",{"$f":"IF([1]Fragen!$D$18=\"Ja\",\"Eine einfache Sichtkontrolle genügt\",\"Eine einfache Sichtkontrolle genügt nicht\")","v":{"$error":"#REF!"}}]
["Kostengruppe","Anlage (System)","Abgrenzung","Tätigkeit","I","W","IS","SV","SK","FK","normative Grundlage","min","max","Empfehlung Inspektion","Empfehlung Wartung"]
[334,"Türen und Tore (ohne Kraftbetätigung)","Türen und Tore","Öffnen und Schließen","I",{"$nulls":4},"FK",null,6,48,32,32]
[334,"Türen und Tore (ohne Kraftbetätigung)","Türen und Tore","Reinigung der Mechanik",null,"W",null,null,null,"FK",null,6,48]
[334,"Türen und Tore (ohne Kraftbetätigung)",null,"Fetten der Mechanik sofern erforderlich",null,"W",null,null,null,"FK",null,6,48]
[334,"Türen und Tore (ohne Kraftbetätigung)","Türen und Tore","Einstellen der Mechanik zur Herstellung der Leichgängigkeit",null,"W",null,null,null,"FK",null,6,48,32,32]
[334,"Türen und Tore (ohne Kraftbetätigung)","Türen und Tore","Umlaufende Dichtungen prüfen","I",{"$nulls":4},"FK",null,6,48,32,32]
[334,"Türen und Tore (ohne Kraftbetätigung)","Türen und Tore","Umlaufende Dichtungen mit geeigneten Mitteln reinigen und pflegen",null,"W",null,null,null,"FK",null,6,48,32,32]
[334,"Türen und Tore (ohne Kraftbetätigung)","Türen und Tore","Obentürschließer prüfen","I",{"$nulls":4},"FK",null,6,48,32,32]
[334,"Türen und Tore (ohne Kraftbetätigung)","Türen und Tore","Obentürschließer reinigen",null,"W",null,null,null,"FK",null,6,48,32,32]
[334,"Türen und Tore (ohne Kraftbetätigung)","Türen und Tore","Obentürschließer einstellen",null,"W",null,null,null,"FK",null,6,48,32,32]
[334,"Türen und Tore (kraftbetätigt)","Türen und Tore","Öffnen und Schließen","I",null,null,null,"SK",null,"ASR 1.7",6,12,32,32]
[334,"Türen und Tore (kraftbetätigt)","Türen und Tore","Reinigung der Mechanik",null,"W",null,null,"SK",null,"ASR 1.7",6,12,32,32]
[334,"Türen und Tore (kraftbetätigt)","Türen und Tore","Fetten der Mechanik sofern erforderlich",null,"W",null,null,"SK",null,"ASR 1.7",6,12,32,32]
[334,"Türen und Tore (kraftbetätigt)","Türen und Tore","Einstellen der Mechanik zur Herstellung der Leichgängigkeit",null,"W",null,null,"SK",null,"ASR 1.7",6,12,32,32]
[334,"Türen und Tore (kraftbetätigt)","Türen und Tore","Umlaufende Dichtungen prüfen","I",null,null,null,"SK",null,"ASR 1.7",6,12,32,32]
[334,"Türen und Tore (kraftbetätigt)","Türen und Tore","Umlaufende Dichtungen mit geeigneten Mitteln reinigen und pflegen",null,"W",null,null,"SK",null,"ASR 1.7",6,12,32,32]
[334,"Türen und Tore (kraftbetätigt)","Türen und Tore","Obentürschließer prüfen","I",null,null,null,"SK",null,"ASR 1.7",6,12,32,32]
[334,"Türen und Tore (kraftbetätigt)","Türen und Tore","Obentürschließer reinigen",null,"W",null,null,"SK",null,"ASR 1.7",6,12,32,32]
[334,"Türen und Tore (kraftbetätigt)","Türen und Tore","Obentürschließer einstellen",null,"W",null,null,"SK",null,"ASR 1.7",6,12,32,32]
[334,"Türen und Tore (kraftbetätigt)","Türen und Tore","Motoren prüfen","I",null,null,null,"SK",null,"ASR 1.7",6,12,32,32]
[334,"Türen und Tore (kraftbetätigt)","Türen und Tore","Motoren bei bedarf reinigen",null,"W",null,null,"SK",null,"ASR 1.7",6,12,32,32]
[334,"Türen und Tore (kraftbetätigt)","Türen und Tore","Kraftverlauf der Schließkante messen und dokumentieren",null,"W",null,null,"SK",null,"ASR 1.7",6,12,32,32]
[334,"Türen und Tore (kraftbetätigt)","Türen und Tore","Kraftschluss auf den zulässigen Wert einstellen und dokumentieren",null,"W",null,null,"SK",null,"ASR 1.7",6,12,32,32]
[334,"Türen und Tore (kraftbetätigt)","Türen und Tore","Türsteuerung prüfen","I",null,null,null,"SK",null,"ASR 1.7",6,12,32,32]

{"sheet":"411","index":1,"n_rows":55,"n_cols":15,"rows_kept":55,"cut":false,"hidden":false,"merged":[]}
[{"$nulls":4},"Inspektion","Wartung","Instandsetzung","Sachverständiger","Sachkundige","Fachkraft",null,"Monate","Monate",{"$f":"IF([1]Fragen!$D$18=\"Ja\",\"Eine einfache Sichtkontrolle genügt\",\"Eine einfache Sichtkontrolle genügt nicht\")","v":"Eine einfache Sichtkontrolle genügt nicht"}]
["Kostengruppe","Anlage (System)","Abgrenzung","Tätigkeit","I","W","IS","SV","SK","FK","normative Grundlage","min","max","Empfehlung Inspektion","Empfehlung Wartung"]
[411,"Abwasserleitung",null,"Auf Funktion prüfen","I",null,null,null,"SK",null,"DIN 1986-3, 7.2;",12,48,32,32]
[411,"Abwasserleitung",null,"Rückstauverschlüsse funktionserhaltend reinigen",null,"W",null,null,"SK",null,"DIN 1986-3, 7.2;",12,48,32,32]
[411,"Abwasserleitung",null,"Auf Beschädigung, Korrosion (äußerlich) und Befestigung prüfen","I",{"$nulls":4},"FK","-",12,48,32,32]
[411,"Abwasserleitung",null,"Auf Inkrustation prüfen (am freien Ablauf, Sichtprüfung)","I",{"$nulls":4},"FK","-",12,48,32,32]
[411,"Abwasserleitung",null,"Auf Dichtheit prüfen (Sichtprüfung)","I",{"$nulls":4},"FK","-",12,48,32,32]
[411,"Abwasserleitung",null,"Isolierung auf Beschädigung prüfen","I",{"$nulls":4},"FK","-",12,48,32,32]
[411,"Abläufe",null,"Auf Beschädigung und Korrosion (äußerlich) prüfen","I",null,null,null,"SK",null,"DIN 1986-3, 7.2;",12,48,32,32]
[411,"Abläufe",null,"Auf Verschmutzung prüfen","I",null,null,null,"SK",null,"DIN 1986-3, 7.2;",12,48,32,32]
[411,"Abläufe",null,"Wasserstand prüfen (Wasservorlage)","I",null,null,null,"SK",null,"DIN 1986-3, 7.2;",12,48,32,32]
[411,"Abläufe",null,"Funktionserhaltendes Reinigen",null,"W",null,null,"SK",null,"DIN 1986-3, 7.2;",12,48,32,32]
[411,"Abwassersammelanlage",null,"Visuelles Prüfen auf Zustand, Dichtheit, Verschmutzung und Zugänglichkeit","I",null,null,null,"SK",null,"DIN 1986-3, 7.2;",6,12,8,8]
[411,"Abwassersammelanlage",null,"Entfernen von Sand und Schlamm sowie Reinigen",null,"W",null,null,"SK",null,"DIN 1986-3, 7.2;",6,12,8,8]
[411,"Abwassersammelanlage",null,"Auf Beschädigung und Korrosion (äußerlich) prüfen","I",null,null,null,"SK",null,"DIN 1986-3, 7.2;",6,12,8,8]
[411,"Abwassersammelanlage",null,"Auf Verschmutzung prüfen","I",null,null,null,"SK",null,"DIN 1986-3, 7.2;",6,12,8,8]
[411,"Abwassersammelanlage",null,"Auf Funktion prüfen","I",null,null,null,"SK",null,"DIN 1986-3, 7.2;",6,12,8,8]
[411,"Abwassersammelanlage",null,"Auf Dichtheit prüfen (Sichtkontrolle)","I",null,null,null,"SK",null,"DIN 1986-3, 7.2;",6,12,8,8]
[411,"Abwassersammelanlage",null,"Funktionserhaltendes Reinigen ohne Entsorgung",null,"W",null,null,"SK",null,"DIN 1986-3, 7.2;",6,12,8,8]
[411,"Leichtflüssigkeitsabscheider",null,"Auf Beschädigung und Korrosion (äußerlich) prüfen","I",null,null,null,"SK",null,"DIN 1999-100, 14.3, 14.4, 14.6, 15.1;\nDIN 1986-3, 7.2;\nDIN EN 858-2, 6;",3,12,8,8]
[411,"Leichtflüssigkeitsabscheider",null,"Auf Verschmutzung prüfen","I",null,null,null,"SK",null,"DIN 1999-100, 14.3, 14.4, 14.6, 15.1;\nDIN 1986-3, 7.2;\nDIN EN 858-2, 6;",3,12,8,8]
[411,"Leichtflüssigkeitsabscheider",null,"Funktionserhaltendes Reinigen ohne Entsorgung",null,"W",null,null,"SK",null,"DIN 1999-100, 14.3, 14.4, 14.6, 15.1;\nDIN 1986-3, 7.2;\nDIN EN 858-2, 6;",3,12,8,8]
[411,"Leichtflüssigkeitsabscheider",null,"Funktionsfähigkeit beurteilen","I",null,null,null,"SK",null,"DIN 1999-100, 14.3, 14.4, 14.6, 15.1;\nDIN 1986-3, 7.2;\nDIN EN 858-2, 6;",3,12,8,8]
[411,"Leichtflüssigkeitsabscheider",null,"Auf Dichtheit prüfen (Sichtkontrolle)","I",null,null,null,"SK",null,"DIN 1999-100, 14.3, 14.4, 14.6, 15.1;\nDIN 1986-3, 7.2;\nDIN EN 858-2, 6;",3,12,8,8]
[411,"Leichtflüssigkeitsabscheider",null,"Messung der Schichtdicke bzw. des Volumens der abgeschiedenen Leichtflüssigkeit im Abscheider",null,"W",null,null,"SK",null,"DIN 1999-100, 14.3, 14.4, 14.6, 15.1;\nDIN 1986-3, 7.2;\nDIN EN 858-2, 6;",3,12,8,8]
[411,"Leichtflüssigkeitsabscheider",null,"Messung der Lage des Schlammspiegels im Schlammfang / Schlammsammelraum",null,"W",null,null,"SK",null,"DIN 1999-100, 14.3, 14.4, 14.6, 15.1;\nDIN 1986-3, 7.2;\nDIN EN 858-2, 6;",3,12,8,8]
[411,"Leichtflüssigkeitsabscheider",null,"Kontrolle der Funktionsfähigkeit des selbsttätigen Abschlusses im Abscheider und evtl. vorhandener Alarmeinrichtungen",null,"W",null,null,"SK",null,"DIN 1999-100, 14.3, 14.4, 14.6, 15.1;\nDIN 1986-3, 7.2;\nDIN EN 858-2, 6;",3,12,8,8]
[411,"Leichtflüssigkeitsabscheider",null,"Sichtkontrolle des Wasserstandes vor und hinter dem Koaleszenzeinsatz (falls vorhanden) bei Wasserdurchfluss, um eine Verstopfung des Einsatzes zu erkennen","I",null,null,null,"SK",null,"DIN 1999-100, 14.3, 14.4, 14.6, 15.1;\nDIN 1986-3, 7.2;\nDIN EN 858-2, 6;",3,12,8,8]
[411,"Leichtflüssigkeitsabscheider",null,"Kontrolle des Koaleszenzeinsatzes, falls vorhanden, auf Durchlässigkeit, wenn der Wasserstand vor und hinter dem Koaleszenzeinsatz deutliche Unterschiede aufweist, und auf Beschädigung","I",null,null,null,"SK",null,"DIN 1999-100, 14.3, 14.4, 14.6, 15.1;\nDIN 1986-3, 7.2;\nDIN EN 858-2, 6;",3,12,8,8]
[411,"Leichtflüssigkeitsabscheider",null,"Reinigen oder Austausch des Koaleszenzeinsatzes nach Angaben des Herstellers, soweit erforderlich",null,"W",null,null,"SK",null,"DIN 1999-100, 14.3, 14.4, 14.6, 15.1;\nDIN 1986-3, 7.2;\nDIN EN 858-2, 6;",3,12,8,8]
[411,"Leichtflüssigkeitsabscheider",null,"Entleerung und Reinigung des Abscheiders, soweit erforderlich (z. B. bei starker Verschlammung)",null,"W",null,null,"SK",null,"DIN 1999-100, 14.3, 14.4, 14.6, 15.1;\nDIN 1986-3, 7.2;\nDIN EN 858-2, 6;",3,12,8,8]
[411,"Leichtflüssigkeitsabscheider",null,"Reinigung der Ablaufrinne im Probenahmeschacht, falls vorhanden",null,"W",null,null,"SK",null,"DIN 1999-100, 14.3, 14.4, 14.6, 15.1;\nDIN 1986-3, 7.2;\nDIN EN 858-2, 6;",3,12,8,8]
[411,"Leichtflüssigkeitsabscheider",null,"Erfassen der Angaben über den Ort der Prüfung, den Betreiber der Anlage unter Angabe der Bestandsdaten, den Auftraggeber, den Prüfer und der zuständigen Behörde","I",null,null,null,"SK",null,"DIN 1999-100, 14.3, 14.4, 14.6, 15.1;\nDIN 1986-3, 7.2;\nDIN EN 858-2, 6;",3,12,8,8]
[411,"Fettabscheider",null,"Auf Beschädigung und Korrosion (äußerlich) prüfen","I",null,null,null,"SK",null,"DIN 1986-3, 7.2;\nDIN 4040-100, 12.2, 12.3, 12.4, 13.1;",3,12,8,8]
[411,"Fettabscheider",null,"Auf Verschmutzung prüfen","I",null,null,null,"SK",null,"DIN 1986-3, 7.2;\nDIN 4040-100, 12.2, 12.3, 12.4, 13.1;",3,12,8,8]
[411,"Fettabscheider",null,"Funktionsfähigkeit beurteilen","I",null,null,null,"SK",null,"DIN 1986-3, 7.2;\nDIN 4040-100, 12.2, 12.3, 12.4, 13.1;",3,12,8,8]
[411,"Fettabscheider",null,"Auf Dichtheit prüfen (Sichtkontrolle)","I",null,null,null,"SK",null,"DIN 1986-3, 7.2;\nDIN 4040-100, 12.2, 12.3, 12.4, 13.1;",3,12,8,8]
[411,"Fettabscheider",null,"Funktionserhaltendes Reinigen ohne Entsorgung",null,"W",null,null,"SK",null,"DIN 1986-3, 7.2;\nDIN 4040-100, 12.2, 12.3, 12.4, 13.1;",3,12,8,8]
[411,"Stärkeabscheider",null,"Auf Beschädigung und Korrosion (äußerlich) prüfen","I",null,null,null,"SK",null,"DIN 1986-3, 7.2;",3,12,8,8]
[411,"Stärkeabscheider",null,"Auf Verschmutzung prüfen","I",null,null,null,"SK",null,"DIN 1986-3, 7.2;",3,12,8,8]
[411,"Stärkeabscheider",null,"Funktionsfähigkeit beurteilen","I",null,null,null,"SK",null,"DIN 1986-3, 7.2;",3,12,8,8]
[411,"Stärkeabscheider",null,"Auf Dichtheit prüfen (Sichtkontrolle)","I",null,null,null,"SK",null,"DIN 1986-3, 7.2;",3,12,8,8]
[411,"Stärkeabscheider",null,"Funktionserhaltendes Reinigen ohne Entsorgung",null,"W",null,null,"SK",null,"DIN 1986-3, 7.2;",3,12,8,8]
[411,"Neutralisationsanlage",null,"Auf Beschädigung und Korrosion (äußerlich) prüfen","I",null,null,null,"SK",null,"DIN 1986-3, 7.2;",6,12,8,8]
[411,"Neutralisationsanlage",null,"Auf Verschmutzung prüfen","I",null,null,null,"SK",null,"DIN 1986-3, 7.2;",6,12,8,8]
[411,"Neutralisationsanlage",null,"Auf Funktion prüfen","I",null,null,null,"SK",null,"DIN 1986-3, 7.2;",6,12,8,8]
[411,"Neutralisationsanlage",null,"Auf Dichtheit prüfen","I",null,null,null,"SK",null,"DIN 1986-3, 7.2;",6,12,8,8]
[411,"Neutralisationsanlage",null,"Chemikalienstand prüfen","I",null,null,null,"SK",null,"DIN 1986-3, 7.2;",6,12,8,8]
[411,"Neutralisationsanlage",null,"Chemikalien nachfüllen","I",null,null,null,"SK",null,"DIN 1986-3, 7.2;",6,12,8,8]
[411,"Neutralisationsanlage",null,"Funktionserhaltendes Reinigen ohne Entsorgung",null,"W",null,null,"SK",null,"DIN 1986-3, 7.2;",6,12,8,8]
[411,"Hebeanlage",null,"Auf Verschmutzung, Beschädigung und Korrosion (äußerlich) prüfen","I",null,null,null,"SK",null,"DGUVV, § 3, 4, 5, 6, 7;\nGUV-V A3, § 3, 4, 5, 6, 7;\nDIN 1986-3, 7.2;\nDIN 12056-4, 8.1, 8.2;",3,36,16,16]
[411,"Hebeanlage",null,"Auf Funktion prüfen","I",null,null,null,"SK",null,"DGUVV, § 3, 4, 5, 6, 7;\nGUV-V A3, § 3, 4, 5, 6, 7;\nDIN 1986-3, 7.2;\nDIN 12056-4, 8.1, 8.2;",3,36,16,16]
[411,"Hebeanlage",null,"Funktionserhaltendes Reinigen",null,"W",null,null,"SK",null,"DGUVV, § 3, 4, 5, 6, 7;\nGUV-V A3, § 3, 4, 5, 6, 7;\nDIN 1986-3, 7.2;\nDIN 12056-4, 8.1, 8.2;",3,36,16,16]
[411,"Hebeanlage",null,"Behälter innen reinigen und auf Korrosion prüfen",null,"W",null,null,"SK",null,"DGUVV, § 3, 4, 5, 6, 7;\nGUV-V A3, § 3, 4, 5, 6, 7;\nDIN 1986-3, 7.2;\nDIN 12056-4, 8.1, 8.2;",3,36,16,16]
[411,"Hebeanlage",null,"Auf Dichtheit prüfen (DRUCKPROBE)",null,"W",null,null,"SK",null,"DGUVV, § 3, 4, 5, 6, 7;\nGUV-V A3, § 3, 4, 5, 6, 7;\nDIN 1986-3, 7.2;\nDIN 12056-4, 8.1, 8.2;",3,36,16,16]

{"sheet":"412","index":2,"n_rows":102,"n_cols":15,"rows_kept":102,"cut":false,"hidden":false,"merged":[]}
[{"$nulls":4},"Inspektion","Wartung","Instandsetzung","Sachverständiger","Sachkundige","Fachkraft",null,"Monate","Monate",{"$f":"IF([1]Fragen!$D$18=\"Ja\",\"Eine einfache Sichtkontrolle genügt\",\"Eine einfache Sichtkontrolle genügt nicht\")","v":"Eine einfache Sichtkontrolle genügt nicht"}]
["Kostengruppe","Anlage (System)","Abgrenzung","Tätigkeit","I","W","IS","SV","SK","FK","normative Grundlage","min","max","Empfehlung Inspektion","Empfehlung Wartung"]
[412,"Brunnenanlage",null,"Rohrleitungen auf Verschmutzung, Beschädigung, Korrosion (äußerlich) prüfen","I",null,null,null,"SK",null,"VDI 6023",12,24,16,16]
[412,"Brunnenanlage",null,"Druckbehälter auf Dichtheit prüfen","I",null,null,null,"SK",null,"VDI 6023",12,24,16,16]
[412,"Brunnenanlage",null,"Absperreinrichtung und sicherheitstechnische Ausrüstung auf Funktion prüfen","I",null,null,null,"SK",null,"VDI 6023",12,24,16,16]
[412,"Brunnenanlage",null,"Manometer auf Beschädigung, Anzeige und Funktion prüfen","I",null,null,null,"SK",null,"VDI 6023",12,24,16,16]
[412,"Brunnenanlage",null,"Sicherheitseinrichtung auf Funktion prüfen","I",null,null,null,"SK",null,"VDI 6023",12,24,16,16]
[412,"Brunnenanlage",null,"Förderpumpe auf Beschädigung, Korrosion, Befestigung, Geräusch und Dichtheit prüfen","I",null,null,null,"SK",null,"VDI 6023",12,24,16,16]
[412,"Brunnenanlage",null,"Förderpumpe auf Funktion prüfen","I",null,null,null,"SK",null,"VDI 6023",12,24,16,16]
[412,"Brunnenanlage",null,"Rückflussverhinderer (Fußventil) auf Funktion prüfen","I",null,null,null,"SK",null,"VDI 6023",12,24,16,16]
[412,"Brunnenanlage",null,"Antriebselemente und MSR-Technik prüfen","I",null,null,null,"SK",null,"VDI 6023",12,24,16,16]
[412,"Brunnenanlage",null,"Druckpolster prüfen","I",null,null,null,"SK",null,"VDI 6023",12,24,16,16]
[412,"Brunnenanlage",null,"Druckpolster aufbauen",null,"W",null,null,"SK",null,"VDI 6023",12,24,16,16]
[412,"Brunnenanlage",null,"Kompressoren prüfen","I",null,null,null,"SK",null,"VDI 6023",12,24,16,16]
[412,"Wasseraufbereitungsanlage (Enthärtung)",null,"Auf Verschmutzung, Beschädigung, Korrosion (äußerlich) und Befestigung prüfen","I",null,null,null,"SK",null,"VDI 6023\nDIN 1988-8, 11.4;\n",6,18,8,8]
[413,"Wasseraufbereitungsanlage (Enthärtung)",null,"Auf Funktion prüfen","I",null,null,null,"SK",null,"VDI 6023\nDIN 1988-8, 11.4;\n",6,18,8,8]
[414,"Wasseraufbereitungsanlage (Enthärtung)",null,"Auf Dichtheit prüfen (Sichtkontrolle)","I",null,null,null,"SK",null,"VDI 6023\nDIN 1988-8, 11.4;\n",6,18,8,8]
[415,"Wasseraufbereitungsanlage (Enthärtung)",null,"Salzfüllung prüfen","I",null,null,null,"SK",null,"VDI 6023\nDIN 1988-8, 11.4;\n",6,18,8,8]
[416,"Wasseraufbereitungsanlage (Enthärtung)",null,"Salz nachfüllen","I",null,null,null,"SK",null,"VDI 6023\nDIN 1988-8, 11.4;\n",6,18,8,8]
[417,"Wasseraufbereitungsanlage (Enthärtung)",null,"Funktionserhaltendes Reinigen",null,"W",null,null,"SK",null,"VDI 6023\nDIN 1988-8, 11.4;\n",6,18,8,8]
[418,"Wasseraufbereitungsanlage (Enthärtung)",null,"Wasserhärte prüfen","I",null,null,null,"SK",null,"VDI 6023\nDIN 1988-8, 11.4;\n",6,18,8,8]
[419,"Wasseraufbereitungsanlage (Enthärtung)",null,"Austauschmedium (Harz) regenerieren",null,"W",null,null,"SK",null,"VDI 6023\nDIN 1988-8, 11.4;\n",6,18,8,8]
[412,"Wasseraufbereitungsanlage (Dosierung)",null,"Auf Verschmutzung, Beschädigung, Korrosion (äußerlich) und Befestigung prüfen","I",null,null,null,"SK",null,"VDI 6023",6,18,8,8]
[412,"Wasseraufbereitungsanlage (Dosierung)",null,"Auf Funktion prüfen","I",null,null,null,"SK",null,"VDI 6023",6,18,8,8]
[412,"Wasseraufbereitungsanlage (Dosierung)",null,"Auf Dichtheit prüfen (Sichtkontrolle)","I",null,null,null,"SK",null,"VDI 6023",6,18,8,8]
[412,"Wasseraufbereitungsanlage (Dosierung)",null,"Dosiermittelstand prüfen","I",null,null,null,"SK",null,"VDI 6023",6,18,8,8]
[412,"Wasseraufbereitungsanlage (Dosierung)",null,"Dosiermittel nachfüllen","I",null,null,null,"SK",null,"VDI 6023",6,18,8,8]
[412,"Wasseraufbereitungsanlage (Dosierung)",null,"Fördermenge prüfen","I",null,null,null,"SK",null,"VDI 6023",6,18,8,8]
[412,"Wasseraufbereitungsanlage (Dosierung)",null,"Funktionserhaltendes Reinigen",null,"W",null,null,"SK",null,"VDI 6023",6,18,8,8]
[412,"Wasseraufbereitungsanlage (Dosierung)",null,"Fördermenge neu einstellen ohne Wasseranalyse",null,"W",null,null,"SK",null,"VDI 6023",6,18,8,8]
[412,"Druckerhöhungsanlage (nicht Löschwasser)",null,"Auf Beschädigung, Korrosion (äußerlich) und Befestigung prüfen","I",null,null,null,"SK",null,"BetrSichV, § 17;\nDIN 1988-8, 11.4;\nVDI 6023",6,24,8,8]
[412,"Druckerhöhungsanlage (nicht Löschwasser)",null,"Absperreinrichtungen auf Funktion prüfen","I",null,null,null,"SK",null,"BetrSichV, § 17;\nDIN 1988-8, 11.4;\nVDI 6023",6,24,8,8]
[412,"Druckerhöhungsanlage (nicht Löschwasser)",null,"Sicherheitstechnische Ausrüstung auf Funktion prüfen","I",null,null,null,"SK",null,"BetrSichV, § 17;\nDIN 1988-8, 11.4;\nVDI 6023",6,24,8,8]
[412,"Druckerhöhungsanlage (nicht Löschwasser)",null,"Druckhalte- und Absperrventil in der Ausdehnungsleitung prüfen (Offenstellung, Sicherung)","I",null,null,null,"SK",null,"BetrSichV, § 17;\nDIN 1988-8, 11.4;\nVDI 6023",6,24,8,8]
[412,"Druckerhöhungsanlage (nicht Löschwasser)",null,"Manometer auf Beschädigung, Anzeige und Funktion prüfen","I",null,null,null,"SK",null,"BetrSichV, § 17;\nDIN 1988-8, 11.4;\nVDI 6023",6,24,8,8]
[412,"Druckerhöhungsanlage (nicht Löschwasser)",null,"Sicherheitsventil auf Funktion prüfen","I",null,null,null,"SK",null,"BetrSichV, § 17;\nDIN 1988-8, 11.4;\nVDI 6023",6,24,8,8]
[412,"Druckerhöhungsanlage (nicht Löschwasser)",null,"Förderpumpe auf Beschädigung, Korrosion, Befestigung, Geräusch und Dichtheit prüfen","I",null,null,null,"SK",null,"BetrSichV, § 17;\nDIN 1988-8, 11.4;\nVDI 6023",6,24,8,8]
[412,"Druckerhöhungsanlage (nicht Löschwasser)",null,"Förderpumpe auf Funktion prüfen","I",null,null,null,"SK",null,"BetrSichV, § 17;\nDIN 1988-8, 11.4;\nVDI 6023",6,24,8,8]
[412,"Druckerhöhungsanlage (nicht Löschwasser)",null,"Druckregler auf Funktion prüfen","I",null,null,null,"SK",null,"BetrSichV, § 17;\nDIN 1988-8, 11.4;\nVDI 6023",6,24,8,8]
[412,"Druckerhöhungsanlage (nicht Löschwasser)",null,"Druckregulierventil (Überströmventil, Druckminderer) auf Funktion prüfen","I",null,null,null,"SK",null,"BetrSichV, § 17;\nDIN 1988-8, 11.4;\nVDI 6023",6,24,8,8]
[412,"Druckerhöhungsanlage (nicht Löschwasser)",null,"Druckregulierventil nachstellen","I",null,null,null,"SK",null,"BetrSichV, § 17;\nDIN 1988-8, 11.4;\nVDI 6023",6,24,8,8]
[412,"Druckerhöhungsanlage (nicht Löschwasser)",null,"Rückflussverhinderer auf Funktion prüfen","I",null,null,null,"SK",null,"BetrSichV, § 17;\nDIN 1988-8, 11.4;\nVDI 6023",6,24,8,8]
[412,"Druckerhöhungsanlage (nicht Löschwasser)",null,"Ausgleichsbehälter und dessen Anschlüsse auf Beschädigung, Korrosion, Befestigung und Dichtheit prüfen","I",null,null,null,"SK",null,"BetrSichV, § 17;\nDIN 1988-8, 11.4;\nVDI 6023",6,24,8,8]
[412,"Druckerhöhungsanlage (nicht Löschwasser)",null,"Druckbehälter auf Dichtheit prüfen","I",null,null,null,"SK",null,"BetrSichV, § 17;\nDIN 1988-8, 11.4;\nVDI 6023",6,24,8,8]
[412,"Druckerhöhungsanlage (nicht Löschwasser)",null,"Druckpolster prüfen","I",null,null,null,"SK",null,"BetrSichV, § 17;\nDIN 1988-8, 11.4;\nVDI 6023",6,24,8,8]
[412,"Druckerhöhungsanlage (nicht Löschwasser)",null,"Druckpolster aufbauen","I",null,null,null,"SK",null,"BetrSichV, § 17;\nDIN 1988-8, 11.4;\nVDI 6023",6,24,8,8]
[412,"Druckerhöhungsanlage (nicht Löschwasser)",null,"Äußerliche Reinigung",null,"W",null,null,"SK",null,"BetrSichV, § 17;\nDIN 1988-8, 11.4;\nVDI 6023",6,24,8,8]
[412,"Rohrleitung (Rohrleitungen und Zubehör)",null,"Auf Beschädigung, Korrosion (äußerlich) und Befestigung prüfen","I",null,null,null,"SK",null,"DIN 1988-8, 11.2; ",12,48,32,32]
[412,"Rohrleitung (Rohrleitungen und Zubehör)",null,"Isolierung auf Beschädigung und Vollständigkeit prüfen","I",null,null,null,"SK",null,"DIN 1988-8, 11.2; ",12,48,32,32]
[412,"Rohrleitung (Rohrleitungen und Zubehör)",null,"Auf Dichtheit prüfen (Sichtkontrolle)","I",null,null,null,"SK",null,"DIN 1988-8, 11.2; ",12,48,32,32]
[412,"Rohrleitung (Rohrleitungen und Zubehör)",null,"Kompensatoren auf Beschädigung und Befestigung prüfen","I",null,null,null,"SK",null,"DIN 1988-8, 11.2; ",12,48,32,32]
[412,"Rohrleitung (Rohrleitungen und Zubehör)",null,"Rohrkontrollstücke auf Inkrustation prüfen",null,"W",null,null,"SK",null,"DIN 1988-8, 11.2; ",12,48,32,32]
[412,"Rohrleitung (Absperr-, Wandeinbau- und Entleerarmaturen)",null,"Auf Beschädigung und Korrosion (äußerlich) prüfen","I",{"$nulls":4},"FK","-",12,48,8,8]
[412,"Rohrleitung (Absperr-, Wandeinbau- und Entleerarmaturen)",null,"Auf Funktion prüfen","I",{"$nulls":4},"FK","-",12,48,8,8]
[412,"Rohrleitung (Absperr-, Wandeinbau- und Entleerarmaturen)",null,"Auf Dichtheit prüfen (Sichtkontrolle)","I",{"$nulls":4},"FK","-",12,48,8,8]
[412,"Rohrleitung (Sicherheitsarmaturen)",null,"Auf Beschädigung und Korrosion (äußerlich) prüfen","I",null,null,null,"SK",null,"DIN 1988-8, 11.1; ",12,48,8,8]
[412,"Rohrleitung (Sicherheitsarmaturen)",null,"Auf Funktion prüfen","I",null,null,null,"SK",null,"DIN 1988-8, 11.1; ",12,48,8,8]
[412,"Rohrleitung (Sicherheitsarmaturen)",null,"Auf Dichtheit prüfen (Sichtkontrolle)","I",null,null,null,"SK",null,"DIN 1988-8, 11.1; ",12,48,8,8]
[412,"Rohrleitung (Sicherheitsarmaturen)",null,"Rohrunterbrecher, Rohrtrenner und Rohrbelüfter auf Inkrustation prüfen",null,"W",null,null,"SK",null,"DIN 1988-8, 11.1; ",12,48,8,8]
[412,"Rohrleitung (Mess- und Zähleinrichtungen)",null,"Auf Beschädigung, Korrosion (äußerlich) und Anzeige prüfen","I",null,null,null,"SK",null,"AVBWasserV, § 11, Abs. 2, § 18, Abs.2;\nHeizkostenV, §4, Abs. 1, Abs. 2, § 6, Abs. 1;\nDIN 1988-8,11.3;\nVDI 6023-1, 5.1;",12,48,32,32]
[412,"Rohrleitung (Mess- und Zähleinrichtungen)",null,"Auf Funktion prüfen","I",null,null,null,"SK",null,"AVBWasserV, § 11, Abs. 2, § 18, Abs.2;\nHeizkostenV, §4, Abs. 1, Abs. 2, § 6, Abs. 1;\nDIN 1988-8,11.3;\nVDI 6023-1, 5.1;",12,48,32,32]
[412,"Rohrleitung (Mess- und Zähleinrichtungen)",null,"Auf Dichtheit prüfen","I",null,null,null,"SK",null,"AVBWasserV, § 11, Abs. 2, § 18, Abs.2;\nHeizkostenV, §4, Abs. 1, Abs. 2, § 6, Abs. 1;\nDIN 1988-8,11.3;\nVDI 6023-1, 5.1;",12,48,32,32]
[412,"Durchlauferhitzer, Klein-, Wand- und Standspeicher",null,"Auf Verschmutzung, Beschädigung und Korrosion (äußerlich) prüfen","I",{"$nulls":4},"FK","-",12,36,16,16]
[412,"Durchlauferhitzer, Klein-, Wand- und Standspeicher",null,"Auf Dichtheit prüfen","I",{"$nulls":4},"FK","-",12,36,16,16]
[412,"Durchlauferhitzer, Klein-, Wand- und Standspeicher",null,"Auf Befestigung prüfen","I",{"$nulls":4},"FK","-",12,36,16,16]
[412,"Durchlauferhitzer, Klein-, Wand- und Standspeicher",null,"Auf Funktion prüfen","I",{"$nulls":4},"FK","-",12,36,16,16]
[412,"Durchlauferhitzer, Klein-, Wand- und Standspeicher",null,"Auf Verkalkung prüfen","I",{"$nulls":4},"FK","-",12,36,16,16]
[412,"Durchlauferhitzer, Klein-, Wand- und Standspeicher",null,"Schalter, Thermostate, und Kontrollleuchten auf Funktion prüfen","I",{"$nulls":4},"FK","-",12,36,16,16]
[412,"Durchlauferhitzer, Klein-, Wand- und Standspeicher",null,"Funktionserhaltendes Reinigen",null,"W",null,null,null,"FK","-",12,36,16,16]
[412,"Durchlauferhitzer, Klein-, Wand- und Standspeicher",null,"Elektroanschlüsse auf Beschädigung und Befestigung prüfen","I",{"$nulls":4},"FK","-",12,36,16,16]
[412,"Durchlauferhitzer, Klein-, Wand- und Standspeicher",null,"Sicherheitseinrichtungen auf Funktion prüfen","I",{"$nulls":4},"FK","-",12,36,16,16]
[412,"Durchlauferhitzer, Klein-, Wand- und Standspeicher",null,"Entkalken",null,null,"IS",null,null,"FK","-",12,36,16,16]
[412,"Sanitäre Einrichtungsgegenstände (Wasser-, Dusch-, Badeanlagen und Bidets)",null,"Auf Verschmutzung und Beschädigung prüfen","I",{"$nulls":4},"FK","-",24,48,32,32]
[412,"Sanitäre Einrichtungsgegenstände (Wasser-, Dusch-, Badeanlagen und Bidets)",null,"Auf Befestigung und Dichtheit prüfen","I",{"$nulls":4},"FK","-",24,48,32,32]
[412,"Sanitäre Einrichtungsgegenstände (Wasser-, Dusch-, Badeanlagen und Bidets)",null,"Ab- und Überlauf auf Korrosion (äußerlich) und Funktion prüfen","I",{"$nulls":4},"FK","-",24,48,32,32]
[412,"Sanitäre Einrichtungsgegenstände (Wasser-, Dusch-, Badeanlagen und Bidets)",null,"Ab- und Überlauf funktionserhaltend reinigen",null,"W",null,null,null,"FK","-",24,48,32,32]
[412,"Sanitäre Einrichtungsgegenstände (Armaturen)",null,"Auf Verschmutzung, Beschädigung und Korrosion (äußerlich) prüfen","I",{"$nulls":4},"FK","-",24,48,32,32]
[412,"Sanitäre Einrichtungsgegenstände (Armaturen)",null,"Auf Befestigung prüfen","I",{"$nulls":4},"FK","-",24,48,32,32]
[412,"Sanitäre Einrichtungsgegenstände (Armaturen)",null,"Auf Funktion prüfen","I",{"$nulls":4},"FK","-",24,48,32,32]
[412,"Sanitäre Einrichtungsgegenstände (Armaturen)",null,"Auf Dichtheit prüfen","I",{"$nulls":4},"FK","-",24,48,32,32]
[412,"Sanitäre Einrichtungsgegenstände (Armaturen)",null,"Thermostat auf Funktion prüfen","I",{"$nulls":4},"FK","-",24,48,32,32]
[412,"Sanitäre Einrichtungsgegenstände (Armaturen)",null,"Elektronik einschließlich Steuerventil bzw. elektromechanische Steuereinrichtung auf Funktion prüfen","I",{"$nulls":4},"FK","-",24,48,32,32]
[412,"Sanitäre Einrichtungsgegenstände (Armaturen)",null,"Luftsprudler und Brauseköpfe auf Verschmutzung und Beschädigung prüfen","I",{"$nulls":4},"FK","-",24,48,32,32]
[412,"Sanitäre Einrichtungsgegenstände (Armaturen)",null,"Funktionserhaltendes Reinigen",null,"W",null,null,null,"FK","-",24,48,32,32]
[412,"Sanitäre Einrichtungsgegenstände (WC, Urinale)",null,"Auf Verschmutzung und Beschädigung prüfen","I",{"$nulls":4},"FK","-",24,48,32,32]
[412,"Sanitäre Einrichtungsgegenstände (WC, Urinale)",null,"Auf Befestigung prüfen","I",{"$nulls":4},"FK","-",24,48,32,32]
[412,"Sanitäre Einrichtungsgegenstände (WC, Urinale)",null,"Auf Funktion prüfen","I",{"$nulls":4},"FK","-",24,48,32,32]
[412,"Sanitäre Einrichtungsgegenstände (WC, Urinale)",null,"Auf Dichtheit prüfen","I",{"$nulls":4},"FK","-",24,48,32,32]
[412,"Sanitäre Einrichtungsgegenstände (WC, Urinale)",null,"Funktionserhaltendes Reinigen",null,"W",null,null,null,"FK","-",24,48,32,32]
[412,"Sanitäre Einrichtungsgegenstände (WC, Urinale)",null,"Ab- und Überlauf auf Korrosion (äußerlich) und Funktion prüfen","I",{"$nulls":4},"FK","-",24,48,32,32]
[412,"Sanitäre Einrichtungsgegenstände (WC, Urinale)",null,"WC-Sitz auf Beschädigung und Befestigung prüfen","I",{"$nulls":4},"FK","-",24,48,32,32]
[412,"Sanitäre Einrichtungsgegenstände (WC, Urinale)",null,"Scharniere auf Korrosion und Funktion prüfen","I",{"$nulls":4},"FK","-",24,48,32,32]
[412,"Sanitäre Einrichtungsgegenstände (Spülkästen)",null,"Auf Befestigung prüfen","I",{"$nulls":4},"FK","-",24,48,32,32]
[412,"Sanitäre Einrichtungsgegenstände (Spülkästen)",null,"Auf Dichtheit prüfen","I",{"$nulls":4},"FK","-",24,48,32,32]
[412,"Sanitäre Einrichtungsgegenstände (Spülkästen)",null,"Auf Funktion prüfen","I",{"$nulls":4},"FK","-",24,48,32,32]
[412,"Sanitäre Einrichtungsgegenstände (Spülkästen)",null,"Funktionserhaltendes Reinigen",null,"W",null,null,null,"FK","-",24,48,32,32]
[412,"Sanitäre Einrichtungsgegenstände (Spülkästen)",null,"Absperrventil auf Funktion und Dichtheit prüfen","I",{"$nulls":4},"FK","-",24,48,32,32]
[412,"Sanitäre Einrichtungsgegenstände (Druckspüler)",null,"Auf Verschmutzung, Beschädigung und Korrosion (äußerlich) prüfen","I",{"$nulls":4},"FK","-",24,48,32,32]
[412,"Sanitäre Einrichtungsgegenstände (Druckspüler)",null,"Auf Befestigung prüfen","I",{"$nulls":4},"FK","-",24,48,32,32]
[412,"Sanitäre Einrichtungsgegenstände (Druckspüler)",null,"Auf Dichtheit prüfen","I",{"$nulls":4},"FK","-",24,48,32,32]
[412,"Sanitäre Einrichtungsgegenstände (Druckspüler)",null,"Auf Funktion prüfen","I",{"$nulls":4},"FK","-",24,48,32,32]
[412,"Sanitäre Einrichtungsgegenstände (Druckspüler)",null,"Funktionserhaltendes Reinigen",null,"W",null,null,null,"FK","-",24,48,32,32]

{"sheet":"413","index":3,"n_rows":6,"n_cols":15,"rows_kept":6,"cut":false,"hidden":false,"merged":[]}
[{"$nulls":4},"Inspektion","Wartung","Instandsetzung","Sachverständiger","Sachkundige","Fachkraft",null,"Monate","Monate",{"$f":"IF([1]Fragen!$D$18=\"Ja\",\"Eine einfache Sichtkontrolle genügt\",\"Eine einfache Sichtkontrolle genügt nicht\")","v":"Eine einfache Sichtkontrolle genügt nicht"}]
["Kostengruppe","Anlage (System)","Abgrenzung","Tätigkeit","I","W","IS","SV","SK","FK","normative Grundlage","min","max","Empfehlung Inspektion","Empfehlung Wartung"]
[413,"Gastank inkl. Füll- u. Entleerungseinrichtungen",null,"gem. Herstellervorschriften unter Einhaltung der Normen, Richtlinien und Regelwerken",{"$nulls":4},"SK",null,"DVGW G 495; \nDVGW G 600, 13;\nBetrSichV § 12, 14, 15, 16, 17\nNDAV, § 13, Abs 1, 2;",6,12,12,12]
[413,"Gaseinspeisung",null,"gem. Herstellervorschriften unter Einhaltung der Normen, Richtlinien und Regelwerken",{"$nulls":4},"SK",null,"DVGW G 495; \nDVGW G 600, 13;\nBetrSichV § 12, 14, 15, 16, 17\nNDAV, § 13, Abs 1, 2;",6,12,12,12]
[413,"Gasleitungsnetz",null,"gem. Herstellervorschriften unter Einhaltung der Normen, Richtlinien und Regelwerken",{"$nulls":4},"SK",null,"DVGW G 495; \nDVGW G 600, 13;\nBetrSichV § 12, 14, 15, 16, 17\nNDAV, § 13, Abs 1, 2;",6,12,12,12]
[413,"Gasregelstrecke",null,"gem. Herstellervorschriften unter Einhaltung der Normen, Richtlinien und Regelwerken",{"$nulls":4},"SK",null,"DVGW G 495; \nDVGW G 600, 13;\nBetrSichV § 12, 14, 15, 16, 17\nNDAV, § 13, Abs 1, 2;",6,12,12,12]

{"sheet":"421","index":4,"n_rows":292,"n_cols":15,"rows_kept":292,"cut":false,"hidden":false,"merged":[]}
[{"$nulls":4},"Inspektion","Wartung","Instandsetzung","Sachverständiger","Sachkundige","Fachkraft",null,"Monate","Monate",{"$f":"IF([1]Fragen!$D$18=\"Ja\",\"Eine einfache Sichtkontrolle genügt\",\"Eine einfache Sichtkontrolle genügt nicht\")","v":{"$error":"#REF!"}}]
["Kostengruppe","Anlage (System)","Abgrenzung","Tätigkeit","I","W","IS","SV","SK","FK","normative Grundlage","min","max","Empfehlung Inspektion","Empfehlung Wartung"]
[421,"Heizölversorgungsleitung für Ölbrenner",null,"Lagerbehälter äußerlich auf Verschmutzung, Beschädigung, Korrosion und Dichtheit prüfen","I",null,null,null,"SK",null,"WHG § 62, 64;\nWasgefStAnlV § 1;\nVAwS;",6,36,12,12]
[421,"Heizölversorgungsleitung für Ölbrenner",null,"Leitungen und Anschlüsse äußerlich auf Korrosion, Befestigung und Dichtheit prüfen ","I",null,null,null,"SK",null,"WHG § 62, 64;\nWasgefStAnlV § 1;\nVAwS;\n",6,36,12,12]
[421,"Heizölversorgungsleitung für Ölbrenner",null,"Umschalt- und Absperrventile auf Funktion und Dichtheit prüfen","I",null,null,null,"SK",null,"WHG § 62, 64;\nWasgefStAnlV § 1;\nVAwS;\n",6,36,12,12]
[421,"Heizölversorgungsleitung für Ölbrenner",null,"Füllstandsanzeigevorrichtung auf Funktion prüfen","I",null,null,null,"SK",null,"WHG § 62, 64;\nWasgefStAnlV § 1;\nVAwS;\n",6,36,12,12]
[421,"Heizölversorgungsleitung für Ölbrenner",null,"Leckwarnsystem auf Funktion prüfen","I",null,null,null,"SK",null,"WHG § 62, 64;\nWasgefStAnlV § 1;\nVAwS;\n",6,36,12,12]
[421,"Heizölversorgungsleitung für Ölbrenner",null,"Grenzwertgeber auf Funktion prüfen","I",null,null,null,"SK",null,"WHG § 62, 64;\nWasgefStAnlV § 1;\nVAwS;\n",6,36,12,12]
[421,"Wärmeerzeugungsanlage, gasförmiger Brennstoff","Wasserkessel","Wärmedämmung auf Beschädigung und Vollständigkeit prüfen ","I",null,null,null,"SK",null,"EnEV 2009 § 10 Abs. 1, \nEnEV 2009 § 13 Abs. 1;\nDIN EN 15378 NA.5.1.2;",6,36,12,12]
[421,"Wärmeerzeugungsanlage, gasförmiger Brennstoff","Wasserkessel","Abgasseitig und wasserseitig auf Dichtheit prüfen","I",null,null,null,"SK",null,"EnEV 2009 § 10 Abs. 1, \nEnEV 2009 § 13 Abs. 1;\nDIN EN 15378 NA.5.1.2;",6,36,12,12]
[421,"Wärmeerzeugungsanlage, gasförmiger Brennstoff","Wasserkessel","Temperatur- und Druckmessgerät auf Beschädigung, Anzeige und Funktion prüfen (Plausibilitätsprüfung) ","I",null,null,null,"SK",null,"EnEV 2009 § 10 Abs. 1, \nEnEV 2009 § 13 Abs. 1;\nDIN EN 15378 NA.5.1.2;",6,36,12,12]
[421,"Wärmeerzeugungsanlage, gasförmiger Brennstoff","Wasserkessel","Abschlammen","I",null,null,null,"SK",null,"EnEV 2009 § 10 Abs. 1, \nEnEV 2009 § 13 Abs. 1;\nDIN EN 15378 NA.5.1.2;",6,36,12,12]
[421,"Wärmeerzeugungsanlage, gasförmiger Brennstoff","Wasserkessel","Wasser nachfüllen","I",null,null,null,"SK",null,"EnEV 2009 § 10 Abs. 1, \nEnEV 2009 § 13 Abs. 1;\nDIN EN 15378 NA.5.1.2;",6,36,12,12]
[421,"Wärmeerzeugungsanlage, gasförmiger Brennstoff","Wasserkessel","Entlüften","I",null,null,null,"SK",null,"EnEV 2009 § 10 Abs. 1, \nEnEV 2009 § 13 Abs. 1;\nDIN EN 15378 NA.5.1.2;",6,36,12,12]
[421,"Wärmeerzeugungsanlage, gasförmiger Brennstoff","Wasserkessel","Brennraum und Nachschaltheizflächen auf Verschmutzung, Beschädigung und Korrosion prüfen","I",null,null,null,"SK",null,"EnEV 2009 § 10 Abs. 1, \nEnEV 2009 § 13 Abs. 1;\nDIN EN 15378 NA.5.1.2;",6,36,12,12]
[421,"Wärmeerzeugungsanlage, gasförmiger Brennstoff","Wasserkessel","Funktionserhaltendes Reinigen",null,"W",null,null,"SK",null,"EnEV 2009 § 10 Abs. 1, \nEnEV 2009 § 13 Abs. 1;\nDIN EN 15378 NA.5.1.2;",6,36,12,12]
[421,"Wärmeerzeugungsanlage, gasförmiger Brennstoff","Wasserkessel","Brennraum und Nachschaltheizflächen reinigen",null,"W",null,null,"SK",null,"EnEV 2009 § 10 Abs. 1, \nEnEV 2009 § 13 Abs. 1;\nDIN EN 15378 NA.5.1.2;",6,36,12,12]
[421,"Wärmeerzeugungsanlage, gasförmiger Brennstoff","Wasserkessel","Abgasseitig auf Verschmutzung, Beschädigung und Korrosion prüfen","I",null,null,null,"SK",null,"EnEV 2009 § 10 Abs. 1, \nEnEV 2009 § 13 Abs. 1;\nDIN EN 15378 NA.5.1.2;",6,36,12,12]
[421,"Wärmeerzeugungsanlage, gasförmiger Brennstoff","Wasserkessel","Abgasseitig reinigen",null,"W",null,null,"SK",null,"EnEV 2009 § 10 Abs. 1, \nEnEV 2009 § 13 Abs. 1;\nDIN EN 15378 NA.5.1.2;",6,36,12,12]
[421,"Wärmeerzeugungsanlage, gasförmiger Brennstoff","Wasserkessel","Sicherheitsventil prüfen","I",null,null,null,"SK",null,"EnEV 2009 § 10 Abs. 1, \nEnEV 2009 § 13 Abs. 1;\nDIN EN 15378 NA.5.1.2;",6,36,12,12]
[421,"Wärmeerzeugungsanlage, gasförmiger Brennstoff","Wasserkessel","Füll- und Entleereinrichtung auf Funktion prüfen","I",null,null,null,"SK",null,"EnEV 2009 § 10 Abs. 1, \nEnEV 2009 § 13 Abs. 1;\nDIN EN 15378 NA.5.1.2;",6,36,12,12]
[421,"Wärmeerzeugungsanlage, gasförmiger Brennstoff","Wasserkessel","Wasserstandsbegrenzer auf Funktion prüfen","I",null,null,null,"SK",null,"EnEV 2009 § 10 Abs. 1, \nEnEV 2009 § 13 Abs. 1;\nDIN EN 15378 NA.5.1.2;",6,36,12,12]
[421,"Wärmeerzeugungsanlage, gasförmiger Brennstoff","Wasserkessel","Wasserströmungswächter auf Funktion prüfen","I",null,null,null,"SK",null,"EnEV 2009 § 10 Abs. 1, \nEnEV 2009 § 13 Abs. 1;\nDIN EN 15378 NA.5.1.2;",6,36,12,12]
[421,"Wärmeerzeugungsanlage, gasförmiger Brennstoff","Wasserkessel","Wassermangelsicherung auf Funktion prüfen","I",null,null,null,"SK",null,"EnEV 2009 § 10 Abs. 1, \nEnEV 2009 § 13 Abs. 1;\nDIN EN 15378 NA.5.1.2;",6,36,12,12]
[421,"Wärmeerzeugungsanlage, gasförmiger Brennstoff","Wasserkessel","Druckbegrenzer (min/max) auf Funktion prüfen","I",null,null,null,"SK",null,"EnEV 2009 § 10 Abs. 1, \nEnEV 2009 § 13 Abs. 1;\nDIN EN 15378 NA.5.1.2;",6,36,12,12]
[421,"Wärmeerzeugungsanlage, gasförmiger Brennstoff","Wasserkessel","Abgastemperaturwächter auf Funktion prüfen","I",null,null,null,"SK",null,"EnEV 2009 § 10 Abs. 1, \nEnEV 2009 § 13 Abs. 1;\nDIN EN 15378 NA.5.1.2;",6,36,12,12]
[421,"Wärmeerzeugungsanlage, gasförmiger Brennstoff","Wasserkessel","Temperaturwächter/-begrenzer (Kessel-,Thermostat) auf Funktion prüfen","I",null,null,null,"SK",null,"EnEV 2009 § 10 Abs. 1, \nEnEV 2009 § 13 Abs. 1;\nDIN EN 15378 NA.5.1.2;",6,36,12,12]
[421,"Wärmeerzeugungsanlage, gasförmiger Brennstoff","Wasserkessel","Sicherheitstemperaturbegrenzer bzw. Temperaturbegrenzer auf Funktion prüfen","I",null,null,null,"SK",null,"EnEV 2009 § 10 Abs. 1, \nEnEV 2009 § 13 Abs. 1;\nDIN EN 15378 NA.5.1.2;",6,36,12,12]
[421,"Wärmeerzeugungsanlage, gasförmiger Brennstoff","Wasserkessel","Luftdruckwächter s. Baugr.-Nr.2.2.20","I",null,null,null,"SK",null,"EnEV 2009 § 10 Abs. 1, \nEnEV 2009 § 13 Abs. 1;\nDIN EN 15378 NA.5.1.2;",6,36,12,12]
[421,"Wärmeerzeugungsanlage, gasförmiger Brennstoff","Wasserkessel","Thermische Ablaufsicherung auf Funktion prüfen","I",null,null,null,"SK",null,"EnEV 2009 § 10 Abs. 1, \nEnEV 2009 § 13 Abs. 1;\nDIN EN 15378 NA.5.1.2;",6,36,12,12]
[421,"Wärmeerzeugungsanlage, gasförmiger Brennstoff","Wasserkessel","Wasseranalyse durchführen oder veranlassen (soweit nach Größe oder Bauart erfoderlich)",null,"W",null,null,"SK",null,"EnEV 2009 § 10 Abs. 1, \nEnEV 2009 § 13 Abs. 1;\nDIN EN 15378 NA.5.1.2;",6,36,12,12]
[421,"Wärmeerzeugungsanlage, gasförmiger Brennstoff","Wasserkessel","Automatische Nachfülleinrichtung, Abschlammeinrichtung und Rohrtrenner auf Funktion prüfen","I",null,null,null,"SK",null,"EnEV 2009 § 10 Abs. 1, \nEnEV 2009 § 13 Abs. 1;\nDIN EN 15378 NA.5.1.2;",6,36,12,12]
[421,"Wärmeerzeugungsanlage, gasförmiger Brennstoff","Dampfkessel","Wärmedämmung auf Beschädigung und Vollständigkeit prüfen ","I",null,null,null,"SK",null,"EnEV 2009 § 10 Abs. 1, \nEnEV 2009 § 13 Abs. 1;\nDIN EN 15378 NA.5.1.2;\nBetrSichV § 12, 13, 14, 15, 16, 19, 20;\nVDI 6023",6,36,8,8]
[421,"Wärmeerzeugungsanlage, gasförmiger Brennstoff","Dampfkessel","Temperatur- und Druckmessgerät auf Beschädigung, Anzeige und Funktion prüfen (Plausibilitätsprüfung) ","I",null,null,null,"SK",null,"EnEV 2009 § 10 Abs. 1, \nEnEV 2009 § 13 Abs. 1;\nDIN EN 15378 NA.5.1.2;\nBetrSichV § 12, 13, 14, 15, 16, 19, 20;\nVDI 6023",6,36,8,8]
[421,"Wärmeerzeugungsanlage, gasförmiger Brennstoff","Dampfkessel","Abschlammen","I",null,null,null,"SK",null,"EnEV 2009 § 10 Abs. 1, \nEnEV 2009 § 13 Abs. 1;\nDIN EN 15378 NA.5.1.2;\nBetrSichV § 12, 13, 14, 15, 16, 19, 20;\nVDI 6023",6,36,8,8]
[421,"Wärmeerzeugungsanlage, gasförmiger Brennstoff","Dampfkessel","Wasser nachfüllen","I",null,null,null,"SK",null,"EnEV 2009 § 10 Abs. 1, \nEnEV 2009 § 13 Abs. 1;\nDIN EN 15378 NA.5.1.2;\nBetrSichV § 12, 13, 14, 15, 16, 19, 20;\nVDI 6023",6,36,8,8]
[421,"Wärmeerzeugungsanlage, gasförmiger Brennstoff","Dampfkessel","Entlüften","I",null,null,null,"SK",null,"EnEV 2009 § 10 Abs. 1, \nEnEV 2009 § 13 Abs. 1;\nDIN EN 15378 NA.5.1.2;\nBetrSichV § 12, 13, 14, 15, 16, 19, 20;\nVDI 6023",6,36,8,8]
[421,"Wärmeerzeugungsanlage, gasförmiger Brennstoff","Dampfkessel","Funktionserhaltendes Reinigen",null,"W",null,null,"SK",null,"EnEV 2009 § 10 Abs. 1, \nEnEV 2009 § 13 Abs. 1;\nDIN EN 15378 NA.5.1.2;\nBetrSichV § 12, 13, 14, 15, 16, 19, 20;\nVDI 6023",6,36,8,8]
[421,"Wärmeerzeugungsanlage, gasförmiger Brennstoff","Dampfkessel","Sicherheitsventil prüfen","I",null,null,null,"SK",null,"EnEV 2009 § 10 Abs. 1, \nEnEV 2009 § 13 Abs. 1;\nDIN EN 15378 NA.5.1.2;\nBetrSichV § 12, 13, 14, 15, 16, 19, 20;\nVDI 6023",6,36,8,8]
[421,"Wärmeerzeugungsanlage, gasförmiger Brennstoff","Dampfkessel","Füll- und Entleereinrichtung auf Funktion prüfen","I",null,null,null,"SK",null,"EnEV 2009 § 10 Abs. 1, \nEnEV 2009 § 13 Abs. 1;\nDIN EN 15378 NA.5.1.2;\nBetrSichV § 12, 13, 14, 15, 16, 19, 20;\nVDI 6023",6,36,8,8]
[421,"Wärmeerzeugungsanlage, gasförmiger Brennstoff","Dampfkessel","Wasserstandsbegrenzer auf Funktion prüfen","I",null,null,null,"SK",null,"EnEV 2009 § 10 Abs. 1, \nEnEV 2009 § 13 Abs. 1;\nDIN EN 15378 NA.5.1.2;\nBetrSichV § 12, 13, 14, 15, 16, 19, 20;\nVDI 6023",6,36,8,8]
[421,"Wärmeerzeugungsanlage, gasförmiger Brennstoff","Dampfkessel","Wasserströmungswächter auf Funktion prüfen","I",null,null,null,"SK",null,"EnEV 2009 § 10 Abs. 1, \nEnEV 2009 § 13 Abs. 1;\nDIN EN 15378 NA.5.1.2;\nBetrSichV § 12, 13, 14, 15, 16, 19, 20;\nVDI 6023",6,36,8,8]
[421,"Wärmeerzeugungsanlage, gasförmiger Brennstoff","Dampfkessel","Wassermangelsicherung auf Funktion prüfen","I",null,null,null,"SK",null,"EnEV 2009 § 10 Abs. 1, \nEnEV 2009 § 13 Abs. 1;\nDIN EN 15378 NA.5.1.2;\nBetrSichV § 12, 13, 14, 15, 16, 19, 20;\nVDI 6023",6,36,8,8]
[421,"Wärmeerzeugungsanlage, gasförmiger Brennstoff","Dampfkessel","Druckbegrenzer (min/max) auf Funktion prüfen","I",null,null,null,"SK",null,"EnEV 2009 § 10 Abs. 1, \nEnEV 2009 § 13 Abs. 1;\nDIN EN 15378 NA.5.1.2;\nBetrSichV § 12, 13, 14, 15, 16, 19, 20;\nVDI 6023",6,36,8,8]
[421,"Wärmeerzeugungsanlage, gasförmiger Brennstoff","Dampfkessel","Sicherheitstemperaturbegrenzer bzw. Temperaturbegrenzer auf Funktion prüfen","I",null,null,null,"SK",null,"EnEV 2009 § 10 Abs. 1, \nEnEV 2009 § 13 Abs. 1;\nDIN EN 15378 NA.5.1.2;\nBetrSichV § 12, 13, 14, 15, 16, 19, 20;\nVDI 6023",6,36,8,8]
[421,"Wärmeerzeugungsanlage, gasförmiger Brennstoff","Dampfkessel","Thermische Ablaufsicherung auf Funktion prüfen","I",null,null,null,"SK",null,"EnEV 2009 § 10 Abs. 1, \nEnEV 2009 § 13 Abs. 1;\nDIN EN 15378 NA.5.1.2;\nBetrSichV § 12, 13, 14, 15, 16, 19, 20;\nVDI 6023",6,36,8,8]
[421,"Wärmeerzeugungsanlage, gasförmiger Brennstoff","Dampfkessel","Wasseranalyse durchführen oder veranlassen (soweit nach Größe oder Bauart erfoderlich)",null,"W",null,null,"SK",null,"EnEV 2009 § 10 Abs. 1, \nEnEV 2009 § 13 Abs. 1;\nDIN EN 15378 NA.5.1.2;\nBetrSichV § 12, 13, 14, 15, 16, 19, 20;\nVDI 6023",6,36,8,8]
[421,"Wärmeerzeugungsanlage, gasförmiger Brennstoff","Dampfkessel","Automatische Nachfülleinrichtung, Abschlammeinrichtung und Rohrtrenner auf Funktion prüfen","I",null,null,null,"SK",null,"EnEV 2009 § 10 Abs. 1, \nEnEV 2009 § 13 Abs. 1;\nDIN EN 15378 NA.5.1.2;\nBetrSichV § 12, 13, 14, 15, 16, 19, 20;\nVDI 6023",6,36,8,8]
[421,"Wärmeerzeugungsanlage, gasförmiger Brennstoff","Gegenstromapparate","Wärmedämmung auf Beschädigung und Vollständigkeit prüfen ","I",{"$nulls":4},"FK","-",6,36,12,12]
[421,"Wärmeerzeugungsanlage, gasförmiger Brennstoff","Gegenstromapparate","Wasserseitig auf Ablagerungen, Beschädigung und Korrosion prüfen","I",{"$nulls":4},"FK","-",6,36,12,12]
[421,"Wärmeerzeugungsanlage, gasförmiger Brennstoff","Gegenstromapparate","Auf Dichtheit prüfen (Sichtprüfung)","I",{"$nulls":4},"FK","-",6,36,12,12]
[421,"Wärmeerzeugungsanlage, gasförmiger Brennstoff","Gegenstromapparate","Temperatur- und Druckmessgeräte auf Beschädigung und Anzeige prüfen (Plausibilitätsprüfung)","I",{"$nulls":4},"FK","-",6,36,12,12]
[421,"Wärmeerzeugungsanlage, gasförmiger Brennstoff","Gegenstromapparate","Sicherheitseinrichtungen auf Funktion prüfen","I",{"$nulls":4},"FK","-",6,36,12,12]
[421,"Wärmeerzeugungsanlage, gasförmiger Brennstoff","Gegenstromapparate","Wasseranalyse durchführen oder veranlassen","I",{"$nulls":4},"FK","-",6,36,12,12]
[421,"Wärmeerzeugungsanlage, gasförmiger Brennstoff","Gegenstromapparate","Füll-, Entleerungs- und Abschlammeinrichtungen auf Funktion prüfen ","I",{"$nulls":4},"FK","-",6,36,12,12]
[421,"Wärmeerzeugungsanlage, gasförmiger Brennstoff","Gegenstromapparate","Abschlammen","I",{"$nulls":4},"FK","-",6,36,12,12]
[421,"Wärmeerzeugungsanlage, gasförmiger Brennstoff","Gegenstromapparate","Wasser nachfüllen","I",{"$nulls":4},"FK","-",6,36,12,12]
[421,"Wärmeerzeugungsanlage, gasförmiger Brennstoff","Gegenstromapparate","Druckprüfung durchführen","I",{"$nulls":4},"FK","-",6,36,12,12]
[421,"Wärmeerzeugungsanlage, flüssiger Brennstoff","Ölbrenner","gem. Herstellervorschriften warten",null,"W",null,null,null,"FK","SchfG § 13;\n1. BImSchV § 7, 8;\nKÜO § 1;\nDIN 4755;\nDIN EN 15378;",3,24,12,12]
[421,"Wärmeerzeugungsanlage, flüssiger Brennstoff","Ölbrenner","Verbrennung einstellen und ggf. Düse tauschen",null,"W",null,null,null,"FK",null,3,24]
[421,"Wärmeerzeugungsanlage, flüssiger Brennstoff","Ölbrenner","Funktionserhaltendes Reinigen",null,"W",null,null,null,"FK",null,3,24]
[421,"Wärmeerzeugungsanlage, flüssiger Brennstoff","Wasserkessel","Wärmedämmung auf Beschädigung und Vollständigkeit prüfen ","I",{"$nulls":4},"FK",null,3,24]
[421,"Wärmeerzeugungsanlage, flüssiger Brennstoff","Wasserkessel","Abgasseitig und wasserseitig auf Dichtheit prüfen","I",{"$nulls":4},"FK",null,3,24]
[421,"Wärmeerzeugungsanlage, flüssiger Brennstoff","Wasserkessel","Temperatur- und Druckmessgerät auf Beschädigung, Anzeige und Funktion prüfen (Plausibilitätsprüfung) ","I",{"$nulls":4},"FK",null,3,24]
[421,"Wärmeerzeugungsanlage, flüssiger Brennstoff","Wasserkessel","Abschlammen",null,"W",null,null,null,"FK",null,3,24]
[421,"Wärmeerzeugungsanlage, flüssiger Brennstoff","Wasserkessel","Wasser nachfüllen",null,"W",null,null,null,"FK",null,3,24]
[421,"Wärmeerzeugungsanlage, flüssiger Brennstoff","Wasserkessel","Entlüften",null,"W",null,null,null,"FK",null,3,24]
[421,"Wärmeerzeugungsanlage, flüssiger Brennstoff","Wasserkessel","Brennraum und Nachschaltheizflächen auf Verschmutzung, Beschädigung und Korrosion prüfen","I",{"$nulls":4},"FK",null,3,24]
[421,"Wärmeerzeugungsanlage, flüssiger Brennstoff","Wasserkessel","Funktionserhaltendes Reinigen",null,"W",null,null,null,"FK",null,3,24]
[421,"Wärmeerzeugungsanlage, flüssiger Brennstoff","Wasserkessel","Brennraum und Nachschaltheizflächen reinigen",null,"W",null,null,null,"FK",null,3,24]
[421,"Wärmeerzeugungsanlage, flüssiger Brennstoff","Wasserkessel","Abgasseitig auf Verschmutzung, Beschädigung und Korrosion prüfen","I",{"$nulls":4},"FK",null,3,24]
[421,"Wärmeerzeugungsanlage, flüssiger Brennstoff","Wasserkessel","Abgasseitig reinigen",null,"W",null,null,null,"FK",null,3,24]
[421,"Wärmeerzeugungsanlage, flüssiger Brennstoff","Wasserkessel","Sicherheitsventil prüfen","I",{"$nulls":4},"FK",null,3,24]
[421,"Wärmeerzeugungsanlage, flüssiger Brennstoff","Wasserkessel","Füll- und Entleereinrichtung auf Funktion prüfen","I",{"$nulls":4},"FK",null,3,24]
[421,"Wärmeerzeugungsanlage, flüssiger Brennstoff","Wasserkessel","Wasserstandsbegrenzer auf Funktion prüfen","I",{"$nulls":4},"FK",null,3,24]
[421,"Wärmeerzeugungsanlage, flüssiger Brennstoff","Wasserkessel","Wasserströmungswächter auf Funktion prüfen","I",{"$nulls":4},"FK",null,3,24]
[421,"Wärmeerzeugungsanlage, flüssiger Brennstoff","Wasserkessel","Wassermangelsicherung auf Funktion prüfen","I",{"$nulls":4},"FK",null,3,24]
[421,"Wärmeerzeugungsanlage, flüssiger Brennstoff","Wasserkessel","Druckbegrenzer (min/max) auf Funktion prüfen","I",{"$nulls":4},"FK",null,3,24]
[421,"Wärmeerzeugungsanlage, flüssiger Brennstoff","Wasserkessel","Abgastemperaturwächter auf Funktion prüfen","I",{"$nulls":4},"FK",null,3,24]
[421,"Wärmeerzeugungsanlage, flüssiger Brennstoff","Wasserkessel","Temperaturwächter/-begrenzer (Kessel-,Thermostat) auf Funktion prüfen","I",{"$nulls":4},"FK",null,3,24]
[421,"Wärmeerzeugungsanlage, flüssiger Brennstoff","Wasserkessel","Sicherheitstemperaturbegrenzer bzw. Temperaturbegrenzer auf Funktion prüfen","I",{"$nulls":4},"FK",null,3,24]
[421,"Wärmeerzeugungsanlage, flüssiger Brennstoff","Wasserkessel","Luftdruckwächter prüfen","I",{"$nulls":4},"FK",null,3,24]
[421,"Wärmeerzeugungsanlage, flüssiger Brennstoff","Wasserkessel","Thermische Ablaufsicherung auf Funktion prüfen","I",{"$nulls":4},"FK",null,3,24]
[421,"Wärmeerzeugungsanlage, flüssiger Brennstoff","Wasserkessel","Wasseranalyse durchführen oder veranlassen (soweit nach Größe oder Bauart erfoderlich)",null,"W",null,null,null,"FK",null,3,24]
[421,"Wärmeerzeugungsanlage, flüssiger Brennstoff","Wasserkessel","Automatische Nachfülleinrichtung, Abschlammeinrichtung und Rohrtrenner auf Funktion prüfen","I",{"$nulls":4},"FK",null,3,24]
[421,"Wärmeerzeugungsanlage, fester Brennstoff","Wasserkessel","Wärmedämmung auf Beschädigung und Vollständigkeit prüfen ","I",{"$nulls":4},"FK",null,3,24]
[421,"Wärmeerzeugungsanlage, fester Brennstoff","Wasserkessel","Abgasseitig und wasserseitig auf Dichtheit prüfen","I",{"$nulls":4},"FK",null,3,24]
[421,"Wärmeerzeugungsanlage, fester Brennstoff","Wasserkessel","Temperatur- und Druckmessgerät auf Beschädigung, Anzeige und Funktion prüfen (Plausibilitätsprüfung) ","I",{"$nulls":4},"FK",null,3,24]
[421,"Wärmeerzeugungsanlage, fester Brennstoff","Wasserkessel","Abschlammen",null,"W",null,null,null,"FK",null,3,24]
[421,"Wärmeerzeugungsanlage, fester Brennstoff","Wasserkessel","Wasser nachfüllen",null,"W",null,null,null,"FK",null,3,24]
[421,"Wärmeerzeugungsanlage, fester Brennstoff","Wasserkessel","Entlüften",null,"W",null,null,null,"FK",null,3,24]
[421,"Wärmeerzeugungsanlage, fester Brennstoff","Wasserkessel","Brennraum und Nachschaltheizflächen auf Verschmutzung, Beschädigung und Korrosion prüfen","I",{"$nulls":4},"FK",null,3,24]
[421,"Wärmeerzeugungsanlage, fester Brennstoff","Wasserkessel","Funktionserhaltendes Reinigen",null,"W",null,null,null,"FK",null,3,24]
[421,"Wärmeerzeugungsanlage, fester Brennstoff","Wasserkessel","Brennraum und Nachschaltheizflächen reinigen",null,"W",null,null,null,"FK",null,3,24]
[421,"Wärmeerzeugungsanlage, fester Brennstoff","Wasserkessel","Abgasseitig auf Verschmutzung, Beschädigung und Korrosion prüfen","I",{"$nulls":4},"FK",null,3,24]
[421,"Wärmeerzeugungsanlage, fester Brennstoff","Wasserkessel","Abgasseitig reinigen",null,"W",null,null,null,"FK",null,3,24]
[421,"Wärmeerzeugungsanlage, fester Brennstoff","Wasserkessel","Sicherheitsventil prüfen","I",{"$nulls":4},"FK",null,3,24]
[421,"Wärmeerzeugungsanlage, fester Brennstoff","Wasserkessel","Füll- und Entleereinrichtung auf Funktion prüfen","I",{"$nulls":4},"FK",null,3,24]
[421,"Wärmeerzeugungsanlage, fester Brennstoff","Wasserkessel","Wasserstandsbegrenzer auf Funktion prüfen","I",{"$nulls":4},"FK",null,3,24]
[421,"Wärmeerzeugungsanlage, fester Brennstoff","Wasserkessel","Wasserströmungswächter auf Funktion prüfen","I",{"$nulls":4},"FK",null,3,24]
[421,"Wärmeerzeugungsanlage, fester Brennstoff","Wasserkessel","Wassermangelsicherung auf Funktion prüfen","I",{"$nulls":4},"FK",null,3,24]
[421,"Wärmeerzeugungsanlage, fester Brennstoff","Wasserkessel","Druckbegrenzer (min/max) auf Funktion prüfen","I",{"$nulls":4},"FK",null,3,24]
[421,"Wärmeerzeugungsanlage, fester Brennstoff","Wasserkessel","Abgastemperaturwächter auf Funktion prüfen","I",{"$nulls":4},"FK",null,3,24]
[421,"Wärmeerzeugungsanlage, fester Brennstoff","Wasserkessel","Temperaturwächter/-begrenzer (Kessel-,Thermostat) auf Funktion prüfen","I",{"$nulls":4},"FK",null,3,24]
[421,"Wärmeerzeugungsanlage, fester Brennstoff","Wasserkessel","Sicherheitstemperaturbegrenzer bzw. Temperaturbegrenzer auf Funktion prüfen","I",{"$nulls":4},"FK",null,3,24]
[421,"Wärmeerzeugungsanlage, fester Brennstoff","Wasserkessel","Luftdruckwächter prüfen","I",{"$nulls":4},"FK",null,3,24]
[421,"Wärmeerzeugungsanlage, fester Brennstoff","Wasserkessel","Thermische Ablaufsicherung auf Funktion prüfen","I",{"$nulls":4},"FK",null,3,24]
[421,"Wärmeerzeugungsanlage, fester Brennstoff","Wasserkessel","Wasseranalyse durchführen oder veranlassen (soweit nach Größe oder Bauart erfoderlich)",null,"W",null,null,null,"FK",null,3,24]
[421,"Wärmeerzeugungsanlage, fester Brennstoff","Wasserkessel","Automatische Nachfülleinrichtung, Abschlammeinrichtung und Rohrtrenner auf Funktion prüfen","I",{"$nulls":4},"FK",null,3,24]
[421,"Wärmeerzeugungsanlage, gasförmiger Brennstoff","Gasbrenner mit Gebläse","gem. Herstellervorschriften warten",null,"W",null,null,null,"FK","SchfG § 13;\n1. BImSchV § 9\nKÜO § 1;\nDGUVV § 3, 4, 5,6, 7;\nBGR - GUV-R 108;\nGUV-V A3;\nDVGW G 600;\nDIN EN 15378;",6,36,12,12]
[421,"Wärmeerzeugungsanlage, gasförmiger Brennstoff","Gasbrenner mit Gebläse","Einstellen des Brenners nach Messung der relevanten Parameter ",null,"W",null,null,null,"FK",null,6,36]
[421,"Wärmeerzeugungsanlage, gasförmiger Brennstoff","Gasbrenner mit Gebläse","Funktionserhaltendes Reinigen",null,"W",null,null,null,"FK",null,6,36]
[421,"Wärmeerzeugungsanlage, gasförmiger Brennstoff","Gasbrenner ohne Gebläse","gem. Herstellervorschriften warten",null,"W",null,null,null,"FK","SchfG § 13;\nKÜO § 1;\nDVGW G 600;\nDIN EN 15378;",6,36,12,12]
[421,"Wärmeerzeugungsanlage, gasförmiger Brennstoff","Gasbrenner ohne Gebläse","Einstellen des Brenners nach Messung der relevanten Parameter ",null,"W",null,null,null,"FK",null,6,36]
[421,"Wärmeerzeugungsanlage, gasförmiger Brennstoff","Gasbrenner ohne Gebläse","Funktionserhaltendes Reinigen",null,"W",null,null,null,"FK",null,6,36]
[421,"Wärmeerzeugungsanlage, fester Brennstoff","Brenner für Feststoffe (Holz, Hackschnitzel, Pellets, Koks, Kohle, Briketts)","gem. Herstellervorschriften warten",null,"W",null,null,null,"FK",null,3,24]
[421,"Wärmeerzeugungsanlage, fester Brennstoff","Brenner für Feststoffe (Holz, Hackschnitzel, Pellets, Koks, Kohle, Briketts)","Einstellen des Brenners nach Messung der relevanten Parameter ",null,"W",null,null,null,"FK",null,3,24]
[421,"Wärmeerzeugungsanlage, fester Brennstoff","Brenner für Feststoffe (Holz, Hackschnitzel, Pellets, Koks, Kohle, Briketts)","Funktionserhaltendes Reinigen",null,"W",null,null,null,"FK","SchfG § 13;\nKÜO § 1;\nDIN EN 15378;",3,24,8,8]
[421,"Wärmeerzeugungsanlage, Hellstrahler","Hellstrahler","Äußerlich auf Verschmutzung und Beschädigung prüfen","I",null,null,null,"SK",null,"SchfG § 13;\nKÜO § 1;\nDIN EN 15378;\n",6,24,12,12]
[421,"Wärmeerzeugungsanlage, Hellstrahler","Hellstrahler","Anschlussleitung und Gasarmaturengruppe äußerlich auf Dichtheit prüfen","I",null,null,null,"SK",null,"SchfG § 13;\nKÜO § 1;\nDIN EN 15378;\n",6,24,12,12]
[421,"Wärmeerzeugungsanlage, Hellstrahler","Hellstrahler","Funktionserhaltendes Reinigen",null,"W",null,null,"SK",null,"SchfG § 13;\nKÜO § 1;\nDIN EN 15378;\n",6,24,12,12]
[421,"Wärmeerzeugungsanlage, Hellstrahler","Hellstrahler","Zündelektrode reinigen",null,"W",null,null,"SK",null,"SchfG § 13;\nKÜO § 1;\nDIN EN 15378;\n",6,24,12,12]
[421,"Wärmeerzeugungsanlage, Hellstrahler","Hellstrahler","Zündelektrode einstellen",null,"W",null,null,"SK",null,"SchfG § 13;\nKÜO § 1;\nDIN EN 15378;\n",6,24,12,12]
[421,"Wärmeerzeugungsanlage, Hellstrahler","Hellstrahler","Zündeinrichtung auf Funktion prüfen","I",null,null,null,"SK",null,"SchfG § 13;\nKÜO § 1;\nDIN EN 15378;\n",6,24,12,12]
[421,"Wärmeerzeugungsanlage, Hellstrahler","Hellstrahler","Flammenfühler auf Funktion prüfen","I",null,null,null,"SK",null,"SchfG § 13;\nKÜO § 1;\nDIN EN 15378;\n",6,24,12,12]
[421,"Wärmeerzeugungsanlage, Hellstrahler","Hellstrahler","Absperreinrichtungen (Handabsperrhahn) auf Funktion und  Dichtheit prüfen","I",null,null,null,"SK",null,"SchfG § 13;\nKÜO § 1;\nDIN EN 15378;\n",6,24,12,12]
[421,"Wärmeerzeugungsanlage, Hellstrahler","Hellstrahler","Gasdruckregler auf Funktion prüfen","I",null,null,null,"SK",null,"SchfG § 13;\nKÜO § 1;\nDIN EN 15378;\n",6,24,12,12]
[421,"Wärmeerzeugungsanlage, Hellstrahler","Hellstrahler","Anschluss- und Düsendruck prüfen","I",null,null,null,"SK",null,"SchfG § 13;\nKÜO § 1;\nDIN EN 15378;\n",6,24,12,12]
[421,"Wärmeerzeugungsanlage, Hellstrahler","Hellstrahler","Düsendruck einstellen",null,"W",null,null,"SK",null,"SchfG § 13;\nKÜO § 1;\nDIN EN 15378;\n",6,24,12,12]
[421,"Wärmeerzeugungsanlage, Hellstrahler","Hellstrahler","Regel- und Steuereinrichtung auf Funktion prüfen","I",null,null,null,"SK",null,"SchfG § 13;\nKÜO § 1;\nDIN EN 15378;\n",6,24,12,12]
[421,"Wärmeerzeugungsanlage, Hellstrahler","Hellstrahler","Messprotokoll erstellen",null,"W",null,null,"SK",null,"SchfG § 13;\nKÜO § 1;\nDIN EN 15378;\n",6,24,12,12]
[421,"Wärmeerzeugungsanlage, Hellstrahler","Hellstrahler","Zündelektroden auswechseln",null,null,"IS",null,null,null,"SchfG § 13;\nKÜO § 1;\nDIN EN 15378;\n",6,24,12,12]
[421,"Wärmeerzeugungsanlage, Hellstrahler","Hellstrahler","Flammenfühler auswechseln",null,null,"IS",null,null,null,"SchfG § 13;\nKÜO § 1;\nDIN EN 15378;\n",6,24,12,12]
[421,"Wärmeerzeugungsanlage, Dunkelstrahler","Dunkelstrahler","Äußerlich auf Verschmutzung und Beschädigung prüfen","I",null,null,null,"SK",null,"SchfG § 13;\nKÜO § 1;\nDIN EN 15378;",6,24,12,12]
[421,"Wärmeerzeugungsanlage, Dunkelstrahler","Dunkelstrahler","Brennermotor auf Funktion prüfen","I",null,null,null,"SK",null,"SchfG § 13;\nKÜO § 1;\nDIN EN 15378;",6,24,12,12]
[421,"Wärmeerzeugungsanlage, Dunkelstrahler","Dunkelstrahler","Lager auf Geräusch prüfen","I",null,null,null,"SK",null,"SchfG § 13;\nKÜO § 1;\nDIN EN 15378;",6,24,12,12]
[421,"Wärmeerzeugungsanlage, Dunkelstrahler","Dunkelstrahler","Laufrad auf Verschmutzung und Beschädigung prüfen","I",null,null,null,"SK",null,"SchfG § 13;\nKÜO § 1;\nDIN EN 15378;",6,24,12,12]
[421,"Wärmeerzeugungsanlage, Dunkelstrahler","Dunkelstrahler","Mischeinrichtung auf Beschädigung und Verschmutzung prüfen","I",null,null,null,"SK",null,"SchfG § 13;\nKÜO § 1;\nDIN EN 15378;",6,24,12,12]
[421,"Wärmeerzeugungsanlage, Dunkelstrahler","Dunkelstrahler","Absperreinrichtungen (Handabsperrhahn) auf Funktion und  Dichtheit prüfen","I",null,null,null,"SK",null,"SchfG § 13;\nKÜO § 1;\nDIN EN 15378;",6,24,12,12]
[421,"Wärmeerzeugungsanlage, Dunkelstrahler","Dunkelstrahler","Anschlussleitung und Gasarmaturengruppe äußerlich auf Dichtheit prüfen","I",null,null,null,"SK",null,"SchfG § 13;\nKÜO § 1;\nDIN EN 15378;",6,24,12,12]
[421,"Wärmeerzeugungsanlage, Dunkelstrahler","Dunkelstrahler","Funktionserhaltendes Reinigen",null,"W",null,null,"SK",null,"SchfG § 13;\nKÜO § 1;\nDIN EN 15378;",6,24,12,12]
[421,"Wärmeerzeugungsanlage, Dunkelstrahler","Dunkelstrahler","Feuerungswärmeleitung prüfen","I",null,null,null,"SK",null,"SchfG § 13;\nKÜO § 1;\nDIN EN 15378;",6,24,12,12]
[421,"Wärmeerzeugungsanlage, Dunkelstrahler","Dunkelstrahler","Feuerungswärmeleitung einstellen",null,"W",null,null,"SK",null,"SchfG § 13;\nKÜO § 1;\nDIN EN 15378;",6,24,12,12]
[421,"Wärmeerzeugungsanlage, Dunkelstrahler","Dunkelstrahler","Mischeinrichtung reinigen",null,"W",null,null,"SK",null,"SchfG § 13;\nKÜO § 1;\nDIN EN 15378;",6,24,12,12]
[421,"Wärmeerzeugungsanlage, Dunkelstrahler","Dunkelstrahler","Flammenfühler auf Funktion prüfen","I",null,null,null,"SK",null,"SchfG § 13;\nKÜO § 1;\nDIN EN 15378;",6,24,12,12]
[421,"Wärmeerzeugungsanlage, Dunkelstrahler","Dunkelstrahler","Zündeinrichtung auf Funktion prüfen","I",null,null,null,"SK",null,"SchfG § 13;\nKÜO § 1;\nDIN EN 15378;",6,24,12,12]
[421,"Wärmeerzeugungsanlage, Dunkelstrahler","Dunkelstrahler","Lufteinstellvorrichtung auf Funktion prüfen","I",null,null,null,"SK",null,"SchfG § 13;\nKÜO § 1;\nDIN EN 15378;",6,24,12,12]
[421,"Wärmeerzeugungsanlage, Dunkelstrahler","Dunkelstrahler","Luftmangelsicherung auf Funktion prüfen ","I",null,null,null,"SK",null,"SchfG § 13;\nKÜO § 1;\nDIN EN 15378;",6,24,12,12]
[421,"Wärmeerzeugungsanlage, Dunkelstrahler","Dunkelstrahler","Luftabschlussklappen auf Funktion prüfen","I",null,null,null,"SK",null,"SchfG § 13;\nKÜO § 1;\nDIN EN 15378;",6,24,12,12]
[421,"Wärmeerzeugungsanlage, Dunkelstrahler","Dunkelstrahler","Lager der Luftabschlussklappen schmieren",null,"W",null,null,"SK",null,"SchfG § 13;\nKÜO § 1;\nDIN EN 15378;",6,24,12,12]
[421,"Wärmeerzeugungsanlage, Dunkelstrahler","Dunkelstrahler","Gasdruckregler auf Funktion prüfen","I",null,null,null,"SK",null,"SchfG § 13;\nKÜO § 1;\nDIN EN 15378;",6,24,12,12]
[421,"Wärmeerzeugungsanlage, Dunkelstrahler","Dunkelstrahler","Magnetventile auf Funktion prüfen","I",null,null,null,"SK",null,"SchfG § 13;\nKÜO § 1;\nDIN EN 15378;",6,24,12,12]
[421,"Wärmeerzeugungsanlage, Dunkelstrahler","Dunkelstrahler","Anschluss- und Düsendruck prüfen","I",null,null,null,"SK",null,"SchfG § 13;\nKÜO § 1;\nDIN EN 15378;",6,24,12,12]
[421,"Wärmeerzeugungsanlage, Dunkelstrahler","Dunkelstrahler","Düsendruck einstellen",null,"W",null,null,"SK",null,"SchfG § 13;\nKÜO § 1;\nDIN EN 15378;",6,24,12,12]
[421,"Wärmeerzeugungsanlage, Dunkelstrahler","Dunkelstrahler","Regel- und Steuereinrichtung auf Funktion prüfen","I",null,null,null,"SK",null,"SchfG § 13;\nKÜO § 1;\nDIN EN 15378;",6,24,12,12]
[421,"Wärmeerzeugungsanlage, Dunkelstrahler","Dunkelstrahler","Abgasanalyse (CO, CO2, Ruß, Abgas- und Verbrennungslufttemperatur, Unter-/Überdruck im Feuerraum oder am Kesselende) durchführen",null,"W",null,null,"SK",null,"SchfG § 13;\nKÜO § 1;\nDIN EN 15378;",6,24,12,12]
[421,"Wärmeerzeugungsanlage, Dunkelstrahler","Dunkelstrahler","Abgasverlust ermitteln",null,"W",null,null,"SK",null,"SchfG § 13;\nKÜO § 1;\nDIN EN 15378;",6,24,12,12]
[421,"Wärmeerzeugungsanlage, Dunkelstrahler","Dunkelstrahler","Messprotokoll erstellen",null,"W",null,null,"SK",null,"SchfG § 13;\nKÜO § 1;\nDIN EN 15378;",6,24,12,12]
[421,"Wärmeerzeugungsanlage, Dunkelstrahler","Elektromotor","Äußerlich auf Verschmutzung, Befestigung, Beschädigung und Korrosion prüfen","I",null,null,null,"SK",null,"BGV A 3 § 3, 4, 5, 6, 7;\nBGR-GUV-R 108 7;\nGUV-V A3 § 3, 4, 5, 6, 7;\n",6,24,16,16]
[421,"Wärmeerzeugungsanlage, Dunkelstrahler","Elektromotor","Drehrichtung prüfen","I",null,null,null,"SK",null,"BGV A 3 § 3, 4, 5, 6, 7;\nBGR-GUV-R 108 7;\nGUV-V A3 § 3, 4, 5, 6, 7;\n",6,24,16,16]
[421,"Wärmeerzeugungsanlage, Dunkelstrahler","Elektromotor","Anschlussklemmen auf festen Sitz prüfen","I",null,null,null,"SK",null,"BGV A 3 § 3, 4, 5, 6, 7;\nBGR-GUV-R 108 7;\nGUV-V A3 § 3, 4, 5, 6, 7;\n",6,24,16,16]
[421,"Wärmeerzeugungsanlage, Dunkelstrahler","Elektromotor","Anschlussklemmen nachziehen","I",null,null,null,"SK",null,"BGV A 3 § 3, 4, 5, 6, 7;\nBGR-GUV-R 108 7;\nGUV-V A3 § 3, 4, 5, 6, 7;\n",6,24,16,16]
[421,"Wärmeerzeugungsanlage, Dunkelstrahler","Elektromotor","Spannung messen","I",null,null,null,"SK",null,"BGV A 3 § 3, 4, 5, 6, 7;\nBGR-GUV-R 108 7;\nGUV-V A3 § 3, 4, 5, 6, 7;\n",6,24,16,16]
[421,"Wärmeerzeugungsanlage, Dunkelstrahler","Elektromotor","Stromaufnahme messen","I",null,null,null,"SK",null,"BGV A 3 § 3, 4, 5, 6, 7;\nBGR-GUV-R 108 7;\nGUV-V A3 § 3, 4, 5, 6, 7;\n",6,24,16,16]
[421,"Wärmeerzeugungsanlage, Dunkelstrahler","Elektromotor","Phasensymmetrie messen","I",null,null,null,"SK",null,"BGV A 3 § 3, 4, 5, 6, 7;\nBGR-GUV-R 108 7;\nGUV-V A3 § 3, 4, 5, 6, 7;\n",6,24,16,16]
[421,"Wärmeerzeugungsanlage, Dunkelstrahler","Elektromotor","Auf Laufruhe und Erwärmung prüfen","I",null,null,null,"SK",null,"BGV A 3 § 3, 4, 5, 6, 7;\nBGR-GUV-R 108 7;\nGUV-V A3 § 3, 4, 5, 6, 7;\n",6,24,16,16]
[421,"Wärmeerzeugungsanlage, Dunkelstrahler","Elektromotor","Lager auf Geräusch prüfen","I",null,null,null,"SK",null,"BGV A 3 § 3, 4, 5, 6, 7;\nBGR-GUV-R 108 7;\nGUV-V A3 § 3, 4, 5, 6, 7;\n",6,24,16,16]
[421,"Wärmeerzeugungsanlage, Dunkelstrahler","Elektromotor","Schutzeinrichtung auf Funktion prüfen","I",null,null,null,"SK",null,"BGV A 3 § 3, 4, 5, 6, 7;\nBGR-GUV-R 108 7;\nGUV-V A3 § 3, 4, 5, 6, 7;\n",6,24,16,16]
[421,"Wärmeerzeugungsanlage, Dunkelstrahler","Elektromotor","Funktionserhaltendes Reinigen",null,"W",null,null,"SK",null,"BGV A 3 § 3, 4, 5, 6, 7;\nBGR-GUV-R 108 7;\nGUV-V A3 § 3, 4, 5, 6, 7;\n",6,24,16,16]
[421,"Wärmeerzeugungsanlage, Dunkelstrahler","Elektromotor","Lager mit Nachschmiereinrichtung fetten",null,"W",null,null,"SK",null,"BGV A 3 § 3, 4, 5, 6, 7;\nBGR-GUV-R 108 7;\nGUV-V A3 § 3, 4, 5, 6, 7;\n",6,24,16,16]
[421,"Wärmeerzeugungsanlage, fester Brennstoff","Riementriebe","Auf Verschmutzung, Beschädigung und Verschleiß prüfen","I",{"$nulls":4},"FK","-",3,24,12,12]
[421,"Wärmeerzeugungsanlage, fester Brennstoff","Riementriebe","Funktionserhaltendes Reinigen",null,"W",null,null,null,"FK","-",3,24,12,12]
[421,"Wärmeerzeugungsanlage, fester Brennstoff","Riementriebe","Auf Spannung und Fluchtung prüfen","I",{"$nulls":4},"FK","-",3,24,12,12]
[421,"Wärmeerzeugungsanlage, fester Brennstoff","Riementriebe","Schutzeinrichtung auf Funktion prüfen","I",{"$nulls":4},"FK","-",3,24,12,12]
[421,"Wärmeerzeugungsanlage, fester Brennstoff","Riementriebe","Nachstellen",null,"W",null,null,null,"FK","-",3,24,12,12]
[421,"Wärmeerzeugungsanlage, fester Brennstoff","Riementriebe","Riemen auswechseln",null,"W",null,null,null,"FK","-",3,24,12,12]
[421,"Wärmeerzeugungsanlage, fester Brennstoff","Antriebskupplungen","Auf Verschmutzung, Beschädigung, Korrosion und Befestigung prüfen","I",{"$nulls":4},"FK","-",3,24,12,12]
[421,"Wärmeerzeugungsanlage, fester Brennstoff","Antriebskupplungen","Temperatur prüfen","I",{"$nulls":4},"FK","-",3,24,12,12]
[421,"Wärmeerzeugungsanlage, fester Brennstoff","Antriebskupplungen","Schutzeinrichtung auf Funktion prüfen","I",{"$nulls":4},"FK","-",3,24,12,12]
[421,"Wärmeerzeugungsanlage, fester Brennstoff","Antriebskupplungen","Funktionserhaltendes Reinigen",null,"W",null,null,null,"FK","-",3,24,12,12]
[421,"Wärmeerzeugungsanlage, fester Brennstoff","Antriebskupplungen","Ausrichtung überprüfen","I",{"$nulls":4},"FK","-",3,24,12,12]
[421,"Wärmeerzeugungsanlage, fester Brennstoff","Antriebskupplungen","Öl auswechseln",null,"W",null,null,null,"FK","-",3,24,12,12]
[421,"Wärmeerzeugungsanlage, fester Brennstoff","Kettentriebe","Auf Verschmutzung, Beschädigung und Verschleiß prüfen","I",{"$nulls":4},"FK","-",3,24,12,12]
[421,"Wärmeerzeugungsanlage, fester Brennstoff","Kettentriebe","Schutzeinrichtung auf Funktion prüfen","I",{"$nulls":4},"FK","-",3,24,12,12]
[421,"Wärmeerzeugungsanlage, fester Brennstoff","Kettentriebe","Funktionserhaltendes Reinigen",null,"W",null,null,null,"FK","-",3,24,12,12]
[421,"Wärmeerzeugungsanlage, fester Brennstoff","Kettentriebe","Auf Spannung und Fluchtung prüfen",null,"W",null,null,null,"FK","-",3,24,12,12]
[421,"Wärmeerzeugungsanlage, fester Brennstoff","Kettentriebe","Nachstellen",null,"W",null,null,null,"FK","-",3,24,12,12]
[421,"Wärmeerzeugungsanlage, fester Brennstoff","Kettentriebe","Kette fetten",null,"W",null,null,null,"FK","-",3,24,12,12]
[421,"Wärmeerzeugungsanlage, fester Brennstoff","Getriebe","Äußerlich auf Verschmutzung, Beschädigung und Korrosion prüfen ","I",{"$nulls":4},"FK","-",3,24,16,16]
[421,"Wärmeerzeugungsanlage, fester Brennstoff","Getriebe","Auf Befestigung und Geräusch prüfen","I",{"$nulls":4},"FK","-",3,24,16,16]
[421,"Wärmeerzeugungsanlage, fester Brennstoff","Getriebe","Funktionserhaltendes Reinigen",null,"W",null,null,null,"FK","-",3,24,16,16]
[421,"Wärmeerzeugungsanlage, fester Brennstoff","Getriebe","Ausrichtung prüfen",null,"W",null,null,null,"FK","-",3,24,16,16]
[421,"Wärmeerzeugungsanlage, fester Brennstoff","Getriebe","Öl auswechseln",null,"W",null,null,null,"FK","-",3,24,16,16]
[421,"Wärmepumpe",null,"gem. Herstellervorschriften unter Einhaltung der Normen, Richtlinien und Regelwerken",{"$nulls":7},6,36,16,16]
[421,"Gastherme",null,"Auf Verschmutzung, Beschädigung, Korrosion (äußerlich) und Befestigung prüfen",{"$nulls":7},6,36,12,12]
[421,"Gastherme",null,"Auf Funktion prüfen",{"$nulls":7},6,36,12,12]
[421,"Gastherme",null,"Auf Dichtheit prüfen (optisch/ akustisch)",{"$nulls":7},6,36,12,12]
[421,"Gastherme",null,"Armaturen auf Beschädigung und Korrosion (äußerlich) prüfen",{"$nulls":7},6,36,12,12]
[421,"Gastherme",null,"Armaturen auf Funktion prüfen",{"$nulls":7},6,36,12,12]
[421,"Gastherme",null,"Armaturen auf Dichtheit prüfen",{"$nulls":7},6,36,12,12]
[421,"Gastherme",null,"Funktionserhaltendes Reinigen",{"$nulls":7},6,36,12,12]
[421,"Gastherme",null,"Druckprobe durchführen",{"$nulls":7},6,36,12,12]
[421,"Gastherme",null,"gem. Herstellervorschriften unter Einhaltung der Normen, Richtlinien und Regelwerken",{"$nulls":7},6,36,12,12]
[421,"Solarthermie",null,"Äußerlich auf Beschädigung, Korrosion und Befestigung prüfen","I",{"$nulls":6},6,36,16,16]
[421,"Solarthermie",null,"Auf Dichtheit prüfen (Sichtprüfung)","I",{"$nulls":6},6,36,16,16]
[421,"Solarthermie",null,"Kollektortemperaturfühler auf festen Sitz prüfen","I",{"$nulls":6},6,36,16,16]
[421,"Solarthermie",null,"Vakuum prüfen","I",{"$nulls":6},6,36,16,16]
[421,"Solarthermie",null,"Vakuum herstellen und mit Edelgas auffüllen",null,"W",{"$nulls":5},6,36,16,16]
[421,"Solarthermie",null,"Anlagendruck prüfen","I",{"$nulls":6},6,36,16,16]
[421,"Solarthermie",null,"Anlagendruck nach Herstellerangaben einstellen",null,"W",{"$nulls":5},6,36,16,16]
[421,"Solarthermie",null,"ph-Messung der Solarflüssigkeit",null,"W",{"$nulls":5},6,36,16,16]
[421,"Solarthermie",null,"Frostschutztemperatur (Gefrierpunkt) der Wärmeträgermedien ermitteln",null,"W",{"$nulls":5},6,36,16,16]
[421,"Solarthermie",null,"Funktionserhaltendes Reinigen",null,"W",{"$nulls":5},6,36,16,16]
[421,"Solarthermie",null,"Solarflüssigkeit ersetzen",{"$nulls":7},6,36,16,16]
[421,"Solarthermie",null,"Frostschutzmittel nachfüllen",null,"W",{"$nulls":5},6,36,16,16]
[421,"Blockheizkraftwerk (wärmegeführt)",null,"gem. Herstellervorschriften unter Einhaltung der Normen, Richtlinien und Regelwerken",{"$nulls":7},6,36,3,3]
[421,"Brennstoffzellenheizgerät",null,"gem. Herstellervorschriften unter Einhaltung der Normen, Richtlinien und Regelwerken",{"$nulls":7},6,36,3,3]
[421,"Elektroheizung",null,"Auf Verschmutzung, Beschädigung, Korrosion und Befestigung prüfen","I",{"$nulls":6},6,36,12,12]
[421,"Elektroheizung",null,"Funktionserhaltendes Reinigen",null,"W",{"$nulls":5},6,36,12,12]
[421,"Elektroheizung",null,"Anschlüsse auf festen Sitz prüfen und ggf. nachziehen",null,"W",{"$nulls":5},6,36,12,12]
[421,"Elektroheizung",null,"Funktionselemente (z.B. bedien- und Anzeigeeinrichtungen) prüfen","I",{"$nulls":6},6,36,12,12]
[421,"Elektroheizung",null,"Auf Funktion prüfen","I",{"$nulls":6},6,36,12,12]
[421,"Strahlungsheizung - Dunkelstrahler",null,"Äußerlich auf Verschmutzung und Beschädigung prüfen","I",{"$nulls":6},6,36,16,16]
[421,"Strahlungsheizung - Dunkelstrahler",null,"Brennermotor auf Funktion prüfen","I",{"$nulls":6},6,36,16,16]
[421,"Strahlungsheizung - Dunkelstrahler",null,"Lager auf Geräusch prüfen","I",{"$nulls":6},6,36,16,16]
[421,"Strahlungsheizung - Dunkelstrahler",null,"Laufrad auf Verschmutzung und Beschädigung prüfen","I",{"$nulls":6},6,36,16,16]
[421,"Strahlungsheizung - Dunkelstrahler",null,"Mischeinrichtung auf Beschädigung und Verschmutzung prüfen","I",{"$nulls":6},6,36,16,16]
[421,"Strahlungsheizung - Dunkelstrahler",null,"Absperreinrichtungen (Handabsperrhahn) auf Funktion und  Dichtheit prüfen","I",{"$nulls":6},6,36,16,16]
[421,"Strahlungsheizung - Dunkelstrahler",null,"Anschlussleitung und Gasarmaturengruppe äußerlich auf Dichtheit prüfen","I",{"$nulls":6},6,36,16,16]
[421,"Strahlungsheizung - Dunkelstrahler",null,"Funktionserhaltendes Reinigen",null,"W",{"$nulls":5},6,36,16,16]
[421,"Strahlungsheizung - Dunkelstrahler",null,"Feuerungswärmeleitung prüfen","I",{"$nulls":6},6,36,16,16]
[421,"Strahlungsheizung - Dunkelstrahler",null,"Feuerungswärmeleitung einstellen",null,"W",{"$nulls":5},6,36,16,16]
[421,"Strahlungsheizung - Dunkelstrahler",null,"Mischeinrichtung reinigen",null,"W",{"$nulls":5},6,36,16,16]
[421,"Strahlungsheizung - Dunkelstrahler",null,"Flammenfühler auf Funktion prüfen","I",{"$nulls":6},6,36,16,16]
[421,"Strahlungsheizung - Dunkelstrahler",null,"Zündeinrichtung auf Funktion prüfen","I",{"$nulls":6},6,36,16,16]
[421,"Strahlungsheizung - Dunkelstrahler",null,"Lufteinstellvorrichtung auf Funktion prüfen","I",{"$nulls":6},6,36,16,16]
[421,"Strahlungsheizung - Dunkelstrahler",null,"Luftmangelsicherung auf Funktion prüfen ","I",{"$nulls":6},6,36,16,16]
[421,"Strahlungsheizung - Dunkelstrahler",null,"Luftabschlussklappen auf Funktion prüfen","I",{"$nulls":6},6,36,16,16]
[421,"Strahlungsheizung - Dunkelstrahler",null,"Lager der Luftabschlussklappen schmieren",null,"W",{"$nulls":5},6,36,16,16]
[421,"Strahlungsheizung - Dunkelstrahler",null,"Gasdruckregler auf Funktion prüfen","I",{"$nulls":6},6,36,16,16]
[421,"Strahlungsheizung - Dunkelstrahler",null,"Magnetventile auf Funktion prüfen","I",{"$nulls":6},6,36,16,16]
[421,"Strahlungsheizung - Dunkelstrahler",null,"Anschluss- und Düsendruck prüfen","I",{"$nulls":6},6,36,16,16]
[421,"Strahlungsheizung - Dunkelstrahler",null,"Düsendruck einstellen",null,"W",{"$nulls":5},6,36,16,16]
[421,"Strahlungsheizung - Dunkelstrahler",null,"Regel- und Steuereinrichtung auf Funktion prüfen","I",{"$nulls":6},6,36,16,16]
[421,"Strahlungsheizung - Dunkelstrahler",null,"Abgasanalyse (CO, CO2, Ruß, Abgas- und Verbrennungslufttemperatur, Unter-/Überdruck im Feuerraum oder am Kesselende) durchführen",null,"W",{"$nulls":5},6,36,16,16]
[421,"Strahlungsheizung - Dunkelstrahler",null,"Abgasverlust ermitteln",null,"W",{"$nulls":5},6,36,16,16]
[421,"Strahlungsheizung - Dunkelstrahler",null,"Messprotokoll erstellen",null,"W",{"$nulls":5},6,36,16,16]
[421,"Strahlungsheizung - Hellstrahler",null,"Äußerlich auf Verschmutzung und Beschädigung prüfen","I",{"$nulls":6},6,36,16,16]
[421,"Strahlungsheizung - Hellstrahler",null,"Anschlussleitung und Gasarmaturengruppe äußerlich auf Dichtheit prüfen","I",{"$nulls":6},6,36,16,16]
[421,"Strahlungsheizung - Hellstrahler",null,"Funktionserhaltendes Reinigen",null,"W",{"$nulls":5},6,36,16,16]
[421,"Strahlungsheizung - Hellstrahler",null,"Zündelektrode reinigen",null,"W",{"$nulls":5},6,36,16,16]
[421,"Strahlungsheizung - Hellstrahler",null,"Zündelektrode einstellen",null,"W",{"$nulls":5},6,36,16,16]
[421,"Strahlungsheizung - Hellstrahler",null,"Zündeinrichtung auf Funktion prüfen","I",{"$nulls":6},6,36,16,16]
[421,"Strahlungsheizung - Hellstrahler",null,"Flammenfühler auf Funktion prüfen","I",{"$nulls":6},6,36,16,16]
[421,"Strahlungsheizung - Hellstrahler",null,"Absperreinrichtungen (Handabsperrhahn) auf Funktion und  Dichtheit prüfen","I",{"$nulls":6},6,36,16,16]
[421,"Strahlungsheizung - Hellstrahler",null,"Gasdruckregler auf Funktion prüfen","I",{"$nulls":6},6,36,16,16]
[421,"Strahlungsheizung - Hellstrahler",null,"Anschluss- und Düsendruck prüfen","I",{"$nulls":6},6,36,16,16]
[421,"Strahlungsheizung - Hellstrahler",null,"Düsendruck einstellen",null,"W",{"$nulls":5},6,36,16,16]
[421,"Strahlungsheizung - Hellstrahler",null,"Regel- und Steuereinrichtung auf Funktion prüfen","I",{"$nulls":6},6,36,16,16]
[421,"Strahlungsheizung - Hellstrahler",null,"Messprotokoll erstellen",null,"W",{"$nulls":5},6,36,16,16]
[421,"Strahlungsheizung - Hellstrahler",null,"Zündelektroden auswechseln",{"$nulls":7},6,36,16,16]
[421,"Strahlungsheizung - Hellstrahler",null,"Flammenfühler auswechseln",{"$nulls":7},6,36,16,16]
[421,"Einzelraumfeuerungsanlage für feste Brennstoffe",null,"gem. Herstellervorschriften unter Einhaltung der Normen, Richtlinien und Regelwerken",{"$nulls":7},6,36,8,8]
[421,"Schornstein",null,"Auf Beschädigung und Korrosion prüfen","I",{"$nulls":6},6,36,12,12]
[421,"Schornstein",null,"Auf Dichtheit prüfen (Sichtprüfung)","I",{"$nulls":6},6,36,12,12]
[421,"Schornstein",null,"Abgastemperaturwächter auf Verschmutzung, Beschädigung und Korrosion prüfen","I",{"$nulls":6},6,36,12,12]
[421,"Schornstein",null,"Abgastemperaturwächter reinigen",null,"W",{"$nulls":5},6,36,12,12]
[421,"Schornstein",null,"Abgastemperaturwächter auf Funktion prüfen","I",{"$nulls":6},6,36,12,12]
[421,"Schornstein",null,"Abgastemperaturwächter auswechseln",{"$nulls":7},6,36,12,12]
[421,"Schornstein",null,"Abgasseitig auf Verschmutzung, Beschädigung und Korrosion prüfen","I",{"$nulls":6},6,36,12,12]
[421,"Schornstein",null,"Abgas- und wasserseitig auf Dichtheit prüfen","I",{"$nulls":6},6,36,12,12]
[421,"Schornstein",null,"Abgastemperaturfühler auf Verschmutzung, Beschädigung und Korrosion prüfen","I",{"$nulls":6},6,36,12,12]
[421,"Schornstein",null,"Funktionserhaltendes Reinigen",null,"W",{"$nulls":5},6,36,12,12]
[421,"Schornstein",null,"Abgasseitig reinigen",null,"W",{"$nulls":5},6,36,12,12]
[421,"Schornstein",null,"Abgasregelklappen auf Gängigkeit und festen Sitz der Gestänge prüfen","I",{"$nulls":6},6,36,12,12]
[421,"Schornstein",null,"Lager der Klappen und Gestänge schmieren",null,"W",{"$nulls":5},6,36,12,12]
[421,"Schornstein",null,"Abgastemperaturfühler reinigen ",null,"W",{"$nulls":5},6,36,12,12]
[421,"Schornstein",null,"Abgastemperaturregler auf Funktion prüfen","I",{"$nulls":6},6,36,12,12]
[421,"Schornstein",null,"Abgastemperaturregler nachstellen",null,"W",{"$nulls":5},6,36,12,12]
[421,"Schornstein",null,"Sicherheitseinrichtungen auf Funktion prüfen","I",{"$nulls":6},6,36,12,12]
[421,"Schornstein",null,"Temperaturmessgeräte auf Beschädigung, Anzeige und Funktion prüfen (Plausibilitätsprüfung)","I",{"$nulls":6},6,36,12,12]
[421,"Schornstein",null,"Entlüften",null,"W",{"$nulls":5},6,36,12,12]
[421,"Schornstein",null,"Auf Verschmutzung, Beschädigung und Korrosion prüfen","I",{"$nulls":6},6,36,12,12]
[421,"Schornstein",null,"Funktionserhaltendes Reinigen",null,"W",{"$nulls":5},6,36,12,12]
[421,"Schornstein",null,"Auf Funktion prüfen","I",{"$nulls":6},6,36,12,12]
[421,"Schornstein",null,"Auf Verschmutzung, Beschädigung, Korrosion und Befestigung prüfen","I",{"$nulls":6},6,36,12,12]
[421,"Schornstein",null,"Lager auf Geräusch prüfen","I",{"$nulls":6},6,36,12,12]
[421,"Schornstein",null,"Flexible Verbindung auf Dichtheit prüfen","I",{"$nulls":6},6,36,12,12]
[421,"Schornstein",null,"Schwingungsdämpfer auf Funktion prüfen","I",{"$nulls":6},6,36,12,12]
[421,"Schornstein",null,"Funktionserhaltendes Reinigen",null,"W",{"$nulls":5},6,36,12,12]
[421,"Schornstein",null,"Lager mit Nachschmiereinrichtung fetten",null,"W",{"$nulls":5},6,36,12,12]
[421,"Schornstein",null,"Schutzeinrichtung auf Funktion prüfen","I",{"$nulls":6},6,36,12,12]

{"sheet":"422","index":5,"n_rows":36,"n_cols":15,"rows_kept":36,"cut":false,"hidden":false,"merged":[]}
[{"$nulls":4},"Inspektion","Wartung","Instandsetzung","Sachverständiger","Sachkundige","Fachkraft",null,"Monate","Monate",{"$f":"IF([1]Fragen!$D$18=\"Ja\",\"Eine einfache Sichtkontrolle genügt\",\"Eine einfache Sichtkontrolle genügt nicht\")","v":"Eine einfache Sichtkontrolle genügt nicht"}]
["Kostengruppe","Anlage (System)","Abgrenzung","Tätigkeit","I","W","IS","SV","SK","FK","normative Grundlage","min","max","Empfehlung Inspektion","Empfehlung Wartung"]
[422,"Wärmeverteilnetz","Pumpen","Äußerlich auf Verschmutzung, Beschädigung und Korrosion prüfen ","I",null,null,null,"SK",null,"DGUVV § 5\nBGR - GUV-R 108\nGUV-V A3 § 5\nBGR-GUV-R 108",12,48,8,8]
[422,"Wärmeverteilnetz","Pumpen","Auf Befestigung und Geräusch prüfen","I",null,null,null,"SK",null,"DGUVV § 5\nBGR - GUV-R 108\nGUV-V A3 § 5\nBGR-GUV-R 108",12,48,8,8]
[422,"Wärmeverteilnetz","Pumpen","Auf Funktion prüfen","I",null,null,null,"SK",null,"DGUVV § 5\nBGR - GUV-R 108\nGUV-V A3 § 5\nBGR-GUV-R 108",12,48,8,8]
[422,"Wärmeverteilnetz","Pumpen","Wellendurchführung auf Dichtheit prüfen","I",null,null,null,"SK",null,"DGUVV § 5\nBGR - GUV-R 108\nGUV-V A3 § 5\nBGR-GUV-R 108",12,48,8,8]
[422,"Wärmeverteilnetz","Pumpen","Funktionserhaltendes Reinigen (äußerlich)",null,"W",null,null,"SK",null,"DGUVV § 5\nBGR - GUV-R 108\nGUV-V A3 § 5\nBGR-GUV-R 108",12,48,8,8]
[422,"Wärmeverteilnetz","Pumpen","Stopfbuchse nachstellen",null,"W",null,null,"SK",null,"DGUVV § 5\nBGR - GUV-R 108\nGUV-V A3 § 5\nBGR-GUV-R 108",12,48,8,8]
[422,"Wärmeverteilnetz","Pumpen","Lager mit Nachschmiereinrichtung fetten",null,"W",null,null,"SK",null,"DGUVV § 5\nBGR - GUV-R 108\nGUV-V A3 § 5\nBGR-GUV-R 108",12,48,8,8]
[422,"Wärmeverteilnetz","Absperr-, Abgleich-, Sicherheits- und Regelarmaturen","Äußerlich auf Beschädigung und Korrosion prüfen","I",null,null,null,"SK",null,"keine außer: Sicherheitsarmaturen gemäß Einbauvorschriften",12,48,8,8]
[422,"Wärmeverteilnetz","Absperr-, Abgleich-, Sicherheits- und Regelarmaturen","Auf Funktion prüfen","I",null,null,null,"SK",null,"keine außer: Sicherheitsarmaturen gemäß Einbauvorschriften",12,48,8,8]
[422,"Wärmeverteilnetz","Absperr-, Abgleich-, Sicherheits- und Regelarmaturen","Auf Dichtheit prüfen (Sichtprüfung)","I",null,null,null,"SK",null,"keine außer: Sicherheitsarmaturen gemäß Einbauvorschriften",12,48,8,8]
[422,"Wärmeverteilnetz","Absperr-, Abgleich-, Sicherheits- und Regelarmaturen","Stopfbuchse nachstellen",null,"W",null,null,"SK",null,"keine außer: Sicherheitsarmaturen gemäß Einbauvorschriften",12,48,8,8]
[422,"Wärmeverteilnetz","Absperr-, Abgleich-, Sicherheits- und Regelarmaturen","Spindel schmieren",null,"W",null,null,"SK",null,"keine außer: Sicherheitsarmaturen gemäß Einbauvorschriften",12,48,8,8]
[422,"Wärmeverteilnetz","Druckerhöhung, Druckminderung, Druckbehälter","Äußerlich auf Beschädigung, Korrosion und Befestigung prüfen","I",null,null,null,"SK",null,"BetrSichV § 17\nDIN 1988-8",12,48,8,8]
[422,"Wärmeverteilnetz","Druckerhöhung, Druckminderung, Druckbehälter","Druckbehälter auf Dichtheit prüfen (Sichtprüfung)","I",null,null,null,"SK",null,"BetrSichV § 17\nDIN 1988-8",12,48,8,8]
[422,"Wärmeverteilnetz","Druckerhöhung, Druckminderung, Druckbehälter","Absperreinrichtungen und sicherheitstechnische Ausrüstung auf Funktion prüfen","I",null,null,null,"SK",null,"BetrSichV § 17\nDIN 1988-8",12,48,8,8]
[422,"Wärmeverteilnetz","Druckerhöhung, Druckminderung, Druckbehälter","Druckhalte- und Absperrventil in der Ausdehnungsleitung prüfen (Offenstellung, Sicherung)","I",null,null,null,"SK",null,"BetrSichV § 17\nDIN 1988-8",12,48,8,8]
[422,"Wärmeverteilnetz","Druckerhöhung, Druckminderung, Druckbehälter","Druckpolster prüfen","I",null,null,null,"SK",null,"BetrSichV § 17\nDIN 1988-8",12,48,8,8]
[422,"Wärmeverteilnetz","Druckerhöhung, Druckminderung, Druckbehälter","Druckpolster aufbauen","I",null,null,null,"SK",null,"BetrSichV § 17\nDIN 1988-8",12,48,8,8]
[422,"Wärmeverteilnetz","Druckerhöhung, Druckminderung, Druckbehälter","Manometer auf Beschädigung, Anzeige und Funktion prüfen (Plausibilitätsprüfung)","I",null,null,null,"SK",null,"BetrSichV § 17\nDIN 1988-8",12,48,8,8]
[422,"Wärmeverteilnetz","Druckerhöhung, Druckminderung, Druckbehälter","Ausgleichsbehälter und dessen Anschlüsse auf Beschädigung, Korrosion, Befestigung und Dichtheit prüfen","I",null,null,null,"SK",null,"BetrSichV § 17\nDIN 1988-8",12,48,8,8]
[422,"Wärmeverteilnetz","Druckerhöhung, Druckminderung, Druckbehälter","Funktionserhaltendes Reinigen",null,"W",null,null,"SK",null,"BetrSichV § 17\nDIN 1988-8",12,48,8,8]
[422,"Wärmeverteilnetz","Druckerhöhung, Druckminderung, Druckbehälter","Sicherheitsventil auf Funktion prüfen","I",null,null,null,"SK",null,"BetrSichV § 17\nDIN 1988-8",12,48,8,8]
[422,"Wärmeverteilnetz","Druckerhöhung, Druckminderung, Druckbehälter","Druckregler auf Funktion prüfen","I",null,null,null,"SK",null,"BetrSichV § 17\nDIN 1988-8",12,48,8,8]
[422,"Wärmeverteilnetz","Druckerhöhung, Druckminderung, Druckbehälter","Druckregulierventil (Überströmventil, Druckminderer) auf Funktion prüfen","I",null,null,null,"SK",null,"BetrSichV § 17\nDIN 1988-8",12,48,8,8]
[422,"Wärmeverteilnetz","Druckerhöhung, Druckminderung, Druckbehälter","Druckregulierventil nachstellen","I",null,null,null,"SK",null,"BetrSichV § 17\nDIN 1988-8",12,48,8,8]
[422,"Wärmeverteilnetz","Druckerhöhung, Druckminderung, Druckbehälter","Rückflussverhinderer auf Funktion prüfen","I",null,null,null,"SK",null,"BetrSichV § 17\nDIN 1988-8",12,48,8,8]
[422,"Wärmeverteilnetz","Rohrleitungen","Äußerlich auf Beschädigung, Dichtheit und Befestigung prüfen","I",{"$nulls":4},"FK","-",12,48,12,12]
[422,"Wärmeverteilnetz","Rohrleitungen","Wärmedämmung auf Beschädigung und Vollständigkeit prüfen ","I",{"$nulls":4},"FK","-",12,48,12,12]
[422,"Wärmeverteilnetz","Rohrleitungen","Kompensatoren auf Beschädigung und Befestigung prüfen","I",{"$nulls":4},"FK","-",12,48,12,12]
[422,"Wärmeverteilnetz","Rohrleitungen","Temperatur- und Druckmessgeräte auf Beschädigung und Anzeigegenauigkeit prüfen (Plausibilitätsprüfung)","I",{"$nulls":4},"FK","-",12,48,12,12]
[422,"Wärmeverteilnetz","Rohrleitungen","Entlüftungsventile auf Funktion prüfen","I",{"$nulls":4},"FK","-",12,48,12,12]
[422,"Wärmeverteilnetz","Rohrleitungen","Flüssigkeitsstand prüfen","I",{"$nulls":4},"FK","-",12,48,12,12]
[422,"Wärmeverteilnetz","Rohrleitungen","Entlüften","I",{"$nulls":4},"FK","-",12,48,12,12]
[422,"Wärmeverteilnetz","Rohrleitungen","Flüssigkeit nachfüllen",null,"W",null,null,null,"FK","-",12,48,12,12]

{"sheet":"423","index":6,"n_rows":6,"n_cols":15,"rows_kept":6,"cut":false,"hidden":false,"merged":[]}
[{"$nulls":4},"Inspektion","Wartung","Instandsetzung","Sachverständiger","Sachkundige","Fachkraft",null,"Monate","Monate",{"$f":"IF([1]Fragen!$D$18=\"Ja\",\"Eine einfache Sichtkontrolle genügt\",\"Eine einfache Sichtkontrolle genügt nicht\")","v":"Eine einfache Sichtkontrolle genügt nicht"}]
["Kostengruppe","Anlage (System)","Abgrenzung","Tätigkeit","I","W","IS","SV","SK","FK","normative Grundlage","min","max","Empfehlung Inspektion","Empfehlung Wartung"]
[423,"Heizkörper","Heizkörper","Auf Beschädigung, Korrosion, Dichtheit und Befestigung prüfen","I",{"$nulls":4},"FK","Herstellerangaben beachten",24,48,24,24]
[423,"Heizkörper","Heizkörper","Heizkörperventil auf Funktion prüfen","I",{"$nulls":4},"FK","Herstellerangaben beachten",24,48,24,24]
[423,"Heizkörper","Heizkörper","Entlüften",null,"W",null,null,null,"FK","Herstellerangaben beachten",24,48,24,24]
[423,"Heizkörper","Heizkörper","Heizkörperventil nachstellen","I",{"$nulls":4},"FK","Herstellerangaben beachten",24,48,24,24]

{"sheet":"429","index":7,"n_rows":2,"n_cols":15,"rows_kept":2,"cut":false,"hidden":false,"merged":[]}
[{"$nulls":4},"Inspektion","Wartung","Instandsetzung","Sachverständiger","Sachkundige","Fachkraft",null,"Monate","Monate",{"$f":"IF([1]Fragen!$D$18=\"Ja\",\"Eine einfache Sichtkontrolle genügt\",\"Eine einfache Sichtkontrolle genügt nicht\")","v":"Eine einfache Sichtkontrolle genügt nicht"}]
["Kostengruppe","Anlage (System)","Abgrenzung","Tätigkeit","I","W","IS","SV","SK","FK","normative Grundlage","min","max","Empfehlung Inspektion","Empfehlung Wartung"]

{"sheet":"431","index":8,"n_rows":606,"n_cols":15,"rows_kept":606,"cut":false,"hidden":false,"merged":[]}
[{"$nulls":4},"Inspektion","Wartung","Instandsetzung","Sachverständiger","Sachkundige","Fachkraft",null,"Monate","Monate",{"$f":"IF([1]Fragen!$D$18=\"Ja\",\"Eine einfache Sichtkontrolle genügt\",\"Eine einfache Sichtkontrolle genügt nicht\")","v":{"$error":"#REF!"}}]
["Kostengruppe","Anlage (System)","Abgrenzung","Tätigkeit","I","W","IS","SV","SK","FK","normative Grundlage","min","max","Empfehlung Inspektion","Empfehlung Wartung"]
[431,"Abluftanlage","Ventilatoren","Hygienemaßnahmen nach VDI 6022 Blatt 1","I",null,null,null,"SK",null,"DGUVV\nBGR-GUV-R 108\nGUV-V A3\nVDI 6022-1\n",6,36,24.000000000000004,24.000000000000004]
[431,"Abluftanlage","Ventilatoren","Ventilator auf Verschmutzung, Beschädigung und Korrosion prüfen","I",null,null,null,"SK",null,"DGUVV\nBGR-GUV-R 108\nGUV-V A3\nVDI 6022-1\n",6,36,24.000000000000004,24.000000000000004]
[431,"Abluftanlage","Ventilatoren","Funktionserhaltendes Reinigen der luftberührten Teile des Ventilators sowie des Wasserablaufes","I",null,null,null,"SK",null,"DGUVV\nBGR-GUV-R 108\nGUV-V A3\nVDI 6022-1\n",6,36,24.000000000000004,24.000000000000004]
[431,"Abluftanlage","Ventilatoren","Schaufelverstelleinrichtung auf Funktion prüfen","I",null,null,null,"SK",null,"DGUVV\nBGR-GUV-R 108\nGUV-V A3\nVDI 6022-1\n",6,36,24.000000000000004,24.000000000000004]
[431,"Abluftanlage","Ventilatoren","Lager auf Geräusch prüfen","I",null,null,null,"SK",null,"DGUVV\nBGR-GUV-R 108\nGUV-V A3\nVDI 6022-1\n",6,36,24.000000000000004,24.000000000000004]
[431,"Abluftanlage","Ventilatoren","Flexible Verbindungen auf Dichtheit prüfen","I",null,null,null,"SK",null,"DGUVV\nBGR-GUV-R 108\nGUV-V A3\nVDI 6022-1\n",6,36,24.000000000000004,24.000000000000004]
[431,"Abluftanlage","Ventilatoren","Schwingungsdämpfer auf Funktion prüfen","I",null,null,null,"SK",null,"DGUVV\nBGR-GUV-R 108\nGUV-V A3\nVDI 6022-1\n",6,36,24.000000000000004,24.000000000000004]
[431,"Abluftanlage","Ventilatoren","Schutzeinrichtungen auf Funktion prüfen","I",null,null,null,"SK",null,"DGUVV\nBGR-GUV-R 108\nGUV-V A3\nVDI 6022-1\n",6,36,24.000000000000004,24.000000000000004]
[431,"Abluftanlage","Ventilatoren","Drallregler auf Funktion prüfen","I",null,null,null,"SK",null,"DGUVV\nBGR-GUV-R 108\nGUV-V A3\nVDI 6022-1\n",6,36,24.000000000000004,24.000000000000004]
[431,"Abluftanlage","Ventilatoren","Laufrad auf Unwucht prüfen","I",null,null,null,"SK",null,"DGUVV\nBGR-GUV-R 108\nGUV-V A3\nVDI 6022-1\n",6,36,24.000000000000004,24.000000000000004]
[431,"Abluftanlage","Ventilatoren","Lager schmieren",null,"W",null,null,"SK",null,"DGUVV\nBGR-GUV-R 108\nGUV-V A3\nVDI 6022-1\n",6,36,24.000000000000004,24.000000000000004]
[431,"Abluftanlage","Wetterschutzgitter","Hygienemaßnahmen nach VDI 6022 Blatt 1","I",null,null,null,"SK",null,"VDI 6022",6,36,24.000000000000004,24.000000000000004]
[431,"Abluftanlage","Wetterschutzgitter","Auf Verschmutzung, Beschädigung, Korrosion prüfen","I",null,null,null,"SK",null,"-",6,36,24.000000000000004,24.000000000000004]
[431,"Abluftanlage","Wetterschutzgitter","Reinigen",null,"W",null,null,"SK",null,"-",6,36,24.000000000000004,24.000000000000004]
[431,"Abluftanlage","Gitter und Verteiler","Hygienemaßnahmen nach VDI 6022 Blatt 1","I",null,null,null,"SK",null,"VDI 6022",6,36,24.000000000000004,24.000000000000004]
[431,"Abluftanlage","Gitter und Verteiler","Eingebaute Lochbleche, Maschendraht oder Siebe auf Verschmutzung prüfen (Stichprobe), ggf. reinigen bzw. austauschen","I",null,null,null,"SK",null,"VDI 6022",6,36,24.000000000000004,24.000000000000004]
[431,"Abluftanlage","Gitter und Verteiler","Filtervliese auswechseln bei Filterklasse < F 9",null,"W",null,null,"SK",null,"VDI 6022",6,36,24.000000000000004,24.000000000000004]
[431,"Abluftanlage","Gitter und Verteiler","Luftdurchlässe mit Induktion der Raumluft und Abluftdurlässe auf Feststoffablagerungen prüfen, ggf. reinigen",null,"W",null,null,"SK",null,"VDI 6022",6,36,24.000000000000004,24.000000000000004]
[431,"Abluftanlage","Gitter und Verteiler","Reinigung der durch Sekundärluft durchströmten Bauteile",null,"W",null,null,"SK",null,"VDI 6022",6,36,24.000000000000004,24.000000000000004]
[431,"Brandschutzklappen","Brandschutzklappen","Einrastvorrichtung auf Verschmutzung und Funktion prüfen","I",null,null,null,"SK",null,"SPrüfV § 2 Abs. 4\nDVNBauO § 32 Abs. 1",6,12,8,8]
[431,"Brandschutzklappen","Brandschutzklappen","Auslösevorrichtung auf Verschmutzung  und Funktion prüfen","I",null,null,null,"SK",null,"SPrüfV § 2 Abs. 4\nDVNBauO § 32 Abs. 1",6,12,8,8]
[431,"Brandschutzklappen","Brandschutzklappen","Auslöseelement auswechseln",null,"W",null,null,"SK",null,"SPrüfV § 2 Abs. 4\nDVNBauO § 32 Abs. 1",6,12,8,8]
[431,"Brandschutzklappen","Brandschutzklappen","Auf Gängigkeit prüfen","I",null,null,null,"SK",null,"SPrüfV § 2 Abs. 4\nDVNBauO § 32 Abs. 1",6,12,8,8]
[431,"Brandschutzklappen","Brandschutzklappen","Stellungsanzeige auf Funktion prüfen",null,"W",null,null,"SK",null,"SPrüfV § 2 Abs. 4\nDVNBauO § 32 Abs. 1",6,12,8,8]
[431,"Brandschutzklappen","Brandschutzklappen","Einrast- und Auslösevorrichtung reinigen",null,"W",null,null,"SK",null,"SPrüfV § 2 Abs. 4\nDVNBauO § 32 Abs. 1",6,12,8,8]
[431,"Abluftanlage","Klappen","Auf Verschmutzung, Beschlädigung und Korrosion prüfen","I",{"$nulls":4},"FK","-",6,36,24.000000000000004,24.000000000000004]
[431,"Abluftanlage","Klappen","Auf mechanische Funktion prüfen","I",{"$nulls":4},"FK","-",6,36,24.000000000000004,24.000000000000004]
[431,"Abluftanlage","Klappen","Lager und Gestänge schmieren",null,"W",null,null,null,"FK","-",6,36,24.000000000000004,24.000000000000004]
[431,"Abluftanlage","Luftleitungen und -kammern","Hygienemaßnahmen nach VDI 6022 Blatt 1","I",null,null,null,"SK",null,"BayBO Art. 39\nVDI 6022",6,36,24.000000000000004,24.000000000000004]
[431,"Abluftanlage","Luftleitungen und -kammern","Zugängliche Luftleitungsabschnitte auf Beschädigung prüfen","I",null,null,null,"SK",null,"BayBO Art. 39\nVDI 6022",6,36,24.000000000000004,24.000000000000004]
[431,"Abluftanlage","Luftleitungen und -kammern","Abläufe auf Funktion prüfen","I",null,null,null,"SK",null,"BayBO Art. 39\nVDI 6022",6,36,24.000000000000004,24.000000000000004]
[431,"Abluftanlage","Luftleitungen und -kammern","Türen und Verschlüsse auf Gängigkeit und Dichtheit prüfen","I",null,null,null,"SK",null,"BayBO Art. 39\nVDI 6022",6,36,24.000000000000004,24.000000000000004]
[431,"Abluftanlage","Luftleitungen und -kammern","Isolierung auf äußere Beschädigung prüfen (Sichtprüfung)","I",null,null,null,"SK",null,"BayBO Art. 39\nVDI 6022",6,36,24.000000000000004,24.000000000000004]
[431,"Abluftanlage","Luftleitungen und -kammern","Flexible Verbindungen auf Dichtheit prüfen","I",null,null,null,"SK",null,"BayBO Art. 39\nVDI 6022",6,36,24.000000000000004,24.000000000000004]
[431,"Abluftanlage","Luftleitungen und -kammern","Reinigen",null,"W",null,null,"SK",null,"BayBO Art. 39\nVDI 6022",6,36,24.000000000000004,24.000000000000004]
[431,"Abluftanlage","Luftleitungen und -kammern","Kammerzentralen/ Gerätegehäuse auf luftseitige Verschmutzung, Beschädigung und Korrosion prüfen, ggf. reinigen","I",null,null,null,"SK",null,"BayBO Art. 39\nVDI 6022",6,36,24.000000000000004,24.000000000000004]
[431,"Abluftanlage","Luftleitungen und -kammern","Dto. Auf Wasserbildung prüfen, ggf. reinigen, Ursache ermitteln",null,"W",null,null,"SK",null,"BayBO Art. 39\nVDI 6022",6,36,24.000000000000004,24.000000000000004]
[431,"Abluftanlage","Luftleitungen und -kammern","Innere Luftleitungsfläche auf Verschmutzung und Korrosion an 2 bis 3 repräsentativen Stellen prüfen, ggf. Ursache ermitteln, ensprechende Luftleitungsabschnitte reinigen",null,"W",null,null,"SK",null,"BayBO Art. 39\nVDI 6022",6,36,24.000000000000004,24.000000000000004]
[431,"Abluftanlage","Luftleitungen und -kammern","Schalldämpfer auf Verschmutzung, Beschädigung und Korrosion prüfen","I",null,null,null,"SK",null,"BayBO Art. 39\nVDI 6022",6,36,24.000000000000004,24.000000000000004]
[431,"Abluftanlage","Luftleitungen und -kammern","Kontrolle des Hygienezustandes in der Luftleitung an einer repräsentativen Stelle, ggf. Ursache ermitteln, entsprechende Luftleitungsabschnitte reinigen (Hygieneinspektion)",null,"W",null,null,"SK",null,"BayBO Art. 39\nVDI 6022",6,36,24.000000000000004,24.000000000000004]
[431,"Abluftanlage","Luftleitungen und -kammern","Bewegliche Teile schmieren",null,"W",null,null,"SK",null,"BayBO Art. 39\nVDI 6022",6,36,24.000000000000004,24.000000000000004]
[431,"Abluftanlage","Volumenstrom- und Mischregler","Auf Verschmutzung, Beschädigung und Korrosion prüfen","I",{"$nulls":4},"FK","-",6,36,24.000000000000004,24.000000000000004]
[431,"Abluftanlage","Volumenstrom- und Mischregler","Volumenstromregler auf Funktion prüfen","I",{"$nulls":4},"FK","-",6,36,24.000000000000004,24.000000000000004]
[431,"Abluftanlage","Volumenstrom- und Mischregler","Regelklappen auf Funktion prüfen","I",{"$nulls":4},"FK","-",6,36,24.000000000000004,24.000000000000004]
[431,"Abluftanlage","Volumenstrom- und Mischregler","Reinigen",null,"W",null,null,null,"FK","-",6,36,24.000000000000004,24.000000000000004]
[431,"Abluftanlage","Absperr- und Abgleichelemente","Auf Verschmutzung, Beschädigung und Korrosion prüfen","I",{"$nulls":4},"FK","-",6,36,24.000000000000004,24.000000000000004]
[431,"Abluftanlage","Absperr- und Abgleichelemente","Auf Funktion prüfen","I",{"$nulls":4},"FK","-",6,36,24.000000000000004,24.000000000000004]
[431,"Abluftanlage","Absperr- und Abgleichelemente","Reinigen",null,"W",null,null,null,"FK","-",6,36,24.000000000000004,24.000000000000004]
[431,"Abluftanlage","Luftfilter","Hygienemaßnahmen nach VDI 6022 Blatt 1","I",null,null,null,"SK",null,"VDI 6022",3,12,8,8]
[431,"Abluftanlage","Luftfilter","Differenzdruck prüfen, ggf. Filterstufe auswechseln","I",null,null,null,"SK",null,"VDI 6022",3,6,4,4]
[431,"Abluftanlage","Luftfilter","Luftfilter auf unzulässige Verschmutzung und Beschädigung (Leckagen) prüfen ggf. auswechseln der betroffenen Luftfilter, falls letzte Auswechselung der Filterstufe nicht länger als 6 Mon. her ist, sonst auswechseln der gesamten Filterstufe",null,"W",null,null,"SK",null,"VDI 6022",3,3,3,3]
[431,"Abluftanlage","Luftfilter","Spätester Filterwechsel der 1. Stufe bei nicht regenerierbaren Luftfiltern, sonst gründliche Reinigung",null,"W",null,null,"SK",null,"VDI 6022",3,12,8,8]
[431,"Abluftanlage","Luftfilter","Spätester Filterwechsel der 2. Stufe",null,"W",null,null,"SK",null,"VDI 6022",3,24,16,16]
[431,"Abluftanlage","Rollbandfilter","Auf Verschmutzung, Beschädigung und Korrosion prüfen","I",null,null,null,"SK",null,"VDI 6022\n",3,12,8,8]
[431,"Abluftanlage","Rollbandfilter","Druckdifferenz messen","I",null,null,null,"SK",null,"VDI 6022\n",3,6,4,4]
[431,"Abluftanlage","Rollbandfilter","Filtervorschub auf Funktion prüfen","I",null,null,null,"SK",null,"VDI 6022\n",3,12,8,8]
[431,"Abluftanlage","Rollbandfilter","Filtermedium auf Vorrat prüfen","I",null,null,null,"SK",null,"VDI 6022\n",3,12,8,8]
[431,"Abluftanlage","Rollbandfilter","Filterband auswechseln",null,"W",null,null,"SK",null,"VDI 6022-1",3,12,8,8]
[431,"Abluftanlage","Trockenschichtfilter","Auf Verschmutzung, Korrosion und Beschädigung prüfen","I",null,null,null,"SK",null,"VDI 6022",3,12,8,8]
[431,"Abluftanlage","Trockenschichtfilter","Filterauflage auf Dichtheit prüfen","I",null,null,null,"SK",null,"VDI 6022",3,12,8,8]
[431,"Abluftanlage","Trockenschichtfilter","Druckdifferenz messen",null,"W",null,null,"SK",null,"VDI 6022-1",3,6,4,4]
[431,"Abluftanlage","Trockenschichtfilter","Filtermedium (regenerierbar) reinigen",null,"W",null,null,"SK",null,"VDI 6022-1",3,12,8,8]
[431,"Abluftanlage","gesamte Anlage","Kontrolle des Hygienezustandes (Hygieneinspektion)","I",null,null,null,"SK",null,"VDI 6022-1",3,6,4,4]
[431,"Abluftanlage","Elektrofilter","Auf Verschmutzung, Beschädigung und Korrosion prüfen","I",null,null,null,"SK",null,"DGUVV\nGUV-V A3\nVDI 6022",6,6,6,6]
[431,"Abluftanlage","Elektrofilter","Ionisationsdrähte auf Beschädigung prüfen","I",null,null,null,"SK",null,"DGUVV\nGUV-V A3\nVDI 6022",6,12,8,8]
[431,"Abluftanlage","Elektrofilter","Ionisationsdrähte auswechseln",null,"W",null,null,"SK",null,"DGUVV\nGUV-V A3\nVDI 6022",6,48,32,32]
[431,"Abluftanlage","Elektrofilter","Filterzellen auf Beschädigung und Funkenschlag prüfen","I",null,null,null,"SK",null,"DGUVV\nGUV-V A3\nVDI 6022",6,12,8,8]
[431,"Abluftanlage","Elektrofilter","Isolatoren auf festen Sitz prüfen","I",null,null,null,"SK",null,"DGUVV\nGUV-V A3\nVDI 6022",6,12,8,8]
[431,"Abluftanlage","Elektrofilter","Isolatoren auswechseln",null,"W",null,null,"SK",null,"DGUVV\nGUV-V A3\nVDI 6022",6,36,24.000000000000004,24.000000000000004]
[431,"Abluftanlage","Elektrofilter","Stromaufnahme messen","I",null,null,null,"SK",null,"DGUVV\nGUV-V A3\nVDI 6022",6,12,8,8]
[431,"Abluftanlage","Elektrofilter","Reinigungseinrichtung auf Funktion prüfen","I",null,null,null,"SK",null,"DGUVV\nGUV-V A3\nVDI 6022",6,12,8,8]
[431,"Abluftanlage","Elektrofilter","MSR-Sicherheitseinrichtungen prüfen","I",null,null,null,"SK",null,"DGUVV\nGUV-V A3\nVDI 6022",6,12,8,8]
[431,"Abluftanlage","Elektrofilter","Antriebselemente prüfen","I",null,null,null,"SK",null,"DGUVV\nGUV-V A3\nVDI 6022",6,12,8,8]
[431,"Abluftanlage","Elektrofilter","Reinigen",null,"W",null,null,"SK",null,"DGUVV\nGUV-V A3\nVDI 6022",6,12,8,8]
[431,"Abluftanlage","Sorptionsfilter","Auf äußere Verschmutzung, Beschädigung und Korrosion prüfen","I",null,null,null,"SK",null,"VDI 6022",6,3,6,6]
[431,"Abluftanlage","Sorptionsfilter","Filtereinsatz auf dichten Sitz prüfen","I",null,null,null,"SK",null,"VDI 6022",6,6,6,6]
[431,"Abluftanlage","Sorptionsfilter","Filtereinsatz auswechseln",null,"W",null,null,"SK",null,"VDI 6022",6,24,16,16]
[431,"Abluftanlage","Sorptionsfilter","Reinigen",null,"W",null,null,"SK",null,"VDI 6022",6,12,8,8]
[431,"Zuluftanlage","Ventilatoren","Hygienemaßnahmen nach VDI 6022 Blatt 1","I",null,null,null,"SK",null,"DGUVV\nBGR-GUV-R 108\nGUV-V A3\nVDI 6022-1\n",6,36,24.000000000000004,24.000000000000004]
[431,"Zuluftanlage","Ventilatoren","Ventilator auf Verschmutzung, Beschädigung und Korrosion prüfen","I",null,null,null,"SK",null,"DGUVV\nBGR-GUV-R 108\nGUV-V A3\nVDI 6022-1\n",6,36,24.000000000000004,24.000000000000004]
[431,"Zuluftanlage","Ventilatoren","Funktionserhaltendes Reinigen der luftberührten Teile des Ventilators sowie des Wasserablaufes",null,"W",null,null,"SK",null,"DGUVV\nBGR-GUV-R 108\nGUV-V A3\nVDI 6022-1\n",6,36,24.000000000000004,24.000000000000004]
[431,"Zuluftanlage","Ventilatoren","Schaufelverstelleinrichtung auf Funktion prüfen","I",null,null,null,"SK",null,"DGUVV\nBGR-GUV-R 108\nGUV-V A3\nVDI 6022-1\n",6,36,24.000000000000004,24.000000000000004]
[431,"Zuluftanlage","Ventilatoren","Lager auf Geräusch prüfen","I",null,null,null,"SK",null,"DGUVV\nBGR-GUV-R 108\nGUV-V A3\nVDI 6022-1\n",6,36,24.000000000000004,24.000000000000004]
[431,"Zuluftanlage","Ventilatoren","Flexible Verbindungen auf Dichtheit prüfen","I",null,null,null,"SK",null,"DGUVV\nBGR-GUV-R 108\nGUV-V A3\nVDI 6022-1\n",6,36,24.000000000000004,24.000000000000004]
[431,"Zuluftanlage","Ventilatoren","Schwingungsdämpfer auf Funktion prüfen","I",null,null,null,"SK",null,"DGUVV\nBGR-GUV-R 108\nGUV-V A3\nVDI 6022-1\n",6,36,24.000000000000004,24.000000000000004]
[431,"Zuluftanlage","Ventilatoren","Schutzeinrichtungen auf Funktion prüfen","I",null,null,null,"SK",null,"DGUVV\nBGR-GUV-R 108\nGUV-V A3\nVDI 6022-1\n",6,36,24.000000000000004,24.000000000000004]
[431,"Zuluftanlage","Ventilatoren","Drallregler auf Funktion prüfen","I",null,null,null,"SK",null,"DGUVV\nBGR-GUV-R 108\nGUV-V A3\nVDI 6022-1\n",6,36,24.000000000000004,24.000000000000004]
[431,"Zuluftanlage","Ventilatoren","Laufrad auf Unwucht prüfen","I",null,null,null,"SK",null,"DGUVV\nBGR-GUV-R 108\nGUV-V A3\nVDI 6022-1\n",6,36,24.000000000000004,24.000000000000004]
[431,"Zuluftanlage","Ventilatoren","Lager schmieren",null,"W",null,null,"SK",null,"DGUVV\nBGR-GUV-R 108\nGUV-V A3\nVDI 6022-1\n",6,36,24.000000000000004,24.000000000000004]
[431,"Zuluftanlage","Wetterschutzgitter","Hygienemaßnahmen nach VDI 6022 Blatt 1","I",null,null,null,"SK",null,"VDI 6022",6,36,24.000000000000004,24.000000000000004]
[431,"Zuluftanlage","Wetterschutzgitter","Auf Verschmutzung, Beschädigung, Korrosion prüfen","I",null,null,null,"SK",null,"-",6,36,24.000000000000004,24.000000000000004]
[431,"Zuluftanlage","Wetterschutzgitter","Reinigen",null,"W",null,null,"SK",null,"-",6,36,24.000000000000004,24.000000000000004]
[431,"Zuluftanlage","Gitter und Verteiler","Hygienemaßnahmen nach VDI 6022 Blatt 1","I",null,null,null,"SK",null,"VDI 6022",6,36,24.000000000000004,24.000000000000004]
[431,"Zuluftanlage","Gitter und Verteiler","Eingebaute Lochbleche, Maschendraht oder Siebe auf Verschmutzung prüfen (Stichprobe), ggf. reinigen bzw. austauschen","I",null,null,null,"SK",null,"VDI 6022",6,36,24.000000000000004,24.000000000000004]
[431,"Zuluftanlage","Gitter und Verteiler","Filtervliese auswechseln bei Filterklasse < F 9",null,"W",null,null,"SK",null,"VDI 6022",6,36,24.000000000000004,24.000000000000004]
[431,"Zuluftanlage","Gitter und Verteiler","Luftdurchlässe mit Induktion der Raumluft und Abluftdurlässe auf Feststoffablagerungen prüfen, ggf. reinigen",null,"W",null,null,"SK",null,"VDI 6022",6,36,24.000000000000004,24.000000000000004]
[431,"Zuluftanlage","Gitter und Verteiler","Reinigung der durch Sekundärluft durchströmten Bauteile",null,"W",null,null,"SK",null,"VDI 6022",6,36,24.000000000000004,24.000000000000004]
[431,"Zuluftanlage","Klappen","Auf Verschmutzung, Beschlädigung und Korrosion prüfen","I",{"$nulls":4},"FK","-",6,36,24.000000000000004,24.000000000000004]
[431,"Zuluftanlage","Klappen","Auf mechanische Funktion prüfen","I",{"$nulls":4},"FK","-",6,36,24.000000000000004,24.000000000000004]
[431,"Zuluftanlage","Klappen","Lager und Gestänge schmieren",null,"W",null,null,null,"FK","-",6,36,24.000000000000004,24.000000000000004]
[431,"Zuluftanlage","Luftleitungen und -kammern","Hygienemaßnahmen nach VDI 6022 Blatt 1","I",null,null,null,"SK",null,"BayBO Art. 39\nVDI 6022",6,36,24.000000000000004,24.000000000000004]
[431,"Zuluftanlage","Luftleitungen und -kammern","Zugängliche Luftleitungsabschnitte auf Beschädigung prüfen","I",null,null,null,"SK",null,"BayBO Art. 39\nVDI 6022",6,36,24.000000000000004,24.000000000000004]
[431,"Zuluftanlage","Luftleitungen und -kammern","Abläufe auf Funktion prüfen","I",null,null,null,"SK",null,"BayBO Art. 39\nVDI 6022",6,36,24.000000000000004,24.000000000000004]
[431,"Zuluftanlage","Luftleitungen und -kammern","Türen und Verschlüsse auf Gängigkeit und Dichtheit prüfen","I",null,null,null,"SK",null,"BayBO Art. 39\nVDI 6022",6,36,24.000000000000004,24.000000000000004]
[431,"Zuluftanlage","Luftleitungen und -kammern","Isolierung auf äußere Beschädigung prüfen (Sichtprüfung)","I",null,null,null,"SK",null,"BayBO Art. 39\nVDI 6022",6,36,24.000000000000004,24.000000000000004]
[431,"Zuluftanlage","Luftleitungen und -kammern","Flexible Verbindungen auf Dichtheit prüfen","I",null,null,null,"SK",null,"BayBO Art. 39\nVDI 6022",6,36,24.000000000000004,24.000000000000004]
[431,"Zuluftanlage","Luftleitungen und -kammern","Reinigen",null,"W",null,null,"SK",null,"BayBO Art. 39\nVDI 6022",6,36,24.000000000000004,24.000000000000004]
[431,"Zuluftanlage","Luftleitungen und -kammern","Kammerzentralen/ Gerätegehäuse auf luftseitige Verschmutzung, Beschädigung und Korrosion prüfen, ggf. reinigen","I",null,null,null,"SK",null,"BayBO Art. 39\nVDI 6022",6,36,24.000000000000004,24.000000000000004]
[431,"Zuluftanlage","Luftleitungen und -kammern","Dto. Auf Wasserbildung prüfen, ggf. reinigen, Ursache ermitteln",null,"W",null,null,"SK",null,"BayBO Art. 39\nVDI 6022",6,36,24.000000000000004,24.000000000000004]
[431,"Zuluftanlage","Luftleitungen und -kammern","Innere Luftleitungsfläche auf Verschmutzung und Korrosion an 2 bis 3 repräsentativen Stellen prüfen, ggf. Ursache ermitteln, ensprechende Luftleitungsabschnitte reinigen",null,"W",null,null,"SK",null,"BayBO Art. 39\nVDI 6022",6,36,24.000000000000004,24.000000000000004]
[431,"Zuluftanlage","Luftleitungen und -kammern","Schalldämpfer auf Verschmutzung, Beschädigung und Korrosion prüfen","I",null,null,null,"SK",null,"BayBO Art. 39\nVDI 6022",6,36,24.000000000000004,24.000000000000004]
[431,"Zuluftanlage","Luftleitungen und -kammern","Kontrolle des Hygienezustandes in der Luftleitung an einer repräsentativen Stelle, ggf. Ursache ermitteln, entsprechende Luftleitungsabschnitte reinigen (Hygieneinspektion)",null,"W",null,null,"SK",null,"BayBO Art. 39\nVDI 6022",6,36,24.000000000000004,24.000000000000004]
[431,"Zuluftanlage","Luftleitungen und -kammern","Bewegliche Teile schmieren",null,"W",null,null,"SK",null,"BayBO Art. 39\nVDI 6022",6,36,24.000000000000004,24.000000000000004]
[431,"Zuluftanlage","Volumenstrom- und Mischregler","Auf Verschmutzung, Beschädigung und Korrosion prüfen","I",{"$nulls":4},"FK","-",6,36,24.000000000000004,24.000000000000004]
[431,"Zuluftanlage","Volumenstrom- und Mischregler","Volumenstromregler auf Funktion prüfen","I",{"$nulls":4},"FK","-",6,36,24.000000000000004,24.000000000000004]
[431,"Zuluftanlage","Volumenstrom- und Mischregler","Regelklappen auf Funktion prüfen","I",{"$nulls":4},"FK","-",6,36,24.000000000000004,24.000000000000004]
[431,"Zuluftanlage","Volumenstrom- und Mischregler","Reinigen",null,"W",null,null,null,"FK","-",6,36,24.000000000000004,24.000000000000004]
[431,"Zuluftanlage","Absperr- und Abgleichelemente","Auf Verschmutzung, Beschädigung und Korrosion prüfen","I",{"$nulls":4},"FK","-",6,36,24.000000000000004,24.000000000000004]
[431,"Zuluftanlage","Absperr- und Abgleichelemente","Auf Funktion prüfen","I",{"$nulls":4},"FK","-",6,36,24.000000000000004,24.000000000000004]
[431,"Zuluftanlage","Absperr- und Abgleichelemente","Reinigen",null,"W",null,null,null,"FK","-",6,36,24.000000000000004,24.000000000000004]
[431,"Zuluftanlage","Luftfilter","Hygienemaßnahmen nach VDI 6022 Blatt 1","I",null,null,null,"SK",null,"VDI 6022",3,12,8,8]
[431,"Zuluftanlage","Luftfilter","Differenzdruck prüfen, ggf. Filterstufe auswechseln","I",null,null,null,"SK",null,"VDI 6022",3,6,4,4]
[431,"Zuluftanlage","Luftfilter","Luftfilter auf unzulässige Verschmutzung und Beschädigung (Leckagen) prüfen ggf. auswechseln der betroffenen Luftfilter, falls letzte Auswechselung der Filterstufe nicht länger als 6 Mon. her ist, sonst auswechseln der gesamten Filterstufe",null,"W",null,null,"SK",null,"VDI 6022",3,3,3,3]
[431,"Zuluftanlage","Luftfilter","Spätester Filterwechsel der 1. Stufe bei nicht regenerierbaren Luftfiltern, sonst gründliche Reinigung",null,"W",null,null,"SK",null,"VDI 6022",3,12,8,8]
[431,"Zuluftanlage","Luftfilter","Spätester Filterwechsel der 2. Stufe",null,"W",null,null,"SK",null,"VDI 6022",3,24,16,16]
[431,"Zuluftanlage","Rollbandfilter","Auf Verschmutzung, Beschädigung und Korrosion prüfen","I",null,null,null,"SK",null,"VDI 6022\n",3,12,8,8]
[431,"Zuluftanlage","Rollbandfilter","Druckdifferenz messen","I",null,null,null,"SK",null,"VDI 6022\n",3,6,4,4]
[431,"Zuluftanlage","Rollbandfilter","Filtervorschub auf Funktion prüfen","I",null,null,null,"SK",null,"VDI 6022\n",3,12,8,8]
[431,"Zuluftanlage","Rollbandfilter","Filtermedium auf Vorrat prüfen","I",null,null,null,"SK",null,"VDI 6022\n",3,12,8,8]
[431,"Zuluftanlage","Rollbandfilter","Filterband auswechseln",null,"W",null,null,"SK",null,"VDI 6022-1",3,12,8,8]
[431,"Zuluftanlage","Trockenschichtfilter","Auf Verschmutzung, Korrosion und Beschädigung prüfen","I",null,null,null,"SK",null,"VDI 6022",3,12,8,8]
[431,"Zuluftanlage","Trockenschichtfilter","Filterauflage auf Dichtheit prüfen","I",null,null,null,"SK",null,"VDI 6022",3,12,8,8]
[431,"Zuluftanlage","Trockenschichtfilter","Druckdifferenz messen",null,"W",null,null,"SK",null,"VDI 6022-1",3,6,4,4]
[431,"Zuluftanlage","Trockenschichtfilter","Filtermedium (regenerierbar) reinigen",null,"W",null,null,"SK",null,"VDI 6022-1",3,12,8,8]
[431,"Zuluftanlage","gesamte Anlage","Kontrolle des Hygienezustandes (Hygieneinspektion)","I",null,null,null,"SK",null,"VDI 6022-1",3,6,4,4]
[431,"Zuluftanlage","Elektrofilter","Auf Verschmutzung, Beschädigung und Korrosion prüfen","I",null,null,null,"SK",null,"DGUVV\nGUV-V A3\nVDI 6022",6,6,6,6]
[431,"Zuluftanlage","Elektrofilter","Ionisationsdrähte auf Beschädigung prüfen","I",null,null,null,"SK",null,"DGUVV\nGUV-V A3\nVDI 6022",6,12,8,8]
[431,"Zuluftanlage","Elektrofilter","Ionisationsdrähte auswechseln",null,"W",null,null,"SK",null,"DGUVV\nGUV-V A3\nVDI 6022",6,48,32,32]
[431,"Zuluftanlage","Elektrofilter","Filterzellen auf Beschädigung und Funkenschlag prüfen","I",null,null,null,"SK",null,"DGUVV\nGUV-V A3\nVDI 6022",6,12,8,8]
[431,"Zuluftanlage","Elektrofilter","Isolatoren auf festen Sitz prüfen","I",null,null,null,"SK",null,"DGUVV\nGUV-V A3\nVDI 6022",6,12,8,8]
[431,"Zuluftanlage","Elektrofilter","Isolatoren auswechseln",null,"W",null,null,"SK",null,"DGUVV\nGUV-V A3\nVDI 6022",6,36,24.000000000000004,24.000000000000004]
[431,"Zuluftanlage","Elektrofilter","Stromaufnahme messen",null,"W",null,null,"SK",null,"DGUVV\nGUV-V A3\nVDI 6022",6,12,8,8]
[431,"Zuluftanlage","Elektrofilter","Reinigungseinrichtung auf Funktion prüfen","I",null,null,null,"SK",null,"DGUVV\nGUV-V A3\nVDI 6022",6,12,8,8]
[431,"Zuluftanlage","Elektrofilter","MSR-Sicherheitseinrichtungen prüfen","I",null,null,null,"SK",null,"DGUVV\nGUV-V A3\nVDI 6022",6,12,8,8]
[431,"Zuluftanlage","Elektrofilter","Antriebselemente prüfen","I",null,null,null,"SK",null,"DGUVV\nGUV-V A3\nVDI 6022",6,12,8,8]
[431,"Zuluftanlage","Elektrofilter","Reinigen",null,"W",null,null,"SK",null,"DGUVV\nGUV-V A3\nVDI 6022",6,12,8,8]
[431,"Zuluftanlage","Sorptionsfilter","Auf äußere Verschmutzung, Beschädigung und Korrosion prüfen","I",null,null,null,"SK",null,"VDI 6022",6,3,6,6]
[431,"Zuluftanlage","Sorptionsfilter","Filtereinsatz auf dichten Sitz prüfen","I",null,null,null,"SK",null,"VDI 6022",6,6,6,6]
[431,"Zuluftanlage","Sorptionsfilter","Filtereinsatz auswechseln",null,"W",null,null,"SK",null,"VDI 6022",6,24,16,16]
[431,"Zuluftanlage","Sorptionsfilter","Reinigen",null,"W",null,null,"SK",null,"VDI 6022",6,12,8,8]
[431,"Zuluftanlage","Lufterwärmer (Luft/ Flüssigkeit)","Hygienemaßnahmen nach VDI 6022 Blatt 1","I",null,null,null,"SK",null,null,12,36,24.000000000000004,24.000000000000004]
[431,"Zuluftanlage","Lufterwärmer (Luft/ Flüssigkeit)","Wärmeaustauscher auf Verschmutzung, Beschädigung und Korrosion prüfen, ggf. reinigen und instandsetzen","I",null,null,null,"SK",null,null,12,36,24.000000000000004,24.000000000000004]
[431,"Zuluftanlage","Lufterwärmer (Luft/ Flüssigkeit)","Vor- und Rücklauf auf Funktion prüfen","I",null,null,null,"SK",null,null,12,36,24.000000000000004,24.000000000000004]
[431,"Zuluftanlage","Lufterwärmer (Luft/ Flüssigkeit)","Luftseitig reinigen","I",null,null,null,"SK",null,null,12,36,24.000000000000004,24.000000000000004]
[431,"Zuluftanlage","Lufterwärmer (Luft/ Flüssigkeit)","Entlüften","I",null,null,null,"SK",null,null,12,36,24.000000000000004,24.000000000000004]
[431,"Zuluftanlage","Rückkühlwerk","Nasskühler, Kondensatwanne und Tropfenabscheider auf Verschmutzung, Korrosion und Funktion prüfen, ggf. instandsetzen","I",null,null,null,"SK",null,null,3,12,8,8]
[431,"Zuluftanlage","Rückkühlwerk","Kontrolle des Hygienezustandes (Hygieneinspektion)","I",null,null,null,"SK",null,null,3,12,8,8]
[431,"Zuluftanlage","Elektro-Lufterwärmer","Auf Zunderansatz und Korrosion prüfen","I",null,null,null,"SK",null,null,12,36,24.000000000000004,24.000000000000004]
[431,"Zuluftanlage","Elektro-Lufterwärmer","Auf Funktion prüfen","I",null,null,null,"SK",null,null,12,36,24.000000000000004,24.000000000000004]
[431,"Zuluftanlage","Elektro-Lufterwärmer","Sicherheitseinrichtung auf Funktion prüfen","I",null,null,null,"SK",null,null,12,36,24.000000000000004,24.000000000000004]
[431,"Zuluftanlage","Elektro-Lufterwärmer","Luftseitig reinigen",null,"W",null,null,"SK",null,null,12,36,24.000000000000004,24.000000000000004]
[431,"Zu- und Abluftanlage","Ventilatoren","Hygienemaßnahmen nach VDI 6022 Blatt 1","I",null,null,null,"SK",null,"VDI 6022",6,36,24.000000000000004,24.000000000000004]
[431,"Zu- und Abluftanlage","Ventilatoren","Ventilator auf Verschmutzung, Beschädigung und Korrosion prüfen","I",null,null,null,"SK",null,"-",6,36,24.000000000000004,24.000000000000004]
[431,"Zu- und Abluftanlage","Ventilatoren","Funktionserhaltendes Reinigen der luftberührten Teile des Ventilators sowie des Wasserablaufes","I",null,null,null,"SK",null,"-",6,36,24.000000000000004,24.000000000000004]
[431,"Zu- und Abluftanlage","Ventilatoren","Schaufelverstelleinrichtung auf Funktion prüfen","I",null,null,null,"SK",null,"VDI 6022",6,36,24.000000000000004,24.000000000000004]
[431,"Zu- und Abluftanlage","Ventilatoren","Lager auf Geräusch prüfen","I",null,null,null,"SK",null,"VDI 6022",6,36,24.000000000000004,24.000000000000004]
[431,"Zu- und Abluftanlage","Ventilatoren","Flexible Verbindungen auf Dichtheit prüfen","I",null,null,null,"SK",null,"VDI 6022",6,36,24.000000000000004,24.000000000000004]
[431,"Zu- und Abluftanlage","Ventilatoren","Schwingungsdämpfer auf Funktion prüfen","I",null,null,null,"SK",null,"VDI 6022",6,36,24.000000000000004,24.000000000000004]
[431,"Zu- und Abluftanlage","Ventilatoren","Schutzeinrichtungen auf Funktion prüfen","I",null,null,null,"SK",null,"VDI 6022",6,36,24.000000000000004,24.000000000000004]
[431,"Zu- und Abluftanlage","Ventilatoren","Drallregler auf Funktion prüfen","I",null,null,null,"SK",null,"SPrüfV § 2 Abs. 4\nDVNBauO § 32 Abs. 1",6,36,24.000000000000004,24.000000000000004]
[431,"Zu- und Abluftanlage","Ventilatoren","Laufrad auf Unwucht prüfen","I",null,null,null,"SK",null,"SPrüfV § 2 Abs. 4\nDVNBauO § 32 Abs. 1",6,36,24.000000000000004,24.000000000000004]
[431,"Zu- und Abluftanlage","Ventilatoren","Lager schmieren",null,"W",null,null,"SK",null,"SPrüfV § 2 Abs. 4\nDVNBauO § 32 Abs. 1",6,36,24.000000000000004,24.000000000000004]
[431,"Zu- und Abluftanlage","Wetterschutzgitter","Hygienemaßnahmen nach VDI 6022 Blatt 1","I",null,null,null,"SK",null,"SPrüfV § 2 Abs. 4\nDVNBauO § 32 Abs. 1",6,36,24.000000000000004,24.000000000000004]
[431,"Zu- und Abluftanlage","Wetterschutzgitter","Auf Verschmutzung, Beschädigung, Korrosion prüfen","I",null,null,null,"SK",null,"SPrüfV § 2 Abs. 4\nDVNBauO § 32 Abs. 1",6,36,24.000000000000004,24.000000000000004]
[431,"Zu- und Abluftanlage","Wetterschutzgitter","Reinigen",null,"W",null,null,"SK",null,"SPrüfV § 2 Abs. 4\nDVNBauO § 32 Abs. 1",6,36,24.000000000000004,24.000000000000004]
[431,"Zu- und Abluftanlage","Gitter und Verteiler","Hygienemaßnahmen nach VDI 6022 Blatt 1","I",null,null,null,"SK",null,"-",6,36,24.000000000000004,24.000000000000004]
[431,"Zu- und Abluftanlage","Gitter und Verteiler","Eingebaute Lochbleche, Maschendraht oder Siebe auf Verschmutzung prüfen (Stichprobe), ggf. reinigen bzw. austauschen","I",null,null,null,"SK",null,"-",6,36,24.000000000000004,24.000000000000004]
[431,"Zu- und Abluftanlage","Gitter und Verteiler","Filtervliese auswechseln bei Filterklasse < F 9",null,"W",null,null,"SK",null,"-",6,36,24.000000000000004,24.000000000000004]
[431,"Zu- und Abluftanlage","Gitter und Verteiler","Luftdurchlässe mit Induktion der Raumluft und Abluftdurlässe auf Feststoffablagerungen prüfen, ggf. reinigen",null,"W",null,null,"SK",null,"BayBO Art. 39\nVDI 6022",6,36,24.000000000000004,24.000000000000004]
[431,"Zu- und Abluftanlage","Gitter und Verteiler","Reinigung der durch Sekundärluft durchströmten Bauteile",null,"W",null,null,"SK",null,"BayBO Art. 39\nVDI 6022",6,36,24.000000000000004,24.000000000000004]
[431,"Zu- und Abluftanlage","Klappen","Auf Verschmutzung, Beschlädigung und Korrosion prüfen","I",{"$nulls":4},"FK","BayBO Art. 39\nVDI 6022",6,36,24.000000000000004,24.000000000000004]
[431,"Zu- und Abluftanlage","Klappen","Auf mechanische Funktion prüfen","I",{"$nulls":4},"FK","BayBO Art. 39\nVDI 6022",6,36,24.000000000000004,24.000000000000004]
[431,"Zu- und Abluftanlage","Klappen","Lager und Gestänge schmieren",null,"W",null,null,null,"FK","BayBO Art. 39\nVDI 6022",6,36,24.000000000000004,24.000000000000004]
[431,"Zu- und Abluftanlage","Luftleitungen und -kammern","Hygienemaßnahmen nach VDI 6022 Blatt 1","I",null,null,null,"SK",null,"BayBO Art. 39\nVDI 6022",6,36,24.000000000000004,24.000000000000004]
[431,"Zu- und Abluftanlage","Luftleitungen und -kammern","Zugängliche Luftleitungsabschnitte auf Beschädigung prüfen","I",null,null,null,"SK",null,"BayBO Art. 39\nVDI 6022",6,36,24.000000000000004,24.000000000000004]
[431,"Zu- und Abluftanlage","Luftleitungen und -kammern","Abläufe auf Funktion prüfen","I",null,null,null,"SK",null,"-",6,36,24.000000000000004,24.000000000000004]
[431,"Zu- und Abluftanlage","Luftleitungen und -kammern","Türen und Verschlüsse auf Gängigkeit und Dichtheit prüfen","I",null,null,null,"SK",null,"-",6,36,24.000000000000004,24.000000000000004]
[431,"Zu- und Abluftanlage","Luftleitungen und -kammern","Isolierung auf äußere Beschädigung prüfen (Sichtprüfung)","I",null,null,null,"SK",null,"-",6,36,24.000000000000004,24.000000000000004]
[431,"Zu- und Abluftanlage","Luftleitungen und -kammern","Flexible Verbindungen auf Dichtheit prüfen","I",null,null,null,"SK",null,"-",6,36,24.000000000000004,24.000000000000004]
[431,"Zu- und Abluftanlage","Luftleitungen und -kammern","Reinigen",null,"W",null,null,"SK",null,"-",6,36,24.000000000000004,24.000000000000004]
[431,"Zu- und Abluftanlage","Luftleitungen und -kammern","Kammerzentralen/ Gerätegehäuse auf luftseitige Verschmutzung, Beschädigung und Korrosion prüfen, ggf. reinigen","I",null,null,null,"SK",null,"-",6,36,24.000000000000004,24.000000000000004]
[431,"Zu- und Abluftanlage","Luftleitungen und -kammern","Dto. Auf Wasserbildung prüfen, ggf. reinigen, Ursache ermitteln",null,"W",null,null,"SK",null,"-",6,36,24.000000000000004,24.000000000000004]
[431,"Zu- und Abluftanlage","Luftleitungen und -kammern","Innere Luftleitungsfläche auf Verschmutzung und Korrosion an 2 bis 3 repräsentativen Stellen prüfen, ggf. Ursache ermitteln, ensprechende Luftleitungsabschnitte reinigen",null,"W",null,null,"SK",null,"VDI 6022",6,36,24.000000000000004,24.000000000000004]
[431,"Zu- und Abluftanlage","Luftleitungen und -kammern","Schalldämpfer auf Verschmutzung, Beschädigung und Korrosion prüfen","I",null,null,null,"SK",null,"VDI 6022",6,36,24.000000000000004,24.000000000000004]
[431,"Zu- und Abluftanlage","Luftleitungen und -kammern","Kontrolle des Hygienezustandes in der Luftleitung an einer repräsentativen Stelle, ggf. Ursache ermitteln, entsprechende Luftleitungsabschnitte reinigen (Hygieneinspektion)",null,"W",null,null,"SK",null,"VDI 6022",6,36,24.000000000000004,24.000000000000004]
[431,"Zu- und Abluftanlage","Luftleitungen und -kammern","Bewegliche Teile schmieren",null,"W",null,null,"SK",null,"VDI 6022",6,36,24.000000000000004,24.000000000000004]
[431,"Zu- und Abluftanlage","Volumenstrom- und Mischregler","Auf Verschmutzung, Beschädigung und Korrosion prüfen","I",{"$nulls":4},"FK","VDI 6022",6,36,24.000000000000004,24.000000000000004]
[431,"Zu- und Abluftanlage","Volumenstrom- und Mischregler","Volumenstromregler auf Funktion prüfen","I",{"$nulls":4},"FK","VDI 6022\n",6,36,24.000000000000004,24.000000000000004]
[431,"Zu- und Abluftanlage","Volumenstrom- und Mischregler","Regelklappen auf Funktion prüfen","I",{"$nulls":4},"FK","VDI 6022\n",6,36,24.000000000000004,24.000000000000004]
[431,"Zu- und Abluftanlage","Volumenstrom- und Mischregler","Reinigen",null,"W",null,null,null,"FK","VDI 6022\n",6,36,24.000000000000004,24.000000000000004]
[431,"Zu- und Abluftanlage","Absperr- und Abgleichelemente","Auf Verschmutzung, Beschädigung und Korrosion prüfen","I",{"$nulls":4},"FK","VDI 6022\n",6,36,24.000000000000004,24.000000000000004]
[431,"Zu- und Abluftanlage","Absperr- und Abgleichelemente","Auf Funktion prüfen","I",{"$nulls":4},"FK","VDI 6022-1",6,36,24.000000000000004,24.000000000000004]
[431,"Zu- und Abluftanlage","Absperr- und Abgleichelemente","Reinigen",null,"W",null,null,null,"FK","VDI 6022",6,36,24.000000000000004,24.000000000000004]
[431,"Zu- und Abluftanlage","Luftfilter","Hygienemaßnahmen nach VDI 6022 Blatt 1","I",null,null,null,"SK",null,"VDI 6022",3,12,8,8]
[431,"Zu- und Abluftanlage","Luftfilter","Differenzdruck prüfen, ggf. Filterstufe auswechseln","I",null,null,null,"SK",null,"VDI 6022-1",3,6,4,4]
[431,"Zu- und Abluftanlage","Luftfilter","Luftfilter auf unzulässige Verschmutzung und Beschädigung (Leckagen) prüfen ggf. auswechseln der betroffenen Luftfilter, falls letzte Auswechselung der Filterstufe nicht länger als 6 Mon. her ist, sonst auswechseln der gesamten Filterstufe",null,"W",null,null,"SK",null,"VDI 6022-1",3,3,3,3]
[431,"Zu- und Abluftanlage","Luftfilter","Spätester Filterwechsel der 1. Stufe bei nicht regenerierbaren Luftfiltern, sonst gründliche Reinigung",null,"W",null,null,"SK",null,"VDI 6022-1",3,12,8,8]
[431,"Zu- und Abluftanlage","Luftfilter","Spätester Filterwechsel der 2. Stufe",null,"W",null,null,"SK",null,"DGUVV\nGUV-V A3\nVDI 6022",3,24,16,16]
[431,"Zu- und Abluftanlage","Rollbandfilter","Auf Verschmutzung, Beschädigung und Korrosion prüfen","I",null,null,null,"SK",null,"DGUVV\nGUV-V A3\nVDI 6022",3,12,8,8]
[431,"Zu- und Abluftanlage","Rollbandfilter","Druckdifferenz messen","I",null,null,null,"SK",null,"DGUVV\nGUV-V A3\nVDI 6022",3,6,4,4]
[431,"Zu- und Abluftanlage","Rollbandfilter","Filtervorschub auf Funktion prüfen","I",null,null,null,"SK",null,"DGUVV\nGUV-V A3\nVDI 6022",3,12,8,8]
[431,"Zu- und Abluftanlage","Rollbandfilter","Filtermedium auf Vorrat prüfen","I",null,null,null,"SK",null,"DGUVV\nGUV-V A3\nVDI 6022",3,12,8,8]
[431,"Zu- und Abluftanlage","Rollbandfilter","Filterband auswechseln",null,"W",null,null,"SK",null,"DGUVV\nGUV-V A3\nVDI 6022",3,12,8,8]
[431,"Zu- und Abluftanlage","Trockenschichtfilter","Auf Verschmutzung, Korrosion und Beschädigung prüfen","I",null,null,null,"SK",null,"DGUVV\nGUV-V A3\nVDI 6022",3,12,8,8]
[431,"Zu- und Abluftanlage","Trockenschichtfilter","Filterauflage auf Dichtheit prüfen","I",null,null,null,"SK",null,"DGUVV\nGUV-V A3\nVDI 6022",3,12,8,8]
[431,"Zu- und Abluftanlage","Trockenschichtfilter","Druckdifferenz messen",null,"W",null,null,"SK",null,"DGUVV\nGUV-V A3\nVDI 6022",3,6,4,4]
[431,"Zu- und Abluftanlage","Trockenschichtfilter","Filtermedium (regenerierbar) reinigen",null,"W",null,null,"SK",null,"DGUVV\nGUV-V A3\nVDI 6022",3,12,8,8]
[431,"Zu- und Abluftanlage","gesamte Anlage","Kontrolle des Hygienezustandes (Hygieneinspektion)","I",null,null,null,"SK",null,"DGUVV\nGUV-V A3\nVDI 6022",3,6,4,4]
[431,"Zu- und Abluftanlage","Elektrofilter","Auf Verschmutzung, Beschädigung und Korrosion prüfen","I",null,null,null,"SK",null,"VDI 6022",6,6,6,6]
[431,"Zu- und Abluftanlage","Elektrofilter","Ionisationsdrähte auf Beschädigung prüfen","I",null,null,null,"SK",null,"VDI 6022",6,12,8,8]
[431,"Zu- und Abluftanlage","Elektrofilter","Ionisationsdrähte auswechseln",null,"W",null,null,"SK",null,"VDI 6022",6,48,32,32]
[431,"Zu- und Abluftanlage","Elektrofilter","Filterzellen auf Beschädigung und Funkenschlag prüfen","I",null,null,null,"SK",null,"VDI 6022",6,12,8,8]
[431,"Zu- und Abluftanlage","Elektrofilter","Isolatoren auf festen Sitz prüfen","I",null,null,null,"SK",null,"DGUVV\nBGR-GUV-R 108\nGUV-V A3\nVDI 6022-1\n",6,12,8,8]
[431,"Zu- und Abluftanlage","Elektrofilter","Isolatoren auswechseln",null,"W",null,null,"SK",null,"DGUVV\nBGR-GUV-R 108\nGUV-V A3\nVDI 6022-1\n",6,36,24.000000000000004,24.000000000000004]
[431,"Zu- und Abluftanlage","Elektrofilter","Stromaufnahme messen",null,"W",null,null,"SK",null,"DGUVV\nBGR-GUV-R 108\nGUV-V A3\nVDI 6022-1\n",6,12,8,8]
[431,"Zu- und Abluftanlage","Elektrofilter","Reinigungseinrichtung auf Funktion prüfen","I",null,null,null,"SK",null,"DGUVV\nBGR-GUV-R 108\nGUV-V A3\nVDI 6022-1\n",6,12,8,8]
[431,"Zu- und Abluftanlage","Elektrofilter","MSR-Sicherheitseinrichtungen prüfen","I",null,null,null,"SK",null,"DGUVV\nBGR-GUV-R 108\nGUV-V A3\nVDI 6022-1\n",6,12,8,8]
[431,"Zu- und Abluftanlage","Elektrofilter","Antriebselemente prüfen","I",null,null,null,"SK",null,"DGUVV\nBGR-GUV-R 108\nGUV-V A3\nVDI 6022-1\n",6,12,8,8]
[431,"Zu- und Abluftanlage","Elektrofilter","Reinigen",null,"W",null,null,"SK",null,"DGUVV\nBGR-GUV-R 108\nGUV-V A3\nVDI 6022-1\n",6,12,8,8]
[431,"Zu- und Abluftanlage","Sorptionsfilter","Auf äußere Verschmutzung, Beschädigung und Korrosion prüfen","I",null,null,null,"SK",null,"DGUVV\nBGR-GUV-R 108\nGUV-V A3\nVDI 6022-1\n",6,3,6,6]
[431,"Zu- und Abluftanlage","Sorptionsfilter","Filtereinsatz auf dichten Sitz prüfen","I",null,null,null,"SK",null,"DGUVV\nBGR-GUV-R 108\nGUV-V A3\nVDI 6022-1\n",6,6,6,6]
[431,"Zu- und Abluftanlage","Sorptionsfilter","Filtereinsatz auswechseln",null,"W",null,null,"SK",null,"DGUVV\nBGR-GUV-R 108\nGUV-V A3\nVDI 6022-1\n",6,24,16,16]
[431,"Zu- und Abluftanlage","Sorptionsfilter","Reinigen",null,"W",null,null,"SK",null,"DGUVV\nBGR-GUV-R 108\nGUV-V A3\nVDI 6022-1\n",6,12,8,8]
[431,"Zu- und Abluftanlage","Lufterwärmer (Luft/ Flüssigkeit)","Hygienemaßnahmen nach VDI 6022 Blatt 1","I",null,null,null,"SK",null,null,12,36,24.000000000000004,24.000000000000004]
[431,"Zu- und Abluftanlage","Lufterwärmer (Luft/ Flüssigkeit)","Wärmeaustauscher auf Verschmutzung, Beschädigung und Korrosion prüfen, ggf. reinigen und instandsetzen","I",null,null,null,"SK",null,null,12,36,24.000000000000004,24.000000000000004]
[431,"Zu- und Abluftanlage","Lufterwärmer (Luft/ Flüssigkeit)","Vor- und Rücklauf auf Funktion prüfen","I",null,null,null,"SK",null,null,12,36,24.000000000000004,24.000000000000004]
[431,"Zu- und Abluftanlage","Lufterwärmer (Luft/ Flüssigkeit)","Luftseitig reinigen","I",null,null,null,"SK",null,null,12,36,24.000000000000004,24.000000000000004]
[431,"Zu- und Abluftanlage","Lufterwärmer (Luft/ Flüssigkeit)","Entlüften","I",null,null,null,"SK",null,null,12,36,24.000000000000004,24.000000000000004]
[431,"Zu- und Abluftanlage","Rückkühlwerk","Nasskühler, Kondensatwanne und Tropfenabscheider auf Verschmutzung, Korrosion und Funktion prüfen, ggf. instandsetzen","I",null,null,null,"SK",null,null,3,12,8,8]
[431,"Zu- und Abluftanlage","Rückkühlwerk","Kontrolle des Hygienezustandes (Hygieneinspektion)","I",null,null,null,"SK",null,null,3,12,8,8]
[431,"Zu- und Abluftanlage","Elektro-Lufterwärmer","Auf Zunderansatz und Korrosion prüfen","I",null,null,null,"SK",null,null,12,36,24.000000000000004,24.000000000000004]
[431,"Zu- und Abluftanlage","Elektro-Lufterwärmer","Auf Funktion prüfen","I",null,null,null,"SK",null,null,12,36,24.000000000000004,24.000000000000004]
[431,"Zu- und Abluftanlage","Elektro-Lufterwärmer","Sicherheitseinrichtung auf Funktion prüfen","I",null,null,null,"SK",null,null,12,36,24.000000000000004,24.000000000000004]
[431,"Zu- und Abluftanlage","Elektro-Lufterwärmer","Luftseitig reinigen",null,"W",null,null,"SK",null,null,12,36,24.000000000000004,24.000000000000004]
[431,"Maschinelle Rauch-/Wärmeabzuganlage (MRA)","Ventilatoren","Hygienemaßnahmen nach VDI 6022 Blatt 1","I",null,null,null,"SK",null,"SPrüfV § 2 Abs. 4\nDVNBauO § 32 Abs. 1",6,36,24.000000000000004,24.000000000000004]
[431,"Maschinelle Rauch-/Wärmeabzuganlage (MRA)","Ventilatoren","Ventilator auf Verschmutzung, Beschädigung und Korrosion prüfen","I",null,null,null,"SK",null,"SPrüfV § 2 Abs. 4\nDVNBauO § 32 Abs. 1",6,36,24.000000000000004,24.000000000000004]
[431,"Maschinelle Rauch-/Wärmeabzuganlage (MRA)","Ventilatoren","Funktionserhaltendes Reinigen der luftberührten Teile des Ventilators sowie des Wasserablaufes","I",null,null,null,"SK",null,"SPrüfV § 2 Abs. 4\nDVNBauO § 32 Abs. 1",6,36,24.000000000000004,24.000000000000004]
[431,"Maschinelle Rauch-/Wärmeabzuganlage (MRA)","Ventilatoren","Schaufelverstelleinrichtung auf Funktion prüfen","I",null,null,null,"SK",null,"-",6,36,24.000000000000004,24.000000000000004]
[431,"Maschinelle Rauch-/Wärmeabzuganlage (MRA)","Ventilatoren","Lager auf Geräusch prüfen","I",null,null,null,"SK",null,"-",6,36,24.000000000000004,24.000000000000004]
[431,"Maschinelle Rauch-/Wärmeabzuganlage (MRA)","Ventilatoren","Flexible Verbindungen auf Dichtheit prüfen","I",null,null,null,"SK",null,"-",6,36,24.000000000000004,24.000000000000004]
[431,"Maschinelle Rauch-/Wärmeabzuganlage (MRA)","Ventilatoren","Schwingungsdämpfer auf Funktion prüfen","I",null,null,null,"SK",null,"BayBO Art. 39\nVDI 6022",6,36,24.000000000000004,24.000000000000004]
[431,"Maschinelle Rauch-/Wärmeabzuganlage (MRA)","Ventilatoren","Schutzeinrichtungen auf Funktion prüfen","I",null,null,null,"SK",null,"BayBO Art. 39\nVDI 6022",6,36,24.000000000000004,24.000000000000004]
[431,"Maschinelle Rauch-/Wärmeabzuganlage (MRA)","Ventilatoren","Drallregler auf Funktion prüfen","I",null,null,null,"SK",null,"BayBO Art. 39\nVDI 6022",6,36,24.000000000000004,24.000000000000004]
[431,"Maschinelle Rauch-/Wärmeabzuganlage (MRA)","Ventilatoren","Laufrad auf Unwucht prüfen","I",null,null,null,"SK",null,"BayBO Art. 39\nVDI 6022",6,36,24.000000000000004,24.000000000000004]
[431,"Maschinelle Rauch-/Wärmeabzuganlage (MRA)","Ventilatoren","Lager schmieren",null,"W",null,null,"SK",null,"BayBO Art. 39\nVDI 6022",6,36,24.000000000000004,24.000000000000004]
[431,"Maschinelle Rauch-/Wärmeabzuganlage (MRA)","Wetterschutzgitter","Hygienemaßnahmen nach VDI 6022 Blatt 1","I",null,null,null,"SK",null,"BayBO Art. 39\nVDI 6022",6,36,24.000000000000004,24.000000000000004]
[431,"Maschinelle Rauch-/Wärmeabzuganlage (MRA)","Wetterschutzgitter","Auf Verschmutzung, Beschädigung, Korrosion prüfen","I",null,null,null,"SK",null,"BayBO Art. 39\nVDI 6022",6,36,24.000000000000004,24.000000000000004]
[431,"Maschinelle Rauch-/Wärmeabzuganlage (MRA)","Wetterschutzgitter","Reinigen",null,"W",null,null,"SK",null,"BayBO Art. 39\nVDI 6022",6,36,24.000000000000004,24.000000000000004]
[431,"Maschinelle Rauch-/Wärmeabzuganlage (MRA)","Gitter und Verteiler","Hygienemaßnahmen nach VDI 6022 Blatt 1","I",null,null,null,"SK",null,"BayBO Art. 39\nVDI 6022",6,36,24.000000000000004,24.000000000000004]
[431,"Maschinelle Rauch-/Wärmeabzuganlage (MRA)","Gitter und Verteiler","Eingebaute Lochbleche, Maschendraht oder Siebe auf Verschmutzung prüfen (Stichprobe), ggf. reinigen bzw. austauschen","I",null,null,null,"SK",null,"BayBO Art. 39\nVDI 6022",6,36,24.000000000000004,24.000000000000004]
[431,"Maschinelle Rauch-/Wärmeabzuganlage (MRA)","Gitter und Verteiler","Filtervliese auswechseln bei Filterklasse < F 9",null,"W",null,null,"SK",null,"BayBO Art. 39\nVDI 6022",6,36,24.000000000000004,24.000000000000004]
[431,"Maschinelle Rauch-/Wärmeabzuganlage (MRA)","Gitter und Verteiler","Luftdurchlässe mit Induktion der Raumluft und Abluftdurlässe auf Feststoffablagerungen prüfen, ggf. reinigen",null,"W",null,null,"SK",null,"BayBO Art. 39\nVDI 6022",6,36,24.000000000000004,24.000000000000004]
[431,"Maschinelle Rauch-/Wärmeabzuganlage (MRA)","Gitter und Verteiler","Reinigung der durch Sekundärluft durchströmten Bauteile",null,"W",null,null,"SK",null,"BayBO Art. 39\nVDI 6022",6,36,24.000000000000004,24.000000000000004]
[431,"Maschinelle Rauch-/Wärmeabzuganlage (MRA)","Klappen","Auf Verschmutzung, Beschlädigung und Korrosion prüfen","I",{"$nulls":4},"FK","-",6,36,24.000000000000004,24.000000000000004]
[431,"Maschinelle Rauch-/Wärmeabzuganlage (MRA)","Klappen","Auf mechanische Funktion prüfen","I",{"$nulls":4},"FK","-",6,36,24.000000000000004,24.000000000000004]
[431,"Maschinelle Rauch-/Wärmeabzuganlage (MRA)","Klappen","Lager und Gestänge schmieren",null,"W",null,null,null,"FK","VDI 6022",6,36,24.000000000000004,24.000000000000004]
[431,"Maschinelle Rauch-/Wärmeabzuganlage (MRA)","Luftleitungen und -kammern","Hygienemaßnahmen nach VDI 6022 Blatt 1","I",null,null,null,"SK",null,"VDI 6022",6,36,24.000000000000004,24.000000000000004]
[431,"Maschinelle Rauch-/Wärmeabzuganlage (MRA)","Luftleitungen und -kammern","Zugängliche Luftleitungsabschnitte auf Beschädigung prüfen","I",null,null,null,"SK",null,"VDI 6022",6,36,24.000000000000004,24.000000000000004]
[431,"Maschinelle Rauch-/Wärmeabzuganlage (MRA)","Luftleitungen und -kammern","Abläufe auf Funktion prüfen","I",null,null,null,"SK",null,"VDI 6022",6,36,24.000000000000004,24.000000000000004]
[431,"Maschinelle Rauch-/Wärmeabzuganlage (MRA)","Luftleitungen und -kammern","Türen und Verschlüsse auf Gängigkeit und Dichtheit prüfen","I",null,null,null,"SK",null,"VDI 6022\n",6,36,24.000000000000004,24.000000000000004]
[431,"Maschinelle Rauch-/Wärmeabzuganlage (MRA)","Luftleitungen und -kammern","Isolierung auf äußere Beschädigung prüfen (Sichtprüfung)","I",null,null,null,"SK",null,"VDI 6022\n",6,36,24.000000000000004,24.000000000000004]
[431,"Maschinelle Rauch-/Wärmeabzuganlage (MRA)","Luftleitungen und -kammern","Flexible Verbindungen auf Dichtheit prüfen","I",null,null,null,"SK",null,"VDI 6022\n",6,36,24.000000000000004,24.000000000000004]
[431,"Maschinelle Rauch-/Wärmeabzuganlage (MRA)","Luftleitungen und -kammern","Reinigen",null,"W",null,null,"SK",null,"VDI 6022\n",6,36,24.000000000000004,24.000000000000004]
[431,"Maschinelle Rauch-/Wärmeabzuganlage (MRA)","Luftleitungen und -kammern","Kammerzentralen/ Gerätegehäuse auf luftseitige Verschmutzung, Beschädigung und Korrosion prüfen, ggf. reinigen","I",null,null,null,"SK",null,"VDI 6022-1",6,36,24.000000000000004,24.000000000000004]
[431,"Maschinelle Rauch-/Wärmeabzuganlage (MRA)","Luftleitungen und -kammern","Dto. Auf Wasserbildung prüfen, ggf. reinigen, Ursache ermitteln",null,"W",null,null,"SK",null,"VDI 6022",6,36,24.000000000000004,24.000000000000004]
[431,"Maschinelle Rauch-/Wärmeabzuganlage (MRA)","Luftleitungen und -kammern","Innere Luftleitungsfläche auf Verschmutzung und Korrosion an 2 bis 3 repräsentativen Stellen prüfen, ggf. Ursache ermitteln, ensprechende Luftleitungsabschnitte reinigen",null,"W",null,null,"SK",null,"VDI 6022",6,36,24.000000000000004,24.000000000000004]
[431,"Maschinelle Rauch-/Wärmeabzuganlage (MRA)","Luftleitungen und -kammern","Schalldämpfer auf Verschmutzung, Beschädigung und Korrosion prüfen","I",null,null,null,"SK",null,"VDI 6022-1",6,36,24.000000000000004,24.000000000000004]
[431,"Maschinelle Rauch-/Wärmeabzuganlage (MRA)","Luftleitungen und -kammern","Kontrolle des Hygienezustandes in der Luftleitung an einer repräsentativen Stelle, ggf. Ursache ermitteln, entsprechende Luftleitungsabschnitte reinigen (Hygieneinspektion)",null,"W",null,null,"SK",null,"VDI 6022-1",6,36,24.000000000000004,24.000000000000004]
[431,"Maschinelle Rauch-/Wärmeabzuganlage (MRA)","Luftleitungen und -kammern","Bewegliche Teile schmieren",null,"W",null,null,"SK",null,"VDI 6022-1",6,36,24.000000000000004,24.000000000000004]
[431,"Maschinelle Rauch-/Wärmeabzuganlage (MRA)","Volumenstrom- und Mischregler","Auf Verschmutzung, Beschädigung und Korrosion prüfen","I",{"$nulls":4},"FK","DGUVV\nGUV-V A3\nVDI 6022",6,36,24.000000000000004,24.000000000000004]
[431,"Maschinelle Rauch-/Wärmeabzuganlage (MRA)","Volumenstrom- und Mischregler","Volumenstromregler auf Funktion prüfen","I",{"$nulls":4},"FK","DGUVV\nGUV-V A3\nVDI 6022",6,36,24.000000000000004,24.000000000000004]
[431,"Maschinelle Rauch-/Wärmeabzuganlage (MRA)","Volumenstrom- und Mischregler","Regelklappen auf Funktion prüfen","I",{"$nulls":4},"FK","DGUVV\nGUV-V A3\nVDI 6022",6,36,24.000000000000004,24.000000000000004]
[431,"Maschinelle Rauch-/Wärmeabzuganlage (MRA)","Volumenstrom- und Mischregler","Reinigen",null,"W",null,null,null,"FK","DGUVV\nGUV-V A3\nVDI 6022",6,36,24.000000000000004,24.000000000000004]
[431,"Maschinelle Rauch-/Wärmeabzuganlage (MRA)","Absperr- und Abgleichelemente","Auf Verschmutzung, Beschädigung und Korrosion prüfen","I",{"$nulls":4},"FK","DGUVV\nGUV-V A3\nVDI 6022",6,36,24.000000000000004,24.000000000000004]
[431,"Maschinelle Rauch-/Wärmeabzuganlage (MRA)","Absperr- und Abgleichelemente","Auf Funktion prüfen","I",{"$nulls":4},"FK","DGUVV\nGUV-V A3\nVDI 6022",6,36,24.000000000000004,24.000000000000004]
[431,"Maschinelle Rauch-/Wärmeabzuganlage (MRA)","Absperr- und Abgleichelemente","Reinigen",null,"W",null,null,null,"FK","DGUVV\nGUV-V A3\nVDI 6022",6,36,24.000000000000004,24.000000000000004]
[431,"Maschinelle Rauch-/Wärmeabzuganlage (MRA)","Luftfilter","Hygienemaßnahmen nach VDI 6022 Blatt 1","I",null,null,null,"SK",null,"DGUVV\nGUV-V A3\nVDI 6022",3,12,8,8]
[431,"Maschinelle Rauch-/Wärmeabzuganlage (MRA)","Luftfilter","Differenzdruck prüfen, ggf. Filterstufe auswechseln","I",null,null,null,"SK",null,"DGUVV\nGUV-V A3\nVDI 6022",3,6,4,4]
[431,"Maschinelle Rauch-/Wärmeabzuganlage (MRA)","Luftfilter","Luftfilter auf unzulässige Verschmutzung und Beschädigung (Leckagen) prüfen ggf. auswechseln der betroffenen Luftfilter, falls letzte Auswechselung der Filterstufe nicht länger als 6 Mon. her ist, sonst auswechseln der gesamten Filterstufe",null,"W",null,null,"SK",null,"DGUVV\nGUV-V A3\nVDI 6022",3,3,3,3]
[431,"Maschinelle Rauch-/Wärmeabzuganlage (MRA)","Luftfilter","Spätester Filterwechsel der 1. Stufe bei nicht regenerierbaren Luftfiltern, sonst gründliche Reinigung",null,"W",null,null,"SK",null,"DGUVV\nGUV-V A3\nVDI 6022",3,12,8,8]
[431,"Maschinelle Rauch-/Wärmeabzuganlage (MRA)","Luftfilter","Spätester Filterwechsel der 2. Stufe",null,"W",null,null,"SK",null,"VDI 6022",3,24,16,16]
[431,"Maschinelle Rauch-/Wärmeabzuganlage (MRA)","Rollbandfilter","Auf Verschmutzung, Beschädigung und Korrosion prüfen","I",null,null,null,"SK",null,"VDI 6022",3,12,8,8]
[431,"Maschinelle Rauch-/Wärmeabzuganlage (MRA)","Rollbandfilter","Druckdifferenz messen","I",null,null,null,"SK",null,"VDI 6022",3,6,4,4]
[431,"Maschinelle Rauch-/Wärmeabzuganlage (MRA)","Rollbandfilter","Filtervorschub auf Funktion prüfen","I",null,null,null,"SK",null,"VDI 6022",3,12,8,8]
[431,"Maschinelle Rauch-/Wärmeabzuganlage (MRA)","Rollbandfilter","Filtermedium auf Vorrat prüfen","I",null,null,null,"SK",null,"DGUVV\nBGR-GUV-R 108\nGUV-V A3\nVDI 6022-1\n",3,12,8,8]
[431,"Maschinelle Rauch-/Wärmeabzuganlage (MRA)","Rollbandfilter","Filterband auswechseln",null,"W",null,null,"SK",null,"DGUVV\nBGR-GUV-R 108\nGUV-V A3\nVDI 6022-1\n",3,12,8,8]
[431,"Maschinelle Rauch-/Wärmeabzuganlage (MRA)","Trockenschichtfilter","Auf Verschmutzung, Korrosion und Beschädigung prüfen","I",null,null,null,"SK",null,"DGUVV\nBGR-GUV-R 108\nGUV-V A3\nVDI 6022-1\n",3,12,8,8]
[431,"Maschinelle Rauch-/Wärmeabzuganlage (MRA)","Trockenschichtfilter","Filterauflage auf Dichtheit prüfen","I",null,null,null,"SK",null,"DGUVV\nBGR-GUV-R 108\nGUV-V A3\nVDI 6022-1\n",3,12,8,8]
[431,"Maschinelle Rauch-/Wärmeabzuganlage (MRA)","Trockenschichtfilter","Druckdifferenz messen",null,"W",null,null,"SK",null,"DGUVV\nBGR-GUV-R 108\nGUV-V A3\nVDI 6022-1\n",3,6,4,4]
[431,"Maschinelle Rauch-/Wärmeabzuganlage (MRA)","Trockenschichtfilter","Filtermedium (regenerierbar) reinigen",null,"W",null,null,"SK",null,"DGUVV\nBGR-GUV-R 108\nGUV-V A3\nVDI 6022-1\n",3,12,8,8]
[431,"Maschinelle Rauch-/Wärmeabzuganlage (MRA)","gesamte Anlage","Kontrolle des Hygienezustandes (Hygieneinspektion)","I",null,null,null,"SK",null,"DGUVV\nBGR-GUV-R 108\nGUV-V A3\nVDI 6022-1\n",3,6,4,4]
[431,"Maschinelle Rauch-/Wärmeabzuganlage (MRA)","Elektrofilter","Auf Verschmutzung, Beschädigung und Korrosion prüfen","I",null,null,null,"SK",null,"DGUVV\nBGR-GUV-R 108\nGUV-V A3\nVDI 6022-1\n",6,6,6,6]
[431,"Maschinelle Rauch-/Wärmeabzuganlage (MRA)","Elektrofilter","Ionisationsdrähte auf Beschädigung prüfen","I",null,null,null,"SK",null,"DGUVV\nBGR-GUV-R 108\nGUV-V A3\nVDI 6022-1\n",6,12,8,8]
[431,"Maschinelle Rauch-/Wärmeabzuganlage (MRA)","Elektrofilter","Ionisationsdrähte auswechseln",null,"W",null,null,"SK",null,"DGUVV\nBGR-GUV-R 108\nGUV-V A3\nVDI 6022-1\n",6,48,32,32]
[431,"Maschinelle Rauch-/Wärmeabzuganlage (MRA)","Elektrofilter","Filterzellen auf Beschädigung und Funkenschlag prüfen","I",null,null,null,"SK",null,"DGUVV\nBGR-GUV-R 108\nGUV-V A3\nVDI 6022-1\n",6,12,8,8]
[431,"Maschinelle Rauch-/Wärmeabzuganlage (MRA)","Elektrofilter","Isolatoren auf festen Sitz prüfen","I",null,null,null,"SK",null,"VDI 6022",6,12,8,8]
[431,"Maschinelle Rauch-/Wärmeabzuganlage (MRA)","Elektrofilter","Isolatoren auswechseln",null,"W",null,null,"SK",null,"-",6,36,24.000000000000004,24.000000000000004]
[431,"Maschinelle Rauch-/Wärmeabzuganlage (MRA)","Elektrofilter","Stromaufnahme messen",null,"W",null,null,"SK",null,"-",6,12,8,8]
[431,"Maschinelle Rauch-/Wärmeabzuganlage (MRA)","Elektrofilter","Reinigungseinrichtung auf Funktion prüfen","I",null,null,null,"SK",null,"VDI 6022",6,12,8,8]
[431,"Maschinelle Rauch-/Wärmeabzuganlage (MRA)","Elektrofilter","MSR-Sicherheitseinrichtungen prüfen","I",null,null,null,"SK",null,"VDI 6022",6,12,8,8]
[431,"Maschinelle Rauch-/Wärmeabzuganlage (MRA)","Elektrofilter","Antriebselemente prüfen","I",null,null,null,"SK",null,"VDI 6022",6,12,8,8]
[431,"Maschinelle Rauch-/Wärmeabzuganlage (MRA)","Elektrofilter","Reinigen",null,"W",null,null,"SK",null,"VDI 6022",6,12,8,8]
[431,"Maschinelle Rauch-/Wärmeabzuganlage (MRA)","Sorptionsfilter","Auf äußere Verschmutzung, Beschädigung und Korrosion prüfen","I",null,null,null,"SK",null,"VDI 6022",6,3,6,6]
[431,"Maschinelle Rauch-/Wärmeabzuganlage (MRA)","Sorptionsfilter","Filtereinsatz auf dichten Sitz prüfen","I",null,null,null,"SK",null,"SPrüfV § 2 Abs. 4\nDVNBauO § 32 Abs. 1",6,6,6,6]
[431,"Maschinelle Rauch-/Wärmeabzuganlage (MRA)","Sorptionsfilter","Filtereinsatz auswechseln",null,"W",null,null,"SK",null,"SPrüfV § 2 Abs. 4\nDVNBauO § 32 Abs. 1",6,24,16,16]
[431,"Maschinelle Rauch-/Wärmeabzuganlage (MRA)","Sorptionsfilter","Reinigen",null,"W",null,null,"SK",null,"SPrüfV § 2 Abs. 4\nDVNBauO § 32 Abs. 1",6,12,8,8]
[431,"Jet-Ventilator","Ventilatoren","Hygienemaßnahmen nach VDI 6022 Blatt 1","I",null,null,null,"SK",null,"SPrüfV § 2 Abs. 4\nDVNBauO § 32 Abs. 1",6,36,24.000000000000004,24.000000000000004]
[431,"Jet-Ventilator","Ventilatoren","Ventilator auf Verschmutzung, Beschädigung und Korrosion prüfen","I",null,null,null,"SK",null,"SPrüfV § 2 Abs. 4\nDVNBauO § 32 Abs. 1",6,36,24.000000000000004,24.000000000000004]
[431,"Jet-Ventilator","Ventilatoren","Funktionserhaltendes Reinigen der luftberührten Teile des Ventilators sowie des Wasserablaufes","I",null,null,null,"SK",null,"SPrüfV § 2 Abs. 4\nDVNBauO § 32 Abs. 1",6,36,24.000000000000004,24.000000000000004]
[431,"Jet-Ventilator","Ventilatoren","Schaufelverstelleinrichtung auf Funktion prüfen","I",null,null,null,"SK",null,"-",6,36,24.000000000000004,24.000000000000004]
[431,"Jet-Ventilator","Ventilatoren","Lager auf Geräusch prüfen","I",null,null,null,"SK",null,"-",6,36,24.000000000000004,24.000000000000004]
[431,"Jet-Ventilator","Ventilatoren","Flexible Verbindungen auf Dichtheit prüfen","I",null,null,null,"SK",null,"-",6,36,24.000000000000004,24.000000000000004]
[431,"Jet-Ventilator","Ventilatoren","Schwingungsdämpfer auf Funktion prüfen","I",null,null,null,"SK",null,"BayBO Art. 39\nVDI 6022",6,36,24.000000000000004,24.000000000000004]
[431,"Jet-Ventilator","Ventilatoren","Schutzeinrichtungen auf Funktion prüfen","I",null,null,null,"SK",null,"BayBO Art. 39\nVDI 6022",6,36,24.000000000000004,24.000000000000004]
[431,"Jet-Ventilator","Ventilatoren","Drallregler auf Funktion prüfen","I",null,null,null,"SK",null,"BayBO Art. 39\nVDI 6022",6,36,24.000000000000004,24.000000000000004]
[431,"Jet-Ventilator","Ventilatoren","Laufrad auf Unwucht prüfen","I",null,null,null,"SK",null,"BayBO Art. 39\nVDI 6022",6,36,24.000000000000004,24.000000000000004]
[431,"Jet-Ventilator","Ventilatoren","Lager schmieren",null,"W",null,null,"SK",null,"BayBO Art. 39\nVDI 6022",6,36,24.000000000000004,24.000000000000004]
[431,"Jet-Ventilator","Wetterschutzgitter","Hygienemaßnahmen nach VDI 6022 Blatt 1","I",null,null,null,"SK",null,"BayBO Art. 39\nVDI 6022",6,36,24.000000000000004,24.000000000000004]
[431,"Jet-Ventilator","Wetterschutzgitter","Auf Verschmutzung, Beschädigung, Korrosion prüfen","I",null,null,null,"SK",null,"BayBO Art. 39\nVDI 6022",6,36,24.000000000000004,24.000000000000004]
[431,"Jet-Ventilator","Wetterschutzgitter","Reinigen",null,"W",null,null,"SK",null,"BayBO Art. 39\nVDI 6022",6,36,24.000000000000004,24.000000000000004]
[431,"Jet-Ventilator","Gitter und Verteiler","Hygienemaßnahmen nach VDI 6022 Blatt 1","I",null,null,null,"SK",null,"BayBO Art. 39\nVDI 6022",6,36,24.000000000000004,24.000000000000004]
[431,"Jet-Ventilator","Gitter und Verteiler","Eingebaute Lochbleche, Maschendraht oder Siebe auf Verschmutzung prüfen (Stichprobe), ggf. reinigen bzw. austauschen","I",null,null,null,"SK",null,"BayBO Art. 39\nVDI 6022",6,36,24.000000000000004,24.000000000000004]
[431,"Jet-Ventilator","Gitter und Verteiler","Filtervliese auswechseln bei Filterklasse < F 9",null,"W",null,null,"SK",null,"BayBO Art. 39\nVDI 6022",6,36,24.000000000000004,24.000000000000004]
[431,"Jet-Ventilator","Gitter und Verteiler","Luftdurchlässe mit Induktion der Raumluft und Abluftdurlässe auf Feststoffablagerungen prüfen, ggf. reinigen",null,"W",null,null,"SK",null,"BayBO Art. 39\nVDI 6022",6,36,24.000000000000004,24.000000000000004]
[431,"Jet-Ventilator","Gitter und Verteiler","Reinigung der durch Sekundärluft durchströmten Bauteile",null,"W",null,null,"SK",null,"BayBO Art. 39\nVDI 6022",6,36,24.000000000000004,24.000000000000004]
[431,"Jet-Ventilator","Klappen","Auf Verschmutzung, Beschlädigung und Korrosion prüfen","I",{"$nulls":4},"FK","-",6,36,24.000000000000004,24.000000000000004]
[431,"Jet-Ventilator","Klappen","Auf mechanische Funktion prüfen","I",{"$nulls":4},"FK","-",6,36,24.000000000000004,24.000000000000004]
[431,"Jet-Ventilator","Klappen","Lager und Gestänge schmieren",null,"W",null,null,null,"FK","VDI 6022",6,36,24.000000000000004,24.000000000000004]
[431,"Jet-Ventilator","Luftleitungen und -kammern","Hygienemaßnahmen nach VDI 6022 Blatt 1","I",null,null,null,"SK",null,"VDI 6022",6,36,24.000000000000004,24.000000000000004]
[431,"Jet-Ventilator","Luftleitungen und -kammern","Zugängliche Luftleitungsabschnitte auf Beschädigung prüfen","I",null,null,null,"SK",null,"VDI 6022",6,36,24.000000000000004,24.000000000000004]
[431,"Jet-Ventilator","Luftleitungen und -kammern","Abläufe auf Funktion prüfen","I",null,null,null,"SK",null,"VDI 6022",6,36,24.000000000000004,24.000000000000004]
[431,"Jet-Ventilator","Luftleitungen und -kammern","Türen und Verschlüsse auf Gängigkeit und Dichtheit prüfen","I",null,null,null,"SK",null,"VDI 6022\n",6,36,24.000000000000004,24.000000000000004]
[431,"Jet-Ventilator","Luftleitungen und -kammern","Isolierung auf äußere Beschädigung prüfen (Sichtprüfung)","I",null,null,null,"SK",null,"VDI 6022\n",6,36,24.000000000000004,24.000000000000004]
[431,"Jet-Ventilator","Luftleitungen und -kammern","Flexible Verbindungen auf Dichtheit prüfen","I",null,null,null,"SK",null,"VDI 6022\n",6,36,24.000000000000004,24.000000000000004]
[431,"Jet-Ventilator","Luftleitungen und -kammern","Reinigen",null,"W",null,null,"SK",null,"VDI 6022\n",6,36,24.000000000000004,24.000000000000004]
[431,"Jet-Ventilator","Luftleitungen und -kammern","Kammerzentralen/ Gerätegehäuse auf luftseitige Verschmutzung, Beschädigung und Korrosion prüfen, ggf. reinigen","I",null,null,null,"SK",null,"VDI 6022-1",6,36,24.000000000000004,24.000000000000004]
[431,"Jet-Ventilator","Luftleitungen und -kammern","Dto. Auf Wasserbildung prüfen, ggf. reinigen, Ursache ermitteln",null,"W",null,null,"SK",null,"VDI 6022",6,36,24.000000000000004,24.000000000000004]
[431,"Jet-Ventilator","Luftleitungen und -kammern","Innere Luftleitungsfläche auf Verschmutzung und Korrosion an 2 bis 3 repräsentativen Stellen prüfen, ggf. Ursache ermitteln, ensprechende Luftleitungsabschnitte reinigen",null,"W",null,null,"SK",null,"VDI 6022",6,36,24.000000000000004,24.000000000000004]
[431,"Jet-Ventilator","Luftleitungen und -kammern","Schalldämpfer auf Verschmutzung, Beschädigung und Korrosion prüfen","I",null,null,null,"SK",null,"VDI 6022-1",6,36,24.000000000000004,24.000000000000004]
[431,"Jet-Ventilator","Luftleitungen und -kammern","Kontrolle des Hygienezustandes in der Luftleitung an einer repräsentativen Stelle, ggf. Ursache ermitteln, entsprechende Luftleitungsabschnitte reinigen (Hygieneinspektion)",null,"W",null,null,"SK",null,"VDI 6022-1",6,36,24.000000000000004,24.000000000000004]
[431,"Jet-Ventilator","Luftleitungen und -kammern","Bewegliche Teile schmieren",null,"W",null,null,"SK",null,"VDI 6022-1",6,36,24.000000000000004,24.000000000000004]
[431,"Jet-Ventilator","Volumenstrom- und Mischregler","Auf Verschmutzung, Beschädigung und Korrosion prüfen","I",{"$nulls":4},"FK","DGUVV\nGUV-V A3\nVDI 6022",6,36,24.000000000000004,24.000000000000004]
[431,"Jet-Ventilator","Volumenstrom- und Mischregler","Volumenstromregler auf Funktion prüfen","I",{"$nulls":4},"FK","DGUVV\nGUV-V A3\nVDI 6022",6,36,24.000000000000004,24.000000000000004]
[431,"Jet-Ventilator","Volumenstrom- und Mischregler","Regelklappen auf Funktion prüfen","I",{"$nulls":4},"FK","DGUVV\nGUV-V A3\nVDI 6022",6,36,24.000000000000004,24.000000000000004]
[431,"Jet-Ventilator","Volumenstrom- und Mischregler","Reinigen",null,"W",null,null,null,"FK","DGUVV\nGUV-V A3\nVDI 6022",6,36,24.000000000000004,24.000000000000004]
[431,"Jet-Ventilator","Absperr- und Abgleichelemente","Auf Verschmutzung, Beschädigung und Korrosion prüfen","I",{"$nulls":4},"FK","DGUVV\nGUV-V A3\nVDI 6022",6,36,24.000000000000004,24.000000000000004]
[431,"Jet-Ventilator","Absperr- und Abgleichelemente","Auf Funktion prüfen","I",{"$nulls":4},"FK","DGUVV\nGUV-V A3\nVDI 6022",6,36,24.000000000000004,24.000000000000004]
[431,"Jet-Ventilator","Absperr- und Abgleichelemente","Reinigen",null,"W",null,null,null,"FK","DGUVV\nGUV-V A3\nVDI 6022",6,36,24.000000000000004,24.000000000000004]
[431,"Jet-Ventilator","Luftfilter","Hygienemaßnahmen nach VDI 6022 Blatt 1","I",null,null,null,"SK",null,"DGUVV\nGUV-V A3\nVDI 6022",3,12,8,8]
[431,"Jet-Ventilator","Luftfilter","Differenzdruck prüfen, ggf. Filterstufe auswechseln","I",null,null,null,"SK",null,"DGUVV\nGUV-V A3\nVDI 6022",3,6,4,4]
[431,"Jet-Ventilator","Luftfilter","Luftfilter auf unzulässige Verschmutzung und Beschädigung (Leckagen) prüfen ggf. auswechseln der betroffenen Luftfilter, falls letzte Auswechselung der Filterstufe nicht länger als 6 Mon. her ist, sonst auswechseln der gesamten Filterstufe",null,"W",null,null,"SK",null,"DGUVV\nGUV-V A3\nVDI 6022",3,3,3,3]
[431,"Jet-Ventilator","Luftfilter","Spätester Filterwechsel der 1. Stufe bei nicht regenerierbaren Luftfiltern, sonst gründliche Reinigung",null,"W",null,null,"SK",null,"DGUVV\nGUV-V A3\nVDI 6022",3,12,8,8]
[431,"Jet-Ventilator","Luftfilter","Spätester Filterwechsel der 2. Stufe",null,"W",null,null,"SK",null,"VDI 6022",3,24,16,16]
[431,"Jet-Ventilator","Rollbandfilter","Auf Verschmutzung, Beschädigung und Korrosion prüfen","I",null,null,null,"SK",null,"VDI 6022",3,12,8,8]
[431,"Jet-Ventilator","Rollbandfilter","Druckdifferenz messen","I",null,null,null,"SK",null,"VDI 6022",3,6,4,4]
[431,"Jet-Ventilator","Rollbandfilter","Filtervorschub auf Funktion prüfen","I",null,null,null,"SK",null,"VDI 6022",3,12,8,8]
[431,"Jet-Ventilator","Rollbandfilter","Filtermedium auf Vorrat prüfen","I",null,null,null,"SK",null,"DGUVV\nBGR-GUV-R 108\nGUV-V A3\nVDI 6022-1\n",3,12,8,8]
[431,"Jet-Ventilator","Rollbandfilter","Filterband auswechseln",null,"W",null,null,"SK",null,"DGUVV\nBGR-GUV-R 108\nGUV-V A3\nVDI 6022-1\n",3,12,8,8]
[431,"Jet-Ventilator","Trockenschichtfilter","Auf Verschmutzung, Korrosion und Beschädigung prüfen","I",null,null,null,"SK",null,"DGUVV\nBGR-GUV-R 108\nGUV-V A3\nVDI 6022-1\n",3,12,8,8]
[431,"Jet-Ventilator","Trockenschichtfilter","Filterauflage auf Dichtheit prüfen","I",null,null,null,"SK",null,"DGUVV\nBGR-GUV-R 108\nGUV-V A3\nVDI 6022-1\n",3,12,8,8]
[431,"Jet-Ventilator","Trockenschichtfilter","Druckdifferenz messen",null,"W",null,null,"SK",null,"DGUVV\nBGR-GUV-R 108\nGUV-V A3\nVDI 6022-1\n",3,6,4,4]
[431,"Jet-Ventilator","Trockenschichtfilter","Filtermedium (regenerierbar) reinigen",null,"W",null,null,"SK",null,"DGUVV\nBGR-GUV-R 108\nGUV-V A3\nVDI 6022-1\n",3,12,8,8]
[431,"Jet-Ventilator","gesamte Anlage","Kontrolle des Hygienezustandes (Hygieneinspektion)","I",null,null,null,"SK",null,"DGUVV\nBGR-GUV-R 108\nGUV-V A3\nVDI 6022-1\n",3,6,4,4]
[431,"Jet-Ventilator","Elektrofilter","Auf Verschmutzung, Beschädigung und Korrosion prüfen","I",null,null,null,"SK",null,"DGUVV\nBGR-GUV-R 108\nGUV-V A3\nVDI 6022-1\n",6,6,6,6]
[431,"Jet-Ventilator","Elektrofilter","Ionisationsdrähte auf Beschädigung prüfen","I",null,null,null,"SK",null,"DGUVV\nBGR-GUV-R 108\nGUV-V A3\nVDI 6022-1\n",6,12,8,8]
[431,"Jet-Ventilator","Elektrofilter","Ionisationsdrähte auswechseln",null,"W",null,null,"SK",null,"DGUVV\nBGR-GUV-R 108\nGUV-V A3\nVDI 6022-1\n",6,48,32,32]
[431,"Jet-Ventilator","Elektrofilter","Filterzellen auf Beschädigung und Funkenschlag prüfen","I",null,null,null,"SK",null,"DGUVV\nBGR-GUV-R 108\nGUV-V A3\nVDI 6022-1\n",6,12,8,8]
[431,"Jet-Ventilator","Elektrofilter","Isolatoren auf festen Sitz prüfen","I",null,null,null,"SK",null,"VDI 6022",6,12,8,8]
[431,"Jet-Ventilator","Elektrofilter","Isolatoren auswechseln",null,"W",null,null,"SK",null,"-",6,36,24.000000000000004,24.000000000000004]
[431,"Jet-Ventilator","Elektrofilter","Stromaufnahme messen",null,"W",null,null,"SK",null,"-",6,12,8,8]
[431,"Jet-Ventilator","Elektrofilter","Reinigungseinrichtung auf Funktion prüfen","I",null,null,null,"SK",null,"VDI 6022",6,12,8,8]
[431,"Jet-Ventilator","Elektrofilter","MSR-Sicherheitseinrichtungen prüfen","I",null,null,null,"SK",null,"VDI 6022",6,12,8,8]
[431,"Jet-Ventilator","Elektrofilter","Antriebselemente prüfen","I",null,null,null,"SK",null,"VDI 6022",6,12,8,8]
[431,"Jet-Ventilator","Elektrofilter","Reinigen",null,"W",null,null,"SK",null,"VDI 6022",6,12,8,8]
[431,"Jet-Ventilator","Sorptionsfilter","Auf äußere Verschmutzung, Beschädigung und Korrosion prüfen","I",null,null,null,"SK",null,"VDI 6022",6,3,6,6]
[431,"Jet-Ventilator","Sorptionsfilter","Filtereinsatz auf dichten Sitz prüfen","I",null,null,null,"SK",null,"SPrüfV § 2 Abs. 4\nDVNBauO § 32 Abs. 1",6,6,6,6]
[431,"Jet-Ventilator","Sorptionsfilter","Filtereinsatz auswechseln",null,"W",null,null,"SK",null,"SPrüfV § 2 Abs. 4\nDVNBauO § 32 Abs. 1",6,24,16,16]
[431,"Jet-Ventilator","Sorptionsfilter","Reinigen",null,"W",null,null,"SK",null,"SPrüfV § 2 Abs. 4\nDVNBauO § 32 Abs. 1",6,12,8,8]
[431,"Rauchschutzdruckanlage (RDA)","Ventilatoren","Hygienemaßnahmen nach VDI 6022 Blatt 1","I",null,null,null,"SK",null,"SPrüfV § 2 Abs. 4\nDVNBauO § 32 Abs. 1",6,36,24.000000000000004,24.000000000000004]
[431,"Rauchschutzdruckanlage (RDA)","Ventilatoren","Ventilator auf Verschmutzung, Beschädigung und Korrosion prüfen","I",null,null,null,"SK",null,"SPrüfV § 2 Abs. 4\nDVNBauO § 32 Abs. 1",6,36,24.000000000000004,24.000000000000004]
[431,"Rauchschutzdruckanlage (RDA)","Ventilatoren","Funktionserhaltendes Reinigen der luftberührten Teile des Ventilators sowie des Wasserablaufes","I",null,null,null,"SK",null,"SPrüfV § 2 Abs. 4\nDVNBauO § 32 Abs. 1",6,36,24.000000000000004,24.000000000000004]
[431,"Rauchschutzdruckanlage (RDA)","Ventilatoren","Schaufelverstelleinrichtung auf Funktion prüfen","I",null,null,null,"SK",null,"-",6,36,24.000000000000004,24.000000000000004]
[431,"Rauchschutzdruckanlage (RDA)","Ventilatoren","Lager auf Geräusch prüfen","I",null,null,null,"SK",null,"-",6,36,24.000000000000004,24.000000000000004]
[431,"Rauchschutzdruckanlage (RDA)","Ventilatoren","Flexible Verbindungen auf Dichtheit prüfen","I",null,null,null,"SK",null,"-",6,36,24.000000000000004,24.000000000000004]
[431,"Rauchschutzdruckanlage (RDA)","Ventilatoren","Schwingungsdämpfer auf Funktion prüfen","I",null,null,null,"SK",null,"BayBO Art. 39\nVDI 6022",6,36,24.000000000000004,24.000000000000004]
[431,"Rauchschutzdruckanlage (RDA)","Ventilatoren","Schutzeinrichtungen auf Funktion prüfen","I",null,null,null,"SK",null,"BayBO Art. 39\nVDI 6022",6,36,24.000000000000004,24.000000000000004]
[431,"Rauchschutzdruckanlage (RDA)","Ventilatoren","Drallregler auf Funktion prüfen","I",null,null,null,"SK",null,"BayBO Art. 39\nVDI 6022",6,36,24.000000000000004,24.000000000000004]
[431,"Rauchschutzdruckanlage (RDA)","Ventilatoren","Laufrad auf Unwucht prüfen","I",null,null,null,"SK",null,"BayBO Art. 39\nVDI 6022",6,36,24.000000000000004,24.000000000000004]
[431,"Rauchschutzdruckanlage (RDA)","Ventilatoren","Lager schmieren",null,"W",null,null,"SK",null,"BayBO Art. 39\nVDI 6022",6,36,24.000000000000004,24.000000000000004]
[431,"Rauchschutzdruckanlage (RDA)","Wetterschutzgitter","Hygienemaßnahmen nach VDI 6022 Blatt 1","I",null,null,null,"SK",null,"BayBO Art. 39\nVDI 6022",6,36,24.000000000000004,24.000000000000004]
[431,"Rauchschutzdruckanlage (RDA)","Wetterschutzgitter","Auf Verschmutzung, Beschädigung, Korrosion prüfen","I",null,null,null,"SK",null,"BayBO Art. 39\nVDI 6022",6,36,24.000000000000004,24.000000000000004]
[431,"Rauchschutzdruckanlage (RDA)","Wetterschutzgitter","Reinigen",null,"W",null,null,"SK",null,"BayBO Art. 39\nVDI 6022",6,36,24.000000000000004,24.000000000000004]
[431,"Rauchschutzdruckanlage (RDA)","Gitter und Verteiler","Hygienemaßnahmen nach VDI 6022 Blatt 1","I",null,null,null,"SK",null,"BayBO Art. 39\nVDI 6022",6,36,24.000000000000004,24.000000000000004]
[431,"Rauchschutzdruckanlage (RDA)","Gitter und Verteiler","Eingebaute Lochbleche, Maschendraht oder Siebe auf Verschmutzung prüfen (Stichprobe), ggf. reinigen bzw. austauschen","I",null,null,null,"SK",null,"BayBO Art. 39\nVDI 6022",6,36,24.000000000000004,24.000000000000004]
[431,"Rauchschutzdruckanlage (RDA)","Gitter und Verteiler","Filtervliese auswechseln bei Filterklasse < F 9",null,"W",null,null,"SK",null,"BayBO Art. 39\nVDI 6022",6,36,24.000000000000004,24.000000000000004]
[431,"Rauchschutzdruckanlage (RDA)","Gitter und Verteiler","Luftdurchlässe mit Induktion der Raumluft und Abluftdurlässe auf Feststoffablagerungen prüfen, ggf. reinigen",null,"W",null,null,"SK",null,"BayBO Art. 39\nVDI 6022",6,36,24.000000000000004,24.000000000000004]
[431,"Rauchschutzdruckanlage (RDA)","Gitter und Verteiler","Reinigung der durch Sekundärluft durchströmten Bauteile",null,"W",null,null,"SK",null,"BayBO Art. 39\nVDI 6022",6,36,24.000000000000004,24.000000000000004]
[431,"Rauchschutzdruckanlage (RDA)","Klappen","Auf Verschmutzung, Beschlädigung und Korrosion prüfen","I",{"$nulls":4},"FK","-",6,36,24.000000000000004,24.000000000000004]
[431,"Rauchschutzdruckanlage (RDA)","Klappen","Auf mechanische Funktion prüfen","I",{"$nulls":4},"FK","-",6,36,24.000000000000004,24.000000000000004]
[431,"Rauchschutzdruckanlage (RDA)","Klappen","Lager und Gestänge schmieren",null,"W",null,null,null,"FK","VDI 6022",6,36,24.000000000000004,24.000000000000004]
[431,"Rauchschutzdruckanlage (RDA)","Luftleitungen und -kammern","Hygienemaßnahmen nach VDI 6022 Blatt 1","I",null,null,null,"SK",null,"VDI 6022",6,36,24.000000000000004,24.000000000000004]
[431,"Rauchschutzdruckanlage (RDA)","Luftleitungen und -kammern","Zugängliche Luftleitungsabschnitte auf Beschädigung prüfen","I",null,null,null,"SK",null,"VDI 6022",6,36,24.000000000000004,24.000000000000004]
[431,"Rauchschutzdruckanlage (RDA)","Luftleitungen und -kammern","Abläufe auf Funktion prüfen","I",null,null,null,"SK",null,"VDI 6022",6,36,24.000000000000004,24.000000000000004]
[431,"Rauchschutzdruckanlage (RDA)","Luftleitungen und -kammern","Türen und Verschlüsse auf Gängigkeit und Dichtheit prüfen","I",null,null,null,"SK",null,"VDI 6022\n",6,36,24.000000000000004,24.000000000000004]
[431,"Rauchschutzdruckanlage (RDA)","Luftleitungen und -kammern","Isolierung auf äußere Beschädigung prüfen (Sichtprüfung)","I",null,null,null,"SK",null,"VDI 6022\n",6,36,24.000000000000004,24.000000000000004]
[431,"Rauchschutzdruckanlage (RDA)","Luftleitungen und -kammern","Flexible Verbindungen auf Dichtheit prüfen","I",null,null,null,"SK",null,"VDI 6022\n",6,36,24.000000000000004,24.000000000000004]
[431,"Rauchschutzdruckanlage (RDA)","Luftleitungen und -kammern","Reinigen",null,"W",null,null,"SK",null,"VDI 6022\n",6,36,24.000000000000004,24.000000000000004]
[431,"Rauchschutzdruckanlage (RDA)","Luftleitungen und -kammern","Kammerzentralen/ Gerätegehäuse auf luftseitige Verschmutzung, Beschädigung und Korrosion prüfen, ggf. reinigen","I",null,null,null,"SK",null,"VDI 6022-1",6,36,24.000000000000004,24.000000000000004]
[431,"Rauchschutzdruckanlage (RDA)","Luftleitungen und -kammern","Dto. Auf Wasserbildung prüfen, ggf. reinigen, Ursache ermitteln",null,"W",null,null,"SK",null,"VDI 6022",6,36,24.000000000000004,24.000000000000004]
[431,"Rauchschutzdruckanlage (RDA)","Luftleitungen und -kammern","Innere Luftleitungsfläche auf Verschmutzung und Korrosion an 2 bis 3 repräsentativen Stellen prüfen, ggf. Ursache ermitteln, ensprechende Luftleitungsabschnitte reinigen",null,"W",null,null,"SK",null,"VDI 6022",6,36,24.000000000000004,24.000000000000004]
[431,"Rauchschutzdruckanlage (RDA)","Luftleitungen und -kammern","Schalldämpfer auf Verschmutzung, Beschädigung und Korrosion prüfen","I",null,null,null,"SK",null,"VDI 6022-1",6,36,24.000000000000004,24.000000000000004]
[431,"Rauchschutzdruckanlage (RDA)","Luftleitungen und -kammern","Kontrolle des Hygienezustandes in der Luftleitung an einer repräsentativen Stelle, ggf. Ursache ermitteln, entsprechende Luftleitungsabschnitte reinigen (Hygieneinspektion)",null,"W",null,null,"SK",null,"VDI 6022-1",6,36,24.000000000000004,24.000000000000004]
[431,"Rauchschutzdruckanlage (RDA)","Luftleitungen und -kammern","Bewegliche Teile schmieren",null,"W",null,null,"SK",null,"VDI 6022-1",6,36,24.000000000000004,24.000000000000004]
[431,"Rauchschutzdruckanlage (RDA)","Volumenstrom- und Mischregler","Auf Verschmutzung, Beschädigung und Korrosion prüfen","I",{"$nulls":4},"FK","DGUVV\nGUV-V A3\nVDI 6022",6,36,24.000000000000004,24.000000000000004]
[431,"Rauchschutzdruckanlage (RDA)","Volumenstrom- und Mischregler","Volumenstromregler auf Funktion prüfen","I",{"$nulls":4},"FK","DGUVV\nGUV-V A3\nVDI 6022",6,36,24.000000000000004,24.000000000000004]
[431,"Rauchschutzdruckanlage (RDA)","Volumenstrom- und Mischregler","Regelklappen auf Funktion prüfen","I",{"$nulls":4},"FK","DGUVV\nGUV-V A3\nVDI 6022",6,36,24.000000000000004,24.000000000000004]
[431,"Rauchschutzdruckanlage (RDA)","Volumenstrom- und Mischregler","Reinigen",null,"W",null,null,null,"FK","DGUVV\nGUV-V A3\nVDI 6022",6,36,24.000000000000004,24.000000000000004]
[431,"Rauchschutzdruckanlage (RDA)","Absperr- und Abgleichelemente","Auf Verschmutzung, Beschädigung und Korrosion prüfen","I",{"$nulls":4},"FK","DGUVV\nGUV-V A3\nVDI 6022",6,36,24.000000000000004,24.000000000000004]
[431,"Rauchschutzdruckanlage (RDA)","Absperr- und Abgleichelemente","Auf Funktion prüfen","I",{"$nulls":4},"FK","DGUVV\nGUV-V A3\nVDI 6022",6,36,24.000000000000004,24.000000000000004]
[431,"Rauchschutzdruckanlage (RDA)","Absperr- und Abgleichelemente","Reinigen",null,"W",null,null,null,"FK","DGUVV\nGUV-V A3\nVDI 6022",6,36,24.000000000000004,24.000000000000004]
[431,"Rauchschutzdruckanlage (RDA)","Luftfilter","Hygienemaßnahmen nach VDI 6022 Blatt 1","I",null,null,null,"SK",null,"DGUVV\nGUV-V A3\nVDI 6022",3,12,8,8]
[431,"Rauchschutzdruckanlage (RDA)","Luftfilter","Differenzdruck prüfen, ggf. Filterstufe auswechseln","I",null,null,null,"SK",null,"DGUVV\nGUV-V A3\nVDI 6022",3,6,4,4]
[431,"Rauchschutzdruckanlage (RDA)","Luftfilter","Luftfilter auf unzulässige Verschmutzung und Beschädigung (Leckagen) prüfen ggf. auswechseln der betroffenen Luftfilter, falls letzte Auswechselung der Filterstufe nicht länger als 6 Mon. her ist, sonst auswechseln der gesamten Filterstufe",null,"W",null,null,"SK",null,"DGUVV\nGUV-V A3\nVDI 6022",3,3,3,3]
[431,"Rauchschutzdruckanlage (RDA)","Luftfilter","Spätester Filterwechsel der 1. Stufe bei nicht regenerierbaren Luftfiltern, sonst gründliche Reinigung",null,"W",null,null,"SK",null,"DGUVV\nGUV-V A3\nVDI 6022",3,12,8,8]
[431,"Rauchschutzdruckanlage (RDA)","Luftfilter","Spätester Filterwechsel der 2. Stufe",null,"W",null,null,"SK",null,"VDI 6022",3,24,16,16]
[431,"Rauchschutzdruckanlage (RDA)","Rollbandfilter","Auf Verschmutzung, Beschädigung und Korrosion prüfen","I",null,null,null,"SK",null,"VDI 6022",3,12,8,8]
[431,"Rauchschutzdruckanlage (RDA)","Rollbandfilter","Druckdifferenz messen","I",null,null,null,"SK",null,"VDI 6022",3,6,4,4]
[431,"Rauchschutzdruckanlage (RDA)","Rollbandfilter","Filtervorschub auf Funktion prüfen","I",null,null,null,"SK",null,"VDI 6022",3,12,8,8]
[431,"Rauchschutzdruckanlage (RDA)","Rollbandfilter","Filtermedium auf Vorrat prüfen","I",null,null,null,"SK",null,"DGUVV\nBGR-GUV-R 108\nGUV-V A3\nVDI 6022-1\n",3,12,8,8]
[431,"Rauchschutzdruckanlage (RDA)","Rollbandfilter","Filterband auswechseln",null,"W",null,null,"SK",null,"DGUVV\nBGR-GUV-R 108\nGUV-V A3\nVDI 6022-1\n",3,12,8,8]
[431,"Rauchschutzdruckanlage (RDA)","Trockenschichtfilter","Auf Verschmutzung, Korrosion und Beschädigung prüfen","I",null,null,null,"SK",null,"DGUVV\nBGR-GUV-R 108\nGUV-V A3\nVDI 6022-1\n",3,12,8,8]
[431,"Rauchschutzdruckanlage (RDA)","Trockenschichtfilter","Filterauflage auf Dichtheit prüfen","I",null,null,null,"SK",null,"DGUVV\nBGR-GUV-R 108\nGUV-V A3\nVDI 6022-1\n",3,12,8,8]
[431,"Rauchschutzdruckanlage (RDA)","Trockenschichtfilter","Druckdifferenz messen",null,"W",null,null,"SK",null,"DGUVV\nBGR-GUV-R 108\nGUV-V A3\nVDI 6022-1\n",3,6,4,4]
[431,"Rauchschutzdruckanlage (RDA)","Trockenschichtfilter","Filtermedium (regenerierbar) reinigen",null,"W",null,null,"SK",null,"DGUVV\nBGR-GUV-R 108\nGUV-V A3\nVDI 6022-1\n",3,12,8,8]
[431,"Rauchschutzdruckanlage (RDA)","gesamte Anlage","Kontrolle des Hygienezustandes (Hygieneinspektion)","I",null,null,null,"SK",null,"DGUVV\nBGR-GUV-R 108\nGUV-V A3\nVDI 6022-1\n",3,6,4,4]
[431,"Rauchschutzdruckanlage (RDA)","Elektrofilter","Auf Verschmutzung, Beschädigung und Korrosion prüfen","I",null,null,null,"SK",null,"DGUVV\nBGR-GUV-R 108\nGUV-V A3\nVDI 6022-1\n",6,6,6,6]
[431,"Rauchschutzdruckanlage (RDA)","Elektrofilter","Ionisationsdrähte auf Beschädigung prüfen","I",null,null,null,"SK",null,"DGUVV\nBGR-GUV-R 108\nGUV-V A3\nVDI 6022-1\n",6,12,8,8]
[431,"Rauchschutzdruckanlage (RDA)","Elektrofilter","Ionisationsdrähte auswechseln",null,"W",null,null,"SK",null,"DGUVV\nBGR-GUV-R 108\nGUV-V A3\nVDI 6022-1\n",6,48,32,32]
[431,"Rauchschutzdruckanlage (RDA)","Elektrofilter","Filterzellen auf Beschädigung und Funkenschlag prüfen","I",null,null,null,"SK",null,"DGUVV\nBGR-GUV-R 108\nGUV-V A3\nVDI 6022-1\n",6,12,8,8]
[431,"Rauchschutzdruckanlage (RDA)","Elektrofilter","Isolatoren auf festen Sitz prüfen","I",null,null,null,"SK",null,"VDI 6022",6,12,8,8]
[431,"Rauchschutzdruckanlage (RDA)","Elektrofilter","Isolatoren auswechseln",null,"W",null,null,"SK",null,"-",6,36,24.000000000000004,24.000000000000004]
[431,"Rauchschutzdruckanlage (RDA)","Elektrofilter","Stromaufnahme messen",null,"W",null,null,"SK",null,"-",6,12,8,8]
[431,"Rauchschutzdruckanlage (RDA)","Elektrofilter","Reinigungseinrichtung auf Funktion prüfen","I",null,null,null,"SK",null,"VDI 6022",6,12,8,8]
[431,"Rauchschutzdruckanlage (RDA)","Elektrofilter","MSR-Sicherheitseinrichtungen prüfen","I",null,null,null,"SK",null,"VDI 6022",6,12,8,8]
[431,"Rauchschutzdruckanlage (RDA)","Elektrofilter","Antriebselemente prüfen","I",null,null,null,"SK",null,"VDI 6022",6,12,8,8]
[431,"Rauchschutzdruckanlage (RDA)","Elektrofilter","Reinigen",null,"W",null,null,"SK",null,"VDI 6022",6,12,8,8]
[431,"Rauchschutzdruckanlage (RDA)","Sorptionsfilter","Auf äußere Verschmutzung, Beschädigung und Korrosion prüfen","I",null,null,null,"SK",null,"VDI 6022",6,3,6,6]
[431,"Rauchschutzdruckanlage (RDA)","Sorptionsfilter","Filtereinsatz auf dichten Sitz prüfen","I",null,null,null,"SK",null,"SPrüfV § 2 Abs. 4\nDVNBauO § 32 Abs. 1",6,6,6,6]
[431,"Rauchschutzdruckanlage (RDA)","Sorptionsfilter","Filtereinsatz auswechseln",null,"W",null,null,"SK",null,"SPrüfV § 2 Abs. 4\nDVNBauO § 32 Abs. 1",6,24,16,16]
[431,"Rauchschutzdruckanlage (RDA)","Sorptionsfilter","Reinigen",null,"W",null,null,"SK",null,"SPrüfV § 2 Abs. 4\nDVNBauO § 32 Abs. 1",6,12,8,8]
[431,"Küchenabluftanlage","Ventilatoren","Hygienemaßnahmen nach VDI 6022 Blatt 1","I",null,null,null,"SK",null,"SPrüfV § 2 Abs. 4\nDVNBauO § 32 Abs. 1",6,36,24.000000000000004,24.000000000000004]
[431,"Küchenabluftanlage","Ventilatoren","Ventilator auf Verschmutzung, Beschädigung und Korrosion prüfen","I",null,null,null,"SK",null,"SPrüfV § 2 Abs. 4\nDVNBauO § 32 Abs. 1",6,36,24.000000000000004,24.000000000000004]
[431,"Küchenabluftanlage","Ventilatoren","Funktionserhaltendes Reinigen der luftberührten Teile des Ventilators sowie des Wasserablaufes","I",null,null,null,"SK",null,"SPrüfV § 2 Abs. 4\nDVNBauO § 32 Abs. 1",6,36,24.000000000000004,24.000000000000004]
[431,"Küchenabluftanlage","Ventilatoren","Schaufelverstelleinrichtung auf Funktion prüfen","I",null,null,null,"SK",null,"-",6,36,24.000000000000004,24.000000000000004]
[431,"Küchenabluftanlage","Ventilatoren","Lager auf Geräusch prüfen","I",null,null,null,"SK",null,"-",6,36,24.000000000000004,24.000000000000004]
[431,"Küchenabluftanlage","Ventilatoren","Flexible Verbindungen auf Dichtheit prüfen","I",null,null,null,"SK",null,"-",6,36,24.000000000000004,24.000000000000004]
[431,"Küchenabluftanlage","Ventilatoren","Schwingungsdämpfer auf Funktion prüfen","I",null,null,null,"SK",null,"BayBO Art. 39\nVDI 6022",6,36,24.000000000000004,24.000000000000004]
[431,"Küchenabluftanlage","Ventilatoren","Schutzeinrichtungen auf Funktion prüfen","I",null,null,null,"SK",null,"BayBO Art. 39\nVDI 6022",6,36,24.000000000000004,24.000000000000004]
[431,"Küchenabluftanlage","Ventilatoren","Drallregler auf Funktion prüfen","I",null,null,null,"SK",null,"BayBO Art. 39\nVDI 6022",6,36,24.000000000000004,24.000000000000004]
[431,"Küchenabluftanlage","Ventilatoren","Laufrad auf Unwucht prüfen","I",null,null,null,"SK",null,"BayBO Art. 39\nVDI 6022",6,36,24.000000000000004,24.000000000000004]
[431,"Küchenabluftanlage","Ventilatoren","Lager schmieren",null,"W",null,null,"SK",null,"BayBO Art. 39\nVDI 6022",6,36,24.000000000000004,24.000000000000004]
[431,"Küchenabluftanlage","Wetterschutzgitter","Hygienemaßnahmen nach VDI 6022 Blatt 1","I",null,null,null,"SK",null,"BayBO Art. 39\nVDI 6022",6,36,24.000000000000004,24.000000000000004]
[431,"Küchenabluftanlage","Wetterschutzgitter","Auf Verschmutzung, Beschädigung, Korrosion prüfen","I",null,null,null,"SK",null,"BayBO Art. 39\nVDI 6022",6,36,24.000000000000004,24.000000000000004]
[431,"Küchenabluftanlage","Wetterschutzgitter","Reinigen",null,"W",null,null,"SK",null,"BayBO Art. 39\nVDI 6022",6,36,24.000000000000004,24.000000000000004]
[431,"Küchenabluftanlage","Gitter und Verteiler","Hygienemaßnahmen nach VDI 6022 Blatt 1","I",null,null,null,"SK",null,"BayBO Art. 39\nVDI 6022",6,36,24.000000000000004,24.000000000000004]
[431,"Küchenabluftanlage","Gitter und Verteiler","Eingebaute Lochbleche, Maschendraht oder Siebe auf Verschmutzung prüfen (Stichprobe), ggf. reinigen bzw. austauschen","I",null,null,null,"SK",null,"BayBO Art. 39\nVDI 6022",6,36,24.000000000000004,24.000000000000004]
[431,"Küchenabluftanlage","Gitter und Verteiler","Filtervliese auswechseln bei Filterklasse < F 9",null,"W",null,null,"SK",null,"BayBO Art. 39\nVDI 6022",6,36,24.000000000000004,24.000000000000004]
[431,"Küchenabluftanlage","Gitter und Verteiler","Luftdurchlässe mit Induktion der Raumluft und Abluftdurlässe auf Feststoffablagerungen prüfen, ggf. reinigen",null,"W",null,null,"SK",null,"BayBO Art. 39\nVDI 6022",6,36,24.000000000000004,24.000000000000004]
[431,"Küchenabluftanlage","Gitter und Verteiler","Reinigung der durch Sekundärluft durchströmten Bauteile",null,"W",null,null,"SK",null,"BayBO Art. 39\nVDI 6022",6,36,24.000000000000004,24.000000000000004]
[431,"Küchenabluftanlage","Klappen","Auf Verschmutzung, Beschlädigung und Korrosion prüfen","I",{"$nulls":4},"FK","-",6,36,24.000000000000004,24.000000000000004]
[431,"Küchenabluftanlage","Klappen","Auf mechanische Funktion prüfen","I",{"$nulls":4},"FK","-",6,36,24.000000000000004,24.000000000000004]
[431,"Küchenabluftanlage","Klappen","Lager und Gestänge schmieren",null,"W",null,null,null,"FK","VDI 6022",6,36,24.000000000000004,24.000000000000004]
[431,"Küchenabluftanlage","Luftleitungen und -kammern","Hygienemaßnahmen nach VDI 6022 Blatt 1","I",null,null,null,"SK",null,"VDI 6022",6,36,24.000000000000004,24.000000000000004]
[431,"Küchenabluftanlage","Luftleitungen und -kammern","Zugängliche Luftleitungsabschnitte auf Beschädigung prüfen","I",null,null,null,"SK",null,"VDI 6022",6,36,24.000000000000004,24.000000000000004]
[431,"Küchenabluftanlage","Luftleitungen und -kammern","Abläufe auf Funktion prüfen","I",null,null,null,"SK",null,"VDI 6022",6,36,24.000000000000004,24.000000000000004]
[431,"Küchenabluftanlage","Luftleitungen und -kammern","Türen und Verschlüsse auf Gängigkeit und Dichtheit prüfen","I",null,null,null,"SK",null,"VDI 6022\n",6,36,24.000000000000004,24.000000000000004]
[431,"Küchenabluftanlage","Luftleitungen und -kammern","Isolierung auf äußere Beschädigung prüfen (Sichtprüfung)","I",null,null,null,"SK",null,"VDI 6022\n",6,36,24.000000000000004,24.000000000000004]
[431,"Küchenabluftanlage","Luftleitungen und -kammern","Flexible Verbindungen auf Dichtheit prüfen","I",null,null,null,"SK",null,"VDI 6022\n",6,36,24.000000000000004,24.000000000000004]
[431,"Küchenabluftanlage","Luftleitungen und -kammern","Reinigen",null,"W",null,null,"SK",null,"VDI 6022\n",6,36,24.000000000000004,24.000000000000004]
[431,"Küchenabluftanlage","Luftleitungen und -kammern","Kammerzentralen/ Gerätegehäuse auf luftseitige Verschmutzung, Beschädigung und Korrosion prüfen, ggf. reinigen","I",null,null,null,"SK",null,"VDI 6022-1",6,36,24.000000000000004,24.000000000000004]
[431,"Küchenabluftanlage","Luftleitungen und -kammern","Dto. Auf Wasserbildung prüfen, ggf. reinigen, Ursache ermitteln",null,"W",null,null,"SK",null,"VDI 6022",6,36,24.000000000000004,24.000000000000004]
[431,"Küchenabluftanlage","Luftleitungen und -kammern","Innere Luftleitungsfläche auf Verschmutzung und Korrosion an 2 bis 3 repräsentativen Stellen prüfen, ggf. Ursache ermitteln, ensprechende Luftleitungsabschnitte reinigen",null,"W",null,null,"SK",null,"VDI 6022",6,36,24.000000000000004,24.000000000000004]
[431,"Küchenabluftanlage","Luftleitungen und -kammern","Schalldämpfer auf Verschmutzung, Beschädigung und Korrosion prüfen","I",null,null,null,"SK",null,"VDI 6022-1",6,36,24.000000000000004,24.000000000000004]
[431,"Küchenabluftanlage","Luftleitungen und -kammern","Kontrolle des Hygienezustandes in der Luftleitung an einer repräsentativen Stelle, ggf. Ursache ermitteln, entsprechende Luftleitungsabschnitte reinigen (Hygieneinspektion)",null,"W",null,null,"SK",null,"VDI 6022-1",6,36,24.000000000000004,24.000000000000004]
[431,"Küchenabluftanlage","Luftleitungen und -kammern","Bewegliche Teile schmieren",null,"W",null,null,"SK",null,"VDI 6022-1",6,36,24.000000000000004,24.000000000000004]
[431,"Küchenabluftanlage","Volumenstrom- und Mischregler","Auf Verschmutzung, Beschädigung und Korrosion prüfen","I",{"$nulls":4},"FK","DGUVV\nGUV-V A3\nVDI 6022",6,36,24.000000000000004,24.000000000000004]
[431,"Küchenabluftanlage","Volumenstrom- und Mischregler","Volumenstromregler auf Funktion prüfen","I",{"$nulls":4},"FK","DGUVV\nGUV-V A3\nVDI 6022",6,36,24.000000000000004,24.000000000000004]
[431,"Küchenabluftanlage","Volumenstrom- und Mischregler","Regelklappen auf Funktion prüfen","I",{"$nulls":4},"FK","DGUVV\nGUV-V A3\nVDI 6022",6,36,24.000000000000004,24.000000000000004]
[431,"Küchenabluftanlage","Volumenstrom- und Mischregler","Reinigen",null,"W",null,null,null,"FK","DGUVV\nGUV-V A3\nVDI 6022",6,36,24.000000000000004,24.000000000000004]
[431,"Küchenabluftanlage","Absperr- und Abgleichelemente","Auf Verschmutzung, Beschädigung und Korrosion prüfen","I",{"$nulls":4},"FK","DGUVV\nGUV-V A3\nVDI 6022",6,36,24.000000000000004,24.000000000000004]
[431,"Küchenabluftanlage","Absperr- und Abgleichelemente","Auf Funktion prüfen","I",{"$nulls":4},"FK","DGUVV\nGUV-V A3\nVDI 6022",6,36,24.000000000000004,24.000000000000004]
[431,"Küchenabluftanlage","Absperr- und Abgleichelemente","Reinigen",null,"W",null,null,null,"FK","DGUVV\nGUV-V A3\nVDI 6022",6,36,24.000000000000004,24.000000000000004]
[431,"Küchenabluftanlage","Luftfilter","Hygienemaßnahmen nach VDI 6022 Blatt 1","I",null,null,null,"SK",null,"DGUVV\nGUV-V A3\nVDI 6022",3,12,8,8]
[431,"Küchenabluftanlage","Luftfilter","Differenzdruck prüfen, ggf. Filterstufe auswechseln","I",null,null,null,"SK",null,"DGUVV\nGUV-V A3\nVDI 6022",3,6,4,4]
[431,"Küchenabluftanlage","Luftfilter","Luftfilter auf unzulässige Verschmutzung und Beschädigung (Leckagen) prüfen ggf. auswechseln der betroffenen Luftfilter, falls letzte Auswechselung der Filterstufe nicht länger als 6 Mon. her ist, sonst auswechseln der gesamten Filterstufe",null,"W",null,null,"SK",null,"DGUVV\nGUV-V A3\nVDI 6022",3,3,3,3]
[431,"Küchenabluftanlage","Luftfilter","Spätester Filterwechsel der 1. Stufe bei nicht regenerierbaren Luftfiltern, sonst gründliche Reinigung",null,"W",null,null,"SK",null,"DGUVV\nGUV-V A3\nVDI 6022",3,12,8,8]
[431,"Küchenabluftanlage","Luftfilter","Spätester Filterwechsel der 2. Stufe",null,"W",null,null,"SK",null,"VDI 6022",3,24,16,16]
[431,"Küchenabluftanlage","Rollbandfilter","Auf Verschmutzung, Beschädigung und Korrosion prüfen","I",null,null,null,"SK",null,"VDI 6022",3,12,8,8]
[431,"Küchenabluftanlage","Rollbandfilter","Druckdifferenz messen","I",null,null,null,"SK",null,"VDI 6022",3,6,4,4]
[431,"Küchenabluftanlage","Rollbandfilter","Filtervorschub auf Funktion prüfen","I",null,null,null,"SK",null,"VDI 6022",3,12,8,8]
[431,"Küchenabluftanlage","Rollbandfilter","Filtermedium auf Vorrat prüfen","I",null,null,null,"SK",null,"DGUVV\nBGR-GUV-R 108\nGUV-V A3\nVDI 6022-1\n",3,12,8,8]
[431,"Küchenabluftanlage","Rollbandfilter","Filterband auswechseln",null,"W",null,null,"SK",null,"DGUVV\nBGR-GUV-R 108\nGUV-V A3\nVDI 6022-1\n",3,12,8,8]
[431,"Küchenabluftanlage","Trockenschichtfilter","Auf Verschmutzung, Korrosion und Beschädigung prüfen","I",null,null,null,"SK",null,"DGUVV\nBGR-GUV-R 108\nGUV-V A3\nVDI 6022-1\n",3,12,8,8]
[431,"Küchenabluftanlage","Trockenschichtfilter","Filterauflage auf Dichtheit prüfen","I",null,null,null,"SK",null,"DGUVV\nBGR-GUV-R 108\nGUV-V A3\nVDI 6022-1\n",3,12,8,8]
[431,"Küchenabluftanlage","Trockenschichtfilter","Druckdifferenz messen",null,"W",null,null,"SK",null,"DGUVV\nBGR-GUV-R 108\nGUV-V A3\nVDI 6022-1\n",3,6,4,4]
[431,"Küchenabluftanlage","Trockenschichtfilter","Filtermedium (regenerierbar) reinigen",null,"W",null,null,"SK",null,"DGUVV\nBGR-GUV-R 108\nGUV-V A3\nVDI 6022-1\n",3,12,8,8]
[431,"Küchenabluftanlage","gesamte Anlage","Kontrolle des Hygienezustandes (Hygieneinspektion)","I",null,null,null,"SK",null,"DGUVV\nBGR-GUV-R 108\nGUV-V A3\nVDI 6022-1\n",3,6,4,4]
[431,"Küchenabluftanlage","Elektrofilter","Auf Verschmutzung, Beschädigung und Korrosion prüfen","I",null,null,null,"SK",null,"DGUVV\nBGR-GUV-R 108\nGUV-V A3\nVDI 6022-1\n",6,6,6,6]
[431,"Küchenabluftanlage","Elektrofilter","Ionisationsdrähte auf Beschädigung prüfen","I",null,null,null,"SK",null,"DGUVV\nBGR-GUV-R 108\nGUV-V A3\nVDI 6022-1\n",6,12,8,8]
[431,"Küchenabluftanlage","Elektrofilter","Ionisationsdrähte auswechseln",null,"W",null,null,"SK",null,"DGUVV\nBGR-GUV-R 108\nGUV-V A3\nVDI 6022-1\n",6,48,32,32]
[431,"Küchenabluftanlage","Elektrofilter","Filterzellen auf Beschädigung und Funkenschlag prüfen","I",null,null,null,"SK",null,"DGUVV\nBGR-GUV-R 108\nGUV-V A3\nVDI 6022-1\n",6,12,8,8]
[431,"Küchenabluftanlage","Elektrofilter","Isolatoren auf festen Sitz prüfen","I",null,null,null,"SK",null,"VDI 6022",6,12,8,8]
[431,"Küchenabluftanlage","Elektrofilter","Isolatoren auswechseln",null,"W",null,null,"SK",null,"-",6,36,24.000000000000004,24.000000000000004]
[431,"Küchenabluftanlage","Elektrofilter","Stromaufnahme messen",null,"W",null,null,"SK",null,"-",6,12,8,8]
[431,"Küchenabluftanlage","Elektrofilter","Reinigungseinrichtung auf Funktion prüfen","I",null,null,null,"SK",null,"VDI 6022",6,12,8,8]
[431,"Küchenabluftanlage","Elektrofilter","MSR-Sicherheitseinrichtungen prüfen","I",null,null,null,"SK",null,"VDI 6022",6,12,8,8]
[431,"Küchenabluftanlage","Elektrofilter","Antriebselemente prüfen","I",null,null,null,"SK",null,"VDI 6022",6,12,8,8]
[431,"Küchenabluftanlage","Elektrofilter","Reinigen",null,"W",null,null,"SK",null,"VDI 6022",6,12,8,8]
[431,"Küchenabluftanlage","Sorptionsfilter","Auf äußere Verschmutzung, Beschädigung und Korrosion prüfen","I",null,null,null,"SK",null,"VDI 6022",6,3,6,6]
[431,"Küchenabluftanlage","Sorptionsfilter","Filtereinsatz auf dichten Sitz prüfen","I",null,null,null,"SK",null,"SPrüfV § 2 Abs. 4\nDVNBauO § 32 Abs. 1",6,6,6,6]
[431,"Küchenabluftanlage","Sorptionsfilter","Filtereinsatz auswechseln",null,"W",null,null,"SK",null,"SPrüfV § 2 Abs. 4\nDVNBauO § 32 Abs. 1",6,24,16,16]
[431,"Küchenabluftanlage","Sorptionsfilter","Reinigen",null,"W",null,null,"SK",null,"SPrüfV § 2 Abs. 4\nDVNBauO § 32 Abs. 1",6,12,8,8]
[431,"Luftschleieranlage","Ventilatoren","Hygienemaßnahmen nach VDI 6022 Blatt 1","I",null,null,null,"SK",null,"SPrüfV § 2 Abs. 4\nDVNBauO § 32 Abs. 1",6,36,24.000000000000004,24.000000000000004]
[431,"Luftschleieranlage","Ventilatoren","Ventilator auf Verschmutzung, Beschädigung und Korrosion prüfen","I",null,null,null,"SK",null,"SPrüfV § 2 Abs. 4\nDVNBauO § 32 Abs. 1",6,36,24.000000000000004,24.000000000000004]
[431,"Luftschleieranlage","Ventilatoren","Funktionserhaltendes Reinigen der luftberührten Teile des Ventilators sowie des Wasserablaufes","I",null,null,null,"SK",null,"SPrüfV § 2 Abs. 4\nDVNBauO § 32 Abs. 1",6,36,24.000000000000004,24.000000000000004]
[431,"Luftschleieranlage","Ventilatoren","Schaufelverstelleinrichtung auf Funktion prüfen","I",null,null,null,"SK",null,"-",6,36,24.000000000000004,24.000000000000004]
[431,"Luftschleieranlage","Ventilatoren","Lager auf Geräusch prüfen","I",null,null,null,"SK",null,"-",6,36,24.000000000000004,24.000000000000004]
[431,"Luftschleieranlage","Ventilatoren","Flexible Verbindungen auf Dichtheit prüfen","I",null,null,null,"SK",null,"-",6,36,24.000000000000004,24.000000000000004]
[431,"Luftschleieranlage","Ventilatoren","Schwingungsdämpfer auf Funktion prüfen","I",null,null,null,"SK",null,"BayBO Art. 39\nVDI 6022",6,36,24.000000000000004,24.000000000000004]
[431,"Luftschleieranlage","Ventilatoren","Schutzeinrichtungen auf Funktion prüfen","I",null,null,null,"SK",null,"BayBO Art. 39\nVDI 6022",6,36,24.000000000000004,24.000000000000004]
[431,"Luftschleieranlage","Ventilatoren","Drallregler auf Funktion prüfen","I",null,null,null,"SK",null,"BayBO Art. 39\nVDI 6022",6,36,24.000000000000004,24.000000000000004]
[431,"Luftschleieranlage","Ventilatoren","Laufrad auf Unwucht prüfen","I",null,null,null,"SK",null,"BayBO Art. 39\nVDI 6022",6,36,24.000000000000004,24.000000000000004]
[431,"Luftschleieranlage","Ventilatoren","Lager schmieren",null,"W",null,null,"SK",null,"BayBO Art. 39\nVDI 6022",6,36,24.000000000000004,24.000000000000004]
[431,"Luftschleieranlage","Wetterschutzgitter","Hygienemaßnahmen nach VDI 6022 Blatt 1","I",null,null,null,"SK",null,"BayBO Art. 39\nVDI 6022",6,36,24.000000000000004,24.000000000000004]
[431,"Luftschleieranlage","Wetterschutzgitter","Auf Verschmutzung, Beschädigung, Korrosion prüfen","I",null,null,null,"SK",null,"BayBO Art. 39\nVDI 6022",6,36,24.000000000000004,24.000000000000004]
[431,"Luftschleieranlage","Wetterschutzgitter","Reinigen",null,"W",null,null,"SK",null,"BayBO Art. 39\nVDI 6022",6,36,24.000000000000004,24.000000000000004]
[431,"Luftschleieranlage","Gitter und Verteiler","Hygienemaßnahmen nach VDI 6022 Blatt 1","I",null,null,null,"SK",null,"BayBO Art. 39\nVDI 6022",6,36,24.000000000000004,24.000000000000004]
[431,"Luftschleieranlage","Gitter und Verteiler","Eingebaute Lochbleche, Maschendraht oder Siebe auf Verschmutzung prüfen (Stichprobe), ggf. reinigen bzw. austauschen","I",null,null,null,"SK",null,"BayBO Art. 39\nVDI 6022",6,36,24.000000000000004,24.000000000000004]
[431,"Luftschleieranlage","Gitter und Verteiler","Filtervliese auswechseln bei Filterklasse < F 9",null,"W",null,null,"SK",null,"BayBO Art. 39\nVDI 6022",6,36,24.000000000000004,24.000000000000004]
[431,"Luftschleieranlage","Gitter und Verteiler","Luftdurchlässe mit Induktion der Raumluft und Abluftdurlässe auf Feststoffablagerungen prüfen, ggf. reinigen",null,"W",null,null,"SK",null,"BayBO Art. 39\nVDI 6022",6,36,24.000000000000004,24.000000000000004]
[431,"Luftschleieranlage","Gitter und Verteiler","Reinigung der durch Sekundärluft durchströmten Bauteile",null,"W",null,null,"SK",null,"BayBO Art. 39\nVDI 6022",6,36,24.000000000000004,24.000000000000004]
[431,"Luftschleieranlage","Klappen","Auf Verschmutzung, Beschlädigung und Korrosion prüfen","I",{"$nulls":4},"FK","-",6,36,24.000000000000004,24.000000000000004]
[431,"Luftschleieranlage","Klappen","Auf mechanische Funktion prüfen","I",{"$nulls":4},"FK","-",6,36,24.000000000000004,24.000000000000004]
[431,"Luftschleieranlage","Klappen","Lager und Gestänge schmieren",null,"W",null,null,null,"FK","VDI 6022",6,36,24.000000000000004,24.000000000000004]
[431,"Luftschleieranlage","Luftleitungen und -kammern","Hygienemaßnahmen nach VDI 6022 Blatt 1","I",null,null,null,"SK",null,"VDI 6022",6,36,24.000000000000004,24.000000000000004]
[431,"Luftschleieranlage","Luftleitungen und -kammern","Zugängliche Luftleitungsabschnitte auf Beschädigung prüfen","I",null,null,null,"SK",null,"VDI 6022",6,36,24.000000000000004,24.000000000000004]
[431,"Luftschleieranlage","Luftleitungen und -kammern","Abläufe auf Funktion prüfen","I",null,null,null,"SK",null,"VDI 6022",6,36,24.000000000000004,24.000000000000004]
[431,"Luftschleieranlage","Luftleitungen und -kammern","Türen und Verschlüsse auf Gängigkeit und Dichtheit prüfen","I",null,null,null,"SK",null,"VDI 6022\n",6,36,24.000000000000004,24.000000000000004]
[431,"Luftschleieranlage","Luftleitungen und -kammern","Isolierung auf äußere Beschädigung prüfen (Sichtprüfung)","I",null,null,null,"SK",null,"VDI 6022\n",6,36,24.000000000000004,24.000000000000004]
[431,"Luftschleieranlage","Luftleitungen und -kammern","Flexible Verbindungen auf Dichtheit prüfen","I",null,null,null,"SK",null,"VDI 6022\n",6,36,24.000000000000004,24.000000000000004]
[431,"Luftschleieranlage","Luftleitungen und -kammern","Reinigen",null,"W",null,null,"SK",null,"VDI 6022\n",6,36,24.000000000000004,24.000000000000004]
[431,"Luftschleieranlage","Luftleitungen und -kammern","Kammerzentralen/ Gerätegehäuse auf luftseitige Verschmutzung, Beschädigung und Korrosion prüfen, ggf. reinigen","I",null,null,null,"SK",null,"VDI 6022-1",6,36,24.000000000000004,24.000000000000004]
[431,"Luftschleieranlage","Luftleitungen und -kammern","Dto. Auf Wasserbildung prüfen, ggf. reinigen, Ursache ermitteln",null,"W",null,null,"SK",null,"VDI 6022",6,36,24.000000000000004,24.000000000000004]
[431,"Luftschleieranlage","Luftleitungen und -kammern","Innere Luftleitungsfläche auf Verschmutzung und Korrosion an 2 bis 3 repräsentativen Stellen prüfen, ggf. Ursache ermitteln, ensprechende Luftleitungsabschnitte reinigen",null,"W",null,null,"SK",null,"VDI 6022",6,36,24.000000000000004,24.000000000000004]
[431,"Luftschleieranlage","Luftleitungen und -kammern","Schalldämpfer auf Verschmutzung, Beschädigung und Korrosion prüfen","I",null,null,null,"SK",null,"VDI 6022-1",6,36,24.000000000000004,24.000000000000004]
[431,"Luftschleieranlage","Luftleitungen und -kammern","Kontrolle des Hygienezustandes in der Luftleitung an einer repräsentativen Stelle, ggf. Ursache ermitteln, entsprechende Luftleitungsabschnitte reinigen (Hygieneinspektion)",null,"W",null,null,"SK",null,"VDI 6022-1",6,36,24.000000000000004,24.000000000000004]
[431,"Luftschleieranlage","Luftleitungen und -kammern","Bewegliche Teile schmieren",null,"W",null,null,"SK",null,"VDI 6022-1",6,36,24.000000000000004,24.000000000000004]
[431,"Luftschleieranlage","Volumenstrom- und Mischregler","Auf Verschmutzung, Beschädigung und Korrosion prüfen","I",{"$nulls":4},"FK","DGUVV\nGUV-V A3\nVDI 6022",6,36,24.000000000000004,24.000000000000004]
[431,"Luftschleieranlage","Volumenstrom- und Mischregler","Volumenstromregler auf Funktion prüfen","I",{"$nulls":4},"FK","DGUVV\nGUV-V A3\nVDI 6022",6,36,24.000000000000004,24.000000000000004]
[431,"Luftschleieranlage","Volumenstrom- und Mischregler","Regelklappen auf Funktion prüfen","I",{"$nulls":4},"FK","DGUVV\nGUV-V A3\nVDI 6022",6,36,24.000000000000004,24.000000000000004]
[431,"Luftschleieranlage","Volumenstrom- und Mischregler","Reinigen",null,"W",null,null,null,"FK","DGUVV\nGUV-V A3\nVDI 6022",6,36,24.000000000000004,24.000000000000004]
[431,"Luftschleieranlage","Absperr- und Abgleichelemente","Auf Verschmutzung, Beschädigung und Korrosion prüfen","I",{"$nulls":4},"FK","DGUVV\nGUV-V A3\nVDI 6022",6,36,24.000000000000004,24.000000000000004]
[431,"Luftschleieranlage","Absperr- und Abgleichelemente","Auf Funktion prüfen","I",{"$nulls":4},"FK","DGUVV\nGUV-V A3\nVDI 6022",6,36,24.000000000000004,24.000000000000004]
[431,"Luftschleieranlage","Absperr- und Abgleichelemente","Reinigen",null,"W",null,null,null,"FK","DGUVV\nGUV-V A3\nVDI 6022",6,36,24.000000000000004,24.000000000000004]
[431,"Luftschleieranlage","Luftfilter","Hygienemaßnahmen nach VDI 6022 Blatt 1","I",null,null,null,"SK",null,"DGUVV\nGUV-V A3\nVDI 6022",3,36,24,24]
[431,"Luftschleieranlage","Luftfilter","Differenzdruck prüfen, ggf. Filterstufe auswechseln","I",null,null,null,"SK",null,"DGUVV\nGUV-V A3\nVDI 6022",3,36,24,24]
[431,"Luftschleieranlage","Luftfilter","Luftfilter auf unzulässige Verschmutzung und Beschädigung (Leckagen) prüfen ggf. auswechseln der betroffenen Luftfilter, falls letzte Auswechselung der Filterstufe nicht länger als 6 Mon. her ist, sonst auswechseln der gesamten Filterstufe",null,"W",null,null,"SK",null,"DGUVV\nGUV-V A3\nVDI 6022",3,36,24,24]
[431,"Luftschleieranlage","Luftfilter","Spätester Filterwechsel der 1. Stufe bei nicht regenerierbaren Luftfiltern, sonst gründliche Reinigung",null,"W",null,null,"SK",null,"DGUVV\nGUV-V A3\nVDI 6022",3,36,24,24]
[431,"Luftschleieranlage","Luftfilter","Spätester Filterwechsel der 2. Stufe",null,"W",null,null,"SK",null,"VDI 6022",3,36,24,24]
[431,"Luftschleieranlage","Rollbandfilter","Auf Verschmutzung, Beschädigung und Korrosion prüfen","I",null,null,null,"SK",null,"VDI 6022",3,36,24,24]
[431,"Luftschleieranlage","Rollbandfilter","Druckdifferenz messen","I",null,null,null,"SK",null,"VDI 6022",3,36,24,24]
[431,"Luftschleieranlage","Rollbandfilter","Filtervorschub auf Funktion prüfen","I",null,null,null,"SK",null,"VDI 6022",3,36,24,24]
[431,"Luftschleieranlage","Rollbandfilter","Filtermedium auf Vorrat prüfen","I",null,null,null,"SK",null,null,3,36,24,24]
[431,"Luftschleieranlage","Rollbandfilter","Filterband auswechseln",null,"W",null,null,"SK",null,null,3,36,24,24]
[431,"Luftschleieranlage","Trockenschichtfilter","Auf Verschmutzung, Korrosion und Beschädigung prüfen","I",null,null,null,"SK",null,"VDI 6022",3,36,24,24]
[431,"Luftschleieranlage","Trockenschichtfilter","Filterauflage auf Dichtheit prüfen","I",null,null,null,"SK",null,"VDI 6022",3,36,24,24]
[431,"Luftschleieranlage","Trockenschichtfilter","Druckdifferenz messen",null,"W",null,null,"SK",null,"VDI 6022",3,36,24,24]
[431,"Luftschleieranlage","Trockenschichtfilter","Filtermedium (regenerierbar) reinigen",null,"W",null,null,"SK",null,"VDI 6022",3,36,24,24]
[431,"Luftschleieranlage","gesamte Anlage","Kontrolle des Hygienezustandes (Hygieneinspektion)","I",null,null,null,"SK",null,"VDI 6022",3,36,24,24]
[431,"Luftschleieranlage","Elektrofilter","Auf Verschmutzung, Beschädigung und Korrosion prüfen","I",null,null,null,"SK",null,"VDI 6022",6,36,24,24]
[431,"Luftschleieranlage","Elektrofilter","Ionisationsdrähte auf Beschädigung prüfen","I",null,null,null,"SK",null,"VDI 6022",6,36,24,24]
[431,"Luftschleieranlage","Elektrofilter","Ionisationsdrähte auswechseln",null,"W",null,null,"SK",null,"VDI 6022",6,36,24,24]
[431,"Luftschleieranlage","Elektrofilter","Filterzellen auf Beschädigung und Funkenschlag prüfen","I",null,null,null,"SK",null,"VDI 6022",6,36,24,24]
[431,"Luftschleieranlage","Elektrofilter","Isolatoren auf festen Sitz prüfen","I",null,null,null,"SK",null,null,6,36,24,24]
[431,"Luftschleieranlage","Elektrofilter","Isolatoren auswechseln",null,"W",null,null,"SK",null,null,6,36,24,24]
[431,"Luftschleieranlage","Elektrofilter","Stromaufnahme messen",null,"W",null,null,"SK",null,null,6,36,24,24]
[431,"Luftschleieranlage","Elektrofilter","Reinigungseinrichtung auf Funktion prüfen","I",null,null,null,"SK",null,null,6,36,24,24]
[431,"Luftschleieranlage","Elektrofilter","MSR-Sicherheitseinrichtungen prüfen","I",null,null,null,"SK",null,null,6,36,24,24]
[431,"Luftschleieranlage","Elektrofilter","Antriebselemente prüfen","I",null,null,null,"SK",null,null,6,36,24,24]
[431,"Luftschleieranlage","Elektrofilter","Reinigen",null,"W",null,null,"SK",null,null,6,36,24,24]
[431,"Luftschleieranlage","Sorptionsfilter","Auf äußere Verschmutzung, Beschädigung und Korrosion prüfen","I",null,null,null,"SK",null,null,6,36,24,24]
[431,"Luftschleieranlage","Sorptionsfilter","Filtereinsatz auf dichten Sitz prüfen","I",null,null,null,"SK",null,null,6,36,24,24]
[431,"Luftschleieranlage","Sorptionsfilter","Filtereinsatz auswechseln",null,"W",null,null,"SK",null,null,6,36,24,24]
[431,"Luftschleieranlage","Sorptionsfilter","Reinigen",null,"W",null,null,"SK",null,null,6,36,24,24]

{"sheet":"432","index":9,"n_rows":150,"n_cols":15,"rows_kept":150,"cut":false,"hidden":false,"merged":[]}
[{"$nulls":4},"Inspektion","Wartung","Instandsetzung","Sachverständiger","Sachkundige","Fachkraft",null,"Monate","Monate",{"$f":"IF([1]Fragen!$D$18=\"Ja\",\"Eine einfache Sichtkontrolle genügt\",\"Eine einfache Sichtkontrolle genügt nicht\")","v":"Eine einfache Sichtkontrolle genügt nicht"}]
["Kostengruppe","Anlage (System)","Abgrenzung","Tätigkeit","I","W","IS","SV","SK","FK","normative Grundlage","min","max","Empfehlung Inspektion","Empfehlung Wartung"]
[432,"Teilklimaanlage","Luftkühler","Auf luftseitige Verschmutzung, Beschädigung und Korrosion prüfen","I",null,null,null,"SK",null,"VDI 6022",6,24,6,6]
[432,"Teilklimaanlage","Luftkühler","Vor- und Rücklauf auf Funktion prüfen","I",null,null,null,"SK",null,"VDI 6022",6,24,6,6]
[432,"Teilklimaanlage","Luftkühler","Entlüften","I",null,null,null,"SK",null,"VDI 6022",6,24,6,6]
[432,"Teilklimaanlage","Luftkühler","Wasserablauf und Geruchsverschluss auf Funktion prüfen","I",null,null,null,"SK",null,"VDI 6022",6,24,6,6]
[432,"Teilklimaanlage","Luftkühler","Tropfenabscheider reinigen",null,"W",null,null,"SK",null,"VDI 6022",6,24,6,6]
[432,"Teilklimaanlage","Luftkühler","Luftseitig reinigen",null,"W",null,null,"SK",null,"VDI 6022",6,24,6,6]
[432,"Teilklimaanlage","Verdampfer","Hygienemaßnahmen nach VDI 6022 Blatt 1","I",null,null,null,"SK",null,"VDI 6022",6,24,6,6]
[432,"Teilklimaanlage","Verdampfer","Dichtheit zwischen FO- und AU-Luft prüfen, ggf. instandsetzen","I",null,null,null,"SK",null,"VDI 6022",6,24,6,6]
[432,"Teilklimaanlage","Verdampfer","Siphon auf Funktion prüfen ","I",null,null,null,"SK",null,"VDI 6022",6,24,6,6]
[432,"Teilklimaanlage","Verdampfer","Auf Verschmutzung, Beschädigung und Korrosion prüfen, ggf. reinigen und instandsetzen","I",null,null,null,"SK",null,"VDI 6022",6,24,6,6]
[432,"Teilklimaanlage","Verdampfer","Kondensatwanne und Tropfenabscheider auf Verschmutzung, Korrosion und Funktion überprüfen, ggf. instandsetzen","I",null,null,null,"SK",null,"VDI 6022",6,24,6,6]
[432,"Teilklimaanlage","Verdampfer","Siphon auf Funktion prüfen, ","I",null,null,null,"SK",null,"VDI 6022",6,24,6,6]
[432,"Teilklimaanlage","Verdampfer","Nasskühler, Tropfenabscheider und Kondensatwanne reinigen",null,"W",null,null,"SK",null,"VDI 6022",6,24,6,6]
[432,"Teilklimaanlage","Verdampfer","Kontrolle des Hygienezustandes (Hygieneinspektion)","I",null,null,null,"SK",null,"VDI 6022",6,24,6,6]
[432,"Teilklimaanlage","Kreuzstrom-Wärmetauscher","Auf luftseitige Verschmutzung, Beschädigung und Korrosion prüfen","I",null,null,null,"SK",null,"VDI 6022",6,24,6,6]
[432,"Teilklimaanlage","Kreuzstrom-Wärmetauscher","Wasserablauf und Geruchsverschluss auf Funktion prüfen","I",null,null,null,"SK",null,"VDI 6022",6,24,6,6]
[432,"Teilklimaanlage","Kreuzstrom-Wärmetauscher","Reinigungseinrichtung auf Funktion prüfen","I",null,null,null,"SK",null,"VDI 6022",6,24,6,6]
[432,"Teilklimaanlage","Kreuzstrom-Wärmetauscher","Luftseitig reinigen",null,"W",null,null,"SK",null,"VDI 6022",6,24,6,6]
[432,"Teilklimaanlage","Verdunstungs- und Umlaufsprühbefeuchter","Hygienemaßnahmen nach VDI 6022 Blatt 1","I",null,null,null,"SK",null,"VDI 6022",6,24,6,6]
[432,"Teilklimaanlage","Verdunstungs- und Umlaufsprühbefeuchter","Wassereinspeisung und -verteilung auf Funktion prüfen","I",null,null,null,"SK",null,"VDI 6022",6,24,6,6]
[432,"Teilklimaanlage","Verdunstungs- und Umlaufsprühbefeuchter","Wasserstand prüfen","I",null,null,null,"SK",null,"VDI 6022",6,24,6,6]
[432,"Teilklimaanlage","Verdunstungs- und Umlaufsprühbefeuchter","Reguliereinrichtung des Wasserstandes nachstellen","I",null,null,null,"SK",null,"VDI 6022",6,24,6,6]
[432,"Teilklimaanlage","Verdunstungs- und Umlaufsprühbefeuchter","Ab- und Überlauf auf Funktion prüfen","I",null,null,null,"SK",null,"VDI 6022",6,24,6,6]
[432,"Teilklimaanlage","Verdunstungs- und Umlaufsprühbefeuchter","Umwälzpumpe prüfen","I",null,null,null,"SK",null,"VDI 6022",6,24,6,6]
[432,"Teilklimaanlage","Verdunstungs- und Umlaufsprühbefeuchter","Auf Verschmutzung, Beschädigung und Korrosion prüfen und reinigen ",null,"W",null,null,"SK",null,"VDI 6022",6,24,6,6]
[432,"Teilklimaanlage","Verdunstungs- und Umlaufsprühbefeuchter","Keimzahlmessung des Befeuchterwassers (Dip-Slides), bei Keimzahl > 1000 KBE/ml: waschen mit Reinigungsmittel, ausspülen und austrocknen der Wanne, ggf. Desinfektion","I",null,null,null,"SK",null,"VDI 6022",6,24,6,6]
[432,"Teilklimaanlage","Verdunstungs- und Umlaufsprühbefeuchter","Zerstäuberdüsen auf Ablagerung prüfen, ggf. Düsen reinigen oder auswechseln",null,"W",null,null,"SK",null,"VDI 6022",6,24,6,6]
[432,"Teilklimaanlage","Verdunstungs- und Umlaufsprühbefeuchter","Schmutzfänger auf Zustand und Funktion prüfen, ggf. reinigen und instandsetzen",null,"W",null,null,"SK",null,"VDI 6022",6,24,6,6]
[432,"Teilklimaanlage","Verdunstungs- und Umlaufsprühbefeuchter","Auf Flockenbildung im Bodenbereich der Luftbefeuchtwanne prüfen, ggf. Wanne reinigen",null,"W",null,null,"SK",null,"VDI 6022",6,24,6,6]
[432,"Teilklimaanlage","Verdunstungs- und Umlaufsprühbefeuchter","Umlaufpumpe auf Schmutz- und Belagbildung in der Saugleitung prüfen, ggf. Pumpenkreislauf reinigen",null,"W",null,null,"SK",null,"VDI 6022",6,24,6,6]
[432,"Teilklimaanlage","Verdunstungs- und Umlaufsprühbefeuchter","Abschlämmvorrichtung auf Funktion prüfen, ggf. nachstellen","I",null,null,null,"SK",null,"VDI 6022",6,24,6,6]
[432,"Teilklimaanlage","Verdunstungs- und Umlaufsprühbefeuchter","Funktionsüberprüfung der Leitfähigkeitsmesszelle","I",null,null,null,"SK",null,"VDI 6022",6,24,6,6]
[432,"Teilklimaanlage","Verdunstungs- und Umlaufsprühbefeuchter","Funktionsüberprüfung der Entkeimungsanlage,","I",null,null,null,"SK",null,"VDI 6022",6,24,6,6]
[432,"Teilklimaanlage","Verdunstungs- und Umlaufsprühbefeuchter","Reinigung bei Stillstand des Luftbefeuchters über 48 Stunden, ggf. waschen mit Reinigungsmittel, spülen und austrocknen der Wanne",null,"W",null,null,"SK",null,"VDI 6022",6,24,6,6]
[432,"Teilklimaanlage","Verdunstungs- und Umlaufsprühbefeuchter","Kontrolle des Hygienezustandes (Hygieneinspektion)","I",null,null,null,"SK",null,"VDI 6022",6,24,6,6]
[432,"Teilklimaanlage","Verdunstungs- und Umlaufsprühbefeuchter","Schmutzfänger auf Verschmutzung prüfen","I",null,null,null,"SK",null,"VDI 6022",6,24,6,6]
[432,"Teilklimaanlage","Verdunstungs- und Umlaufsprühbefeuchter","Schmutzfänger reinigen",null,"W",null,null,"SK",null,"VDI 6022",6,24,6,6]
[432,"Teilklimaanlage","Verdunstungs- und Umlaufsprühbefeuchter","Tropfenabscheider/ Gleichrichter","I",null,null,null,"SK",null,"VDI 6022",6,24,6,6]
[432,"Teilklimaanlage","Tropfenabscheide / Gleichrichter","Hygienemaßnahmen nach VDI 6022 Blatt 1","I",null,null,null,"SK",null,"VDI 6022",6,24,12,12]
[432,"Teilklimaanlage","Tropfenabscheide / Gleichrichter","Wasserablauf und Geruchsverschluss auf Funktion prüfen","I",null,null,null,"SK",null,"VDI 6022",6,24,12,12]
[432,"Teilklimaanlage","Tropfenabscheide / Gleichrichter","Tropfenabscheider auf Verschmutzung, Beschädigung und Korrosion prüfen, ggf. funktionserhaltendes Reinigen",null,"W",null,null,"SK",null,"VDI 6022",6,24,12,12]
[432,"Teilklimaanlage","Tropfenabscheide / Gleichrichter","Tropfenabscheider auf Belagbildung überprüfen, ggf. funktionserhaltendes Reinigen bei sichtbarer Verkrustung",null,"W",null,null,"SK",null,"VDI 6022",6,24,12,12]
[432,"Teilklimaanlage","Tropfenabscheide / Gleichrichter","Kontrolle des Hygienezustandes (Hygieneinspektion)","I",null,null,null,"SK",null,"VDI 6022",6,24,12,12]
[432,"Teilklimaanlage","Tropfenabscheide / Gleichrichter","Reinigen",null,"W",null,null,"SK",null,"VDI 6022",6,24,12,12]
[432,"Teilklimaanlage","Tropfenabscheide / Gleichrichter","Siphon auf Funktion prüfen, (Medium: Dampf; mit eigenem Dampferzeuger)","I",null,null,null,"SK",null,"VDI 6022",6,24,12,12]
[432,"Teilklimaanlage","Dampfluftbefeuchter","Hygienemaßnahmen nach VDI 6022 Blatt 1","I",null,null,null,"SK",null,"VDI 6022",6,24,6,6]
[432,"Teilklimaanlage","Dampfluftbefeuchter","Auf Verschmutzung, Beschädigung und Korrosion prüfen, ggf. reinigen ",null,"W",null,null,"SK",null,"VDI 6022",6,24,6,6]
[432,"Teilklimaanlage","Dampfluftbefeuchter","Auf Kondensatniederschlag in Kammer prüfen, ggf. Dampfbefeuchter reinigen",null,"W",null,null,"SK",null,"VDI 6022",6,24,6,6]
[432,"Teilklimaanlage","Dampfluftbefeuchter","Waschen mit Reinigungsmittel, ausspülen und austrocknen der Befeuchterkammer, ggf. Desinfektion",null,"W",null,null,"SK",null,"VDI 6022",6,24,6,6]
[432,"Teilklimaanlage","Dampfluftbefeuchter","Schmutzfänger auf Zustand und Funktion prüfen, ggf. reinigen ",null,"W",null,null,"SK",null,"VDI 6022",6,24,6,6]
[432,"Teilklimaanlage","Dampfluftbefeuchter","Dampflanze auf Ablagerungen prüfen, ggf. reinigen",null,"W",null,null,"SK",null,"VDI 6022",6,24,6,6]
[432,"Teilklimaanlage","Dampfluftbefeuchter","Kondensatablauf prüfen, ggf. reinigen ",null,"W",null,null,"SK",null,"VDI 6022",6,24,6,6]
[432,"Teilklimaanlage","Dampfluftbefeuchter","Regelventil auf Funktion prüfen","I",null,null,null,"SK",null,"VDI 6022",6,24,6,6]
[432,"Teilklimaanlage","Dampfluftbefeuchter","Kontrolle des Hygienezustandes","I",null,null,null,"SK",null,"VDI 6022",6,24,6,6]
[432,"Teilklimaanlage","Dampfluftbefeuchter","Stromaufnahme messen",null,"W",null,null,"SK",null,"VDI 6022",6,24,6,6]
[432,"Teilklimaanlage","Luftbefeuchter (Medium: Dampf) ohne eigenen Dampferzeuger","Regelventil auf Funktion prüfen","I",null,null,null,"SK",null,"VDI 6022",6,24,12,12]
[432,"Teilklimaanlage","Luftbefeuchter (Medium: Dampf) ohne eigenen Dampferzeuger","Dampfverteiler und Kondensatleitung auf Funktion prüfen","I",null,null,null,"SK",null,"VDI 6022",6,24,12,12]
[432,"Teilklimaanlage","Luftbefeuchter (Medium: Dampf) ohne eigenen Dampferzeuger","Auf Verschmutzung, Beschädigung und Korrosion prüfen","I",null,null,null,"SK",null,"VDI 6022",6,24,12,12]
[432,"Teilklimaanlage","Luftbefeuchter (Medium: Dampf) ohne eigenen Dampferzeuger","Schmutzfänger auf Verschmutzung prüfen","I",null,null,null,"SK",null,"VDI 6022",6,24,12,12]
[432,"Teilklimaanlage","Luftbefeuchter (Medium: Dampf) ohne eigenen Dampferzeuger","Reinigen",null,"W",null,null,"SK",null,"VDI 6022",6,24,12,12]
[432,"Teilklimaanlage","Luftbefeuchter (Medium: Dampf) ohne eigenen Dampferzeuger","Stopfbuchse des Regelventiles nachstellen",null,"W",null,null,"SK",null,"VDI 6022",6,24,12,12]
[432,"Teilklimaanlage","Dampferzeuger","Auf Verschmutzung, Beschädigung und Korrosion prüfen","I",null,null,null,"SK",null,"VDI 6022",6,24,6,6]
[432,"Teilklimaanlage","Dampferzeuger","Magnetventil auf Funktion prüfen","I",null,null,null,"SK",null,"-",6,24,6,6]
[432,"Teilklimaanlage","Dampferzeuger","Heizstäbe auf Funktion prüfen","I",null,null,null,"SK",null,"-",6,24,6,6]
[432,"Teilklimaanlage","Dampferzeuger","Wassereinspeisung auf Funktion und Wasserstand prüfen","I",null,null,null,"SK",null,"-",6,24,6,6]
[432,"Teilklimaanlage","Entfeuchter","Hygienemaßnahmen nach VDI 6022 Blatt 1","I",null,null,null,"SK",null,"VDI 6022",6,24,12,12]
[432,"Teilklimaanlage","Entfeuchter","Auf Verschmutzung, Beschädigung und Korrosion prüfen, ggf. reinigen ",null,"W",null,null,"SK",null,"VDI 6022",6,24,12,12]
[432,"Teilklimaanlage","Entfeuchter","Nasskühler, Kondensatwanne und Tropfenabscheider \nauf Verschmutzung, Korrosion und Funktion überprüfen, ggf. instandsetzen",null,"W",null,null,"SK",null,"VDI 6022",6,24,12,12]
[432,"Teilklimaanlage","Entfeuchter","Siphon auf Funktion prüfen","I",null,null,null,"SK",null,"VDI 6022",6,24,12,12]
[432,"Teilklimaanlage","Entfeuchter","Kontrolle des Hygienezustandes (Hygieneinspektion)","I",null,null,null,"SK",null,"VDI 6022",6,24,12,12]
[432,"Teilklimaanlage","Ventilatoren","Hygienemaßnahmen nach VDI 6022 Blatt 1","I",null,null,null,"SK",null,"DGUVV\nBGR-GUV-R 108\nGUV-V A3\nVDI 6022-1\n",6,24,6,6]
[432,"Teilklimaanlage","Ventilatoren","Ventilator auf Verschmutzung, Beschädigung und Korrosion prüfen","I",null,null,null,"SK",null,"DGUVV\nBGR-GUV-R 108\nGUV-V A3\nVDI 6022-1\n",6,24,6,6]
[432,"Teilklimaanlage","Ventilatoren","Funktionserhaltendes Reinigen der luftberührten Teile des Ventilators sowie des Wasserablaufes","I",null,null,null,"SK",null,"DGUVV\nBGR-GUV-R 108\nGUV-V A3\nVDI 6022-1\n",6,24,6,6]
[432,"Teilklimaanlage","Ventilatoren","Schaufelverstelleinrichtung auf Funktion prüfen","I",null,null,null,"SK",null,"DGUVV\nBGR-GUV-R 108\nGUV-V A3\nVDI 6022-1\n",6,24,6,6]
[432,"Teilklimaanlage","Ventilatoren","Lager auf Geräusch prüfen","I",null,null,null,"SK",null,"DGUVV\nBGR-GUV-R 108\nGUV-V A3\nVDI 6022-1\n",6,24,6,6]
[432,"Teilklimaanlage","Ventilatoren","Flexible Verbindungen auf Dichtheit prüfen","I",null,null,null,"SK",null,"DGUVV\nBGR-GUV-R 108\nGUV-V A3\nVDI 6022-1\n",6,24,6,6]
[432,"Teilklimaanlage","Ventilatoren","Schwingungsdämpfer auf Funktion prüfen","I",null,null,null,"SK",null,"DGUVV\nBGR-GUV-R 108\nGUV-V A3\nVDI 6022-1\n",6,24,6,6]
[432,"Teilklimaanlage","Ventilatoren","Schutzeinrichtungen auf Funktion prüfen","I",null,null,null,"SK",null,"DGUVV\nBGR-GUV-R 108\nGUV-V A3\nVDI 6022-1\n",6,24,6,6]
[432,"Teilklimaanlage","Ventilatoren","Drallregler auf Funktion prüfen","I",null,null,null,"SK",null,"DGUVV\nBGR-GUV-R 108\nGUV-V A3\nVDI 6022-1\n",6,24,6,6]
[432,"Teilklimaanlage","Ventilatoren","Laufrad auf Unwucht prüfen","I",null,null,null,"SK",null,"DGUVV\nBGR-GUV-R 108\nGUV-V A3\nVDI 6022-1\n",6,24,6,6]
[432,"Teilklimaanlage","Ventilatoren","Lager schmieren",null,"W",null,null,"SK",null,"DGUVV\nBGR-GUV-R 108\nGUV-V A3\nVDI 6022-1\n",6,24,6,6]
[432,"Teilklimaanlage","Wetterschutzgitter","Hygienemaßnahmen nach VDI 6022 Blatt 1","I",null,null,null,"SK",null,"VDI 6022",6,24,6,6]
[432,"Teilklimaanlage","Wetterschutzgitter","Auf Verschmutzung, Beschädigung, Korrosion prüfen","I",null,null,null,"SK",null,"-",6,24,6,6]
[432,"Teilklimaanlage","Wetterschutzgitter","Reinigen",null,"W",null,null,"SK",null,"-",6,24,6,6]
[432,"Teilklimaanlage","Gitter und Verteiler","Hygienemaßnahmen nach VDI 6022 Blatt 1","I",null,null,null,"SK",null,"VDI 6022",6,24,6,6]
[432,"Teilklimaanlage","Gitter und Verteiler","Eingebaute Lochbleche, Maschendraht oder Siebe auf Verschmutzung prüfen (Stichprobe), ggf. reinigen bzw. austauschen","I",null,null,null,"SK",null,"VDI 6022",6,24,6,6]
[432,"Teilklimaanlage","Gitter und Verteiler","Filtervliese auswechseln bei Filterklasse < F 9",null,"W",null,null,"SK",null,"VDI 6022",6,24,6,6]
[432,"Teilklimaanlage","Gitter und Verteiler","Luftdurchlässe mit Induktion der Raumluft und Abluftdurlässe auf Feststoffablagerungen prüfen, ggf. reinigen",null,"W",null,null,"SK",null,"VDI 6022",6,24,6,6]
[432,"Teilklimaanlage","Gitter und Verteiler","Reinigung der durch Sekundärluft durchströmten Bauteile",null,"W",null,null,"SK",null,"VDI 6022",6,24,6,6]
[432,"Brandschutzklappen","Brandschutzklappen","Einrastvorrichtung auf Verschmutzung und Funktion prüfen","I",null,null,null,"SK",null,"SPrüfV § 2 Abs. 4\nDVNBauO § 32 Abs. 1",6,12,6,6]
[432,"Brandschutzklappen","Brandschutzklappen","Auslösevorrichtung auf Verschmutzung  und Funktion prüfen","I",null,null,null,"SK",null,"SPrüfV § 2 Abs. 4\nDVNBauO § 32 Abs. 1",6,12,6,6]
[432,"Brandschutzklappen","Brandschutzklappen","Auslöseelement auswechseln",null,"W",null,null,"SK",null,"SPrüfV § 2 Abs. 4\nDVNBauO § 32 Abs. 1",6,12,6,6]
[432,"Brandschutzklappen","Brandschutzklappen","Auf Gängigkeit prüfen","I",null,null,null,"SK",null,"SPrüfV § 2 Abs. 4\nDVNBauO § 32 Abs. 1",6,12,6,6]
[432,"Brandschutzklappen","Brandschutzklappen","Stellungsanzeige auf Funktion prüfen",null,"W",null,null,"SK",null,"SPrüfV § 2 Abs. 4\nDVNBauO § 32 Abs. 1",6,12,6,6]
[432,"Brandschutzklappen","Brandschutzklappen","Einrast- und Auslösevorrichtung reinigen",null,"W",null,null,"SK",null,"SPrüfV § 2 Abs. 4\nDVNBauO § 32 Abs. 1",6,12,6,6]
[432,"Teilklimaanlage","Klappen","Auf Verschmutzung, Beschlädigung und Korrosion prüfen","I",{"$nulls":4},"FK","-",6,24,6,6]
[432,"Teilklimaanlage","Klappen","Auf mechanische Funktion prüfen","I",{"$nulls":4},"FK","-",6,24,6,6]
[432,"Teilklimaanlage","Klappen","Lager und Gestänge schmieren",null,"W",null,null,null,"FK","-",6,24,6,6]
[432,"Teilklimaanlage","Luftleitungen und -kammern","Hygienemaßnahmen nach VDI 6022 Blatt 1","I",null,null,null,"SK",null,"BayBO Art. 39\nVDI 6022",6,24,6,6]
[432,"Teilklimaanlage","Luftleitungen und -kammern","Zugängliche Luftleitungsabschnitte auf Beschädigung prüfen","I",null,null,null,"SK",null,"BayBO Art. 39\nVDI 6022",6,24,6,6]
[432,"Teilklimaanlage","Luftleitungen und -kammern","Abläufe auf Funktion prüfen","I",null,null,null,"SK",null,"BayBO Art. 39\nVDI 6022",6,24,6,6]
[432,"Teilklimaanlage","Luftleitungen und -kammern","Türen und Verschlüsse auf Gängigkeit und Dichtheit prüfen","I",null,null,null,"SK",null,"BayBO Art. 39\nVDI 6022",6,24,6,6]
[432,"Teilklimaanlage","Luftleitungen und -kammern","Isolierung auf äußere Beschädigung prüfen (Sichtprüfung)","I",null,null,null,"SK",null,"BayBO Art. 39\nVDI 6022",6,24,6,6]
[432,"Teilklimaanlage","Luftleitungen und -kammern","Flexible Verbindungen auf Dichtheit prüfen","I",null,null,null,"SK",null,"BayBO Art. 39\nVDI 6022",6,24,6,6]
[432,"Teilklimaanlage","Luftleitungen und -kammern","Reinigen",null,"W",null,null,"SK",null,"BayBO Art. 39\nVDI 6022",6,24,6,6]
[432,"Teilklimaanlage","Luftleitungen und -kammern","Kammerzentralen/ Gerätegehäuse auf luftseitige Verschmutzung, Beschädigung und Korrosion prüfen, ggf. reinigen","I",null,null,null,"SK",null,"BayBO Art. 39\nVDI 6022",6,24,6,6]
[432,"Teilklimaanlage","Luftleitungen und -kammern","Dto. Auf Wasserbildung prüfen, ggf. reinigen, Ursache ermitteln",null,"W",null,null,"SK",null,"BayBO Art. 39\nVDI 6022",6,24,6,6]
[432,"Teilklimaanlage","Luftleitungen und -kammern","Innere Luftleitungsfläche auf Verschmutzung und Korrosion an 2 bis 3 repräsentativen Stellen prüfen, ggf. Ursache ermitteln, ensprechende Luftleitungsabschnitte reinigen",null,"W",null,null,"SK",null,"BayBO Art. 39\nVDI 6022",6,24,6,6]
[432,"Teilklimaanlage","Luftleitungen und -kammern","Schalldämpfer auf Verschmutzung, Beschädigung und Korrosion prüfen","I",null,null,null,"SK",null,"BayBO Art. 39\nVDI 6022",6,24,6,6]
[432,"Teilklimaanlage","Luftleitungen und -kammern","Kontrolle des Hygienezustandes in der Luftleitung an einer repräsentativen Stelle, ggf. Ursache ermitteln, entsprechende Luftleitungsabschnitte reinigen (Hygieneinspektion)",null,"W",null,null,"SK",null,"BayBO Art. 39\nVDI 6022",6,24,6,6]
[432,"Teilklimaanlage","Luftleitungen und -kammern","Bewegliche Teile schmieren",null,"W",null,null,"SK",null,"BayBO Art. 39\nVDI 6022",6,24,6,6]
[432,"Teilklimaanlage","Volumenstrom- und Mischregler","Auf Verschmutzung, Beschädigung und Korrosion prüfen","I",{"$nulls":4},"FK","-",6,24,6,6]
[432,"Teilklimaanlage","Volumenstrom- und Mischregler","Volumenstromregler auf Funktion prüfen","I",{"$nulls":4},"FK","-",6,24,6,6]
[432,"Teilklimaanlage","Volumenstrom- und Mischregler","Regelklappen auf Funktion prüfen","I",{"$nulls":4},"FK","-",6,24,6,6]
[432,"Teilklimaanlage","Volumenstrom- und Mischregler","Reinigen",null,"W",null,null,null,"FK","-",6,24,6,6]
[432,"Teilklimaanlage","Absperr- und Abgleichelemente","Auf Verschmutzung, Beschädigung und Korrosion prüfen","I",{"$nulls":4},"FK","-",6,24,6,6]
[432,"Teilklimaanlage","Absperr- und Abgleichelemente","Auf Funktion prüfen","I",{"$nulls":4},"FK","-",6,24,6,6]
[432,"Teilklimaanlage","Absperr- und Abgleichelemente","Reinigen",null,"W",null,null,null,"FK","-",6,24,6,6]
[432,"Teilklimaanlage","Luftfilter","Hygienemaßnahmen nach VDI 6022 Blatt 1","I",null,null,null,"SK",null,"VDI 6022",6,24,3,3]
[432,"Teilklimaanlage","Luftfilter","Differenzdruck prüfen, ggf. Filterstufe auswechseln","I",null,null,null,"SK",null,"VDI 6022",6,24,3,3]
[432,"Teilklimaanlage","Luftfilter","Luftfilter auf unzulässige Verschmutzung und Beschädigung (Leckagen) prüfen ggf. auswechseln der betroffenen Luftfilter, falls letzte Auswechselung der Filterstufe nicht länger als 6 Mon. her ist, sonst auswechseln der gesamten Filterstufe",null,"W",null,null,"SK",null,"VDI 6022",6,24,3,3]
[432,"Teilklimaanlage","Luftfilter","Spätester Filterwechsel der 1. Stufe bei nicht regenerierbaren Luftfiltern, sonst gründliche Reinigung",null,"W",null,null,"SK",null,"VDI 6022",6,24,3,3]
[432,"Teilklimaanlage","Luftfilter","Spätester Filterwechsel der 2. Stufe",null,"W",null,null,"SK",null,"VDI 6022",6,24,3,3]
[432,"Teilklimaanlage","Rollbandfilter","Auf Verschmutzung, Beschädigung und Korrosion prüfen","I",null,null,null,"SK",null,"VDI 6022\n",6,24,3,3]
[432,"Teilklimaanlage","Rollbandfilter","Druckdifferenz messen","I",null,null,null,"SK",null,"VDI 6022\n",6,24,3,3]
[432,"Teilklimaanlage","Rollbandfilter","Filtervorschub auf Funktion prüfen","I",null,null,null,"SK",null,"VDI 6022\n",6,24,3,3]
[432,"Teilklimaanlage","Rollbandfilter","Filtermedium auf Vorrat prüfen","I",null,null,null,"SK",null,"VDI 6022\n",6,24,3,3]
[432,"Teilklimaanlage","Rollbandfilter","Filterband auswechseln",null,"W",null,null,"SK",null,"VDI 6022-1",6,24,3,3]
[432,"Teilklimaanlage","Trockenschichtfilter","Auf Verschmutzung, Korrosion und Beschädigung prüfen","I",null,null,null,"SK",null,"VDI 6022",6,24,3,3]
[432,"Teilklimaanlage","Trockenschichtfilter","Filterauflage auf Dichtheit prüfen","I",null,null,null,"SK",null,"VDI 6022",6,24,3,3]
[432,"Teilklimaanlage","Trockenschichtfilter","Druckdifferenz messen",null,"W",null,null,"SK",null,"VDI 6022-1",6,24,3,3]
[432,"Teilklimaanlage","Trockenschichtfilter","Filtermedium (regenerierbar) reinigen",null,"W",null,null,"SK",null,"VDI 6022-1",6,24,3,3]
[432,"Teilklimaanlage","gesamte Anlage","Kontrolle des Hygienezustandes (Hygieneinspektion)","I",null,null,null,"SK",null,"VDI 6022-1",6,24,3,3]
[432,"Teilklimaanlage","Elektrofilter","Auf Verschmutzung, Beschädigung und Korrosion prüfen","I",null,null,null,"SK",null,"DGUVV\nGUV-V A3\nVDI 6022",6,24,6,6]
[432,"Teilklimaanlage","Elektrofilter","Ionisationsdrähte auf Beschädigung prüfen","I",null,null,null,"SK",null,"DGUVV\nGUV-V A3\nVDI 6022",6,24,6,6]
[432,"Teilklimaanlage","Elektrofilter","Ionisationsdrähte auswechseln",null,"W",null,null,"SK",null,"DGUVV\nGUV-V A3\nVDI 6022",6,24,6,6]
[432,"Teilklimaanlage","Elektrofilter","Filterzellen auf Beschädigung und Funkenschlag prüfen","I",null,null,null,"SK",null,"DGUVV\nGUV-V A3\nVDI 6022",6,24,6,6]
[432,"Teilklimaanlage","Elektrofilter","Isolatoren auf festen Sitz prüfen","I",null,null,null,"SK",null,"DGUVV\nGUV-V A3\nVDI 6022",6,24,6,6]
[432,"Teilklimaanlage","Elektrofilter","Isolatoren auswechseln",null,"W",null,null,"SK",null,"DGUVV\nGUV-V A3\nVDI 6022",6,24,6,6]
[432,"Teilklimaanlage","Elektrofilter","Stromaufnahme messen",null,"W",null,null,"SK",null,"DGUVV\nGUV-V A3\nVDI 6022",6,24,6,6]
[432,"Teilklimaanlage","Elektrofilter","Reinigungseinrichtung auf Funktion prüfen","I",null,null,null,"SK",null,"DGUVV\nGUV-V A3\nVDI 6022",6,24,6,6]
[432,"Teilklimaanlage","Elektrofilter","MSR-Sicherheitseinrichtungen prüfen","I",null,null,null,"SK",null,"DGUVV\nGUV-V A3\nVDI 6022",6,24,6,6]
[432,"Teilklimaanlage","Elektrofilter","Antriebselemente prüfen","I",null,null,null,"SK",null,"DGUVV\nGUV-V A3\nVDI 6022",6,24,6,6]
[432,"Teilklimaanlage","Elektrofilter","Reinigen",null,"W",null,null,"SK",null,"DGUVV\nGUV-V A3\nVDI 6022",6,24,6,6]
[432,"Teilklimaanlage","Sorptionsfilter","Auf äußere Verschmutzung, Beschädigung und Korrosion prüfen","I",null,null,null,"SK",null,"VDI 6022",6,24,6,6]
[432,"Teilklimaanlage","Sorptionsfilter","Filtereinsatz auf dichten Sitz prüfen","I",null,null,null,"SK",null,"VDI 6022",6,24,6,6]
[432,"Teilklimaanlage","Sorptionsfilter","Filtereinsatz auswechseln",null,"W",null,null,"SK",null,"VDI 6022",6,24,6,6]
[432,"Teilklimaanlage","Sorptionsfilter","Reinigen",null,"W",null,null,"SK",null,"VDI 6022",6,24,6,6]

{"sheet":"433","index":10,"n_rows":90,"n_cols":15,"rows_kept":90,"cut":false,"hidden":false,"merged":[]}
[{"$nulls":4},"Inspektion","Wartung","Instandsetzung","Sachverständiger","Sachkundige","Fachkraft",null,"Monate","Monate",{"$f":"IF([1]Fragen!$D$18=\"Ja\",\"Eine einfache Sichtkontrolle genügt\",\"Eine einfache Sichtkontrolle genügt nicht\")","v":"Eine einfache Sichtkontrolle genügt nicht"}]
["Kostengruppe","Anlage (System)","Abgrenzung","Tätigkeit","I","W","IS","SV","SK","FK","normative Grundlage","min","max","Empfehlung Inspektion","Empfehlung Wartung"]
[433,"Klimaanlage","Rotationswärmetauscher","Hygienemaßnahmen nach VDI 6022 Blatt 1","I",null,null,null,"SK",null,"VDI 6022",6,24,12,12]
[433,"Klimaanlage","Induktionsgeräte und vergleichbare Nachbehandlungsgeräte","Lufterwärmer, -kühler und Düsen auf Verschmutzung, Beschädigung und Korrosion prüfen","I",null,null,null,"SK",null,"VDI 6022",6,24,12,12]
[433,"Klimaanlage","Induktionsgeräte und vergleichbare Nachbehandlungsgeräte","Reinigen",null,"W",null,null,"SK",null,"VDI 6022",6,24,12,12]
[433,"Klimaanlage","Endgeräte (Mischregler, Ventilatorkonvektoren, Schrankgeräte, Induktionsgeräte, Zonen-Nacherhitzer/-Nachkühler, als trockene Kühler)","Hygienemaßnahmen nach VDI 6022 Blatt 1","I",null,null,null,"SK",null,"VDI 6022",6,24,12,12]
[433,"Klimaanlage","Induktionsgeräte und vergleichbare Nachbehandlungsgeräte","Filtermedium auswechseln",null,"W",null,null,"SK",null,"VDI 6022",6,24,12,12]
[433,"Klimaanlage","Endgeräte (Mischregler, Ventilatorkonvektoren, Schrankgeräte, Induktionsgeräte, Zonen-Nacherhitzer/-Nachkühler, als trockene Kühler)","Endgeräte mit Außenluftfilter auf Verschmutzung prüfen, ggf. Luftfilter austauschen, Gerät reinigen",null,"W",null,null,"SK",null,"VDI 6022",6,24,12,12]
[433,"Klimaanlage","Endgeräte (Mischregler, Ventilatorkonvektoren, Schrankgeräte, Induktionsgeräte, Zonen-Nacherhitzer/-Nachkühler, als trockene Kühler)","Endgeräte mit Umluftfilter auf Verschmutzung prüfen, ggf. Luftfilter austauschen, Gerät reinigen",null,"W",null,null,"SK",null,"VDI 6022",6,24,12,12]
[433,"Klimaanlage","Endgeräte (Mischregler, Ventilatorkonvektoren, Schrankgeräte, Induktionsgeräte, Zonen-Nacherhitzer/-Nachkühler, als trockene Kühler)","Wärmeaustauscher bei Endgeräten ohne Luftfilter auf Verschmutzung überprüfen, ggf. reinigen (Staubsauger)",null,"W",null,null,"SK",null,"VDI 6022",6,24,12,12]
[433,"Klimaanlage","Endgeräte (Mischregler, Ventilatorkonvektoren, Schrankgeräte, Induktionsgeräte, Zonen-Nacherhitzer/-Nachkühler, als trockene Kühler)","Reinigung der durch Sekundärluft (ohne Luftfilter) durchströmten Bauteile",null,"W",null,null,"SK",null,"VDI 6022",6,24,12,12]
[433,"Klimaanlage","Endgeräte (Mischregler, Ventilatorkonvektoren, Schrankgeräte, Induktionsgeräte, Zonen-Nacherhitzer/-Nachkühler, als trockene Kühler)","Luftfilter auswechseln",null,"W",null,null,"SK",null,"VDI 6022",6,24,12,12]
[433,"Klimaanlage","Ventilatoren","Hygienemaßnahmen nach VDI 6022 Blatt 1","I",null,null,null,"SK",null,"DGUVV\nBGR-GUV-R 108\nGUV-V A3\nVDI 6022-1\n",6,24,12,12]
[433,"Klimaanlage","Ventilatoren","Ventilator auf Verschmutzung, Beschädigung und Korrosion prüfen","I",null,null,null,"SK",null,"DGUVV\nBGR-GUV-R 108\nGUV-V A3\nVDI 6022-1\n",6,24,12,12]
[433,"Klimaanlage","Ventilatoren","Funktionserhaltendes Reinigen der luftberührten Teile des Ventilators sowie des Wasserablaufes","I",null,null,null,"SK",null,"DGUVV\nBGR-GUV-R 108\nGUV-V A3\nVDI 6022-1\n",6,24,12,12]
[433,"Klimaanlage","Ventilatoren","Schaufelverstelleinrichtung auf Funktion prüfen","I",null,null,null,"SK",null,"DGUVV\nBGR-GUV-R 108\nGUV-V A3\nVDI 6022-1\n",6,24,12,12]
[433,"Klimaanlage","Ventilatoren","Lager auf Geräusch prüfen","I",null,null,null,"SK",null,"DGUVV\nBGR-GUV-R 108\nGUV-V A3\nVDI 6022-1\n",6,24,12,12]
[433,"Klimaanlage","Ventilatoren","Flexible Verbindungen auf Dichtheit prüfen","I",null,null,null,"SK",null,"DGUVV\nBGR-GUV-R 108\nGUV-V A3\nVDI 6022-1\n",6,24,12,12]
[433,"Klimaanlage","Ventilatoren","Schwingungsdämpfer auf Funktion prüfen","I",null,null,null,"SK",null,"DGUVV\nBGR-GUV-R 108\nGUV-V A3\nVDI 6022-1\n",6,24,12,12]
[433,"Klimaanlage","Ventilatoren","Schutzeinrichtungen auf Funktion prüfen","I",null,null,null,"SK",null,"DGUVV\nBGR-GUV-R 108\nGUV-V A3\nVDI 6022-1\n",6,24,12,12]
[433,"Klimaanlage","Ventilatoren","Drallregler auf Funktion prüfen","I",null,null,null,"SK",null,"DGUVV\nBGR-GUV-R 108\nGUV-V A3\nVDI 6022-1\n",6,24,12,12]
[433,"Klimaanlage","Ventilatoren","Laufrad auf Unwucht prüfen","I",null,null,null,"SK",null,"DGUVV\nBGR-GUV-R 108\nGUV-V A3\nVDI 6022-1\n",6,24,12,12]
[433,"Klimaanlage","Ventilatoren","Lager schmieren",null,"W",null,null,"SK",null,"DGUVV\nBGR-GUV-R 108\nGUV-V A3\nVDI 6022-1\n",6,24,12,12]
[433,"Klimaanlage","Wetterschutzgitter","Hygienemaßnahmen nach VDI 6022 Blatt 1","I",null,null,null,"SK",null,"VDI 6022",6,24,12,12]
[433,"Klimaanlage","Wetterschutzgitter","Auf Verschmutzung, Beschädigung, Korrosion prüfen","I",null,null,null,"SK",null,"-",6,24,12,12]
[433,"Klimaanlage","Wetterschutzgitter","Reinigen",null,"W",null,null,"SK",null,"-",6,24,12,12]
[433,"Klimaanlage","Gitter und Verteiler","Hygienemaßnahmen nach VDI 6022 Blatt 1","I",null,null,null,"SK",null,"VDI 6022",6,24,12,12]
[433,"Klimaanlage","Gitter und Verteiler","Eingebaute Lochbleche, Maschendraht oder Siebe auf Verschmutzung prüfen (Stichprobe), ggf. reinigen bzw. austauschen","I",null,null,null,"SK",null,"VDI 6022",6,24,12,12]
[433,"Klimaanlage","Gitter und Verteiler","Filtervliese auswechseln bei Filterklasse < F 9",null,"W",null,null,"SK",null,"VDI 6022",6,24,12,12]
[433,"Klimaanlage","Gitter und Verteiler","Luftdurchlässe mit Induktion der Raumluft und Abluftdurlässe auf Feststoffablagerungen prüfen, ggf. reinigen",null,"W",null,null,"SK",null,"VDI 6022",6,24,12,12]
[433,"Klimaanlage","Gitter und Verteiler","Reinigung der durch Sekundärluft durchströmten Bauteile",null,"W",null,null,"SK",null,"VDI 6022",6,24,12,12]
[433,"Brandschutzklappen","Brandschutzklappen","Einrastvorrichtung auf Verschmutzung und Funktion prüfen","I",null,null,null,"SK",null,"SPrüfV § 2 Abs. 4\nDVNBauO § 32 Abs. 1",6,12,12,12]
[433,"Brandschutzklappen","Brandschutzklappen","Auslösevorrichtung auf Verschmutzung  und Funktion prüfen","I",null,null,null,"SK",null,"SPrüfV § 2 Abs. 4\nDVNBauO § 32 Abs. 1",6,12,12,12]
[433,"Brandschutzklappen","Brandschutzklappen","Auslöseelement auswechseln",null,"W",null,null,"SK",null,"SPrüfV § 2 Abs. 4\nDVNBauO § 32 Abs. 1",6,12,12,12]
[433,"Brandschutzklappen","Brandschutzklappen","Auf Gängigkeit prüfen","I",null,null,null,"SK",null,"SPrüfV § 2 Abs. 4\nDVNBauO § 32 Abs. 1",6,12,12,12]
[433,"Brandschutzklappen","Brandschutzklappen","Stellungsanzeige auf Funktion prüfen",null,"W",null,null,"SK",null,"SPrüfV § 2 Abs. 4\nDVNBauO § 32 Abs. 1",6,12,12,12]
[433,"Brandschutzklappen","Brandschutzklappen","Einrast- und Auslösevorrichtung reinigen",null,"W",null,null,"SK",null,"SPrüfV § 2 Abs. 4\nDVNBauO § 32 Abs. 1",6,12,12,12]
[433,"Klimaanlage","Klappen","Auf Verschmutzung, Beschlädigung und Korrosion prüfen","I",{"$nulls":4},"FK","-",6,24,12,12]
[433,"Klimaanlage","Klappen","Auf mechanische Funktion prüfen","I",{"$nulls":4},"FK","-",6,24,12,12]
[433,"Klimaanlage","Klappen","Lager und Gestänge schmieren",null,"W",null,null,null,"FK","-",6,24,12,12]
[433,"Klimaanlage","Luftleitungen und -kammern","Hygienemaßnahmen nach VDI 6022 Blatt 1","I",null,null,null,"SK",null,"BayBO Art. 39\nVDI 6022",6,24,12,12]
[433,"Klimaanlage","Luftleitungen und -kammern","Zugängliche Luftleitungsabschnitte auf Beschädigung prüfen","I",null,null,null,"SK",null,"BayBO Art. 39\nVDI 6022",6,24,12,12]
[433,"Klimaanlage","Luftleitungen und -kammern","Abläufe auf Funktion prüfen","I",null,null,null,"SK",null,"BayBO Art. 39\nVDI 6022",6,24,12,12]
[433,"Klimaanlage","Luftleitungen und -kammern","Türen und Verschlüsse auf Gängigkeit und Dichtheit prüfen","I",null,null,null,"SK",null,"BayBO Art. 39\nVDI 6022",6,24,12,12]
[433,"Klimaanlage","Luftleitungen und -kammern","Isolierung auf äußere Beschädigung prüfen (Sichtprüfung)","I",null,null,null,"SK",null,"BayBO Art. 39\nVDI 6022",6,24,12,12]
[433,"Klimaanlage","Luftleitungen und -kammern","Flexible Verbindungen auf Dichtheit prüfen","I",null,null,null,"SK",null,"BayBO Art. 39\nVDI 6022",6,24,12,12]
[433,"Klimaanlage","Luftleitungen und -kammern","Reinigen",null,"W",null,null,"SK",null,"BayBO Art. 39\nVDI 6022",6,24,12,12]
[433,"Klimaanlage","Luftleitungen und -kammern","Kammerzentralen/ Gerätegehäuse auf luftseitige Verschmutzung, Beschädigung und Korrosion prüfen, ggf. reinigen","I",null,null,null,"SK",null,"BayBO Art. 39\nVDI 6022",6,24,12,12]
[433,"Klimaanlage","Luftleitungen und -kammern","Dto. Auf Wasserbildung prüfen, ggf. reinigen, Ursache ermitteln",null,"W",null,null,"SK",null,"BayBO Art. 39\nVDI 6022",6,24,12,12]
[433,"Klimaanlage","Luftleitungen und -kammern","Innere Luftleitungsfläche auf Verschmutzung und Korrosion an 2 bis 3 repräsentativen Stellen prüfen, ggf. Ursache ermitteln, ensprechende Luftleitungsabschnitte reinigen",null,"W",null,null,"SK",null,"BayBO Art. 39\nVDI 6022",6,24,12,12]
[433,"Klimaanlage","Luftleitungen und -kammern","Schalldämpfer auf Verschmutzung, Beschädigung und Korrosion prüfen","I",null,null,null,"SK",null,"BayBO Art. 39\nVDI 6022",6,24,12,12]
[433,"Klimaanlage","Luftleitungen und -kammern","Kontrolle des Hygienezustandes in der Luftleitung an einer repräsentativen Stelle, ggf. Ursache ermitteln, entsprechende Luftleitungsabschnitte reinigen (Hygieneinspektion)",null,"W",null,null,"SK",null,"BayBO Art. 39\nVDI 6022",6,24,12,12]
[433,"Klimaanlage","Luftleitungen und -kammern","Bewegliche Teile schmieren",null,"W",null,null,"SK",null,"BayBO Art. 39\nVDI 6022",6,24,12,12]
[433,"Klimaanlage","Volumenstrom- und Mischregler","Auf Verschmutzung, Beschädigung und Korrosion prüfen","I",{"$nulls":4},"FK","-",6,24,12,12]
[433,"Klimaanlage","Volumenstrom- und Mischregler","Volumenstromregler auf Funktion prüfen","I",{"$nulls":4},"FK","-",6,24,12,12]
[433,"Klimaanlage","Volumenstrom- und Mischregler","Regelklappen auf Funktion prüfen","I",{"$nulls":4},"FK","-",6,24,12,12]
[433,"Klimaanlage","Volumenstrom- und Mischregler","Reinigen",null,"W",null,null,null,"FK","-",6,24,12,12]
[433,"Klimaanlage","Absperr- und Abgleichelemente","Auf Verschmutzung, Beschädigung und Korrosion prüfen","I",{"$nulls":4},"FK","-",6,24,12,12]
[433,"Klimaanlage","Absperr- und Abgleichelemente","Auf Funktion prüfen","I",{"$nulls":4},"FK","-",6,24,12,12]
[433,"Klimaanlage","Absperr- und Abgleichelemente","Reinigen",null,"W",null,null,null,"FK","-",6,24,12,12]
[433,"Klimaanlage","Luftfilter","Hygienemaßnahmen nach VDI 6022 Blatt 1","I",null,null,null,"SK",null,"VDI 6022",6,24,12,12]
[433,"Klimaanlage","Luftfilter","Differenzdruck prüfen, ggf. Filterstufe auswechseln","I",null,null,null,"SK",null,"VDI 6022",6,24,12,12]
[433,"Klimaanlage","Luftfilter","Luftfilter auf unzulässige Verschmutzung und Beschädigung (Leckagen) prüfen ggf. auswechseln der betroffenen Luftfilter, falls letzte Auswechselung der Filterstufe nicht länger als 6 Mon. her ist, sonst auswechseln der gesamten Filterstufe",null,"W",null,null,"SK",null,"VDI 6022",6,24,12,12]
[433,"Klimaanlage","Luftfilter","Spätester Filterwechsel der 1. Stufe bei nicht regenerierbaren Luftfiltern, sonst gründliche Reinigung",null,"W",null,null,"SK",null,"VDI 6022",6,24,12,12]
[433,"Klimaanlage","Luftfilter","Spätester Filterwechsel der 2. Stufe",null,"W",null,null,"SK",null,"VDI 6022",6,24,12,12]
[433,"Klimaanlage","Rollbandfilter","Auf Verschmutzung, Beschädigung und Korrosion prüfen","I",null,null,null,"SK",null,"VDI 6022\n",6,24,12,12]
[433,"Klimaanlage","Rollbandfilter","Druckdifferenz messen","I",null,null,null,"SK",null,"VDI 6022\n",6,24,12,12]
[433,"Klimaanlage","Rollbandfilter","Filtervorschub auf Funktion prüfen","I",null,null,null,"SK",null,"VDI 6022\n",6,24,12,12]
[433,"Klimaanlage","Rollbandfilter","Filtermedium auf Vorrat prüfen","I",null,null,null,"SK",null,"VDI 6022\n",6,24,12,12]
[433,"Klimaanlage","Rollbandfilter","Filterband auswechseln",null,"W",null,null,"SK",null,"VDI 6022-1",6,24,12,12]
[433,"Klimaanlage","Trockenschichtfilter","Auf Verschmutzung, Korrosion und Beschädigung prüfen","I",null,null,null,"SK",null,"VDI 6022",6,24,12,12]
[433,"Klimaanlage","Trockenschichtfilter","Filterauflage auf Dichtheit prüfen","I",null,null,null,"SK",null,"VDI 6022",6,24,12,12]
[433,"Klimaanlage","Trockenschichtfilter","Druckdifferenz messen",null,"W",null,null,"SK",null,"VDI 6022-1",6,24,12,12]
[433,"Klimaanlage","Trockenschichtfilter","Filtermedium (regenerierbar) reinigen",null,"W",null,null,"SK",null,"VDI 6022-1",6,24,12,12]
[433,"Klimaanlage","gesamte Anlage","Kontrolle des Hygienezustandes (Hygieneinspektion)","I",null,null,null,"SK",null,"VDI 6022-1",6,24,12,12]
[433,"Klimaanlage","Elektrofilter","Auf Verschmutzung, Beschädigung und Korrosion prüfen","I",null,null,null,"SK",null,"DGUVV\nGUV-V A3\nVDI 6022",6,24,12,12]
[433,"Klimaanlage","Elektrofilter","Ionisationsdrähte auf Beschädigung prüfen","I",null,null,null,"SK",null,"DGUVV\nGUV-V A3\nVDI 6022",6,24,12,12]
[433,"Klimaanlage","Elektrofilter","Ionisationsdrähte auswechseln",null,"W",null,null,"SK",null,"DGUVV\nGUV-V A3\nVDI 6022",6,24,12,12]
[433,"Klimaanlage","Elektrofilter","Filterzellen auf Beschädigung und Funkenschlag prüfen","I",null,null,null,"SK",null,"DGUVV\nGUV-V A3\nVDI 6022",6,24,12,12]
[433,"Klimaanlage","Elektrofilter","Isolatoren auf festen Sitz prüfen","I",null,null,null,"SK",null,"DGUVV\nGUV-V A3\nVDI 6022",6,24,12,12]
[433,"Klimaanlage","Elektrofilter","Isolatoren auswechseln",null,"W",null,null,"SK",null,"DGUVV\nGUV-V A3\nVDI 6022",6,24,12,12]
[433,"Klimaanlage","Elektrofilter","Stromaufnahme messen",null,"W",null,null,"SK",null,"DGUVV\nGUV-V A3\nVDI 6022",6,24,12,12]
[433,"Klimaanlage","Elektrofilter","Reinigungseinrichtung auf Funktion prüfen","I",null,null,null,"SK",null,"DGUVV\nGUV-V A3\nVDI 6022",6,24,12,12]
[433,"Klimaanlage","Elektrofilter","MSR-Sicherheitseinrichtungen prüfen","I",null,null,null,"SK",null,"DGUVV\nGUV-V A3\nVDI 6022",6,24,12,12]
[433,"Klimaanlage","Elektrofilter","Antriebselemente prüfen","I",null,null,null,"SK",null,"DGUVV\nGUV-V A3\nVDI 6022",6,24,12,12]
[433,"Klimaanlage","Elektrofilter","Reinigen",null,"W",null,null,"SK",null,"DGUVV\nGUV-V A3\nVDI 6022",6,24,12,12]
[433,"Klimaanlage","Sorptionsfilter","Auf äußere Verschmutzung, Beschädigung und Korrosion prüfen","I",null,null,null,"SK",null,"VDI 6022",6,24,12,12]
[433,"Klimaanlage","Sorptionsfilter","Filtereinsatz auf dichten Sitz prüfen","I",null,null,null,"SK",null,"VDI 6022",6,24,12,12]
[433,"Klimaanlage","Sorptionsfilter","Filtereinsatz auswechseln",null,"W",null,null,"SK",null,"VDI 6022",6,24,12,12]
[433,"Klimaanlage","Sorptionsfilter","Reinigen",null,"W",null,null,"SK",null,"VDI 6022",6,24,12,12]

{"sheet":"434","index":11,"n_rows":622,"n_cols":15,"rows_kept":622,"cut":false,"hidden":false,"merged":[]}
[{"$nulls":4},"Inspektion","Wartung","Instandsetzung","Sachverständiger","Sachkundige","Fachkraft",null,"Monate","Monate",{"$f":"IF([1]Fragen!$D$18=\"Ja\",\"Eine einfache Sichtkontrolle genügt\",\"Eine einfache Sichtkontrolle genügt nicht\")","v":{"$error":"#REF!"}}]
["Kostengruppe","Anlage (System)","Abgrenzung","Tätigkeit","I","W","IS","SV","SK","FK","normative Grundlage","min","max","Empfehlung Inspektion","Empfehlung Wartung"]
[434,"Splitanlage","Ventilatoren","Hygienemaßnahmen nach VDI 6022 Blatt 1","I",null,null,null,"SK",null,"DGUVV\nBGR-GUV-R 108\nGUV-V A3\nVDI 6022-1\n",6,36,24.000000000000004,24.000000000000004]
[434,"Splitanlage","Ventilatoren","Ventilator auf Verschmutzung, Beschädigung und Korrosion prüfen","I",null,null,null,"SK",null,"DGUVV\nBGR-GUV-R 108\nGUV-V A3\nVDI 6022-1\n",6,36,24.000000000000004,24.000000000000004]
[434,"Splitanlage","Ventilatoren","Funktionserhaltendes Reinigen der luftberührten Teile des Ventilators sowie des Wasserablaufes","I",null,null,null,"SK",null,"DGUVV\nBGR-GUV-R 108\nGUV-V A3\nVDI 6022-1\n",6,36,24.000000000000004,24.000000000000004]
[434,"Splitanlage","Ventilatoren","Schaufelverstelleinrichtung auf Funktion prüfen","I",null,null,null,"SK",null,"DGUVV\nBGR-GUV-R 108\nGUV-V A3\nVDI 6022-1\n",6,36,24.000000000000004,24.000000000000004]
[434,"Splitanlage","Ventilatoren","Lager auf Geräusch prüfen","I",null,null,null,"SK",null,"DGUVV\nBGR-GUV-R 108\nGUV-V A3\nVDI 6022-1\n",6,36,24.000000000000004,24.000000000000004]
[434,"Splitanlage","Ventilatoren","Flexible Verbindungen auf Dichtheit prüfen","I",null,null,null,"SK",null,"DGUVV\nBGR-GUV-R 108\nGUV-V A3\nVDI 6022-1\n",6,36,24.000000000000004,24.000000000000004]
[434,"Splitanlage","Ventilatoren","Schwingungsdämpfer auf Funktion prüfen","I",null,null,null,"SK",null,"DGUVV\nBGR-GUV-R 108\nGUV-V A3\nVDI 6022-1\n",6,36,24.000000000000004,24.000000000000004]
[434,"Splitanlage","Ventilatoren","Schutzeinrichtungen auf Funktion prüfen","I",null,null,null,"SK",null,"DGUVV\nBGR-GUV-R 108\nGUV-V A3\nVDI 6022-1\n",6,36,24.000000000000004,24.000000000000004]
[434,"Splitanlage","Ventilatoren","Drallregler auf Funktion prüfen","I",null,null,null,"SK",null,"DGUVV\nBGR-GUV-R 108\nGUV-V A3\nVDI 6022-1\n",6,36,24.000000000000004,24.000000000000004]
[434,"Splitanlage","Ventilatoren","Laufrad auf Unwucht prüfen","I",null,null,null,"SK",null,"DGUVV\nBGR-GUV-R 108\nGUV-V A3\nVDI 6022-1\n",6,36,24.000000000000004,24.000000000000004]
[434,"Splitanlage","Ventilatoren","Lager schmieren",null,"W",null,null,"SK",null,"DGUVV\nBGR-GUV-R 108\nGUV-V A3\nVDI 6022-1\n",6,36,24.000000000000004,24.000000000000004]
[434,"Splitanlage","Wetterschutzgitter","Hygienemaßnahmen nach VDI 6022 Blatt 1","I",null,null,null,"SK",null,"VDI 6022",6,36,24.000000000000004,24.000000000000004]
[434,"Splitanlage","Wetterschutzgitter","Auf Verschmutzung, Beschädigung, Korrosion prüfen","I",null,null,null,"SK",null,"-",6,36,24.000000000000004,24.000000000000004]
[434,"Splitanlage","Wetterschutzgitter","Reinigen",null,"W",null,null,"SK",null,"-",6,36,24.000000000000004,24.000000000000004]
[434,"Splitanlage","Gitter und Verteiler","Hygienemaßnahmen nach VDI 6022 Blatt 1","I",null,null,null,"SK",null,"VDI 6022",6,36,24.000000000000004,24.000000000000004]
[434,"Splitanlage","Gitter und Verteiler","Eingebaute Lochbleche, Maschendraht oder Siebe auf Verschmutzung prüfen (Stichprobe), ggf. reinigen bzw. austauschen","I",null,null,null,"SK",null,"VDI 6022",6,36,24.000000000000004,24.000000000000004]
[434,"Splitanlage","Gitter und Verteiler","Filtervliese auswechseln bei Filterklasse < F 9",null,"W",null,null,"SK",null,"VDI 6022",6,36,24.000000000000004,24.000000000000004]
[434,"Splitanlage","Gitter und Verteiler","Luftdurchlässe mit Induktion der Raumluft und Abluftdurlässe auf Feststoffablagerungen prüfen, ggf. reinigen",null,"W",null,null,"SK",null,"VDI 6022",6,36,24.000000000000004,24.000000000000004]
[434,"Splitanlage","Gitter und Verteiler","Reinigung der durch Sekundärluft durchströmten Bauteile",null,"W",null,null,"SK",null,"VDI 6022",6,36,24.000000000000004,24.000000000000004]
[434,"Brandschutzklappen","Brandschutzklappen","Einrastvorrichtung auf Verschmutzung und Funktion prüfen","I",null,null,null,"SK",null,"SPrüfV § 2 Abs. 4\nDVNBauO § 32 Abs. 1",6,12,8,8]
[434,"Brandschutzklappen","Brandschutzklappen","Auslösevorrichtung auf Verschmutzung  und Funktion prüfen","I",null,null,null,"SK",null,"SPrüfV § 2 Abs. 4\nDVNBauO § 32 Abs. 1",6,12,8,8]
[434,"Brandschutzklappen","Brandschutzklappen","Auslöseelement auswechseln",null,"W",null,null,"SK",null,"SPrüfV § 2 Abs. 4\nDVNBauO § 32 Abs. 1",6,12,8,8]
[434,"Brandschutzklappen","Brandschutzklappen","Auf Gängigkeit prüfen","I",null,null,null,"SK",null,"SPrüfV § 2 Abs. 4\nDVNBauO § 32 Abs. 1",6,12,8,8]
[434,"Brandschutzklappen","Brandschutzklappen","Stellungsanzeige auf Funktion prüfen",null,"W",null,null,"SK",null,"SPrüfV § 2 Abs. 4\nDVNBauO § 32 Abs. 1",6,12,8,8]
[434,"Brandschutzklappen","Brandschutzklappen","Einrast- und Auslösevorrichtung reinigen",null,"W",null,null,"SK",null,"SPrüfV § 2 Abs. 4\nDVNBauO § 32 Abs. 1",6,12,8,8]
[434,"Splitanlage","Klappen","Auf Verschmutzung, Beschlädigung und Korrosion prüfen","I",{"$nulls":4},"FK","-",6,36,24.000000000000004,24.000000000000004]
[434,"Splitanlage","Klappen","Auf mechanische Funktion prüfen","I",{"$nulls":4},"FK","-",6,36,24.000000000000004,24.000000000000004]
[434,"Splitanlage","Klappen","Lager und Gestänge schmieren",null,"W",null,null,null,"FK","-",6,36,24.000000000000004,24.000000000000004]
[434,"Splitanlage","Luftleitungen und -kammern","Hygienemaßnahmen nach VDI 6022 Blatt 1","I",null,null,null,"SK",null,"BayBO Art. 39\nVDI 6022",6,36,24.000000000000004,24.000000000000004]
[434,"Splitanlage","Luftleitungen und -kammern","Hygienemaßnahmen nach VDI 6022 Blatt 1","I",null,null,null,"SK",null,"BayBO Art. 39\nVDI 6022",6,36,24.000000000000004,24.000000000000004]
[434,"Splitanlage","Luftleitungen und -kammern","Zugängliche Luftleitungsabschnitte auf Beschädigung prüfen","I",null,null,null,"SK",null,"BayBO Art. 39\nVDI 6022",6,36,24.000000000000004,24.000000000000004]
[434,"Splitanlage","Luftleitungen und -kammern","Abläufe auf Funktion prüfen","I",null,null,null,"SK",null,"BayBO Art. 39\nVDI 6022",6,36,24.000000000000004,24.000000000000004]
[434,"Splitanlage","Luftleitungen und -kammern","Türen und Verschlüsse auf Gängigkeit und Dichtheit prüfen","I",null,null,null,"SK",null,"BayBO Art. 39\nVDI 6022",6,36,24.000000000000004,24.000000000000004]
[434,"Splitanlage","Luftleitungen und -kammern","Isolierung auf äußere Beschädigung prüfen (Sichtprüfung)","I",null,null,null,"SK",null,"BayBO Art. 39\nVDI 6022",6,36,24.000000000000004,24.000000000000004]
[434,"Splitanlage","Luftleitungen und -kammern","Flexible Verbindungen auf Dichtheit prüfen","I",null,null,null,"SK",null,"BayBO Art. 39\nVDI 6022",6,36,24.000000000000004,24.000000000000004]
[434,"Splitanlage","Luftleitungen und -kammern","Reinigen",null,"W",null,null,"SK",null,"BayBO Art. 39\nVDI 6022",6,36,24.000000000000004,24.000000000000004]
[434,"Splitanlage","Luftleitungen und -kammern","Kammerzentralen/ Gerätegehäuse auf luftseitige Verschmutzung, Beschädigung und Korrosion prüfen, ggf. reinigen","I",null,null,null,"SK",null,"BayBO Art. 39\nVDI 6022",6,36,24.000000000000004,24.000000000000004]
[434,"Splitanlage","Luftleitungen und -kammern","Dto. Auf Wasserbildung prüfen, ggf. reinigen, Ursache ermitteln",null,"W",null,null,"SK",null,"BayBO Art. 39\nVDI 6022",6,36,24.000000000000004,24.000000000000004]
[434,"Splitanlage","Luftleitungen und -kammern","Innere Luftleitungsfläche auf Verschmutzung und Korrosion an 2 bis 3 repräsentativen Stellen prüfen, ggf. Ursache ermitteln, ensprechende Luftleitungsabschnitte reinigen",null,"W",null,null,"SK",null,"BayBO Art. 39\nVDI 6022",6,36,24.000000000000004,24.000000000000004]
[434,"Splitanlage","Luftleitungen und -kammern","Schalldämpfer auf Verschmutzung, Beschädigung und Korrosion prüfen","I",null,null,null,"SK",null,"BayBO Art. 39\nVDI 6022",6,36,24.000000000000004,24.000000000000004]
[434,"Splitanlage","Luftleitungen und -kammern","Kontrolle des Hygienezustandes in der Luftleitung an einer repräsentativen Stelle, ggf. Ursache ermitteln, entsprechende Luftleitungsabschnitte reinigen (Hygieneinspektion)",null,"W",null,null,"SK",null,"BayBO Art. 39\nVDI 6022",6,36,24.000000000000004,24.000000000000004]
[434,"Splitanlage","Luftleitungen und -kammern","Bewegliche Teile schmieren",null,"W",null,null,"SK",null,"BayBO Art. 39\nVDI 6022",6,36,24.000000000000004,24.000000000000004]
[434,"Splitanlage","Volumenstrom- und Mischregler","Auf Verschmutzung, Beschädigung und Korrosion prüfen","I",{"$nulls":4},"FK","-",6,36,24.000000000000004,24.000000000000004]
[434,"Splitanlage","Volumenstrom- und Mischregler","Volumenstromregler auf Funktion prüfen","I",{"$nulls":4},"FK","-",6,36,24.000000000000004,24.000000000000004]
[434,"Splitanlage","Volumenstrom- und Mischregler","Regelklappen auf Funktion prüfen","I",{"$nulls":4},"FK","-",6,36,24.000000000000004,24.000000000000004]
[434,"Splitanlage","Volumenstrom- und Mischregler","Reinigen",null,"W",null,null,null,"FK","-",6,36,24.000000000000004,24.000000000000004]
[434,"Splitanlage","Absperr- und Abgleichelemente","Auf Verschmutzung, Beschädigung und Korrosion prüfen","I",{"$nulls":4},"FK","-",6,36,24.000000000000004,24.000000000000004]
[434,"Splitanlage","Absperr- und Abgleichelemente","Auf Funktion prüfen","I",{"$nulls":4},"FK","-",6,36,24.000000000000004,24.000000000000004]
[434,"Splitanlage","Absperr- und Abgleichelemente","Reinigen",null,"W",null,null,null,"FK","-",6,36,24.000000000000004,24.000000000000004]
[434,"Splitanlage","Luftfilter","Hygienemaßnahmen nach VDI 6022 Blatt 1","I",null,null,null,"SK",null,"VDI 6022",3,12,8,8]
[434,"Splitanlage","Luftfilter","Differenzdruck prüfen, ggf. Filterstufe auswechseln","I",null,null,null,"SK",null,"VDI 6022",3,6,4,4]
[434,"Splitanlage","Luftfilter","Luftfilter auf unzulässige Verschmutzung und Beschädigung (Leckagen) prüfen ggf. auswechseln der betroffenen Luftfilter, falls letzte Auswechselung der Filterstufe nicht länger als 6 Mon. her ist, sonst auswechseln der gesamten Filterstufe",null,"W",null,null,"SK",null,"VDI 6022",3,3,3,3]
[434,"Splitanlage","Luftfilter","Spätester Filterwechsel der 1. Stufe bei nicht regenerierbaren Luftfiltern, sonst gründliche Reinigung",null,"W",null,null,"SK",null,"VDI 6022",3,12,8,8]
[434,"Splitanlage","Luftfilter","Spätester Filterwechsel der 2. Stufe",null,"W",null,null,"SK",null,"VDI 6022",3,24,16,16]
[434,"Splitanlage","Rollbandfilter","Auf Verschmutzung, Beschädigung und Korrosion prüfen","I",null,null,null,"SK",null,"VDI 6022\n",3,12,8,8]
[434,"Splitanlage","Rollbandfilter","Druckdifferenz messen","I",null,null,null,"SK",null,"VDI 6022\n",3,6,4,4]
[434,"Splitanlage","Rollbandfilter","Filtervorschub auf Funktion prüfen","I",null,null,null,"SK",null,"VDI 6022\n",3,12,8,8]
[434,"Splitanlage","Rollbandfilter","Filtermedium auf Vorrat prüfen","I",null,null,null,"SK",null,"VDI 6022\n",3,12,8,8]
[434,"Splitanlage","Rollbandfilter","Filterband auswechseln",null,"W",null,null,"SK",null,"VDI 6022-1",3,12,8,8]
[434,"Splitanlage","Trockenschichtfilter","Auf Verschmutzung, Korrosion und Beschädigung prüfen","I",null,null,null,"SK",null,"VDI 6022",3,12,8,8]
[434,"Splitanlage","Trockenschichtfilter","Filterauflage auf Dichtheit prüfen","I",null,null,null,"SK",null,"VDI 6022",3,12,8,8]
[434,"Splitanlage","Trockenschichtfilter","Druckdifferenz messen",null,"W",null,null,"SK",null,"VDI 6022-1",3,6,4,4]
[434,"Splitanlage","Trockenschichtfilter","Filtermedium (regenerierbar) reinigen",null,"W",null,null,"SK",null,"VDI 6022-1",3,12,8,8]
[434,"Splitanlage","gesamte Anlage","Kontrolle des Hygienezustandes (Hygieneinspektion)","I",null,null,null,"SK",null,"VDI 6022-1",3,6,4,4]
[434,"Splitanlage","Elektrofilter","Auf Verschmutzung, Beschädigung und Korrosion prüfen","I",null,null,null,"SK",null,"DGUVV\nGUV-V A3\nVDI 6022",6,6,6,6]
[434,"Splitanlage","Elektrofilter","Ionisationsdrähte auf Beschädigung prüfen","I",null,null,null,"SK",null,"DGUVV\nGUV-V A3\nVDI 6022",6,12,8,8]
[434,"Splitanlage","Elektrofilter","Ionisationsdrähte auswechseln",null,"W",null,null,"SK",null,"DGUVV\nGUV-V A3\nVDI 6022",6,48,32,32]
[434,"Splitanlage","Elektrofilter","Filterzellen auf Beschädigung und Funkenschlag prüfen","I",null,null,null,"SK",null,"DGUVV\nGUV-V A3\nVDI 6022",6,12,8,8]
[434,"Splitanlage","Elektrofilter","Isolatoren auf festen Sitz prüfen","I",null,null,null,"SK",null,"DGUVV\nGUV-V A3\nVDI 6022",6,12,8,8]
[434,"Splitanlage","Elektrofilter","Isolatoren auswechseln",null,"W",null,null,"SK",null,"DGUVV\nGUV-V A3\nVDI 6022",6,36,24.000000000000004,24.000000000000004]
[434,"Splitanlage","Elektrofilter","Stromaufnahme messen",null,"W",null,null,"SK",null,"DGUVV\nGUV-V A3\nVDI 6022",6,12,8,8]
[434,"Splitanlage","Elektrofilter","Reinigungseinrichtung auf Funktion prüfen","I",null,null,null,"SK",null,"DGUVV\nGUV-V A3\nVDI 6022",6,12,8,8]
[434,"Splitanlage","Elektrofilter","MSR-Sicherheitseinrichtungen prüfen","I",null,null,null,"SK",null,"DGUVV\nGUV-V A3\nVDI 6022",6,12,8,8]
[434,"Splitanlage","Elektrofilter","Antriebselemente prüfen","I",null,null,null,"SK",null,"DGUVV\nGUV-V A3\nVDI 6022",6,12,8,8]
[434,"Splitanlage","Elektrofilter","Reinigen",null,"W",null,null,"SK",null,"DGUVV\nGUV-V A3\nVDI 6022",6,12,8,8]
[434,"Splitanlage","Sorptionsfilter","Auf äußere Verschmutzung, Beschädigung und Korrosion prüfen","I",null,null,null,"SK",null,"VDI 6022",6,3,6,6]
[434,"Splitanlage","Sorptionsfilter","Filtereinsatz auf dichten Sitz prüfen","I",null,null,null,"SK",null,"VDI 6022",6,6,6,6]
[434,"Splitanlage","Sorptionsfilter","Filtereinsatz auswechseln",null,"W",null,null,"SK",null,"VDI 6022",6,24,16,16]
[434,"Splitanlage","Sorptionsfilter","Reinigen",null,"W",null,null,"SK",null,"VDI 6022",6,12,8,8]
[434,"Kompressionskältemaschine","Verdichter","Äußerlich auf Verschmutzung, Beschädigung und Korrosion prüfen ","I",null,null,null,"SK",null,null,6,36]
[434,"Kompressionskältemaschine","Verdichter","Auf Befestigung und Laufgeräusche prüfen","I",null,null,null,"SK",null,null,6,36]
[434,"Kompressionskältemaschine","Verdichter","Saugdruck messen",null,"W",null,null,"SK",null,null,6,36]
[434,"Kompressionskältemaschine","Verdichter","Sauggastemperatur vor dem Verdichten messen",null,"W",null,null,"SK",null,null,6,36]
[434,"Kompressionskältemaschine","Verdichter","Verdichtungsenddruck messen",null,"W",null,null,"SK",null,null,6,36]
[434,"Kompressionskältemaschine","Verdichter","Verdichtung – Endtemperatur am Druckstutzen messen",null,"W",null,null,"SK",null,null,6,36]
[434,"Kompressionskältemaschine","Verdichter","Ölstand am Schauglas prüfen","I",null,null,null,"SK",null,null,6,36]
[434,"Kompressionskältemaschine","Verdichter","Öl auf Säuregehalt prüfen (Säuretest)","I",null,null,null,"SK",null,null,6,36]
[434,"Kompressionskältemaschine","Verdichter","Öl auswechseln",null,"W",null,null,"SK",null,null,6,36]
[434,"Kompressionskältemaschine","Verdichter","Öldruck messen",null,"W",null,null,"SK",null,null,6,36]
[434,"Kompressionskältemaschine","Verdichter","Öldruck nachstellen",null,"W",null,null,"SK",null,null,6,36]
[434,"Kompressionskältemaschine","Verdichter","Öltemperatur vor und nach dem Ölkühler messen",null,"W",null,null,"SK",null,null,6,36]
[434,"Kompressionskältemaschine","Verdichter","Wassertemperatur vor und nach dem Ölkühler messen",null,"W",null,null,"SK",null,null,6,36]
[434,"Kompressionskältemaschine","Verdichter","Ölabscheider auf Funktion prüfen","I",null,null,null,"SK",null,null,6,36]
[434,"Kompressionskältemaschine","Verdichter","Stromaufnahme messen",null,"W",null,null,"SK",null,null,6,36]
[434,"Kompressionskältemaschine","Verdichter","Kurbelwannenheizung auf Funktion prüfen","I",null,null,null,"SK",null,null,6,36]
[434,"Kompressionskältemaschine","Verdichter","Anlaufentlastung auf Funktion prüfen","I",null,null,null,"SK",null,null,6,36]
[434,"Kompressionskältemaschine","Verdichter","Leistungsregelung auf Funktion prüfen","I",null,null,null,"SK",null,null,6,36]
[434,"Kompressionskältemaschine","Verdichter","Wellenabdichtung auf Dichtheit prüfen","I",null,null,null,"SK",null,null,6,36]
[434,"Kompressionskältemaschine","Verdichter","Arbeitsventile prüfen","I",null,null,null,"SK",null,null,6,36]
[434,"Kompressionskältemaschine","Verdichter","Lagertemperatur des Turboverdichters prüfen","I",null,null,null,"SK",null,null,6,36]
[434,"Kompressionskältemaschine","Verdichter","Äußerlich Reinigen",null,"W",null,null,"SK",null,null,6,36]
[434,"Kompressionskältemaschine","Verdichter","Auf Dichtheit prüfen","I",null,null,null,"SK",null,null,6,36]
[434,"Kompressionskältemaschine","Verdichter","Kältemittelführende Anlagenteile auf Dichtheit prüfen","I",null,null,null,"SK",null,null,6,36]
[434,"Kompressionskältemaschine","Wärmetauscher","Auf Verschmutzung, Beschädigung und Korrosion prüfen","I",null,null,null,"SK",null,null,6,36]
[434,"Kompressionskältemaschine","Wärmetauscher","Temperaturen eingangs- und ausgangsseitig messen",null,"W",null,null,"SK",null,null,6,36]
[434,"Kompressionskältemaschine","Wärmetauscher","Kühlwassertemperatur am Eintritt und Austritt messen","I","W",null,null,"SK",null,null,6,36]
[434,"Kompressionskältemaschine","Wärmetauscher","Regler auf Funktion prüfen","I",null,null,null,"SK",null,null,6,36]
[434,"Kompressionskältemaschine","Wärmetauscher","Regler nachstellen",null,"W",null,null,"SK",null,null,6,36]
[434,"Kompressionskältemaschine","Wärmetauscher","Pumpe auf Funktion prüfen ","I",null,null,null,"SK",null,null,6,36]
[434,"Kompressionskältemaschine","Wärmetauscher","Anlagenteile reinigen",null,"W",null,null,"SK",null,null,6,36]
[434,"Kompressionskältemaschine","Wärmetauscher","Kältemittelführende Anlagenteile auf Dichtheit prüfen","I",null,null,null,"SK",null,null,6,36]
[434,"Kompressionskältemaschine","Wärmetauscher","Äußerlich auf Verschmutzung, Beschädigung und Korrosion prüfen","I",null,null,null,"SK",null,null,6,36]
[434,"Kompressionskältemaschine","Wärmetauscher","Klappenregelung auf Funktion prüfen","I",null,null,null,"SK",null,null,6,36]
[434,"Kompressionskältemaschine","Wärmetauscher","Lamellen luftseitig reinigen ",null,"W",null,null,"SK",null,null,6,36]
[434,"Kompressionskältemaschine","Wärmetauscher","Abschlemmeinrichtungen prüfen ","I",null,null,null,"SK",null,null,6,36]
[434,"Kompressionskältemaschine","Wärmetauscher","Abschlemmeinrichtungen einstellen",null,"W",null,null,"SK",null,null,6,36]
[434,"Kompressionskältemaschine","Armaturen","Äußerlich auf Verschmutzung, Beschädigung und Korrosion prüfen","I",null,null,null,"SK",null,null,6,36]
[434,"Kompressionskältemaschine","Armaturen","Magnetventil auf Funktion prüfen","I",null,null,null,"SK",null,null,6,36]
[434,"Kompressionskältemaschine","Armaturen","Einspritzorgane auf Funktion prüfen ","I",null,null,null,"SK",null,null,6,36]
[434,"Kompressionskältemaschine","Armaturen","Einspritzorgane nachstellen",null,"W",null,null,"SK",null,null,6,36]
[434,"Kompressionskältemaschine","Armaturen","Absperrventile auf Funktion prüfen","I",null,null,null,"SK",null,null,6,36]
[434,"Kompressionskältemaschine","Armaturen","Kältemittelführende Anlagenteile auf Dichtheit prüfen","I",null,null,null,"SK",null,null,6,36]
[434,"Kompressionskältemaschine","MSR- und Sicherheitseinrichtungen","Äußerlich auf Verschmutzung, Beschädigung und Korrosion prüfen","I",null,null,null,"SK",null,null,6,36]
[434,"Kompressionskältemaschine","MSR- und Sicherheitseinrichtungen","Auf Funktion prüfen","I",null,null,null,"SK",null,null,6,36]
[434,"Kompressionskältemaschine","MSR- und Sicherheitseinrichtungen","Auf Auslegungsdaten einstellen  - Einstellwerte dokumentieren",null,"W",null,null,"SK",null,null,6,36]
[434,"Kompressionskältemaschine","MSR- und Sicherheitseinrichtungen","Kältemittelführende Anlagenteile auf Dichtheit prüfen","I",null,null,null,"SK",null,null,6,36]
[434,"Kompressionskältemaschine","MSR- und Sicherheitseinrichtungen","Mess- und Anzeigegeräte auf Genauigkeit prüfen und ggf. einstellen",null,"W",null,null,"SK",null,null,6,36]
[434,"Kompressionskältemaschine","Funktionelle Maßnahmen","Auf Verschmutzung, Beschädigung und Korrosion prüfen","I",null,null,null,"SK",null,null,6,36]
[434,"Kompressionskältemaschine","Funktionelle Maßnahmen","Wassereinspeisung und -verteilung prüfen","I",null,null,null,"SK",null,null,6,36]
[434,"Kompressionskältemaschine","Funktionelle Maßnahmen","Wasserstand prüfen","I",null,null,null,"SK",null,null,6,36]
[434,"Kompressionskältemaschine","Funktionelle Maßnahmen","Reguliereinrichtung für Wasserstand nachstellen",null,"W",null,null,"SK",null,null,6,36]
[434,"Kompressionskältemaschine","Funktionelle Maßnahmen","Wartung der Wasseraufbereitung ",null,"W",null,null,"SK",null,null,6,36]
[434,"Kompressionskältemaschine","Funktionelle Maßnahmen","Wartung der Wasserbehandlung",null,"W",null,null,"SK",null,null,6,36]
[434,"Kompressionskältemaschine","Funktionelle Maßnahmen","Abschlämmvorrichtung auf Funktion prüfen","I",null,null,null,"SK",null,null,6,36]
[434,"Kompressionskältemaschine","Funktionelle Maßnahmen","Abschlämmmenge nach Auslegungsdaten einstellen ",null,"W",null,null,"SK",null,null,6,36]
[434,"Kompressionskältemaschine","Funktionelle Maßnahmen","Ab- und Überlauf auf Funktion prüfen","I",null,null,null,"SK",null,null,6,36]
[434,"Kompressionskältemaschine","Funktionelle Maßnahmen","Schmutzfänger auf Verschmutzung prüfen","I",null,null,null,"SK",null,null,6,36]
[434,"Kompressionskältemaschine","Funktionelle Maßnahmen","Schmutzfänger reinigen",null,"W",null,null,"SK",null,null,6,36]
[434,"Kompressionskältemaschine","Funktionelle Maßnahmen","Wannenheizung auf Funktion prüfen","I",null,null,null,"SK",null,null,6,36]
[434,"Kompressionskältemaschine","Funktionelle Maßnahmen","Umwälzpumpe auf Geräusche oder Beschädigung prüfen","I",null,null,null,"SK",null,null,6,36]
[434,"Kompressionskältemaschine","Funktionelle Maßnahmen","Rohrbegleitheizung auf Funktion prüfen","I",null,null,null,"SK",null,null,6,36]
[434,"Kompressionskältemaschine","Funktionelle Maßnahmen","Schalldämpfer auf Funktion prüfen","I",null,null,null,"SK",null,null,6,36]
[434,"Kompressionskältemaschine","Funktionelle Maßnahmen","Reinigen der gesamten Anlage",null,"W",null,null,"SK",null,null,6,36]
[434,"Kompressionskältemaschine","Ventilatoren","Hygienemaßnahmen nach VDI 6022 Blatt 1","I",null,null,null,"SK",null,"DGUVV\nBGR-GUV-R 108\nGUV-V A3\nVDI 6022-1\n",6,36,24.000000000000004,24.000000000000004]
[434,"Kompressionskältemaschine","Ventilatoren","Ventilator auf Verschmutzung, Beschädigung und Korrosion prüfen","I",null,null,null,"SK",null,"DGUVV\nBGR-GUV-R 108\nGUV-V A3\nVDI 6022-1\n",6,36,24.000000000000004,24.000000000000004]
[434,"Kompressionskältemaschine","Ventilatoren","Funktionserhaltendes Reinigen der luftberührten Teile des Ventilators sowie des Wasserablaufes","I",null,null,null,"SK",null,"DGUVV\nBGR-GUV-R 108\nGUV-V A3\nVDI 6022-1\n",6,36,24.000000000000004,24.000000000000004]
[434,"Kompressionskältemaschine","Ventilatoren","Schaufelverstelleinrichtung auf Funktion prüfen","I",null,null,null,"SK",null,"DGUVV\nBGR-GUV-R 108\nGUV-V A3\nVDI 6022-1\n",6,36,24.000000000000004,24.000000000000004]
[434,"Kompressionskältemaschine","Ventilatoren","Lager auf Geräusch prüfen","I",null,null,null,"SK",null,"DGUVV\nBGR-GUV-R 108\nGUV-V A3\nVDI 6022-1\n",6,36,24.000000000000004,24.000000000000004]
[434,"Kompressionskältemaschine","Ventilatoren","Flexible Verbindungen auf Dichtheit prüfen","I",null,null,null,"SK",null,"DGUVV\nBGR-GUV-R 108\nGUV-V A3\nVDI 6022-1\n",6,36,24.000000000000004,24.000000000000004]
[434,"Kompressionskältemaschine","Ventilatoren","Schwingungsdämpfer auf Funktion prüfen","I",null,null,null,"SK",null,"DGUVV\nBGR-GUV-R 108\nGUV-V A3\nVDI 6022-1\n",6,36,24.000000000000004,24.000000000000004]
[434,"Kompressionskältemaschine","Ventilatoren","Schutzeinrichtungen auf Funktion prüfen","I",null,null,null,"SK",null,"DGUVV\nBGR-GUV-R 108\nGUV-V A3\nVDI 6022-1\n",6,36,24.000000000000004,24.000000000000004]
[434,"Kompressionskältemaschine","Ventilatoren","Drallregler auf Funktion prüfen","I",null,null,null,"SK",null,"DGUVV\nBGR-GUV-R 108\nGUV-V A3\nVDI 6022-1\n",6,36,24.000000000000004,24.000000000000004]
[434,"Kompressionskältemaschine","Ventilatoren","Laufrad auf Unwucht prüfen","I",null,null,null,"SK",null,"DGUVV\nBGR-GUV-R 108\nGUV-V A3\nVDI 6022-1\n",6,36,24.000000000000004,24.000000000000004]
[434,"Kompressionskältemaschine","Ventilatoren","Lager schmieren",null,"W",null,null,"SK",null,"DGUVV\nBGR-GUV-R 108\nGUV-V A3\nVDI 6022-1\n",6,36,24.000000000000004,24.000000000000004]
[434,"Kompressionskältemaschine","Wetterschutzgitter","Hygienemaßnahmen nach VDI 6022 Blatt 1","I",null,null,null,"SK",null,"VDI 6022",6,36,24.000000000000004,24.000000000000004]
[434,"Kompressionskältemaschine","Wetterschutzgitter","Auf Verschmutzung, Beschädigung, Korrosion prüfen","I",null,null,null,"SK",null,"-",6,36,24.000000000000004,24.000000000000004]
[434,"Kompressionskältemaschine","Wetterschutzgitter","Reinigen",null,"W",null,null,"SK",null,"-",6,36,24.000000000000004,24.000000000000004]
[434,"Kompressionskältemaschine","Gitter und Verteiler","Hygienemaßnahmen nach VDI 6022 Blatt 1","I",null,null,null,"SK",null,"VDI 6022",6,36,24.000000000000004,24.000000000000004]
[434,"Kompressionskältemaschine","Gitter und Verteiler","Eingebaute Lochbleche, Maschendraht oder Siebe auf Verschmutzung prüfen (Stichprobe), ggf. reinigen bzw. austauschen","I",null,null,null,"SK",null,"VDI 6022",6,36,24.000000000000004,24.000000000000004]
[434,"Kompressionskältemaschine","Gitter und Verteiler","Filtervliese auswechseln bei Filterklasse < F 9",null,"W",null,null,"SK",null,"VDI 6022",6,36,24.000000000000004,24.000000000000004]
[434,"Kompressionskältemaschine","Gitter und Verteiler","Luftdurchlässe mit Induktion der Raumluft und Abluftdurlässe auf Feststoffablagerungen prüfen, ggf. reinigen",null,"W",null,null,"SK",null,"VDI 6022",6,36,24.000000000000004,24.000000000000004]
[434,"Kompressionskältemaschine","Gitter und Verteiler","Reinigung der durch Sekundärluft durchströmten Bauteile",null,"W",null,null,"SK",null,"VDI 6022",6,36,24.000000000000004,24.000000000000004]
[434,"Kompressionskältemaschine","Klappen","Auf Verschmutzung, Beschlädigung und Korrosion prüfen","I",{"$nulls":4},"FK","-",6,36,24.000000000000004,24.000000000000004]
[434,"Kompressionskältemaschine","Klappen","Auf mechanische Funktion prüfen","I",{"$nulls":4},"FK","-",6,36,24.000000000000004,24.000000000000004]
[434,"Kompressionskältemaschine","Klappen","Lager und Gestänge schmieren",null,"W",null,null,null,"FK","-",6,36,24.000000000000004,24.000000000000004]
[434,"Kompressionskältemaschine","Luftleitungen und -kammern","Hygienemaßnahmen nach VDI 6022 Blatt 1","I",null,null,null,"SK",null,"BayBO Art. 39\nVDI 6022",6,36,24.000000000000004,24.000000000000004]
[434,"Kompressionskältemaschine","Luftleitungen und -kammern","Hygienemaßnahmen nach VDI 6022 Blatt 1","I",null,null,null,"SK",null,"BayBO Art. 39\nVDI 6022",6,36,24.000000000000004,24.000000000000004]
[434,"Kompressionskältemaschine","Luftleitungen und -kammern","Zugängliche Luftleitungsabschnitte auf Beschädigung prüfen","I",null,null,null,"SK",null,"BayBO Art. 39\nVDI 6022",6,36,24.000000000000004,24.000000000000004]
[434,"Kompressionskältemaschine","Luftleitungen und -kammern","Abläufe auf Funktion prüfen","I",null,null,null,"SK",null,"BayBO Art. 39\nVDI 6022",6,36,24.000000000000004,24.000000000000004]
[434,"Kompressionskältemaschine","Luftleitungen und -kammern","Türen und Verschlüsse auf Gängigkeit und Dichtheit prüfen","I",null,null,null,"SK",null,"BayBO Art. 39\nVDI 6022",6,36,24.000000000000004,24.000000000000004]
[434,"Kompressionskältemaschine","Luftleitungen und -kammern","Isolierung auf äußere Beschädigung prüfen (Sichtprüfung)","I",null,null,null,"SK",null,"BayBO Art. 39\nVDI 6022",6,36,24.000000000000004,24.000000000000004]
[434,"Kompressionskältemaschine","Luftleitungen und -kammern","Flexible Verbindungen auf Dichtheit prüfen","I",null,null,null,"SK",null,"BayBO Art. 39\nVDI 6022",6,36,24.000000000000004,24.000000000000004]
[434,"Kompressionskältemaschine","Luftleitungen und -kammern","Reinigen",null,"W",null,null,"SK",null,"BayBO Art. 39\nVDI 6022",6,36,24.000000000000004,24.000000000000004]
[434,"Kompressionskältemaschine","Luftleitungen und -kammern","Kammerzentralen/ Gerätegehäuse auf luftseitige Verschmutzung, Beschädigung und Korrosion prüfen, ggf. reinigen","I",null,null,null,"SK",null,"BayBO Art. 39\nVDI 6022",6,36,24.000000000000004,24.000000000000004]
[434,"Kompressionskältemaschine","Luftleitungen und -kammern","Dto. Auf Wasserbildung prüfen, ggf. reinigen, Ursache ermitteln",null,"W",null,null,"SK",null,"BayBO Art. 39\nVDI 6022",6,36,24.000000000000004,24.000000000000004]
[434,"Kompressionskältemaschine","Luftleitungen und -kammern","Innere Luftleitungsfläche auf Verschmutzung und Korrosion an 2 bis 3 repräsentativen Stellen prüfen, ggf. Ursache ermitteln, ensprechende Luftleitungsabschnitte reinigen",null,"W",null,null,"SK",null,"BayBO Art. 39\nVDI 6022",6,36,24.000000000000004,24.000000000000004]
[434,"Kompressionskältemaschine","Luftleitungen und -kammern","Schalldämpfer auf Verschmutzung, Beschädigung und Korrosion prüfen","I",null,null,null,"SK",null,"BayBO Art. 39\nVDI 6022",6,36,24.000000000000004,24.000000000000004]
[434,"Kompressionskältemaschine","Luftleitungen und -kammern","Kontrolle des Hygienezustandes in der Luftleitung an einer repräsentativen Stelle, ggf. Ursache ermitteln, entsprechende Luftleitungsabschnitte reinigen (Hygieneinspektion)",null,"W",null,null,"SK",null,"BayBO Art. 39\nVDI 6022",6,36,24.000000000000004,24.000000000000004]
[434,"Kompressionskältemaschine","Luftleitungen und -kammern","Bewegliche Teile schmieren",null,"W",null,null,"SK",null,"BayBO Art. 39\nVDI 6022",6,36,24.000000000000004,24.000000000000004]
[434,"Kompressionskältemaschine","Volumenstrom- und Mischregler","Auf Verschmutzung, Beschädigung und Korrosion prüfen","I",{"$nulls":4},"FK","-",6,36,24.000000000000004,24.000000000000004]
[434,"Kompressionskältemaschine","Volumenstrom- und Mischregler","Volumenstromregler auf Funktion prüfen","I",{"$nulls":4},"FK","-",6,36,24.000000000000004,24.000000000000004]
[434,"Kompressionskältemaschine","Volumenstrom- und Mischregler","Regelklappen auf Funktion prüfen","I",{"$nulls":4},"FK","-",6,36,24.000000000000004,24.000000000000004]
[434,"Kompressionskältemaschine","Volumenstrom- und Mischregler","Reinigen",null,"W",null,null,null,"FK","-",6,36,24.000000000000004,24.000000000000004]
[434,"Kompressionskältemaschine","Absperr- und Abgleichelemente","Auf Verschmutzung, Beschädigung und Korrosion prüfen","I",{"$nulls":4},"FK","-",6,36,24.000000000000004,24.000000000000004]
[434,"Kompressionskältemaschine","Absperr- und Abgleichelemente","Auf Funktion prüfen","I",{"$nulls":4},"FK","-",6,36,24.000000000000004,24.000000000000004]
[434,"Kompressionskältemaschine","Absperr- und Abgleichelemente","Reinigen",null,"W",null,null,null,"FK","-",6,36,24.000000000000004,24.000000000000004]
[434,"Kompressionskältemaschine","Luftfilter","Hygienemaßnahmen nach VDI 6022 Blatt 1","I",null,null,null,"SK",null,"VDI 6022",3,12,8,8]
[434,"Kompressionskältemaschine","Luftfilter","Differenzdruck prüfen, ggf. Filterstufe auswechseln","I",null,null,null,"SK",null,"VDI 6022",3,6,4,4]
[434,"Kompressionskältemaschine","Luftfilter","Luftfilter auf unzulässige Verschmutzung und Beschädigung (Leckagen) prüfen ggf. auswechseln der betroffenen Luftfilter, falls letzte Auswechselung der Filterstufe nicht länger als 6 Mon. her ist, sonst auswechseln der gesamten Filterstufe",null,"W",null,null,"SK",null,"VDI 6022",3,3,3,3]
[434,"Kompressionskältemaschine","Luftfilter","Spätester Filterwechsel der 1. Stufe bei nicht regenerierbaren Luftfiltern, sonst gründliche Reinigung",null,"W",null,null,"SK",null,"VDI 6022",3,12,8,8]
[434,"Kompressionskältemaschine","Luftfilter","Spätester Filterwechsel der 2. Stufe",null,"W",null,null,"SK",null,"VDI 6022",3,24,16,16]
[434,"Kompressionskältemaschine","Rollbandfilter","Auf Verschmutzung, Beschädigung und Korrosion prüfen","I",null,null,null,"SK",null,"VDI 6022\n",3,12,8,8]
[434,"Kompressionskältemaschine","Rollbandfilter","Druckdifferenz messen","I",null,null,null,"SK",null,"VDI 6022\n",3,6,4,4]
[434,"Kompressionskältemaschine","Rollbandfilter","Filtervorschub auf Funktion prüfen","I",null,null,null,"SK",null,"VDI 6022\n",3,12,8,8]
[434,"Kompressionskältemaschine","Rollbandfilter","Filtermedium auf Vorrat prüfen","I",null,null,null,"SK",null,"VDI 6022\n",3,12,8,8]
[434,"Kompressionskältemaschine","Rollbandfilter","Filterband auswechseln",null,"W",null,null,"SK",null,"VDI 6022-1",3,12,8,8]
[434,"Kompressionskältemaschine","Trockenschichtfilter","Auf Verschmutzung, Korrosion und Beschädigung prüfen","I",null,null,null,"SK",null,"VDI 6022",3,12,8,8]
[434,"Kompressionskältemaschine","Trockenschichtfilter","Filterauflage auf Dichtheit prüfen","I",null,null,null,"SK",null,"VDI 6022",3,12,8,8]
[434,"Kompressionskältemaschine","Trockenschichtfilter","Druckdifferenz messen",null,"W",null,null,"SK",null,"VDI 6022-1",3,6,4,4]
[434,"Kompressionskältemaschine","Trockenschichtfilter","Filtermedium (regenerierbar) reinigen",null,"W",null,null,"SK",null,"VDI 6022-1",3,12,8,8]
[434,"Kompressionskältemaschine","gesamte Anlage","Kontrolle des Hygienezustandes (Hygieneinspektion)","I",null,null,null,"SK",null,"VDI 6022-1",3,6,4,4]
[434,"Kompressionskältemaschine","Elektrofilter","Auf Verschmutzung, Beschädigung und Korrosion prüfen","I",null,null,null,"SK",null,"DGUVV\nGUV-V A3\nVDI 6022",6,6,6,6]
[434,"Kompressionskältemaschine","Elektrofilter","Ionisationsdrähte auf Beschädigung prüfen","I",null,null,null,"SK",null,"DGUVV\nGUV-V A3\nVDI 6022",6,12,8,8]
[434,"Kompressionskältemaschine","Elektrofilter","Ionisationsdrähte auswechseln",null,"W",null,null,"SK",null,"DGUVV\nGUV-V A3\nVDI 6022",6,48,32,32]
[434,"Kompressionskältemaschine","Elektrofilter","Filterzellen auf Beschädigung und Funkenschlag prüfen","I",null,null,null,"SK",null,"DGUVV\nGUV-V A3\nVDI 6022",6,12,8,8]
[434,"Kompressionskältemaschine","Elektrofilter","Isolatoren auf festen Sitz prüfen","I",null,null,null,"SK",null,"DGUVV\nGUV-V A3\nVDI 6022",6,12,8,8]
[434,"Kompressionskältemaschine","Elektrofilter","Isolatoren auswechseln",null,"W",null,null,"SK",null,"DGUVV\nGUV-V A3\nVDI 6022",6,36,24.000000000000004,24.000000000000004]
[434,"Kompressionskältemaschine","Elektrofilter","Stromaufnahme messen",null,"W",null,null,"SK",null,"DGUVV\nGUV-V A3\nVDI 6022",6,12,8,8]
[434,"Kompressionskältemaschine","Elektrofilter","Reinigungseinrichtung auf Funktion prüfen","I",null,null,null,"SK",null,"DGUVV\nGUV-V A3\nVDI 6022",6,12,8,8]
[434,"Kompressionskältemaschine","Elektrofilter","MSR-Sicherheitseinrichtungen prüfen","I",null,null,null,"SK",null,"DGUVV\nGUV-V A3\nVDI 6022",6,12,8,8]
[434,"Kompressionskältemaschine","Elektrofilter","Antriebselemente prüfen","I",null,null,null,"SK",null,"DGUVV\nGUV-V A3\nVDI 6022",6,12,8,8]
[434,"Kompressionskältemaschine","Elektrofilter","Reinigen",null,"W",null,null,"SK",null,"DGUVV\nGUV-V A3\nVDI 6022",6,12,8,8]
[434,"Kompressionskältemaschine","Sorptionsfilter","Auf äußere Verschmutzung, Beschädigung und Korrosion prüfen","I",null,null,null,"SK",null,"VDI 6022",6,3,6,6]
[434,"Kompressionskältemaschine","Sorptionsfilter","Filtereinsatz auf dichten Sitz prüfen","I",null,null,null,"SK",null,"VDI 6022",6,6,6,6]
[434,"Kompressionskältemaschine","Sorptionsfilter","Filtereinsatz auswechseln",null,"W",null,null,"SK",null,"VDI 6022",6,24,16,16]
[434,"Kompressionskältemaschine","Sorptionsfilter","Reinigen",null,"W",null,null,"SK",null,"VDI 6022",6,12,8,8]
[434,"Absorptionskältemaschine","Ventilatoren","Hygienemaßnahmen nach VDI 6022 Blatt 1","I",null,null,null,"SK",null,"DGUVV\nBGR-GUV-R 108\nGUV-V A3\nVDI 6022-1\n",6,36,24.000000000000004,24.000000000000004]
[434,"Absorptionskältemaschine","Ventilatoren","Ventilator auf Verschmutzung, Beschädigung und Korrosion prüfen","I",null,null,null,"SK",null,"DGUVV\nBGR-GUV-R 108\nGUV-V A3\nVDI 6022-1\n",6,36,24.000000000000004,24.000000000000004]
[434,"Absorptionskältemaschine","Ventilatoren","Funktionserhaltendes Reinigen der luftberührten Teile des Ventilators sowie des Wasserablaufes","I",null,null,null,"SK",null,"DGUVV\nBGR-GUV-R 108\nGUV-V A3\nVDI 6022-1\n",6,36,24.000000000000004,24.000000000000004]
[434,"Absorptionskältemaschine","Ventilatoren","Schaufelverstelleinrichtung auf Funktion prüfen","I",null,null,null,"SK",null,"DGUVV\nBGR-GUV-R 108\nGUV-V A3\nVDI 6022-1\n",6,36,24.000000000000004,24.000000000000004]
[434,"Absorptionskältemaschine","Ventilatoren","Lager auf Geräusch prüfen","I",null,null,null,"SK",null,"DGUVV\nBGR-GUV-R 108\nGUV-V A3\nVDI 6022-1\n",6,36,24.000000000000004,24.000000000000004]
[434,"Absorptionskältemaschine","Ventilatoren","Flexible Verbindungen auf Dichtheit prüfen","I",null,null,null,"SK",null,"DGUVV\nBGR-GUV-R 108\nGUV-V A3\nVDI 6022-1\n",6,36,24.000000000000004,24.000000000000004]
[434,"Absorptionskältemaschine","Ventilatoren","Schwingungsdämpfer auf Funktion prüfen","I",null,null,null,"SK",null,"DGUVV\nBGR-GUV-R 108\nGUV-V A3\nVDI 6022-1\n",6,36,24.000000000000004,24.000000000000004]
[434,"Absorptionskältemaschine","Ventilatoren","Schutzeinrichtungen auf Funktion prüfen","I",null,null,null,"SK",null,"DGUVV\nBGR-GUV-R 108\nGUV-V A3\nVDI 6022-1\n",6,36,24.000000000000004,24.000000000000004]
[434,"Absorptionskältemaschine","Ventilatoren","Drallregler auf Funktion prüfen","I",null,null,null,"SK",null,"DGUVV\nBGR-GUV-R 108\nGUV-V A3\nVDI 6022-1\n",6,36,24.000000000000004,24.000000000000004]
[434,"Absorptionskältemaschine","Ventilatoren","Laufrad auf Unwucht prüfen","I",null,null,null,"SK",null,"DGUVV\nBGR-GUV-R 108\nGUV-V A3\nVDI 6022-1\n",6,36,24.000000000000004,24.000000000000004]
[434,"Absorptionskältemaschine","Ventilatoren","Lager schmieren",null,"W",null,null,"SK",null,"DGUVV\nBGR-GUV-R 108\nGUV-V A3\nVDI 6022-1\n",6,36,24.000000000000004,24.000000000000004]
[434,"Absorptionskältemaschine","Wetterschutzgitter","Hygienemaßnahmen nach VDI 6022 Blatt 1","I",null,null,null,"SK",null,"VDI 6022",6,36,24.000000000000004,24.000000000000004]
[434,"Absorptionskältemaschine","Wetterschutzgitter","Auf Verschmutzung, Beschädigung, Korrosion prüfen","I",null,null,null,"SK",null,"-",6,36,24.000000000000004,24.000000000000004]
[434,"Absorptionskältemaschine","Wetterschutzgitter","Reinigen",null,"W",null,null,"SK",null,"-",6,36,24.000000000000004,24.000000000000004]
[434,"Absorptionskältemaschine","Gitter und Verteiler","Hygienemaßnahmen nach VDI 6022 Blatt 1","I",null,null,null,"SK",null,"VDI 6022",6,36,24.000000000000004,24.000000000000004]
[434,"Absorptionskältemaschine","Gitter und Verteiler","Eingebaute Lochbleche, Maschendraht oder Siebe auf Verschmutzung prüfen (Stichprobe), ggf. reinigen bzw. austauschen","I",null,null,null,"SK",null,"VDI 6022",6,36,24.000000000000004,24.000000000000004]
[434,"Absorptionskältemaschine","Gitter und Verteiler","Filtervliese auswechseln bei Filterklasse < F 9",null,"W",null,null,"SK",null,"VDI 6022",6,36,24.000000000000004,24.000000000000004]
[434,"Absorptionskältemaschine","Gitter und Verteiler","Luftdurchlässe mit Induktion der Raumluft und Abluftdurlässe auf Feststoffablagerungen prüfen, ggf. reinigen",null,"W",null,null,"SK",null,"VDI 6022",6,36,24.000000000000004,24.000000000000004]
[434,"Absorptionskältemaschine","Gitter und Verteiler","Reinigung der durch Sekundärluft durchströmten Bauteile",null,"W",null,null,"SK",null,"VDI 6022",6,36,24.000000000000004,24.000000000000004]
[434,"Absorptionskältemaschine","Klappen","Auf Verschmutzung, Beschlädigung und Korrosion prüfen","I",{"$nulls":4},"FK","-",6,36,24.000000000000004,24.000000000000004]
[434,"Absorptionskältemaschine","Klappen","Auf mechanische Funktion prüfen","I",{"$nulls":4},"FK","-",6,36,24.000000000000004,24.000000000000004]
[434,"Absorptionskältemaschine","Klappen","Lager und Gestänge schmieren",null,"W",null,null,null,"FK","-",6,36,24.000000000000004,24.000000000000004]
[434,"Absorptionskältemaschine","Luftleitungen und -kammern","Hygienemaßnahmen nach VDI 6022 Blatt 1","I",null,null,null,"SK",null,"BayBO Art. 39\nVDI 6022",6,36,24.000000000000004,24.000000000000004]
[434,"Absorptionskältemaschine","Luftleitungen und -kammern","Hygienemaßnahmen nach VDI 6022 Blatt 1","I",null,null,null,"SK",null,"BayBO Art. 39\nVDI 6022",6,36,24.000000000000004,24.000000000000004]
[434,"Absorptionskältemaschine","Luftleitungen und -kammern","Zugängliche Luftleitungsabschnitte auf Beschädigung prüfen","I",null,null,null,"SK",null,"BayBO Art. 39\nVDI 6022",6,36,24.000000000000004,24.000000000000004]
[434,"Absorptionskältemaschine","Luftleitungen und -kammern","Abläufe auf Funktion prüfen","I",null,null,null,"SK",null,"BayBO Art. 39\nVDI 6022",6,36,24.000000000000004,24.000000000000004]
[434,"Absorptionskältemaschine","Luftleitungen und -kammern","Türen und Verschlüsse auf Gängigkeit und Dichtheit prüfen","I",null,null,null,"SK",null,"BayBO Art. 39\nVDI 6022",6,36,24.000000000000004,24.000000000000004]
[434,"Absorptionskältemaschine","Luftleitungen und -kammern","Isolierung auf äußere Beschädigung prüfen (Sichtprüfung)","I",null,null,null,"SK",null,"BayBO Art. 39\nVDI 6022",6,36,24.000000000000004,24.000000000000004]
[434,"Absorptionskältemaschine","Luftleitungen und -kammern","Flexible Verbindungen auf Dichtheit prüfen","I",null,null,null,"SK",null,"BayBO Art. 39\nVDI 6022",6,36,24.000000000000004,24.000000000000004]
[434,"Absorptionskältemaschine","Luftleitungen und -kammern","Reinigen",null,"W",null,null,"SK",null,"BayBO Art. 39\nVDI 6022",6,36,24.000000000000004,24.000000000000004]
[434,"Absorptionskältemaschine","Luftleitungen und -kammern","Kammerzentralen/ Gerätegehäuse auf luftseitige Verschmutzung, Beschädigung und Korrosion prüfen, ggf. reinigen","I",null,null,null,"SK",null,"BayBO Art. 39\nVDI 6022",6,36,24.000000000000004,24.000000000000004]
[434,"Absorptionskältemaschine","Luftleitungen und -kammern","Dto. Auf Wasserbildung prüfen, ggf. reinigen, Ursache ermitteln",null,"W",null,null,"SK",null,"BayBO Art. 39\nVDI 6022",6,36,24.000000000000004,24.000000000000004]
[434,"Absorptionskältemaschine","Luftleitungen und -kammern","Innere Luftleitungsfläche auf Verschmutzung und Korrosion an 2 bis 3 repräsentativen Stellen prüfen, ggf. Ursache ermitteln, ensprechende Luftleitungsabschnitte reinigen",null,"W",null,null,"SK",null,"BayBO Art. 39\nVDI 6022",6,36,24.000000000000004,24.000000000000004]
[434,"Absorptionskältemaschine","Luftleitungen und -kammern","Schalldämpfer auf Verschmutzung, Beschädigung und Korrosion prüfen","I",null,null,null,"SK",null,"BayBO Art. 39\nVDI 6022",6,36,24.000000000000004,24.000000000000004]
[434,"Absorptionskältemaschine","Luftleitungen und -kammern","Kontrolle des Hygienezustandes in der Luftleitung an einer repräsentativen Stelle, ggf. Ursache ermitteln, entsprechende Luftleitungsabschnitte reinigen (Hygieneinspektion)",null,"W",null,null,"SK",null,"BayBO Art. 39\nVDI 6022",6,36,24.000000000000004,24.000000000000004]
[434,"Absorptionskältemaschine","Luftleitungen und -kammern","Bewegliche Teile schmieren",null,"W",null,null,"SK",null,"BayBO Art. 39\nVDI 6022",6,36,24.000000000000004,24.000000000000004]
[434,"Absorptionskältemaschine","Volumenstrom- und Mischregler","Auf Verschmutzung, Beschädigung und Korrosion prüfen","I",{"$nulls":4},"FK","-",6,36,24.000000000000004,24.000000000000004]
[434,"Absorptionskältemaschine","Volumenstrom- und Mischregler","Volumenstromregler auf Funktion prüfen","I",{"$nulls":4},"FK","-",6,36,24.000000000000004,24.000000000000004]
[434,"Absorptionskältemaschine","Volumenstrom- und Mischregler","Regelklappen auf Funktion prüfen","I",{"$nulls":4},"FK","-",6,36,24.000000000000004,24.000000000000004]
[434,"Absorptionskältemaschine","Volumenstrom- und Mischregler","Reinigen",null,"W",null,null,null,"FK","-",6,36,24.000000000000004,24.000000000000004]
[434,"Absorptionskältemaschine","Absperr- und Abgleichelemente","Auf Verschmutzung, Beschädigung und Korrosion prüfen","I",{"$nulls":4},"FK","-",6,36,24.000000000000004,24.000000000000004]
[434,"Absorptionskältemaschine","Absperr- und Abgleichelemente","Auf Funktion prüfen","I",{"$nulls":4},"FK","-",6,36,24.000000000000004,24.000000000000004]
[434,"Absorptionskältemaschine","Absperr- und Abgleichelemente","Reinigen",null,"W",null,null,null,"FK","-",6,36,24.000000000000004,24.000000000000004]
[434,"Absorptionskältemaschine","Luftfilter","Hygienemaßnahmen nach VDI 6022 Blatt 1","I",null,null,null,"SK",null,"VDI 6022",3,12,8,8]
[434,"Absorptionskältemaschine","Luftfilter","Differenzdruck prüfen, ggf. Filterstufe auswechseln","I",null,null,null,"SK",null,"VDI 6022",3,6,4,4]
[434,"Absorptionskältemaschine","Luftfilter","Luftfilter auf unzulässige Verschmutzung und Beschädigung (Leckagen) prüfen ggf. auswechseln der betroffenen Luftfilter, falls letzte Auswechselung der Filterstufe nicht länger als 6 Mon. her ist, sonst auswechseln der gesamten Filterstufe",null,"W",null,null,"SK",null,"VDI 6022",3,3,3,3]
[434,"Absorptionskältemaschine","Luftfilter","Spätester Filterwechsel der 1. Stufe bei nicht regenerierbaren Luftfiltern, sonst gründliche Reinigung",null,"W",null,null,"SK",null,"VDI 6022",3,12,8,8]
[434,"Absorptionskältemaschine","Luftfilter","Spätester Filterwechsel der 2. Stufe",null,"W",null,null,"SK",null,"VDI 6022",3,24,16,16]
[434,"Absorptionskältemaschine","Rollbandfilter","Auf Verschmutzung, Beschädigung und Korrosion prüfen","I",null,null,null,"SK",null,"VDI 6022\n",3,12,8,8]
[434,"Absorptionskältemaschine","Rollbandfilter","Druckdifferenz messen","I",null,null,null,"SK",null,"VDI 6022\n",3,6,4,4]
[434,"Absorptionskältemaschine","Rollbandfilter","Filtervorschub auf Funktion prüfen","I",null,null,null,"SK",null,"VDI 6022\n",3,12,8,8]
[434,"Absorptionskältemaschine","Rollbandfilter","Filtermedium auf Vorrat prüfen","I",null,null,null,"SK",null,"VDI 6022\n",3,12,8,8]
[434,"Absorptionskältemaschine","Rollbandfilter","Filterband auswechseln",null,"W",null,null,"SK",null,"VDI 6022-1",3,12,8,8]
[434,"Absorptionskältemaschine","Trockenschichtfilter","Auf Verschmutzung, Korrosion und Beschädigung prüfen","I",null,null,null,"SK",null,"VDI 6022",3,12,8,8]
[434,"Absorptionskältemaschine","Trockenschichtfilter","Filterauflage auf Dichtheit prüfen","I",null,null,null,"SK",null,"VDI 6022",3,12,8,8]
[434,"Absorptionskältemaschine","Trockenschichtfilter","Druckdifferenz messen",null,"W",null,null,"SK",null,"VDI 6022-1",3,6,4,4]
[434,"Absorptionskältemaschine","Trockenschichtfilter","Filtermedium (regenerierbar) reinigen",null,"W",null,null,"SK",null,"VDI 6022-1",3,12,8,8]
[434,"Absorptionskältemaschine","gesamte Anlage","Kontrolle des Hygienezustandes (Hygieneinspektion)","I",null,null,null,"SK",null,"VDI 6022-1",3,6,4,4]
[434,"Absorptionskältemaschine","Elektrofilter","Auf Verschmutzung, Beschädigung und Korrosion prüfen","I",null,null,null,"SK",null,"DGUVV\nGUV-V A3\nVDI 6022",6,6,6,6]
[434,"Absorptionskältemaschine","Elektrofilter","Ionisationsdrähte auf Beschädigung prüfen","I",null,null,null,"SK",null,"DGUVV\nGUV-V A3\nVDI 6022",6,12,8,8]
[434,"Absorptionskältemaschine","Elektrofilter","Ionisationsdrähte auswechseln",null,"W",null,null,"SK",null,"DGUVV\nGUV-V A3\nVDI 6022",6,48,32,32]
[434,"Absorptionskältemaschine","Elektrofilter","Filterzellen auf Beschädigung und Funkenschlag prüfen","I",null,null,null,"SK",null,"DGUVV\nGUV-V A3\nVDI 6022",6,12,8,8]
[434,"Absorptionskältemaschine","Elektrofilter","Isolatoren auf festen Sitz prüfen","I",null,null,null,"SK",null,"DGUVV\nGUV-V A3\nVDI 6022",6,12,8,8]
[434,"Absorptionskältemaschine","Elektrofilter","Isolatoren auswechseln",null,"W",null,null,"SK",null,"DGUVV\nGUV-V A3\nVDI 6022",6,36,24.000000000000004,24.000000000000004]
[434,"Absorptionskältemaschine","Elektrofilter","Stromaufnahme messen",null,"W",null,null,"SK",null,"DGUVV\nGUV-V A3\nVDI 6022",6,12,8,8]
[434,"Absorptionskältemaschine","Elektrofilter","Reinigungseinrichtung auf Funktion prüfen","I",null,null,null,"SK",null,"DGUVV\nGUV-V A3\nVDI 6022",6,12,8,8]
[434,"Absorptionskältemaschine","Elektrofilter","MSR-Sicherheitseinrichtungen prüfen","I",null,null,null,"SK",null,"DGUVV\nGUV-V A3\nVDI 6022",6,12,8,8]
[434,"Absorptionskältemaschine","Elektrofilter","Antriebselemente prüfen","I",null,null,null,"SK",null,"DGUVV\nGUV-V A3\nVDI 6022",6,12,8,8]
[434,"Absorptionskältemaschine","Elektrofilter","Reinigen",null,"W",null,null,"SK",null,"DGUVV\nGUV-V A3\nVDI 6022",6,12,8,8]
[434,"Absorptionskältemaschine","Sorptionsfilter","Auf äußere Verschmutzung, Beschädigung und Korrosion prüfen","I",null,null,null,"SK",null,"VDI 6022",6,3,6,6]
[434,"Absorptionskältemaschine","Sorptionsfilter","Filtereinsatz auf dichten Sitz prüfen","I",null,null,null,"SK",null,"VDI 6022",6,6,6,6]
[434,"Absorptionskältemaschine","Sorptionsfilter","Filtereinsatz auswechseln",null,"W",null,null,"SK",null,"VDI 6022",6,24,16,16]
[434,"Absorptionskältemaschine","Sorptionsfilter","Reinigen",null,"W",null,null,"SK",null,"VDI 6022",6,12,8,8]
[434,"Umluftkühlgerät","Ventilatoren","Hygienemaßnahmen nach VDI 6022 Blatt 1","I",null,null,null,"SK",null,"DGUVV\nBGR-GUV-R 108\nGUV-V A3\nVDI 6022-1\n",6,36,24.000000000000004,24.000000000000004]
[434,"Umluftkühlgerät","Ventilatoren","Ventilator auf Verschmutzung, Beschädigung und Korrosion prüfen","I",null,null,null,"SK",null,"DGUVV\nBGR-GUV-R 108\nGUV-V A3\nVDI 6022-1\n",6,36,24.000000000000004,24.000000000000004]
[434,"Umluftkühlgerät","Ventilatoren","Funktionserhaltendes Reinigen der luftberührten Teile des Ventilators sowie des Wasserablaufes","I",null,null,null,"SK",null,"DGUVV\nBGR-GUV-R 108\nGUV-V A3\nVDI 6022-1\n",6,36,24.000000000000004,24.000000000000004]
[434,"Umluftkühlgerät","Ventilatoren","Schaufelverstelleinrichtung auf Funktion prüfen","I",null,null,null,"SK",null,"DGUVV\nBGR-GUV-R 108\nGUV-V A3\nVDI 6022-1\n",6,36,24.000000000000004,24.000000000000004]
[434,"Umluftkühlgerät","Ventilatoren","Lager auf Geräusch prüfen","I",null,null,null,"SK",null,"DGUVV\nBGR-GUV-R 108\nGUV-V A3\nVDI 6022-1\n",6,36,24.000000000000004,24.000000000000004]
[434,"Umluftkühlgerät","Ventilatoren","Flexible Verbindungen auf Dichtheit prüfen","I",null,null,null,"SK",null,"DGUVV\nBGR-GUV-R 108\nGUV-V A3\nVDI 6022-1\n",6,36,24.000000000000004,24.000000000000004]
[434,"Umluftkühlgerät","Ventilatoren","Schwingungsdämpfer auf Funktion prüfen","I",null,null,null,"SK",null,"DGUVV\nBGR-GUV-R 108\nGUV-V A3\nVDI 6022-1\n",6,36,24.000000000000004,24.000000000000004]
[434,"Umluftkühlgerät","Ventilatoren","Schutzeinrichtungen auf Funktion prüfen","I",null,null,null,"SK",null,"DGUVV\nBGR-GUV-R 108\nGUV-V A3\nVDI 6022-1\n",6,36,24.000000000000004,24.000000000000004]
[434,"Umluftkühlgerät","Ventilatoren","Drallregler auf Funktion prüfen","I",null,null,null,"SK",null,"DGUVV\nBGR-GUV-R 108\nGUV-V A3\nVDI 6022-1\n",6,36,24.000000000000004,24.000000000000004]
[434,"Umluftkühlgerät","Ventilatoren","Laufrad auf Unwucht prüfen","I",null,null,null,"SK",null,"DGUVV\nBGR-GUV-R 108\nGUV-V A3\nVDI 6022-1\n",6,36,24.000000000000004,24.000000000000004]
[434,"Umluftkühlgerät","Ventilatoren","Lager schmieren",null,"W",null,null,"SK",null,"DGUVV\nBGR-GUV-R 108\nGUV-V A3\nVDI 6022-1\n",6,36,24.000000000000004,24.000000000000004]
[434,"Umluftkühlgerät","Wetterschutzgitter","Hygienemaßnahmen nach VDI 6022 Blatt 1","I",null,null,null,"SK",null,"VDI 6022",6,36,24.000000000000004,24.000000000000004]
[434,"Umluftkühlgerät","Wetterschutzgitter","Auf Verschmutzung, Beschädigung, Korrosion prüfen","I",null,null,null,"SK",null,"-",6,36,24.000000000000004,24.000000000000004]
[434,"Umluftkühlgerät","Wetterschutzgitter","Reinigen",null,"W",null,null,"SK",null,"-",6,36,24.000000000000004,24.000000000000004]
[434,"Umluftkühlgerät","Gitter und Verteiler","Hygienemaßnahmen nach VDI 6022 Blatt 1","I",null,null,null,"SK",null,"VDI 6022",6,36,24.000000000000004,24.000000000000004]
[434,"Umluftkühlgerät","Gitter und Verteiler","Eingebaute Lochbleche, Maschendraht oder Siebe auf Verschmutzung prüfen (Stichprobe), ggf. reinigen bzw. austauschen","I",null,null,null,"SK",null,"VDI 6022",6,36,24.000000000000004,24.000000000000004]
[434,"Umluftkühlgerät","Gitter und Verteiler","Filtervliese auswechseln bei Filterklasse < F 9",null,"W",null,null,"SK",null,"VDI 6022",6,36,24.000000000000004,24.000000000000004]
[434,"Umluftkühlgerät","Gitter und Verteiler","Luftdurchlässe mit Induktion der Raumluft und Abluftdurlässe auf Feststoffablagerungen prüfen, ggf. reinigen",null,"W",null,null,"SK",null,"VDI 6022",6,36,24.000000000000004,24.000000000000004]
[434,"Umluftkühlgerät","Gitter und Verteiler","Reinigung der durch Sekundärluft durchströmten Bauteile",null,"W",null,null,"SK",null,"VDI 6022",6,36,24.000000000000004,24.000000000000004]
[434,"Umluftkühlgerät","Klappen","Auf Verschmutzung, Beschlädigung und Korrosion prüfen","I",{"$nulls":4},"FK","-",6,36,24.000000000000004,24.000000000000004]
[434,"Umluftkühlgerät","Klappen","Auf mechanische Funktion prüfen","I",{"$nulls":4},"FK","-",6,36,24.000000000000004,24.000000000000004]
[434,"Umluftkühlgerät","Klappen","Lager und Gestänge schmieren",null,"W",null,null,null,"FK","-",6,36,24.000000000000004,24.000000000000004]
[434,"Umluftkühlgerät","Luftleitungen und -kammern","Hygienemaßnahmen nach VDI 6022 Blatt 1","I",null,null,null,"SK",null,"BayBO Art. 39\nVDI 6022",6,36,24.000000000000004,24.000000000000004]
[434,"Umluftkühlgerät","Luftleitungen und -kammern","Hygienemaßnahmen nach VDI 6022 Blatt 1","I",null,null,null,"SK",null,"BayBO Art. 39\nVDI 6022",6,36,24.000000000000004,24.000000000000004]
[434,"Umluftkühlgerät","Luftleitungen und -kammern","Zugängliche Luftleitungsabschnitte auf Beschädigung prüfen","I",null,null,null,"SK",null,"BayBO Art. 39\nVDI 6022",6,36,24.000000000000004,24.000000000000004]
[434,"Umluftkühlgerät","Luftleitungen und -kammern","Abläufe auf Funktion prüfen","I",null,null,null,"SK",null,"BayBO Art. 39\nVDI 6022",6,36,24.000000000000004,24.000000000000004]
[434,"Umluftkühlgerät","Luftleitungen und -kammern","Türen und Verschlüsse auf Gängigkeit und Dichtheit prüfen","I",null,null,null,"SK",null,"BayBO Art. 39\nVDI 6022",6,36,24.000000000000004,24.000000000000004]
[434,"Umluftkühlgerät","Luftleitungen und -kammern","Isolierung auf äußere Beschädigung prüfen (Sichtprüfung)","I",null,null,null,"SK",null,"BayBO Art. 39\nVDI 6022",6,36,24.000000000000004,24.000000000000004]
[434,"Umluftkühlgerät","Luftleitungen und -kammern","Flexible Verbindungen auf Dichtheit prüfen","I",null,null,null,"SK",null,"BayBO Art. 39\nVDI 6022",6,36,24.000000000000004,24.000000000000004]
[434,"Umluftkühlgerät","Luftleitungen und -kammern","Reinigen",null,"W",null,null,"SK",null,"BayBO Art. 39\nVDI 6022",6,36,24.000000000000004,24.000000000000004]
[434,"Umluftkühlgerät","Luftleitungen und -kammern","Kammerzentralen/ Gerätegehäuse auf luftseitige Verschmutzung, Beschädigung und Korrosion prüfen, ggf. reinigen","I",null,null,null,"SK",null,"BayBO Art. 39\nVDI 6022",6,36,24.000000000000004,24.000000000000004]
[434,"Umluftkühlgerät","Luftleitungen und -kammern","Dto. Auf Wasserbildung prüfen, ggf. reinigen, Ursache ermitteln",null,"W",null,null,"SK",null,"BayBO Art. 39\nVDI 6022",6,36,24.000000000000004,24.000000000000004]
[434,"Umluftkühlgerät","Luftleitungen und -kammern","Innere Luftleitungsfläche auf Verschmutzung und Korrosion an 2 bis 3 repräsentativen Stellen prüfen, ggf. Ursache ermitteln, ensprechende Luftleitungsabschnitte reinigen",null,"W",null,null,"SK",null,"BayBO Art. 39\nVDI 6022",6,36,24.000000000000004,24.000000000000004]
[434,"Umluftkühlgerät","Luftleitungen und -kammern","Schalldämpfer auf Verschmutzung, Beschädigung und Korrosion prüfen","I",null,null,null,"SK",null,"BayBO Art. 39\nVDI 6022",6,36,24.000000000000004,24.000000000000004]
[434,"Umluftkühlgerät","Luftleitungen und -kammern","Kontrolle des Hygienezustandes in der Luftleitung an einer repräsentativen Stelle, ggf. Ursache ermitteln, entsprechende Luftleitungsabschnitte reinigen (Hygieneinspektion)",null,"W",null,null,"SK",null,"BayBO Art. 39\nVDI 6022",6,36,24.000000000000004,24.000000000000004]
[434,"Umluftkühlgerät","Luftleitungen und -kammern","Bewegliche Teile schmieren",null,"W",null,null,"SK",null,"BayBO Art. 39\nVDI 6022",6,36,24.000000000000004,24.000000000000004]
[434,"Umluftkühlgerät","Volumenstrom- und Mischregler","Auf Verschmutzung, Beschädigung und Korrosion prüfen","I",{"$nulls":4},"FK","-",6,36,24.000000000000004,24.000000000000004]
[434,"Umluftkühlgerät","Volumenstrom- und Mischregler","Volumenstromregler auf Funktion prüfen","I",{"$nulls":4},"FK","-",6,36,24.000000000000004,24.000000000000004]
[434,"Umluftkühlgerät","Volumenstrom- und Mischregler","Regelklappen auf Funktion prüfen","I",{"$nulls":4},"FK","-",6,36,24.000000000000004,24.000000000000004]
[434,"Umluftkühlgerät","Volumenstrom- und Mischregler","Reinigen",null,"W",null,null,null,"FK","-",6,36,24.000000000000004,24.000000000000004]
[434,"Umluftkühlgerät","Absperr- und Abgleichelemente","Auf Verschmutzung, Beschädigung und Korrosion prüfen","I",{"$nulls":4},"FK","-",6,36,24.000000000000004,24.000000000000004]
[434,"Umluftkühlgerät","Absperr- und Abgleichelemente","Auf Funktion prüfen","I",{"$nulls":4},"FK","-",6,36,24.000000000000004,24.000000000000004]
[434,"Umluftkühlgerät","Absperr- und Abgleichelemente","Reinigen",null,"W",null,null,null,"FK","-",6,36,24.000000000000004,24.000000000000004]
[434,"Umluftkühlgerät","Luftfilter","Hygienemaßnahmen nach VDI 6022 Blatt 1","I",null,null,null,"SK",null,"VDI 6022",3,12,8,8]
[434,"Umluftkühlgerät","Luftfilter","Differenzdruck prüfen, ggf. Filterstufe auswechseln","I",null,null,null,"SK",null,"VDI 6022",3,6,4,4]
[434,"Umluftkühlgerät","Luftfilter","Luftfilter auf unzulässige Verschmutzung und Beschädigung (Leckagen) prüfen ggf. auswechseln der betroffenen Luftfilter, falls letzte Auswechselung der Filterstufe nicht länger als 6 Mon. her ist, sonst auswechseln der gesamten Filterstufe",null,"W",null,null,"SK",null,"VDI 6022",3,3,3,3]
[434,"Umluftkühlgerät","Luftfilter","Spätester Filterwechsel der 1. Stufe bei nicht regenerierbaren Luftfiltern, sonst gründliche Reinigung",null,"W",null,null,"SK",null,"VDI 6022",3,12,8,8]
[434,"Umluftkühlgerät","Luftfilter","Spätester Filterwechsel der 2. Stufe",null,"W",null,null,"SK",null,"VDI 6022",3,24,16,16]
[434,"Umluftkühlgerät","Rollbandfilter","Auf Verschmutzung, Beschädigung und Korrosion prüfen","I",null,null,null,"SK",null,"VDI 6022\n",3,12,8,8]
[434,"Umluftkühlgerät","Rollbandfilter","Druckdifferenz messen","I",null,null,null,"SK",null,"VDI 6022\n",3,6,4,4]
[434,"Umluftkühlgerät","Rollbandfilter","Filtervorschub auf Funktion prüfen","I",null,null,null,"SK",null,"VDI 6022\n",3,12,8,8]
[434,"Umluftkühlgerät","Rollbandfilter","Filtermedium auf Vorrat prüfen","I",null,null,null,"SK",null,"VDI 6022\n",3,12,8,8]
[434,"Umluftkühlgerät","Rollbandfilter","Filterband auswechseln",null,"W",null,null,"SK",null,"VDI 6022-1",3,12,8,8]
[434,"Umluftkühlgerät","Trockenschichtfilter","Auf Verschmutzung, Korrosion und Beschädigung prüfen","I",null,null,null,"SK",null,"VDI 6022",3,12,8,8]
[434,"Umluftkühlgerät","Trockenschichtfilter","Filterauflage auf Dichtheit prüfen","I",null,null,null,"SK",null,"VDI 6022",3,12,8,8]
[434,"Umluftkühlgerät","Trockenschichtfilter","Druckdifferenz messen",null,"W",null,null,"SK",null,"VDI 6022-1",3,6,4,4]
[434,"Umluftkühlgerät","Trockenschichtfilter","Filtermedium (regenerierbar) reinigen",null,"W",null,null,"SK",null,"VDI 6022-1",3,12,8,8]
[434,"Umluftkühlgerät","gesamte Anlage","Kontrolle des Hygienezustandes (Hygieneinspektion)","I",null,null,null,"SK",null,"VDI 6022-1",3,6,4,4]
[434,"Umluftkühlgerät","Elektrofilter","Auf Verschmutzung, Beschädigung und Korrosion prüfen","I",null,null,null,"SK",null,"DGUVV\nGUV-V A3\nVDI 6022",6,6,6,6]
[434,"Umluftkühlgerät","Elektrofilter","Ionisationsdrähte auf Beschädigung prüfen","I",null,null,null,"SK",null,"DGUVV\nGUV-V A3\nVDI 6022",6,12,8,8]
[434,"Umluftkühlgerät","Elektrofilter","Ionisationsdrähte auswechseln",null,"W",null,null,"SK",null,"DGUVV\nGUV-V A3\nVDI 6022",6,48,32,32]
[434,"Umluftkühlgerät","Elektrofilter","Filterzellen auf Beschädigung und Funkenschlag prüfen","I",null,null,null,"SK",null,"DGUVV\nGUV-V A3\nVDI 6022",6,12,8,8]
[434,"Umluftkühlgerät","Elektrofilter","Isolatoren auf festen Sitz prüfen","I",null,null,null,"SK",null,"DGUVV\nGUV-V A3\nVDI 6022",6,12,8,8]
[434,"Umluftkühlgerät","Elektrofilter","Isolatoren auswechseln",null,"W",null,null,"SK",null,"DGUVV\nGUV-V A3\nVDI 6022",6,36,24.000000000000004,24.000000000000004]
[434,"Umluftkühlgerät","Elektrofilter","Stromaufnahme messen",null,"W",null,null,"SK",null,"DGUVV\nGUV-V A3\nVDI 6022",6,12,8,8]
[434,"Umluftkühlgerät","Elektrofilter","Reinigungseinrichtung auf Funktion prüfen","I",null,null,null,"SK",null,"DGUVV\nGUV-V A3\nVDI 6022",6,12,8,8]
[434,"Umluftkühlgerät","Elektrofilter","MSR-Sicherheitseinrichtungen prüfen","I",null,null,null,"SK",null,"DGUVV\nGUV-V A3\nVDI 6022",6,12,8,8]
[434,"Umluftkühlgerät","Elektrofilter","Antriebselemente prüfen","I",null,null,null,"SK",null,"DGUVV\nGUV-V A3\nVDI 6022",6,12,8,8]
[434,"Umluftkühlgerät","Elektrofilter","Reinigen",null,"W",null,null,"SK",null,"DGUVV\nGUV-V A3\nVDI 6022",6,12,8,8]
[434,"Umluftkühlgerät","Sorptionsfilter","Auf äußere Verschmutzung, Beschädigung und Korrosion prüfen","I",null,null,null,"SK",null,"VDI 6022",6,3,6,6]
[434,"Umluftkühlgerät","Sorptionsfilter","Filtereinsatz auf dichten Sitz prüfen","I",null,null,null,"SK",null,"VDI 6022",6,6,6,6]
[434,"Umluftkühlgerät","Sorptionsfilter","Filtereinsatz auswechseln",null,"W",null,null,"SK",null,"VDI 6022",6,24,16,16]
[434,"Umluftkühlgerät","Sorptionsfilter","Reinigen",null,"W",null,null,"SK",null,"VDI 6022",6,12,8,8]
[434,"Klimaschrank","Ventilatoren","Hygienemaßnahmen nach VDI 6022 Blatt 1","I",null,null,null,"SK",null,"DGUVV\nBGR-GUV-R 108\nGUV-V A3\nVDI 6022-1\n",6,36,24.000000000000004,24.000000000000004]
[434,"Klimaschrank","Ventilatoren","Ventilator auf Verschmutzung, Beschädigung und Korrosion prüfen","I",null,null,null,"SK",null,"DGUVV\nBGR-GUV-R 108\nGUV-V A3\nVDI 6022-1\n",6,36,24.000000000000004,24.000000000000004]
[434,"Klimaschrank","Ventilatoren","Funktionserhaltendes Reinigen der luftberührten Teile des Ventilators sowie des Wasserablaufes","I",null,null,null,"SK",null,"DGUVV\nBGR-GUV-R 108\nGUV-V A3\nVDI 6022-1\n",6,36,24.000000000000004,24.000000000000004]
[434,"Klimaschrank","Ventilatoren","Schaufelverstelleinrichtung auf Funktion prüfen","I",null,null,null,"SK",null,"DGUVV\nBGR-GUV-R 108\nGUV-V A3\nVDI 6022-1\n",6,36,24.000000000000004,24.000000000000004]
[434,"Klimaschrank","Ventilatoren","Lager auf Geräusch prüfen","I",null,null,null,"SK",null,"DGUVV\nBGR-GUV-R 108\nGUV-V A3\nVDI 6022-1\n",6,36,24.000000000000004,24.000000000000004]
[434,"Klimaschrank","Ventilatoren","Flexible Verbindungen auf Dichtheit prüfen","I",null,null,null,"SK",null,"DGUVV\nBGR-GUV-R 108\nGUV-V A3\nVDI 6022-1\n",6,36,24.000000000000004,24.000000000000004]
[434,"Klimaschrank","Ventilatoren","Schwingungsdämpfer auf Funktion prüfen","I",null,null,null,"SK",null,"DGUVV\nBGR-GUV-R 108\nGUV-V A3\nVDI 6022-1\n",6,36,24.000000000000004,24.000000000000004]
[434,"Klimaschrank","Ventilatoren","Schutzeinrichtungen auf Funktion prüfen","I",null,null,null,"SK",null,"DGUVV\nBGR-GUV-R 108\nGUV-V A3\nVDI 6022-1\n",6,36,24.000000000000004,24.000000000000004]
[434,"Klimaschrank","Ventilatoren","Drallregler auf Funktion prüfen","I",null,null,null,"SK",null,"DGUVV\nBGR-GUV-R 108\nGUV-V A3\nVDI 6022-1\n",6,36,24.000000000000004,24.000000000000004]
[434,"Klimaschrank","Ventilatoren","Laufrad auf Unwucht prüfen","I",null,null,null,"SK",null,"DGUVV\nBGR-GUV-R 108\nGUV-V A3\nVDI 6022-1\n",6,36,24.000000000000004,24.000000000000004]
[434,"Klimaschrank","Ventilatoren","Lager schmieren",null,"W",null,null,"SK",null,"DGUVV\nBGR-GUV-R 108\nGUV-V A3\nVDI 6022-1\n",6,36,24.000000000000004,24.000000000000004]
[434,"Klimaschrank","Wetterschutzgitter","Hygienemaßnahmen nach VDI 6022 Blatt 1","I",null,null,null,"SK",null,"VDI 6022",6,36,24.000000000000004,24.000000000000004]
[434,"Klimaschrank","Wetterschutzgitter","Auf Verschmutzung, Beschädigung, Korrosion prüfen","I",null,null,null,"SK",null,"-",6,36,24.000000000000004,24.000000000000004]
[434,"Klimaschrank","Wetterschutzgitter","Reinigen",null,"W",null,null,"SK",null,"-",6,36,24.000000000000004,24.000000000000004]
[434,"Klimaschrank","Gitter und Verteiler","Hygienemaßnahmen nach VDI 6022 Blatt 1","I",null,null,null,"SK",null,"VDI 6022",6,36,24.000000000000004,24.000000000000004]
[434,"Klimaschrank","Gitter und Verteiler","Eingebaute Lochbleche, Maschendraht oder Siebe auf Verschmutzung prüfen (Stichprobe), ggf. reinigen bzw. austauschen","I",null,null,null,"SK",null,"VDI 6022",6,36,24.000000000000004,24.000000000000004]
[434,"Klimaschrank","Gitter und Verteiler","Filtervliese auswechseln bei Filterklasse < F 9",null,"W",null,null,"SK",null,"VDI 6022",6,36,24.000000000000004,24.000000000000004]
[434,"Klimaschrank","Gitter und Verteiler","Luftdurchlässe mit Induktion der Raumluft und Abluftdurlässe auf Feststoffablagerungen prüfen, ggf. reinigen",null,"W",null,null,"SK",null,"VDI 6022",6,36,24.000000000000004,24.000000000000004]
[434,"Klimaschrank","Gitter und Verteiler","Reinigung der durch Sekundärluft durchströmten Bauteile",null,"W",null,null,"SK",null,"VDI 6022",6,36,24.000000000000004,24.000000000000004]
[434,"Klimaschrank","Klappen","Auf Verschmutzung, Beschlädigung und Korrosion prüfen","I",{"$nulls":4},"FK","-",6,36,24.000000000000004,24.000000000000004]
[434,"Klimaschrank","Klappen","Auf mechanische Funktion prüfen","I",{"$nulls":4},"FK","-",6,36,24.000000000000004,24.000000000000004]
[434,"Klimaschrank","Klappen","Lager und Gestänge schmieren",null,"W",null,null,null,"FK","-",6,36,24.000000000000004,24.000000000000004]
[434,"Klimaschrank","Luftleitungen und -kammern","Hygienemaßnahmen nach VDI 6022 Blatt 1","I",null,null,null,"SK",null,"BayBO Art. 39\nVDI 6022",6,36,24.000000000000004,24.000000000000004]
[434,"Klimaschrank","Luftleitungen und -kammern","Hygienemaßnahmen nach VDI 6022 Blatt 1","I",null,null,null,"SK",null,"BayBO Art. 39\nVDI 6022",6,36,24.000000000000004,24.000000000000004]
[434,"Klimaschrank","Luftleitungen und -kammern","Zugängliche Luftleitungsabschnitte auf Beschädigung prüfen","I",null,null,null,"SK",null,"BayBO Art. 39\nVDI 6022",6,36,24.000000000000004,24.000000000000004]
[434,"Klimaschrank","Luftleitungen und -kammern","Abläufe auf Funktion prüfen","I",null,null,null,"SK",null,"BayBO Art. 39\nVDI 6022",6,36,24.000000000000004,24.000000000000004]
[434,"Klimaschrank","Luftleitungen und -kammern","Türen und Verschlüsse auf Gängigkeit und Dichtheit prüfen","I",null,null,null,"SK",null,"BayBO Art. 39\nVDI 6022",6,36,24.000000000000004,24.000000000000004]
[434,"Klimaschrank","Luftleitungen und -kammern","Isolierung auf äußere Beschädigung prüfen (Sichtprüfung)","I",null,null,null,"SK",null,"BayBO Art. 39\nVDI 6022",6,36,24.000000000000004,24.000000000000004]
[434,"Klimaschrank","Luftleitungen und -kammern","Flexible Verbindungen auf Dichtheit prüfen","I",null,null,null,"SK",null,"BayBO Art. 39\nVDI 6022",6,36,24.000000000000004,24.000000000000004]
[434,"Klimaschrank","Luftleitungen und -kammern","Reinigen",null,"W",null,null,"SK",null,"BayBO Art. 39\nVDI 6022",6,36,24.000000000000004,24.000000000000004]
[434,"Klimaschrank","Luftleitungen und -kammern","Kammerzentralen/ Gerätegehäuse auf luftseitige Verschmutzung, Beschädigung und Korrosion prüfen, ggf. reinigen","I",null,null,null,"SK",null,"BayBO Art. 39\nVDI 6022",6,36,24.000000000000004,24.000000000000004]
[434,"Klimaschrank","Luftleitungen und -kammern","Dto. Auf Wasserbildung prüfen, ggf. reinigen, Ursache ermitteln",null,"W",null,null,"SK",null,"BayBO Art. 39\nVDI 6022",6,36,24.000000000000004,24.000000000000004]
[434,"Klimaschrank","Luftleitungen und -kammern","Innere Luftleitungsfläche auf Verschmutzung und Korrosion an 2 bis 3 repräsentativen Stellen prüfen, ggf. Ursache ermitteln, ensprechende Luftleitungsabschnitte reinigen",null,"W",null,null,"SK",null,"BayBO Art. 39\nVDI 6022",6,36,24.000000000000004,24.000000000000004]
[434,"Klimaschrank","Luftleitungen und -kammern","Schalldämpfer auf Verschmutzung, Beschädigung und Korrosion prüfen","I",null,null,null,"SK",null,"BayBO Art. 39\nVDI 6022",6,36,24.000000000000004,24.000000000000004]
[434,"Klimaschrank","Luftleitungen und -kammern","Kontrolle des Hygienezustandes in der Luftleitung an einer repräsentativen Stelle, ggf. Ursache ermitteln, entsprechende Luftleitungsabschnitte reinigen (Hygieneinspektion)",null,"W",null,null,"SK",null,"BayBO Art. 39\nVDI 6022",6,36,24.000000000000004,24.000000000000004]
[434,"Klimaschrank","Luftleitungen und -kammern","Bewegliche Teile schmieren",null,"W",null,null,"SK",null,"BayBO Art. 39\nVDI 6022",6,36,24.000000000000004,24.000000000000004]
[434,"Klimaschrank","Volumenstrom- und Mischregler","Auf Verschmutzung, Beschädigung und Korrosion prüfen","I",{"$nulls":4},"FK","-",6,36,24.000000000000004,24.000000000000004]
[434,"Klimaschrank","Volumenstrom- und Mischregler","Volumenstromregler auf Funktion prüfen","I",{"$nulls":4},"FK","-",6,36,24.000000000000004,24.000000000000004]
[434,"Klimaschrank","Volumenstrom- und Mischregler","Regelklappen auf Funktion prüfen","I",{"$nulls":4},"FK","-",6,36,24.000000000000004,24.000000000000004]
[434,"Klimaschrank","Volumenstrom- und Mischregler","Reinigen",null,"W",null,null,null,"FK","-",6,36,24.000000000000004,24.000000000000004]
[434,"Klimaschrank","Absperr- und Abgleichelemente","Auf Verschmutzung, Beschädigung und Korrosion prüfen","I",{"$nulls":4},"FK","-",6,36,24.000000000000004,24.000000000000004]
[434,"Klimaschrank","Absperr- und Abgleichelemente","Auf Funktion prüfen","I",{"$nulls":4},"FK","-",6,36,24.000000000000004,24.000000000000004]
[434,"Klimaschrank","Absperr- und Abgleichelemente","Reinigen",null,"W",null,null,null,"FK","-",6,36,24.000000000000004,24.000000000000004]
[434,"Klimaschrank","Luftfilter","Hygienemaßnahmen nach VDI 6022 Blatt 1","I",null,null,null,"SK",null,"VDI 6022",3,12,8,8]
[434,"Klimaschrank","Luftfilter","Differenzdruck prüfen, ggf. Filterstufe auswechseln","I",null,null,null,"SK",null,"VDI 6022",3,6,4,4]
[434,"Klimaschrank","Luftfilter","Luftfilter auf unzulässige Verschmutzung und Beschädigung (Leckagen) prüfen ggf. auswechseln der betroffenen Luftfilter, falls letzte Auswechselung der Filterstufe nicht länger als 6 Mon. her ist, sonst auswechseln der gesamten Filterstufe",null,"W",null,null,"SK",null,"VDI 6022",3,3,3,3]
[434,"Klimaschrank","Luftfilter","Spätester Filterwechsel der 1. Stufe bei nicht regenerierbaren Luftfiltern, sonst gründliche Reinigung",null,"W",null,null,"SK",null,"VDI 6022",3,12,8,8]
[434,"Klimaschrank","Luftfilter","Spätester Filterwechsel der 2. Stufe",null,"W",null,null,"SK",null,"VDI 6022",3,24,16,16]
[434,"Klimaschrank","Rollbandfilter","Auf Verschmutzung, Beschädigung und Korrosion prüfen","I",null,null,null,"SK",null,"VDI 6022\n",3,12,8,8]
[434,"Klimaschrank","Rollbandfilter","Druckdifferenz messen","I",null,null,null,"SK",null,"VDI 6022\n",3,6,4,4]
[434,"Klimaschrank","Rollbandfilter","Filtervorschub auf Funktion prüfen","I",null,null,null,"SK",null,"VDI 6022\n",3,12,8,8]
[434,"Klimaschrank","Rollbandfilter","Filtermedium auf Vorrat prüfen","I",null,null,null,"SK",null,"VDI 6022\n",3,12,8,8]
[434,"Klimaschrank","Rollbandfilter","Filterband auswechseln",null,"W",null,null,"SK",null,"VDI 6022-1",3,12,8,8]
[434,"Klimaschrank","Trockenschichtfilter","Auf Verschmutzung, Korrosion und Beschädigung prüfen","I",null,null,null,"SK",null,"VDI 6022",3,12,8,8]
[434,"Klimaschrank","Trockenschichtfilter","Filterauflage auf Dichtheit prüfen","I",null,null,null,"SK",null,"VDI 6022",3,12,8,8]
[434,"Klimaschrank","Trockenschichtfilter","Druckdifferenz messen",null,"W",null,null,"SK",null,"VDI 6022-1",3,6,4,4]
[434,"Klimaschrank","Trockenschichtfilter","Filtermedium (regenerierbar) reinigen",null,"W",null,null,"SK",null,"VDI 6022-1",3,12,8,8]
[434,"Klimaschrank","gesamte Anlage","Kontrolle des Hygienezustandes (Hygieneinspektion)","I",null,null,null,"SK",null,"VDI 6022-1",3,6,4,4]
[434,"Klimaschrank","Elektrofilter","Auf Verschmutzung, Beschädigung und Korrosion prüfen","I",null,null,null,"SK",null,"DGUVV\nGUV-V A3\nVDI 6022",6,6,6,6]
[434,"Klimaschrank","Elektrofilter","Ionisationsdrähte auf Beschädigung prüfen","I",null,null,null,"SK",null,"DGUVV\nGUV-V A3\nVDI 6022",6,12,8,8]
[434,"Klimaschrank","Elektrofilter","Ionisationsdrähte auswechseln",null,"W",null,null,"SK",null,"DGUVV\nGUV-V A3\nVDI 6022",6,48,32,32]
[434,"Klimaschrank","Elektrofilter","Filterzellen auf Beschädigung und Funkenschlag prüfen","I",null,null,null,"SK",null,"DGUVV\nGUV-V A3\nVDI 6022",6,12,8,8]
[434,"Klimaschrank","Elektrofilter","Isolatoren auf festen Sitz prüfen","I",null,null,null,"SK",null,"DGUVV\nGUV-V A3\nVDI 6022",6,12,8,8]
[434,"Klimaschrank","Elektrofilter","Isolatoren auswechseln",null,"W",null,null,"SK",null,"DGUVV\nGUV-V A3\nVDI 6022",6,36,24.000000000000004,24.000000000000004]
[434,"Klimaschrank","Elektrofilter","Stromaufnahme messen",null,"W",null,null,"SK",null,"DGUVV\nGUV-V A3\nVDI 6022",6,12,8,8]
[434,"Klimaschrank","Elektrofilter","Reinigungseinrichtung auf Funktion prüfen","I",null,null,null,"SK",null,"DGUVV\nGUV-V A3\nVDI 6022",6,12,8,8]
[434,"Klimaschrank","Elektrofilter","MSR-Sicherheitseinrichtungen prüfen","I",null,null,null,"SK",null,"DGUVV\nGUV-V A3\nVDI 6022",6,12,8,8]
[434,"Klimaschrank","Elektrofilter","Antriebselemente prüfen","I",null,null,null,"SK",null,"DGUVV\nGUV-V A3\nVDI 6022",6,12,8,8]
[434,"Klimaschrank","Elektrofilter","Reinigen",null,"W",null,null,"SK",null,"DGUVV\nGUV-V A3\nVDI 6022",6,12,8,8]
[434,"Klimaschrank","Sorptionsfilter","Auf äußere Verschmutzung, Beschädigung und Korrosion prüfen","I",null,null,null,"SK",null,"VDI 6022",6,3,6,6]
[434,"Klimaschrank","Sorptionsfilter","Filtereinsatz auf dichten Sitz prüfen","I",null,null,null,"SK",null,"VDI 6022",6,6,6,6]
[434,"Klimaschrank","Sorptionsfilter","Filtereinsatz auswechseln",null,"W",null,null,"SK",null,"VDI 6022",6,24,16,16]
[434,"Klimaschrank","Sorptionsfilter","Reinigen",null,"W",null,null,"SK",null,"VDI 6022",6,12,8,8]
[434,"Rückkühlwerk","Ventilatoren","Hygienemaßnahmen nach VDI 6022 Blatt 1","I",null,null,null,"SK",null,"DGUVV\nBGR-GUV-R 108\nGUV-V A3\nVDI 6022-1\n",6,36,24.000000000000004,24.000000000000004]
[434,"Rückkühlwerk","Ventilatoren","Ventilator auf Verschmutzung, Beschädigung und Korrosion prüfen","I",null,null,null,"SK",null,"DGUVV\nBGR-GUV-R 108\nGUV-V A3\nVDI 6022-1\n",6,36,24.000000000000004,24.000000000000004]
[434,"Rückkühlwerk","Ventilatoren","Funktionserhaltendes Reinigen der luftberührten Teile des Ventilators sowie des Wasserablaufes","I",null,null,null,"SK",null,"DGUVV\nBGR-GUV-R 108\nGUV-V A3\nVDI 6022-1\n",6,36,24.000000000000004,24.000000000000004]
[434,"Rückkühlwerk","Ventilatoren","Schaufelverstelleinrichtung auf Funktion prüfen","I",null,null,null,"SK",null,"DGUVV\nBGR-GUV-R 108\nGUV-V A3\nVDI 6022-1\n",6,36,24.000000000000004,24.000000000000004]
[434,"Rückkühlwerk","Ventilatoren","Lager auf Geräusch prüfen","I",null,null,null,"SK",null,"DGUVV\nBGR-GUV-R 108\nGUV-V A3\nVDI 6022-1\n",6,36,24.000000000000004,24.000000000000004]
[434,"Rückkühlwerk","Ventilatoren","Flexible Verbindungen auf Dichtheit prüfen","I",null,null,null,"SK",null,"DGUVV\nBGR-GUV-R 108\nGUV-V A3\nVDI 6022-1\n",6,36,24.000000000000004,24.000000000000004]
[434,"Rückkühlwerk","Ventilatoren","Schwingungsdämpfer auf Funktion prüfen","I",null,null,null,"SK",null,"DGUVV\nBGR-GUV-R 108\nGUV-V A3\nVDI 6022-1\n",6,36,24.000000000000004,24.000000000000004]
[434,"Rückkühlwerk","Ventilatoren","Schutzeinrichtungen auf Funktion prüfen","I",null,null,null,"SK",null,"DGUVV\nBGR-GUV-R 108\nGUV-V A3\nVDI 6022-1\n",6,36,24.000000000000004,24.000000000000004]
[434,"Rückkühlwerk","Ventilatoren","Drallregler auf Funktion prüfen","I",null,null,null,"SK",null,"DGUVV\nBGR-GUV-R 108\nGUV-V A3\nVDI 6022-1\n",6,36,24.000000000000004,24.000000000000004]
[434,"Rückkühlwerk","Ventilatoren","Laufrad auf Unwucht prüfen","I",null,null,null,"SK",null,"DGUVV\nBGR-GUV-R 108\nGUV-V A3\nVDI 6022-1\n",6,36,24.000000000000004,24.000000000000004]
[434,"Rückkühlwerk","Ventilatoren","Lager schmieren",null,"W",null,null,"SK",null,"DGUVV\nBGR-GUV-R 108\nGUV-V A3\nVDI 6022-1\n",6,36,24.000000000000004,24.000000000000004]
[434,"Rückkühlwerk","Wetterschutzgitter","Hygienemaßnahmen nach VDI 6022 Blatt 1","I",null,null,null,"SK",null,"VDI 6022",6,36,24.000000000000004,24.000000000000004]
[434,"Rückkühlwerk","Wetterschutzgitter","Auf Verschmutzung, Beschädigung, Korrosion prüfen","I",null,null,null,"SK",null,"-",6,36,24.000000000000004,24.000000000000004]
[434,"Rückkühlwerk","Wetterschutzgitter","Reinigen",null,"W",null,null,"SK",null,"-",6,36,24.000000000000004,24.000000000000004]
[434,"Rückkühlwerk","Gitter und Verteiler","Hygienemaßnahmen nach VDI 6022 Blatt 1","I",null,null,null,"SK",null,"VDI 6022",6,36,24.000000000000004,24.000000000000004]
[434,"Rückkühlwerk","Gitter und Verteiler","Eingebaute Lochbleche, Maschendraht oder Siebe auf Verschmutzung prüfen (Stichprobe), ggf. reinigen bzw. austauschen","I",null,null,null,"SK",null,"VDI 6022",6,36,24.000000000000004,24.000000000000004]
[434,"Rückkühlwerk","Gitter und Verteiler","Filtervliese auswechseln bei Filterklasse < F 9",null,"W",null,null,"SK",null,"VDI 6022",6,36,24.000000000000004,24.000000000000004]
[434,"Rückkühlwerk","Gitter und Verteiler","Luftdurchlässe mit Induktion der Raumluft und Abluftdurlässe auf Feststoffablagerungen prüfen, ggf. reinigen",null,"W",null,null,"SK",null,"VDI 6022",6,36,24.000000000000004,24.000000000000004]
[434,"Rückkühlwerk","Gitter und Verteiler","Reinigung der durch Sekundärluft durchströmten Bauteile",null,"W",null,null,"SK",null,"VDI 6022",6,36,24.000000000000004,24.000000000000004]
[434,"Rückkühlwerk","Klappen","Auf Verschmutzung, Beschlädigung und Korrosion prüfen","I",{"$nulls":4},"FK","-",6,36,24.000000000000004,24.000000000000004]
[434,"Rückkühlwerk","Klappen","Auf mechanische Funktion prüfen","I",{"$nulls":4},"FK","-",6,36,24.000000000000004,24.000000000000004]
[434,"Rückkühlwerk","Klappen","Lager und Gestänge schmieren",null,"W",null,null,null,"FK","-",6,36,24.000000000000004,24.000000000000004]
[434,"Rückkühlwerk","Luftleitungen und -kammern","Hygienemaßnahmen nach VDI 6022 Blatt 1","I",null,null,null,"SK",null,"BayBO Art. 39\nVDI 6022",6,36,24.000000000000004,24.000000000000004]
[434,"Rückkühlwerk","Luftleitungen und -kammern","Hygienemaßnahmen nach VDI 6022 Blatt 1","I",null,null,null,"SK",null,"BayBO Art. 39\nVDI 6022",6,36,24.000000000000004,24.000000000000004]
[434,"Rückkühlwerk","Luftleitungen und -kammern","Zugängliche Luftleitungsabschnitte auf Beschädigung prüfen","I",null,null,null,"SK",null,"BayBO Art. 39\nVDI 6022",6,36,24.000000000000004,24.000000000000004]
[434,"Rückkühlwerk","Luftleitungen und -kammern","Abläufe auf Funktion prüfen","I",null,null,null,"SK",null,"BayBO Art. 39\nVDI 6022",6,36,24.000000000000004,24.000000000000004]
[434,"Rückkühlwerk","Luftleitungen und -kammern","Türen und Verschlüsse auf Gängigkeit und Dichtheit prüfen","I",null,null,null,"SK",null,"BayBO Art. 39\nVDI 6022",6,36,24.000000000000004,24.000000000000004]
[434,"Rückkühlwerk","Luftleitungen und -kammern","Isolierung auf äußere Beschädigung prüfen (Sichtprüfung)","I",null,null,null,"SK",null,"BayBO Art. 39\nVDI 6022",6,36,24.000000000000004,24.000000000000004]
[434,"Rückkühlwerk","Luftleitungen und -kammern","Flexible Verbindungen auf Dichtheit prüfen","I",null,null,null,"SK",null,"BayBO Art. 39\nVDI 6022",6,36,24.000000000000004,24.000000000000004]
[434,"Rückkühlwerk","Luftleitungen und -kammern","Reinigen",null,"W",null,null,"SK",null,"BayBO Art. 39\nVDI 6022",6,36,24.000000000000004,24.000000000000004]
[434,"Rückkühlwerk","Luftleitungen und -kammern","Kammerzentralen/ Gerätegehäuse auf luftseitige Verschmutzung, Beschädigung und Korrosion prüfen, ggf. reinigen","I",null,null,null,"SK",null,"BayBO Art. 39\nVDI 6022",6,36,24.000000000000004,24.000000000000004]
[434,"Rückkühlwerk","Luftleitungen und -kammern","Dto. Auf Wasserbildung prüfen, ggf. reinigen, Ursache ermitteln",null,"W",null,null,"SK",null,"BayBO Art. 39\nVDI 6022",6,36,24.000000000000004,24.000000000000004]
[434,"Rückkühlwerk","Luftleitungen und -kammern","Innere Luftleitungsfläche auf Verschmutzung und Korrosion an 2 bis 3 repräsentativen Stellen prüfen, ggf. Ursache ermitteln, ensprechende Luftleitungsabschnitte reinigen",null,"W",null,null,"SK",null,"BayBO Art. 39\nVDI 6022",6,36,24.000000000000004,24.000000000000004]
[434,"Rückkühlwerk","Luftleitungen und -kammern","Schalldämpfer auf Verschmutzung, Beschädigung und Korrosion prüfen","I",null,null,null,"SK",null,"BayBO Art. 39\nVDI 6022",6,36,24.000000000000004,24.000000000000004]
[434,"Rückkühlwerk","Luftleitungen und -kammern","Kontrolle des Hygienezustandes in der Luftleitung an einer repräsentativen Stelle, ggf. Ursache ermitteln, entsprechende Luftleitungsabschnitte reinigen (Hygieneinspektion)",null,"W",null,null,"SK",null,"BayBO Art. 39\nVDI 6022",6,36,24.000000000000004,24.000000000000004]
[434,"Rückkühlwerk","Luftleitungen und -kammern","Bewegliche Teile schmieren",null,"W",null,null,"SK",null,"BayBO Art. 39\nVDI 6022",6,36,24.000000000000004,24.000000000000004]
[434,"Rückkühlwerk","Volumenstrom- und Mischregler","Auf Verschmutzung, Beschädigung und Korrosion prüfen","I",{"$nulls":4},"FK","-",6,36,24.000000000000004,24.000000000000004]
[434,"Rückkühlwerk","Volumenstrom- und Mischregler","Volumenstromregler auf Funktion prüfen","I",{"$nulls":4},"FK","-",6,36,24.000000000000004,24.000000000000004]
[434,"Rückkühlwerk","Volumenstrom- und Mischregler","Regelklappen auf Funktion prüfen","I",{"$nulls":4},"FK","-",6,36,24.000000000000004,24.000000000000004]
[434,"Rückkühlwerk","Volumenstrom- und Mischregler","Reinigen",null,"W",null,null,null,"FK","-",6,36,24.000000000000004,24.000000000000004]
[434,"Rückkühlwerk","Absperr- und Abgleichelemente","Auf Verschmutzung, Beschädigung und Korrosion prüfen","I",{"$nulls":4},"FK","-",6,36,24.000000000000004,24.000000000000004]
[434,"Rückkühlwerk","Absperr- und Abgleichelemente","Auf Funktion prüfen","I",{"$nulls":4},"FK","-",6,36,24.000000000000004,24.000000000000004]
[434,"Rückkühlwerk","Absperr- und Abgleichelemente","Reinigen",null,"W",null,null,null,"FK","-",6,36,24.000000000000004,24.000000000000004]
[434,"Rückkühlwerk","Luftfilter","Hygienemaßnahmen nach VDI 6022 Blatt 1","I",null,null,null,"SK",null,"VDI 6022",3,12,8,8]
[434,"Rückkühlwerk","Luftfilter","Differenzdruck prüfen, ggf. Filterstufe auswechseln","I",null,null,null,"SK",null,"VDI 6022",3,6,4,4]
[434,"Rückkühlwerk","Luftfilter","Luftfilter auf unzulässige Verschmutzung und Beschädigung (Leckagen) prüfen ggf. auswechseln der betroffenen Luftfilter, falls letzte Auswechselung der Filterstufe nicht länger als 6 Mon. her ist, sonst auswechseln der gesamten Filterstufe",null,"W",null,null,"SK",null,"VDI 6022",3,3,3,3]
[434,"Rückkühlwerk","Luftfilter","Spätester Filterwechsel der 1. Stufe bei nicht regenerierbaren Luftfiltern, sonst gründliche Reinigung",null,"W",null,null,"SK",null,"VDI 6022",3,12,8,8]
[434,"Rückkühlwerk","Luftfilter","Spätester Filterwechsel der 2. Stufe",null,"W",null,null,"SK",null,"VDI 6022",3,24,16,16]
[434,"Rückkühlwerk","Rollbandfilter","Auf Verschmutzung, Beschädigung und Korrosion prüfen","I",null,null,null,"SK",null,"VDI 6022\n",3,12,8,8]
[434,"Rückkühlwerk","Rollbandfilter","Druckdifferenz messen","I",null,null,null,"SK",null,"VDI 6022\n",3,6,4,4]
[434,"Rückkühlwerk","Rollbandfilter","Filtervorschub auf Funktion prüfen","I",null,null,null,"SK",null,"VDI 6022\n",3,12,8,8]
[434,"Rückkühlwerk","Rollbandfilter","Filtermedium auf Vorrat prüfen","I",null,null,null,"SK",null,"VDI 6022\n",3,12,8,8]
[434,"Rückkühlwerk","Rollbandfilter","Filterband auswechseln",null,"W",null,null,"SK",null,"VDI 6022-1",3,12,8,8]
[434,"Rückkühlwerk","Trockenschichtfilter","Auf Verschmutzung, Korrosion und Beschädigung prüfen","I",null,null,null,"SK",null,"VDI 6022",3,12,8,8]
[434,"Rückkühlwerk","Trockenschichtfilter","Filterauflage auf Dichtheit prüfen","I",null,null,null,"SK",null,"VDI 6022",3,12,8,8]
[434,"Rückkühlwerk","Trockenschichtfilter","Druckdifferenz messen",null,"W",null,null,"SK",null,"VDI 6022-1",3,6,4,4]
[434,"Rückkühlwerk","Trockenschichtfilter","Filtermedium (regenerierbar) reinigen",null,"W",null,null,"SK",null,"VDI 6022-1",3,12,8,8]
[434,"Rückkühlwerk","gesamte Anlage","Kontrolle des Hygienezustandes (Hygieneinspektion)","I",null,null,null,"SK",null,"VDI 6022-1",3,6,4,4]
[434,"Rückkühlwerk","Elektrofilter","Auf Verschmutzung, Beschädigung und Korrosion prüfen","I",null,null,null,"SK",null,"DGUVV\nGUV-V A3\nVDI 6022",6,6,6,6]
[434,"Rückkühlwerk","Elektrofilter","Ionisationsdrähte auf Beschädigung prüfen","I",null,null,null,"SK",null,"DGUVV\nGUV-V A3\nVDI 6022",6,12,8,8]
[434,"Rückkühlwerk","Elektrofilter","Ionisationsdrähte auswechseln",null,"W",null,null,"SK",null,"DGUVV\nGUV-V A3\nVDI 6022",6,48,32,32]
[434,"Rückkühlwerk","Elektrofilter","Filterzellen auf Beschädigung und Funkenschlag prüfen","I",null,null,null,"SK",null,"DGUVV\nGUV-V A3\nVDI 6022",6,12,8,8]
[434,"Rückkühlwerk","Elektrofilter","Isolatoren auf festen Sitz prüfen","I",null,null,null,"SK",null,"DGUVV\nGUV-V A3\nVDI 6022",6,12,8,8]
[434,"Rückkühlwerk","Elektrofilter","Isolatoren auswechseln",null,"W",null,null,"SK",null,"DGUVV\nGUV-V A3\nVDI 6022",6,36,24.000000000000004,24.000000000000004]
[434,"Rückkühlwerk","Elektrofilter","Stromaufnahme messen",null,"W",null,null,"SK",null,"DGUVV\nGUV-V A3\nVDI 6022",6,12,8,8]
[434,"Rückkühlwerk","Elektrofilter","Reinigungseinrichtung auf Funktion prüfen","I",null,null,null,"SK",null,"DGUVV\nGUV-V A3\nVDI 6022",6,12,8,8]
[434,"Rückkühlwerk","Elektrofilter","MSR-Sicherheitseinrichtungen prüfen","I",null,null,null,"SK",null,"DGUVV\nGUV-V A3\nVDI 6022",6,12,8,8]
[434,"Rückkühlwerk","Elektrofilter","Antriebselemente prüfen","I",null,null,null,"SK",null,"DGUVV\nGUV-V A3\nVDI 6022",6,12,8,8]
[434,"Rückkühlwerk","Elektrofilter","Reinigen",null,"W",null,null,"SK",null,"DGUVV\nGUV-V A3\nVDI 6022",6,12,8,8]
[434,"Rückkühlwerk","Sorptionsfilter","Auf äußere Verschmutzung, Beschädigung und Korrosion prüfen","I",null,null,null,"SK",null,"VDI 6022",6,3,6,6]
[434,"Rückkühlwerk","Sorptionsfilter","Filtereinsatz auf dichten Sitz prüfen","I",null,null,null,"SK",null,"VDI 6022",6,6,6,6]
[434,"Rückkühlwerk","Sorptionsfilter","Filtereinsatz auswechseln",null,"W",null,null,"SK",null,"VDI 6022",6,24,16,16]
[434,"Rückkühlwerk","Sorptionsfilter","Reinigen",null,"W",null,null,"SK",null,"VDI 6022",6,12,8,8]
[434,"Verteilnetz / Pumpen - Kälteerzeugung","Ventilatoren","Hygienemaßnahmen nach VDI 6022 Blatt 1","I",null,null,null,"SK",null,"DGUVV\nBGR-GUV-R 108\nGUV-V A3\nVDI 6022-1\n",6,36,24.000000000000004,24.000000000000004]
[434,"Verteilnetz / Pumpen - Kälteerzeugung","Ventilatoren","Ventilator auf Verschmutzung, Beschädigung und Korrosion prüfen","I",null,null,null,"SK",null,"DGUVV\nBGR-GUV-R 108\nGUV-V A3\nVDI 6022-1\n",6,36,24.000000000000004,24.000000000000004]
[434,"Verteilnetz / Pumpen - Kälteerzeugung","Ventilatoren","Funktionserhaltendes Reinigen der luftberührten Teile des Ventilators sowie des Wasserablaufes","I",null,null,null,"SK",null,"DGUVV\nBGR-GUV-R 108\nGUV-V A3\nVDI 6022-1\n",6,36,24.000000000000004,24.000000000000004]
[434,"Verteilnetz / Pumpen - Kälteerzeugung","Ventilatoren","Schaufelverstelleinrichtung auf Funktion prüfen","I",null,null,null,"SK",null,"DGUVV\nBGR-GUV-R 108\nGUV-V A3\nVDI 6022-1\n",6,36,24.000000000000004,24.000000000000004]
[434,"Verteilnetz / Pumpen - Kälteerzeugung","Ventilatoren","Lager auf Geräusch prüfen","I",null,null,null,"SK",null,"DGUVV\nBGR-GUV-R 108\nGUV-V A3\nVDI 6022-1\n",6,36,24.000000000000004,24.000000000000004]
[434,"Verteilnetz / Pumpen - Kälteerzeugung","Ventilatoren","Flexible Verbindungen auf Dichtheit prüfen","I",null,null,null,"SK",null,"DGUVV\nBGR-GUV-R 108\nGUV-V A3\nVDI 6022-1\n",6,36,24.000000000000004,24.000000000000004]
[434,"Verteilnetz / Pumpen - Kälteerzeugung","Ventilatoren","Schwingungsdämpfer auf Funktion prüfen","I",null,null,null,"SK",null,"DGUVV\nBGR-GUV-R 108\nGUV-V A3\nVDI 6022-1\n",6,36,24.000000000000004,24.000000000000004]
[434,"Verteilnetz / Pumpen - Kälteerzeugung","Ventilatoren","Schutzeinrichtungen auf Funktion prüfen","I",null,null,null,"SK",null,"DGUVV\nBGR-GUV-R 108\nGUV-V A3\nVDI 6022-1\n",6,36,24.000000000000004,24.000000000000004]
[434,"Verteilnetz / Pumpen - Kälteerzeugung","Ventilatoren","Drallregler auf Funktion prüfen","I",null,null,null,"SK",null,"DGUVV\nBGR-GUV-R 108\nGUV-V A3\nVDI 6022-1\n",6,36,24.000000000000004,24.000000000000004]
[434,"Verteilnetz / Pumpen - Kälteerzeugung","Ventilatoren","Laufrad auf Unwucht prüfen","I",null,null,null,"SK",null,"DGUVV\nBGR-GUV-R 108\nGUV-V A3\nVDI 6022-1\n",6,36,24.000000000000004,24.000000000000004]
[434,"Verteilnetz / Pumpen - Kälteerzeugung","Ventilatoren","Lager schmieren",null,"W",null,null,"SK",null,"DGUVV\nBGR-GUV-R 108\nGUV-V A3\nVDI 6022-1\n",6,36,24.000000000000004,24.000000000000004]
[434,"Verteilnetz / Pumpen - Kälteerzeugung","Wetterschutzgitter","Hygienemaßnahmen nach VDI 6022 Blatt 1","I",null,null,null,"SK",null,"VDI 6022",6,36,24.000000000000004,24.000000000000004]
[434,"Verteilnetz / Pumpen - Kälteerzeugung","Wetterschutzgitter","Auf Verschmutzung, Beschädigung, Korrosion prüfen","I",null,null,null,"SK",null,"-",6,36,24.000000000000004,24.000000000000004]
[434,"Verteilnetz / Pumpen - Kälteerzeugung","Wetterschutzgitter","Reinigen",null,"W",null,null,"SK",null,"-",6,36,24.000000000000004,24.000000000000004]
[434,"Verteilnetz / Pumpen - Kälteerzeugung","Gitter und Verteiler","Hygienemaßnahmen nach VDI 6022 Blatt 1","I",null,null,null,"SK",null,"VDI 6022",6,36,24.000000000000004,24.000000000000004]
[434,"Verteilnetz / Pumpen - Kälteerzeugung","Gitter und Verteiler","Eingebaute Lochbleche, Maschendraht oder Siebe auf Verschmutzung prüfen (Stichprobe), ggf. reinigen bzw. austauschen","I",null,null,null,"SK",null,"VDI 6022",6,36,24.000000000000004,24.000000000000004]
[434,"Verteilnetz / Pumpen - Kälteerzeugung","Gitter und Verteiler","Filtervliese auswechseln bei Filterklasse < F 9",null,"W",null,null,"SK",null,"VDI 6022",6,36,24.000000000000004,24.000000000000004]
[434,"Verteilnetz / Pumpen - Kälteerzeugung","Gitter und Verteiler","Luftdurchlässe mit Induktion der Raumluft und Abluftdurlässe auf Feststoffablagerungen prüfen, ggf. reinigen",null,"W",null,null,"SK",null,"VDI 6022",6,36,24.000000000000004,24.000000000000004]
[434,"Verteilnetz / Pumpen - Kälteerzeugung","Gitter und Verteiler","Reinigung der durch Sekundärluft durchströmten Bauteile",null,"W",null,null,"SK",null,"VDI 6022",6,36,24.000000000000004,24.000000000000004]
[434,"Verteilnetz / Pumpen - Kälteerzeugung","Klappen","Auf Verschmutzung, Beschlädigung und Korrosion prüfen","I",{"$nulls":4},"FK","-",6,36,24.000000000000004,24.000000000000004]
[434,"Verteilnetz / Pumpen - Kälteerzeugung","Klappen","Auf mechanische Funktion prüfen","I",{"$nulls":4},"FK","-",6,36,24.000000000000004,24.000000000000004]
[434,"Verteilnetz / Pumpen - Kälteerzeugung","Klappen","Lager und Gestänge schmieren",null,"W",null,null,null,"FK","-",6,36,24.000000000000004,24.000000000000004]
[434,"Verteilnetz / Pumpen - Kälteerzeugung","Luftleitungen und -kammern","Hygienemaßnahmen nach VDI 6022 Blatt 1","I",null,null,null,"SK",null,"BayBO Art. 39\nVDI 6022",6,36,24.000000000000004,24.000000000000004]
[434,"Verteilnetz / Pumpen - Kälteerzeugung","Luftleitungen und -kammern","Hygienemaßnahmen nach VDI 6022 Blatt 1","I",null,null,null,"SK",null,"BayBO Art. 39\nVDI 6022",6,36,24.000000000000004,24.000000000000004]
[434,"Verteilnetz / Pumpen - Kälteerzeugung","Luftleitungen und -kammern","Zugängliche Luftleitungsabschnitte auf Beschädigung prüfen","I",null,null,null,"SK",null,"BayBO Art. 39\nVDI 6022",6,36,24.000000000000004,24.000000000000004]
[434,"Verteilnetz / Pumpen - Kälteerzeugung","Luftleitungen und -kammern","Abläufe auf Funktion prüfen","I",null,null,null,"SK",null,"BayBO Art. 39\nVDI 6022",6,36,24.000000000000004,24.000000000000004]
[434,"Verteilnetz / Pumpen - Kälteerzeugung","Luftleitungen und -kammern","Türen und Verschlüsse auf Gängigkeit und Dichtheit prüfen","I",null,null,null,"SK",null,"BayBO Art. 39\nVDI 6022",6,36,24.000000000000004,24.000000000000004]
[434,"Verteilnetz / Pumpen - Kälteerzeugung","Luftleitungen und -kammern","Isolierung auf äußere Beschädigung prüfen (Sichtprüfung)","I",null,null,null,"SK",null,"BayBO Art. 39\nVDI 6022",6,36,24.000000000000004,24.000000000000004]
[434,"Verteilnetz / Pumpen - Kälteerzeugung","Luftleitungen und -kammern","Flexible Verbindungen auf Dichtheit prüfen","I",null,null,null,"SK",null,"BayBO Art. 39\nVDI 6022",6,36,24.000000000000004,24.000000000000004]
[434,"Verteilnetz / Pumpen - Kälteerzeugung","Luftleitungen und -kammern","Reinigen",null,"W",null,null,"SK",null,"BayBO Art. 39\nVDI 6022",6,36,24.000000000000004,24.000000000000004]
[434,"Verteilnetz / Pumpen - Kälteerzeugung","Luftleitungen und -kammern","Kammerzentralen/ Gerätegehäuse auf luftseitige Verschmutzung, Beschädigung und Korrosion prüfen, ggf. reinigen","I",null,null,null,"SK",null,"BayBO Art. 39\nVDI 6022",6,36,24.000000000000004,24.000000000000004]
[434,"Verteilnetz / Pumpen - Kälteerzeugung","Luftleitungen und -kammern","Dto. Auf Wasserbildung prüfen, ggf. reinigen, Ursache ermitteln",null,"W",null,null,"SK",null,"BayBO Art. 39\nVDI 6022",6,36,24.000000000000004,24.000000000000004]
[434,"Verteilnetz / Pumpen - Kälteerzeugung","Luftleitungen und -kammern","Innere Luftleitungsfläche auf Verschmutzung und Korrosion an 2 bis 3 repräsentativen Stellen prüfen, ggf. Ursache ermitteln, ensprechende Luftleitungsabschnitte reinigen",null,"W",null,null,"SK",null,"BayBO Art. 39\nVDI 6022",6,36,24.000000000000004,24.000000000000004]
[434,"Verteilnetz / Pumpen - Kälteerzeugung","Luftleitungen und -kammern","Schalldämpfer auf Verschmutzung, Beschädigung und Korrosion prüfen","I",null,null,null,"SK",null,"BayBO Art. 39\nVDI 6022",6,36,24.000000000000004,24.000000000000004]
[434,"Verteilnetz / Pumpen - Kälteerzeugung","Luftleitungen und -kammern","Kontrolle des Hygienezustandes in der Luftleitung an einer repräsentativen Stelle, ggf. Ursache ermitteln, entsprechende Luftleitungsabschnitte reinigen (Hygieneinspektion)",null,"W",null,null,"SK",null,"BayBO Art. 39\nVDI 6022",6,36,24.000000000000004,24.000000000000004]
[434,"Verteilnetz / Pumpen - Kälteerzeugung","Luftleitungen und -kammern","Bewegliche Teile schmieren",null,"W",null,null,"SK",null,"BayBO Art. 39\nVDI 6022",6,36,24.000000000000004,24.000000000000004]
[434,"Verteilnetz / Pumpen - Kälteerzeugung","Volumenstrom- und Mischregler","Auf Verschmutzung, Beschädigung und Korrosion prüfen","I",{"$nulls":4},"FK","-",6,36,24.000000000000004,24.000000000000004]
[434,"Verteilnetz / Pumpen - Kälteerzeugung","Volumenstrom- und Mischregler","Volumenstromregler auf Funktion prüfen","I",{"$nulls":4},"FK","-",6,36,24.000000000000004,24.000000000000004]
[434,"Verteilnetz / Pumpen - Kälteerzeugung","Volumenstrom- und Mischregler","Regelklappen auf Funktion prüfen","I",{"$nulls":4},"FK","-",6,36,24.000000000000004,24.000000000000004]
[434,"Verteilnetz / Pumpen - Kälteerzeugung","Volumenstrom- und Mischregler","Reinigen",null,"W",null,null,null,"FK","-",6,36,24.000000000000004,24.000000000000004]
[434,"Verteilnetz / Pumpen - Kälteerzeugung","Absperr- und Abgleichelemente","Auf Verschmutzung, Beschädigung und Korrosion prüfen","I",{"$nulls":4},"FK","-",6,36,24.000000000000004,24.000000000000004]
[434,"Verteilnetz / Pumpen - Kälteerzeugung","Absperr- und Abgleichelemente","Auf Funktion prüfen","I",{"$nulls":4},"FK","-",6,36,24.000000000000004,24.000000000000004]
[434,"Verteilnetz / Pumpen - Kälteerzeugung","Absperr- und Abgleichelemente","Reinigen",null,"W",null,null,null,"FK","-",6,36,24.000000000000004,24.000000000000004]
[434,"Verteilnetz / Pumpen - Kälteerzeugung","Luftfilter","Hygienemaßnahmen nach VDI 6022 Blatt 1","I",null,null,null,"SK",null,"VDI 6022",3,12,8,8]
[434,"Verteilnetz / Pumpen - Kälteerzeugung","Luftfilter","Differenzdruck prüfen, ggf. Filterstufe auswechseln","I",null,null,null,"SK",null,"VDI 6022",3,6,4,4]
[434,"Verteilnetz / Pumpen - Kälteerzeugung","Luftfilter","Luftfilter auf unzulässige Verschmutzung und Beschädigung (Leckagen) prüfen ggf. auswechseln der betroffenen Luftfilter, falls letzte Auswechselung der Filterstufe nicht länger als 6 Mon. her ist, sonst auswechseln der gesamten Filterstufe",null,"W",null,null,"SK",null,"VDI 6022",3,3,3,3]
[434,"Verteilnetz / Pumpen - Kälteerzeugung","Luftfilter","Spätester Filterwechsel der 1. Stufe bei nicht regenerierbaren Luftfiltern, sonst gründliche Reinigung",null,"W",null,null,"SK",null,"VDI 6022",3,12,8,8]
[434,"Verteilnetz / Pumpen - Kälteerzeugung","Luftfilter","Spätester Filterwechsel der 2. Stufe",null,"W",null,null,"SK",null,"VDI 6022",3,24,16,16]
[434,"Verteilnetz / Pumpen - Kälteerzeugung","Rollbandfilter","Auf Verschmutzung, Beschädigung und Korrosion prüfen","I",null,null,null,"SK",null,"VDI 6022\n",3,12,8,8]
[434,"Verteilnetz / Pumpen - Kälteerzeugung","Rollbandfilter","Druckdifferenz messen","I",null,null,null,"SK",null,"VDI 6022\n",3,6,4,4]
[434,"Verteilnetz / Pumpen - Kälteerzeugung","Rollbandfilter","Filtervorschub auf Funktion prüfen","I",null,null,null,"SK",null,"VDI 6022\n",3,12,8,8]
[434,"Verteilnetz / Pumpen - Kälteerzeugung","Rollbandfilter","Filtermedium auf Vorrat prüfen","I",null,null,null,"SK",null,"VDI 6022\n",3,12,8,8]
[434,"Verteilnetz / Pumpen - Kälteerzeugung","Rollbandfilter","Filterband auswechseln",null,"W",null,null,"SK",null,"VDI 6022-1",3,12,8,8]
[434,"Verteilnetz / Pumpen - Kälteerzeugung","Trockenschichtfilter","Auf Verschmutzung, Korrosion und Beschädigung prüfen","I",null,null,null,"SK",null,"VDI 6022",3,12,8,8]
[434,"Verteilnetz / Pumpen - Kälteerzeugung","Trockenschichtfilter","Filterauflage auf Dichtheit prüfen","I",null,null,null,"SK",null,"VDI 6022",3,12,8,8]
[434,"Verteilnetz / Pumpen - Kälteerzeugung","Trockenschichtfilter","Druckdifferenz messen",null,"W",null,null,"SK",null,"VDI 6022-1",3,6,4,4]
[434,"Verteilnetz / Pumpen - Kälteerzeugung","Trockenschichtfilter","Filtermedium (regenerierbar) reinigen",null,"W",null,null,"SK",null,"VDI 6022-1",3,12,8,8]
[434,"Verteilnetz / Pumpen - Kälteerzeugung","gesamte Anlage","Kontrolle des Hygienezustandes (Hygieneinspektion)","I",null,null,null,"SK",null,"VDI 6022-1",3,6,4,4]
[434,"Verteilnetz / Pumpen - Kälteerzeugung","Elektrofilter","Auf Verschmutzung, Beschädigung und Korrosion prüfen","I",null,null,null,"SK",null,"DGUVV\nGUV-V A3\nVDI 6022",6,6,6,6]
[434,"Verteilnetz / Pumpen - Kälteerzeugung","Elektrofilter","Ionisationsdrähte auf Beschädigung prüfen","I",null,null,null,"SK",null,"DGUVV\nGUV-V A3\nVDI 6022",6,12,8,8]
[434,"Verteilnetz / Pumpen - Kälteerzeugung","Elektrofilter","Ionisationsdrähte auswechseln",null,"W",null,null,"SK",null,"DGUVV\nGUV-V A3\nVDI 6022",6,48,32,32]
[434,"Verteilnetz / Pumpen - Kälteerzeugung","Elektrofilter","Filterzellen auf Beschädigung und Funkenschlag prüfen","I",null,null,null,"SK",null,"DGUVV\nGUV-V A3\nVDI 6022",6,12,8,8]
[434,"Verteilnetz / Pumpen - Kälteerzeugung","Elektrofilter","Isolatoren auf festen Sitz prüfen","I",null,null,null,"SK",null,"DGUVV\nGUV-V A3\nVDI 6022",6,12,8,8]
[434,"Verteilnetz / Pumpen - Kälteerzeugung","Elektrofilter","Isolatoren auswechseln",null,"W",null,null,"SK",null,"DGUVV\nGUV-V A3\nVDI 6022",6,36,24.000000000000004,24.000000000000004]
[434,"Verteilnetz / Pumpen - Kälteerzeugung","Elektrofilter","Stromaufnahme messen",null,"W",null,null,"SK",null,"DGUVV\nGUV-V A3\nVDI 6022",6,12,8,8]
[434,"Verteilnetz / Pumpen - Kälteerzeugung","Elektrofilter","Reinigungseinrichtung auf Funktion prüfen","I",null,null,null,"SK",null,"DGUVV\nGUV-V A3\nVDI 6022",6,12,8,8]
[434,"Verteilnetz / Pumpen - Kälteerzeugung","Elektrofilter","MSR-Sicherheitseinrichtungen prüfen","I",null,null,null,"SK",null,"DGUVV\nGUV-V A3\nVDI 6022",6,12,8,8]
[434,"Verteilnetz / Pumpen - Kälteerzeugung","Elektrofilter","Antriebselemente prüfen","I",null,null,null,"SK",null,"DGUVV\nGUV-V A3\nVDI 6022",6,12,8,8]
[434,"Verteilnetz / Pumpen - Kälteerzeugung","Elektrofilter","Reinigen",null,"W",null,null,"SK",null,"DGUVV\nGUV-V A3\nVDI 6022",6,12,8,8]
[434,"Verteilnetz / Pumpen - Kälteerzeugung","Sorptionsfilter","Auf äußere Verschmutzung, Beschädigung und Korrosion prüfen","I",null,null,null,"SK",null,"VDI 6022",6,3,6,6]
[434,"Verteilnetz / Pumpen - Kälteerzeugung","Sorptionsfilter","Filtereinsatz auf dichten Sitz prüfen","I",null,null,null,"SK",null,"VDI 6022",6,6,6,6]
[434,"Verteilnetz / Pumpen - Kälteerzeugung","Sorptionsfilter","Filtereinsatz auswechseln",null,"W",null,null,"SK",null,"VDI 6022",6,24,16,16]
[434,"Verteilnetz / Pumpen - Kälteerzeugung","Sorptionsfilter","Reinigen",null,"W",null,null,"SK",null,"VDI 6022",6,12,8,8]
[434,"Verdunstungskühlanlage","offener Kühlturm","Für den Betrieb von Verdunstungskühlanlagen bedarf es eines konkreten Maßnahmenplans auf der Grundlage einer objektspezifischen Gefährdungsbeurteilung nach VDI 2047 Bl.2","I",null,null,null,"SK",null,"VDI 6022, 42. BlmSchV",3,12]
[434,"Verdunstungskühlanlage","offener Kühlturm","Mitwirkung bei Änderung des Maßnahmenplans gem. VDI 2047 Bl. 2, Ziff.9.2","I",null,null,null,"SK",null,"VDI 6022, 42. BlmSchV",3,12]
[434,"Verdunstungskühlanlage","offener Kühlturm","Dokumentation der jeweils durchgeführten Maßnahmen gem. Betriebshandbuch",null,"W",null,null,"SK",null,"VDI 6022, 42. BlmSchV",3,12]
[434,"Verdunstungskühlanlage","offener Kühlturm","alle Komponenten auf Beschädigung u. Korrosion prüfen","I",null,null,null,"SK",null,"VDI 6022, 42. BlmSchV",3,12]
[434,"Verdunstungskühlanlage","offener Kühlturm","Mess- u. Regelorgane auf Funktion prüfen","I",null,null,null,"SK",null,"VDI 6022, 42. BlmSchV",3,12]
[434,"Verdunstungskühlanlage","offener Kühlturm","Abflutung /Absalzung / Abschlämmung auf Funktion prüfen","I",null,null,null,"SK",null,"VDI 6022, 42. BlmSchV",3,12]
[434,"Verdunstungskühlanlage","offener Kühlturm","Pumpen auf Funktion prüfen","I",null,null,null,"SK",null,"VDI 6022, 42. BlmSchV",3,12]
[434,"Verdunstungskühlanlage","offener Kühlturm","Filter auf Funktion prüfen","I",null,null,null,"SK",null,"VDI 6022, 42. BlmSchV",3,12]
[434,"Verdunstungskühlanlage","offener Kühlturm","Mess- und Regelorgane auf mineralische Ablagerungen, Schmutz- und Schlamm-ablagerungen sowie biologische Ablage-rungen prüfen","I",null,null,null,"SK",null,"VDI 6022, 42. BlmSchV",3,12]
[434,"Verdunstungskühlanlage","offener Kühlturm","Wärmeübertrager auf mineralische Ablagerungen, Schmutz- und Schlammablagerungen sowie biologische Ablagerungen prüfen","I",null,null,null,"SK",null,"VDI 6022, 42. BlmSchV",3,12]
[434,"Verdunstungskühlanlage","offener Kühlturm","Filter auf mineralische Ablagerungen, Schmutz- und Schlammablagerungen sowie biologische Ablagerungen prüfen","I",null,null,null,"SK",null,"VDI 6022, 42. BlmSchV",3,12]
[434,"Verdunstungskühlanlage","offener Kühlturm","Füllkörper auf mineralische Ablagerungen, Schmutz- und Schlammablagerungen sowie biologische Ablagerungen prüfen","I",null,null,null,"SK",null,"VDI 6022, 42. BlmSchV",3,12]
[434,"Verdunstungskühlanlage","offener Kühlturm","Sprühdüsen auf mineralische Ablagerungen, Schmutz- und Schlammablagerungen sowie biologische Ablagerungen prüfen","I",null,null,null,"SK",null,"VDI 6022, 42. BlmSchV",3,12]
[434,"Verdunstungskühlanlage","offener Kühlturm","Tropfenabscheider auf mineralische Ablagerungen, Schmutz- und Schlammablagerungen sowie biologische Ablagerungen prüfen","I",null,null,null,"SK",null,"VDI 6022, 42. BlmSchV",3,12]
[434,"Verdunstungskühlanlage","offener Kühlturm","Rohrleitungen auf mineralische Ablagerungen, Schmutz- und Schlammablagerungen sowie biologische Ablagerungen prüfen","I",null,null,null,"SK",null,"VDI 6022, 42. BlmSchV",3,12]
[434,"Verdunstungskühlanlage","offener Kühlturm","Kühlturmtassen auf mineralische Ablagerungen, Schmutz- und Schlammablagerungen sowie biologische Ablagerungen prüfen","I",null,null,null,"SK",null,"VDI 6022, 42. BlmSchV",3,12]
[434,"Verdunstungskühlanlage","offener Kühlturm","Entfernen mineralischer Ablagerung, Schmutz- und Schlammablagerungen sowie biologische Ablagerungen",null,"W",null,null,"SK",null,"VDI 6022, 42. BlmSchV",3,12]
[434,"Verdunstungskühlanlage","offener Kühlturm","Weitergehende Untersuchungen, ggf. mikrobiologische Bestimmung",null,"W",null,null,"SK",null,"VDI 6022, 42. BlmSchV",3,12]
[434,"Verdunstungskühlanlage","offener Kühlturm","Reinigen,  Entleeren und Nachspülen des gesamten Systems während der Betriebszeit",null,"W",null,null,"SK",null,"VDI 6022, 42. BlmSchV",3,12]
[434,"Verdunstungskühlanlage","offener Kühlturm","Abschlämmrate nachmessen",null,"W",null,null,"SK",null,"VDI 6022, 42. BlmSchV",3,12]
[434,"Verdunstungskühlanlage","offener Kühlturm","Wasserprobennahmne nach DIN EN ISO 19458 i. Z. m der regelmäßigen Laboruntersuchung",null,"W",null,null,"SK",null,"VDI 6022, 42. BlmSchV",3,12]
[434,"Verdunstungskühlanlage","offener Kühlturm","Regelmäßige Laboruntersuchungen",null,"W",null,null,"SK",null,"VDI 6022, 42. BlmSchV",3,12]
[434,"Verdunstungskühlanlage","offener Kühlturm","Maßnahmen zur Legionellenprävention",null,"W",null,null,"SK",null,"VDI 6022, 42. BlmSchV",3,12]
[434,"Verdunstungskühlanlage","offener Kühlturm","Einleiten von Reinigungs-, Desinfektions- und Instandsetzungsmaßnahmen",null,"W",null,null,"SK",null,"VDI 6022, 42. BlmSchV",3,12]
[434,"Verdunstungskühlanlage","offener Kühlturm","Auf Verschmutzung, Beschädigung und Korrosion prüfen","I",null,null,null,"SK",null,"VDI 6022, 42. BlmSchV",3,12]
[434,"Verdunstungskühlanlage","offener Kühlturm","Wassereinspeisung und -verteilung prüfen","I",null,null,null,"SK",null,"VDI 6022, 42. BlmSchV",3,12]
[434,"Verdunstungskühlanlage","offener Kühlturm","Wasserstand prüfen","I",null,null,null,"SK",null,"VDI 6022, 42. BlmSchV",3,12]
[434,"Verdunstungskühlanlage","offener Kühlturm","Reguliereinrichtung für Wasserstand nachstellen",null,"W",null,null,"SK",null,"VDI 6022, 42. BlmSchV",3,12]
[434,"Verdunstungskühlanlage","offener Kühlturm","Wartung der Wasseraufbereitung gemäß dem Maßnahmenplan",null,"W",null,null,"SK",null,"VDI 6022, 42. BlmSchV",3,12]
[434,"Verdunstungskühlanlage","offener Kühlturm","Wartung der Wasserbehandlung gemäß Maßnahmenplan",null,"W",null,null,"SK",null,"VDI 6022, 42. BlmSchV",3,12]
[434,"Verdunstungskühlanlage","offener Kühlturm","Abschlämmvorrichtung auf Funktion prüfen","I",null,null,null,"SK",null,"VDI 6022, 42. BlmSchV",3,12]
[434,"Verdunstungskühlanlage","offener Kühlturm","Abschlämmmenge nach Auslegungsdaten einstellen ",null,"W",null,null,"SK",null,"VDI 6022, 42. BlmSchV",3,12]
[434,"Verdunstungskühlanlage","offener Kühlturm","Ab- und Überlauf auf Funktion prüfen","I",null,null,null,"SK",null,"VDI 6022, 42. BlmSchV",3,12]
[434,"Verdunstungskühlanlage","offener Kühlturm","Schmutzfänger auf Verschmutzung prüfen","I",null,null,null,"SK",null,"VDI 6022, 42. BlmSchV",3,12]
[434,"Verdunstungskühlanlage","offener Kühlturm","Schmutzfänger reinigen","I",null,null,null,"SK",null,"VDI 6022, 42. BlmSchV",3,12]
[434,"Verdunstungskühlanlage","offener Kühlturm","Wannenheizung auf Funktion prüfen","I",null,null,null,"SK",null,"VDI 6022, 42. BlmSchV",3,12]
[434,"Verdunstungskühlanlage","offener Kühlturm","Rohrbegleitheizung auf Funktion prüfen","I",null,null,null,"SK",null,"VDI 6022, 42. BlmSchV",3,12]
[434,"Verdunstungskühlanlage","offener Kühlturm","Schalldämpfer auf Funktion prüfen","I",null,null,null,"SK",null,"VDI 6022, 42. BlmSchV",3,12]
[434,"Verdunstungskühlanlage","offener Kühlturm","Anlage reinigen",null,"W",null,null,"SK",null,"VDI 6022, 42. BlmSchV",3,12]

{"sheet":"441","index":12,"n_rows":31,"n_cols":15,"rows_kept":31,"cut":false,"hidden":false,"merged":[]}
[{"$nulls":4},"Inspektion","Wartung","Instandsetzung","Sachverständiger","Sachkundige","Fachkraft",null,"Monate","Monate",{"$f":"IF([1]Fragen!$D$18=\"Ja\",\"Eine einfache Sichtkontrolle genügt\",\"Eine einfache Sichtkontrolle genügt nicht\")","v":{"$error":"#REF!"}}]
["Kostengruppe","Anlage (System)","Abgrenzung","Tätigkeit","I","W","IS","SV","SK","FK","normative Grundlage","min","max","Empfehlung Inspektion","Empfehlung Wartung"]
[441,"Schaltanlage",null,"Anlage auf Verschmutzung, Beschädigung und Korrosion prüfen","I",null,null,null,"SK",null,"PrüfVO § 2\nAnlPrüfV § 8\nDGUVV\nGUV-V A3\nDIN EN 50110-1 (VDE 0105-1)",24,48,32,32]
[441,"Schaltanlage",null,"Schaltgetriebe und Antriebe auf Funktion prüfen","I",null,null,null,"SK",null,"PrüfVO § 2\nAnlPrüfV § 8\nDGUVV\nGUV-V A3\nDIN EN 50110-1 (VDE 0105-1)",24,48,32,32]
[441,"Schaltanlage",null,"Elektrische und mechanische Schutzeinrichtungen auf Funktion prüfen","I",null,null,null,"SK",null,"PrüfVO § 2\nAnlPrüfV § 8\nDGUVV\nGUV-V A3\nDIN EN 50110-1 (VDE 0105-1)",24,48,32,32]
[441,"Schaltanlage",null,"Schutzerde und Potentialausgleich überprüfen (VDE 0141)","I",null,null,null,"SK",null,"PrüfVO § 2\nAnlPrüfV § 8\nDGUVV\nGUV-V A3\nDIN EN 50110-1 (VDE 0105-1)",24,48,32,32]
[441,"Schaltanlage",null,"Erdungswiderstand messen (VDE 0141)",null,"W",null,null,"SK",null,"PrüfVO § 2\nAnlPrüfV § 8\nDGUVV\nGUV-V A3\nDIN EN 50110-1 (VDE 0105-1)",24,48,32,32]
[441,"Schaltanlage",null,"Fernsteuereinrichtung auf Funktion prüfen","I",null,null,null,"SK",null,"PrüfVO § 2\nAnlPrüfV § 8\nDGUVV\nGUV-V A3\nDIN EN 50110-1 (VDE 0105-1)",24,48,32,32]
[441,"Schaltanlage",null,"Störmeldeeinrichtung überprüfen (Steuerspannung, Hilfsspannung, Lampenkontrolle)","I",null,null,null,"SK",null,"PrüfVO § 2\nAnlPrüfV § 8\nDGUVV\nGUV-V A3\nDIN EN 50110-1 (VDE 0105-1)",24,48,32,32]
[441,"Schaltanlage",null,"Arbeitsschutzeinrichtung auf Vollständigkeit, Beschädigung und ggf. Funktion prüfen (z.B. Spannungsmesser), Betätigungsstangen, Ersatzsicherungen, Erdungsteile, Warnschilder)","I",null,null,null,"SK",null,"PrüfVO § 2\nAnlPrüfV § 8\nDGUVV\nGUV-V A3\nDIN EN 50110-1 (VDE 0105-1)",24,48,32,32]
[441,"Schaltanlage",null,"Raumbeleuchtung und Sicherheitsbeleuchtung auf Funktion prüfen","I",null,null,null,"SK",null,"PrüfVO § 2\nAnlPrüfV § 8\nDGUVV\nGUV-V A3\nDIN EN 50110-1 (VDE 0105-1)",24,48,32,32]
[441,"Schaltanlage",null,"Kontaktsysteme der Lasttrenner/ Leistungsschalter prüfen","I",null,null,null,"SK",null,"PrüfVO § 2\nAnlPrüfV § 8\nDGUVV\nGUV-V A3\nDIN EN 50110-1 (VDE 0105-1)",24,48,32,32]
[441,"Schaltanlage",null,"Kabelendabschlüsse auf Zustand prüfen (Füllstand bei Nassabschlüssen, sowie Kriechspuren druch Verschmutzung und Feuchtigkeit)","I",null,null,null,"SK",null,"PrüfVO § 2\nAnlPrüfV § 8\nDGUVV\nGUV-V A3\nDIN EN 50110-1 (VDE 0105-1)",24,48,32,32]
[441,"Schaltanlage",null,"Anschlüsse einschl. der Sammelschienenverbindungen auf festen Sitz prüfen und ggf. nachziehen",null,"W",null,null,"SK",null,"PrüfVO § 2\nAnlPrüfV § 8\nDGUVV\nGUV-V A3\nDIN EN 50110-1 (VDE 0105-1)",24,48,32,32]
[441,"Transformator",null,"Anlage auf Verschmutzung, Beschädigung, Befestigung und Korrosion prüfen","I",null,null,null,"SK",null,"PrüfVO § 2\nAnlPrüfV § 8\nDGUVV\nGUV-V A3\nDIN EN 50110-1 (VDE 0105-1)",24,48,32,32]
[441,"Transformator",null,"Hochspannungs- /Mittelspannungsschutzerde auf Zustand prüfen","I",null,null,null,"SK",null,"PrüfVO § 2\nAnlPrüfV § 8\nDGUVV\nGUV-V A3\nDIN EN 50110-1 (VDE 0105-1)",24,48,32,32]
[441,"Transformator",null,"Transformator auf Leckagen prüfen. Bei offenen Systemen: Stand des flüssigen Isoliermittels prüfen","I",null,null,null,"SK",null,"PrüfVO § 2\nAnlPrüfV § 8\nDGUVV\nGUV-V A3\nDIN EN 50110-1 (VDE 0105-1)",24,48,32,32]
[441,"Transformator",null,"Elektrische und mechanische Schutzeinrichtungen auf Funktion prüfen","I",null,null,null,"SK",null,"PrüfVO § 2\nAnlPrüfV § 8\nDGUVV\nGUV-V A3\nDIN EN 50110-1 (VDE 0105-1)",24,48,32,32]
[441,"Transformator",null,"Niederspannungs-Betriebserde auf Zustand prüfen","I",null,null,null,"SK",null,"PrüfVO § 2\nAnlPrüfV § 8\nDGUVV\nGUV-V A3\nDIN EN 50110-1 (VDE 0105-1)",24,48,32,32]
[441,"Transformator",null,"Ausbreitungswiderstand der NS-Betriebserde messen (VDE 0100)",null,"W",null,null,"SK",null,"PrüfVO § 2\nAnlPrüfV § 8\nDGUVV\nGUV-V A3\nDIN EN 50110-1 (VDE 0105-1)",24,48,32,32]
[441,"Transformator",null,"Be- und Entlüftung auf Funktion prüfen","I",null,null,null,"SK",null,"PrüfVO § 2\nAnlPrüfV § 8\nDGUVV\nGUV-V A3\nDIN EN 50110-1 (VDE 0105-1)",24,48,32,32]
[441,"Transformator",null,"Be- und Entlüftung auf Funktion prüfen","I",null,null,null,"SK",null,"PrüfVO § 2\nAnlPrüfV § 8\nDGUVV\nGUV-V A3\nDIN EN 50110-1 (VDE 0105-1)",24,48,32,32]
[441,"Transformator",null,"Raumbeleuchtung auf Funktion prüfen","I",null,null,null,"SK",null,"PrüfVO § 2\nAnlPrüfV § 8\nDGUVV\nGUV-V A3\nDIN EN 50110-1 (VDE 0105-1)",24,48,32,32]
[441,"Transformator",null,"Anschlüsse und Verbindungen auf festen Sitz prüfen und ggf. nachziehen",null,"W",null,null,"SK",null,"PrüfVO § 2\nAnlPrüfV § 8\nDGUVV\nGUV-V A3\nDIN EN 50110-1 (VDE 0105-1)",24,48,32,32]
[441,"Transformator",null,"Flüssiges Isoliermittel auf Zustand prüfen, dielektrischen Verlustfaktor messen (VDE 0370)","I",null,null,null,"SK",null,"PrüfVO § 2\nAnlPrüfV § 8\nDGUVV\nGUV-V A3\nDIN EN 50110-1 (VDE 0105-1)",24,48,32,32]
[441,"Transformator",null,"Transformatorenkammer einschließlich Fußboden reinigen",null,"W",null,null,"SK",null,"PrüfVO § 2\nAnlPrüfV § 8\nDGUVV\nGUV-V A3\nDIN EN 50110-1 (VDE 0105-1)",24,48,32,32]
[441,"Transformator",null,"Anschlüsse und Verbindungen auf festen Sitz prüfen und ggf. nachziehen",null,"W",null,null,"SK",null,"PrüfVO § 2\nAnlPrüfV § 8\nDGUVV\nGUV-V A3\nDIN EN 50110-1 (VDE 0105-1)",24,48,32,32]
[441,"Transformator",null,"Trocknungsmittel überprüfen (Sichtprüfung)","I","W",null,null,"SK",null,"PrüfVO § 2\nAnlPrüfV § 8\nDGUVV\nGUV-V A3\nDIN EN 50110-1 (VDE 0105-1)",24,48,32,32]
[441,"Transformator",null,"Trocknungsmittel erneuern",null,"W",null,null,"SK",null,"PrüfVO § 2\nAnlPrüfV § 8\nDGUVV\nGUV-V A3\nDIN EN 50110-1 (VDE 0105-1)",24,48,32,32]
[441,"Transformator",null,"Trafoöl überprüfen (nach VDE 0370)","I",null,null,null,"SK",null,"PrüfVO § 2\nAnlPrüfV § 8\nDGUVV\nGUV-V A3\nDIN EN 50110-1 (VDE 0105-1)",24,48,32,32]
[441,"Transformator",null,"Trafoöl aufbereiten",null,"W",null,null,"SK",null,"PrüfVO § 2\nAnlPrüfV § 8\nDGUVV\nGUV-V A3\nDIN EN 50110-1 (VDE 0105-1)",24,48,32,32]

{"sheet":"442","index":13,"n_rows":14,"n_cols":15,"rows_kept":14,"cut":false,"hidden":false,"merged":[]}
[{"$nulls":4},"Inspektion","Wartung","Instandsetzung","Sachverständiger","Sachkundige","Fachkraft",null,"Monate","Monate",{"$f":"IF([1]Fragen!$D$18=\"Ja\",\"Eine einfache Sichtkontrolle genügt\",\"Eine einfache Sichtkontrolle genügt nicht\")","v":{"$error":"#REF!"}}]
["Kostengruppe","Anlage (System)","Abgrenzung","Tätigkeit","I","W","IS","SV","SK","FK","normative Grundlage","min","max","Empfehlung Inspektion","Empfehlung Wartung"]
[442,"zentrale Batterieanlage",null,"Auf Verschmutzung, Beschädigung, Korrosion und Befestigung prüfen","I",null,null,null,"SK",null,"ArbStättV § 4\nDGUVV § 5\nGUV-V A 3\nDIN EN 50172 (VDE 0108-100)",6,12,8,8]
[442,"zentrale Batterieanlage",null,"Funktionserhaltendes Reinigen der Batterieanlage",null,"W",null,null,"SK",null,"ArbStättV § 4\nDGUVV § 5\nGUV-V A 3\nDIN EN 50172 (VDE 0108-100)",6,12,8,8]
[442,"zentrale Batterieanlage",null,"Anschlüsse auf festen Sitz prüfen und ggf. nachziehen",null,"W",null,null,"SK",null,"ArbStättV § 4\nDGUVV § 5\nGUV-V A 3\nDIN EN 50172 (VDE 0108-100)",6,12,8,8]
[442,"zentrale Batterieanlage",null,"Flüssigkeitsstand und -dichte prüfen","I",null,null,null,"SK",null,"ArbStättV § 4\nDGUVV § 5\nGUV-V A 3\nDIN EN 50172 (VDE 0108-100)",6,12,8,8]
[442,"zentrale Batterieanlage",null,"Flüssigkeit nachreichen",null,"W",null,null,"SK",null,"ArbStättV § 4\nDGUVV § 5\nGUV-V A 3\nDIN EN 50172 (VDE 0108-100)",6,12,8,8]
[442,"zentrale Batterieanlage",null,"Batterie nach Herstellervorschrift entladen und wieder aufladen",null,"W",null,null,"SK",null,"ArbStättV § 4\nDGUVV § 5\nGUV-V A 3\nDIN EN 50172 (VDE 0108-100)",6,12,8,8]
[442,"zentrale Batterieanlage",null,"Be- und Entlüftung der Batterieanlage auf Funktion prüfen","I","W",null,null,"SK",null,"ArbStättV § 4\nDGUVV § 5\nGUV-V A 3\nDIN EN 50172 (VDE 0108-100)",6,12,8,8]
[442,"zentrale Batterieanlage",null,"Raumheizung (elektrisch) der Batterieanlage auf Funktion prüfen","I",null,null,null,"SK",null,"ArbStättV § 4\nDGUVV § 5\nGUV-V A 3\nDIN EN 50172 (VDE 0108-100)",6,12,8,8]
[442,"zentrale Batterieanlage",null,"Raumbeleuchtung der Batterieanlage","I",null,null,null,"SK",null,"ArbStättV § 4\nDGUVV § 5\nGUV-V A 3\nDIN EN 50172 (VDE 0108-100)",6,12,8,8]
[442,"zentrale Batterieanlage",null,"Funktionserhaltendes Reinigen der Leuchte",null,"W",null,null,"SK",null,"ArbStättV § 4\nDGUVV § 5\nGUV-V A 3\nDIN EN 50172 (VDE 0108-100)",6,12,8,8]
[442,"zentrale Batterieanlage",null,"Auf Funktion prüfen","I",null,null,null,"SK",null,"ArbStättV § 4\nDGUVV § 5\nGUV-V A 3\nDIN EN 50172 (VDE 0108-100)",6,12,8,8]
[442,"zentrale Batterieanlage",null,"Leuchtmittel auswechseln",null,"W",null,null,"SK",null,"ArbStättV § 4\nDGUVV § 5\nGUV-V A 3\nDIN EN 50172 (VDE 0108-100)",6,12,8,8]

{"sheet":"443","index":14,"n_rows":18,"n_cols":15,"rows_kept":18,"cut":false,"hidden":false,"merged":[]}
[{"$nulls":4},"Inspektion","Wartung","Instandsetzung","Sachverständiger","Sachkundige","Fachkraft",null,"Monate","Monate",{"$f":"IF([1]Fragen!$D$18=\"Ja\",\"Eine einfache Sichtkontrolle genügt\",\"Eine einfache Sichtkontrolle genügt nicht\")","v":{"$error":"#REF!"}}]
["Kostengruppe","Anlage (System)","Abgrenzung","Tätigkeit","I","W","IS","SV","SK","FK","normative Grundlage","min","max","Empfehlung Inspektion","Empfehlung Wartung"]
[443,"Niederspannungshauptverteiler","Schaltanlagen","Anlage auf Verschmutzung, Beschädigung und Korrosion prüfen","I",null,null,null,"SK",null,"DGUVV § 5\nGUV-V A 3\nDIN EN 50110-1\n",12,48,32,32]
[443,"Niederspannungshauptverteiler","Schaltanlagen","Arbeitsschutzeinrichtungen auf Vollständigkeit und Beständigkeit prüfen","I",null,null,null,"SK",null,"DGUVV § 5\nGUV-V A 3\nDIN EN 50110-1\n",12,48,32,32]
[443,"Niederspannungshauptverteiler","Schaltanlagen","Raumbeleuchtung auf Funktion prüfen","I",null,null,null,"SK",null,"DGUVV § 5\nGUV-V A 3\nDIN EN 50110-1\n",12,48,32,32]
[443,"Niederspannungshauptverteiler","Schaltanlagen","Schaltgeräte und Antriebe auf Funktion prüfen","I",null,null,null,"SK",null,"DGUVV § 5\nGUV-V A 3\nDIN EN 50110-1\n",12,48,32,32]
[443,"Niederspannungshauptverteiler","Schaltanlagen","Mess- und Schutzeinrichtungen auf Funktion prüfen","I",null,null,null,"SK",null,"DGUVV § 5\nGUV-V A 3\nDIN EN 50110-1\n",12,48,32,32]
[443,"Niederspannungshauptverteiler","Schaltanlagen","Schutzerde und Potentialausgleich überprüfen (VDE 0141)","I",null,null,null,"SK",null,"DGUVV § 5\nGUV-V A 3\nDIN EN 50110-1\n",12,48,32,32]
[443,"Niederspannungshauptverteiler","Schaltanlagen","Fernsteuereinrichtung auf Funktion prüfen","I",null,null,null,"SK",null,"DGUVV § 5\nGUV-V A 3\nDIN EN 50110-1\n",12,48,32,32]
[443,"Niederspannungshauptverteiler","Schaltanlagen","Anschlüsse und Verbindungen auf Sitz überprüfen, ggf. nachziehen","I",null,null,null,"SK",null,"DGUVV § 5\nGUV-V A 3\nDIN EN 50110-1\n",12,48,32,32]
[443,"Niederspannungshauptverteiler","Schaltanlagen","Anlage einschließlich Betriebsraum reinigen",null,"W",null,null,"SK",null,"DGUVV § 5\nGUV-V A 3\nDIN EN 50110-1\n",12,48,32,32]
[443,"Niederspannungshauptverteiler","Schaltanlagen","Anschlüsse und Verbindungen auf Sitz überprüfen, ggf. nachziehen",null,"W",null,null,"SK",null,"DGUVV § 5\nGUV-V A 3\nDIN EN 50110-1\n",12,48,32,32]
[443,"Blindstromkompensationsanlage","Blindstromkompensationsanlage","Anlage auf Verschmutzung, Beschädigung und Korrosion prüfen","I",null,null,null,"SK",null,"DGUVV § 5\nGUV-V A 3\nDIN EN 50110-1",12,48,32,32]
[443,"Blindstromkompensationsanlage","Blindstromkompensationsanlage","Sichtprüfung Entladewiderstände","I",null,null,null,"SK",null,"DGUVV § 5\nGUV-V A 3\nDIN EN 50110-1",12,48,32,32]
[443,"Blindstromkompensationsanlage","Blindstromkompensationsanlage","Mess- und Schalteinrichtungen auf Funktion prüfen","I",null,null,null,"SK",null,"DGUVV § 5\nDIN EN 50110-1",12,48,32,32]
[443,"Blindstromkompensationsanlage","Blindstromkompensationsanlage","Anschlüsse auf festen Sitz prüfen und ggf. nachziehen","I",null,null,null,"SK",null,"DGUVV § 5\nGUV-V A 3\nDIN EN 50110-1",12,48,32,32]
[443,"Blindstromkompensationsanlage","Blindstromkompensationsanlage","Anlage reinigen",null,"W",null,null,"SK",null,"DGUVV § 5\nGUV-V A 3\nDIN EN 50110-1",12,48,32,32]
[443,"Blindstromkompensationsanlage","Blindstromkompensationsanlage","Anschlüsse auf festen Sitz prüfen und ggf. nachziehen",null,"W",null,null,"SK",null,"DGUVV § 5\nGUV-V A 3\nDIN EN 50110-1",12,48,32,32]

{"sheet":"445","index":15,"n_rows":21,"n_cols":15,"rows_kept":21,"cut":false,"hidden":false,"merged":[]}
[{"$nulls":4},"Inspektion","Wartung","Instandsetzung","Sachverständiger","Sachkundige","Fachkraft",null,"Monate","Monate",{"$f":"IF([1]Fragen!$D$18=\"Ja\",\"Eine einfache Sichtkontrolle genügt\",\"Eine einfache Sichtkontrolle genügt nicht\")","v":{"$error":"#REF!"}}]
["Kostengruppe","Anlage (System)","Abgrenzung","Tätigkeit","I","W","IS","SV","SK","FK","normative Grundlage","min","max","Empfehlung Inspektion","Empfehlung Wartung"]
[445,"Raumbeleuchtung","Beleuchtungen","Funktionserhaltendes Reinigen der Leuchte",null,"W",null,null,"SK",null,"Bay BO Art. 14\nDGUVV § 5\nSP 9.6-2\nGUV-V A3\nDIN EN 50110-1 (VDE 0105-1)",12,48,32,32]
[445,"Raumbeleuchtung","Beleuchtungen","Auf Funktion prüfen","I",null,null,null,"SK",null,"Bay BO Art. 14\nDGUVV § 5\nSP 9.6-2\nGUV-V A3\nDIN EN 50110-1 (VDE 0105-1)",12,48,32,32]
[445,"Raumbeleuchtung","Beleuchtungen","Leuchtmittel auswechseln",null,"W",null,null,"SK",null,"Bay BO Art. 14\nDGUVV § 5\nSP 9.6-2\nGUV-V A3\nDIN EN 50110-1 (VDE 0105-1)",12,48,32,32]
[445,"Raumbeleuchtung","Sonderbeleuchtungen (Leuchtreklame, Gebäudebefeuerung, Kunstwerke etc.)","Funktionserhaltendes Reinigen der Leuchte",null,"W",null,null,"SK",null,"Bay BO Art. 14\nDGUVV § 5\nSP 9.6-2\nGUV-V A3\nDIN EN 50110-1 (VDE 0105-1)",12,48,32,32]
[445,"Raumbeleuchtung","Sonderbeleuchtungen (Leuchtreklame, Gebäudebefeuerung, Kunstwerke etc.)","Auf Funktion prüfen","I",null,null,null,"SK",null,"Bay BO Art. 14\nDGUVV § 5\nSP 9.6-2\nGUV-V A3\nDIN EN 50110-1 (VDE 0105-1)",12,48,32,32]
[445,"Raumbeleuchtung","Sonderbeleuchtungen (Leuchtreklame, Gebäudebefeuerung, Kunstwerke etc.)","Leuchtmittel auswechseln",null,"W",null,null,"SK",null,"Bay BO Art. 14\nDGUVV § 5\nSP 9.6-2\nGUV-V A3\nDIN EN 50110-1 (VDE 0105-1)",12,48,32,32]
[445,"Sicherheitsbeleuchtungsanlage","Nothandleuchten","Auf Verschmutzung, Beschädigung, Korrosion und Befestigung prüfen","I",null,null,null,"SK",null,"ArbStättV § 4\nDGUVV § 5\nGUV-V A 3\nDIN EN 50172 (VDE 0108-100)",6,12,8,8]
[445,"Sicherheitsbeleuchtungsanlage","Nothandleuchten","Batterie nach Herstellervorschrift prüfen",null,"W",null,null,"SK",null,"ArbStättV § 4\nDGUVV § 5\nGUV-V A 3\nDIN EN 50172 (VDE 0108-100)\n",6,12,8,8]
[445,"Sicherheitsbeleuchtungsanlage","Nothandleuchten","Batterie auswechseln",null,"W",null,null,"SK",null,"ArbStättV § 4\nDGUVV § 5\nGUV-V A 3\nDIN EN 50172 (VDE 0108-100)\n",6,12,8,8]
[445,"Sicherheitsbeleuchtungsanlage","Nothandleuchten","Funktionserhaltendes Reinigen der Leuchte",null,"W",null,null,"SK",null,"ArbStättV § 4\nDGUVV § 5\nGUV-V A 3\nDIN EN 50172 (VDE 0108-100)\n",6,12,8,8]
[445,"Sicherheitsbeleuchtungsanlage","Nothandleuchten","Auf Funktion prüfen","I",null,null,null,"SK",null,"ArbStättV § 4\nDGUVV § 5\nGUV-V A 3\nDIN EN 50172 (VDE 0108-100)\n",6,12,8,8]
[445,"Sicherheitsbeleuchtungsanlage","Nothandleuchten","Leuchtmittel auswechseln",null,"W",null,null,"SK",null,"ArbStättV § 4\nDGUVV § 5\nGUV-V A 3\nDIN EN 50172 (VDE 0108-100)\n",6,12,32,32]
[445,"Sicherheitsbeleuchtungsanlage","Fluchtwegkennzeichnungen (elektrisch)","Auf Verschmutzung, Beschädigung, Korrosion und Befestigung prüfen","I",null,null,null,"SK",null,"ArbStättV § 4\nDGUVV § 5\nGUV-V A 3\nDIN EN 50172 (VDE 0108-100)",6,12,8,8]
[445,"Sicherheitsbeleuchtungsanlage","Fluchtwegkennzeichnungen (elektrisch)","Batterie nach Herstellervorschrift prüfen",null,"W",null,null,"SK",null,"ArbStättV § 4\nDGUVV § 5\nGUV-V A 3\nDIN EN 50172 (VDE 0108-100)",6,12,8,8]
[445,"Sicherheitsbeleuchtungsanlage","Fluchtwegkennzeichnungen (elektrisch)","Batterie auswechseln",null,"W",null,null,"SK",null,"ArbStättV § 4\nDGUVV § 5\nGUV-V A 3\nDIN EN 50172 (VDE 0108-100)",6,12,24.000000000000004,24.000000000000004]
[445,"Sicherheitsbeleuchtungsanlage","Fluchtwegkennzeichnungen (elektrisch)","Funktionserhaltendes Reinigen der Leuchte",null,"W",null,null,"SK",null,"ArbStättV § 4\nDGUVV § 5\nGUV-V A 3\nDIN EN 50172 (VDE 0108-100)",6,12,24.000000000000004,24.000000000000004]
[445,"Sicherheitsbeleuchtungsanlage","Fluchtwegkennzeichnungen (elektrisch)","Auf Funktion prüfen","I",null,null,null,"SK",null,"ArbStättV § 4\nDGUVV § 5\nGUV-V A 3\nDIN EN 50172 (VDE 0108-100)",6,12,8,8]
[445,"Sicherheitsbeleuchtungsanlage","Fluchtwegkennzeichnungen (elektrisch)","Leuchtmittel auswechseln",null,"W",null,null,"SK",null,"ArbStättV § 4\nDGUVV § 5\nGUV-V A 3\nDIN EN 50172 (VDE 0108-100)",6,12,32,32]
[445,"Sicherheitsbeleuchtungsanlage","Fluchtwegkennzeichnungen (elektrisch)","Piktogramme prüfen (unlesbare/ fehlende melden)","I",null,null,null,"SK",null,"ArbStättV § 4\nDGUVV § 5\nGUV-V A 3\nDIN EN 50172 (VDE 0108-100)",6,12,32,32]

{"sheet":"446","index":16,"n_rows":7,"n_cols":15,"rows_kept":7,"cut":false,"hidden":false,"merged":[]}
[{"$nulls":4},"Inspektion","Wartung","Instandsetzung","Sachverständiger","Sachkundige","Fachkraft",null,"Monate","Monate",{"$f":"IF([1]Fragen!$D$18=\"Ja\",\"Eine einfache Sichtkontrolle genügt\",\"Eine einfache Sichtkontrolle genügt nicht\")","v":{"$error":"#REF!"}}]
["Kostengruppe","Anlage (System)","Abgrenzung","Tätigkeit","I","W","IS","SV","SK","FK","normative Grundlage","min","max","Empfehlung Inspektion","Empfehlung Wartung"]
[446,"Blitzschutzanlage","Gesamte Anlage","elektrische Testung offen/geschlossen",null,"W",null,null,"SK",null,null,24,48,32,32]
[446,"Blitzschutzanlage","Auffangeinrichtungen","Inspektion der Auffangeinrichtungen","I",null,null,null,"SK",null,null,24,48,32,32]
[446,"Blitzschutzanlage","Ableitungen","Inpektion der einzelnen Ableitungen","I",null,null,null,"SK",null,null,24,48,32,32]
[446,"Blitzschutzanlage","Erdungen","Messung",null,"W",null,null,"SK",null,null,24,48,32,32]
[446,"Blitzschutzanlage","Potentialausgleich","Messung",null,"W",null,null,"SK",null,null,24,48,32,32]

{"sheet":"452","index":17,"n_rows":9,"n_cols":15,"rows_kept":9,"cut":false,"hidden":false,"merged":[]}
[{"$nulls":4},"Inspektion","Wartung","Instandsetzung","Sachverständiger","Sachkundige","Fachkraft",null,"Monate","Monate",{"$f":"IF([1]Fragen!$D$18=\"Ja\",\"Eine einfache Sichtkontrolle genügt\",\"Eine einfache Sichtkontrolle genügt nicht\")","v":{"$error":"#REF!"}}]
["Kostengruppe","Anlage (System)","Abgrenzung","Tätigkeit","I","W","IS","SV","SK","FK","normative Grundlage","min","max","Empfehlung Inspektion","Empfehlung Wartung"]
[452,"Türsprech- und Türöffneranlage","Sprechanlagen","Auf Beschädigung, Korrosion und Befestigung prüfen","I",null,null,null,"SK",null,"ArbStättV § 4\nDGUVV § 5\nGUV-V A 3\nDIN EN 50172 (VDE 0108-100)",6,24,8,8]
[452,"Türsprech- und Türöffneranlage","Sprechanlagen","Funktionserhaltendes Reinigen",null,"W",null,null,"SK",null,"ArbStättV § 4\nDGUVV § 5\nGUV-V A 3\nDIN EN 50172 (VDE 0108-100)",6,24,8,8]
[452,"Türsprech- und Türöffneranlage","Sprechanlagen","Sprechstellen auf Funktion und Sprachverständlichkeit prüfen","I",null,null,null,"SK",null,"ArbStättV § 4\nDGUVV § 5\nGUV-V A 3\nDIN EN 50172 (VDE 0108-100)",6,24,8,8]
[452,"Türsprech- und Türöffneranlage","Sprechanlagen","Sonderfunktionen (Türöffner, Codeschloss, Kamera etc.) prüfen","I",null,null,null,"SK",null,"ArbStättV § 4\nDGUVV § 5\nGUV-V A 3\nDIN EN 50172 (VDE 0108-100)",6,24,8,8]
[452,"Türsprech- und Türöffneranlage","Sprechanlagen","Sicherung der anlagenspezifischen Daten (Parameter, Konfigurationsdateien etc.) durchführen",null,"W",null,null,"SK",null,"ArbStättV § 4\nDGUVV § 5\nGUV-V A 3\nDIN EN 50172 (VDE 0108-100)",6,24,8,8]
[452,"Türsprech- und Türöffneranlage","Sprechanlagen","Verifizierung der Datensicherung",null,"W",null,null,"SK",null,"ArbStättV § 4\nDGUVV § 5\nGUV-V A 3\nDIN EN 50172 (VDE 0108-100)",6,24,8,8]
[452,"Türsprech- und Türöffneranlage","Sprechanlagen","Aufbewahrung der zuletzt erstellten Programm- und Datenkopien",null,"W",null,null,"SK",null,"ArbStättV § 4\nDGUVV § 5\nGUV-V A 3\nDIN EN 50172 (VDE 0108-100)",6,24,8,8]

{"sheet":"454","index":18,"n_rows":10,"n_cols":15,"rows_kept":10,"cut":false,"hidden":false,"merged":[]}
[{"$nulls":4},"Inspektion","Wartung","Instandsetzung","Sachverständiger","Sachkundige","Fachkraft",null,"Monate","Monate",{"$f":"IF([1]Fragen!$D$18=\"Ja\",\"Eine einfache Sichtkontrolle genügt\",\"Eine einfache Sichtkontrolle genügt nicht\")","v":{"$error":"#REF!"}}]
["Kostengruppe","Anlage (System)","Abgrenzung","Tätigkeit","I","W","IS","SV","SK","FK","normative Grundlage","min","max","Empfehlung Inspektion","Empfehlung Wartung"]
[454,"Beschallungsanlage","Lautsprecheranlagen","Verstärker und Peripherie auf Funktion prüfen","I",null,null,null,"SK",null,"ArbStättV § 4\nDGUVV § 5\nGUV-V A 3\nDIN EN 50172 (VDE 0108-100)",12,48,32,32]
[454,"Beschallungsanlage","Lautsprecheranlagen","Batterien/ Akkumulatoren prüfen",null,"W",null,null,"SK",null,"ArbStättV § 4\nDGUVV § 5\nGUV-V A 3\nDIN EN 50172 (VDE 0108-100)",12,48,32,32]
[454,"Beschallungsanlage","Lautsprecheranlagen","Batterien wechseln",null,"W",null,null,"SK",null,"ArbStättV § 4\nDGUVV § 5\nGUV-V A 3\nDIN EN 50172 (VDE 0108-100)",12,48,32,32]
[454,"Beschallungsanlage","Lautsprecheranlagen","Akkumulatoren wechseln",null,"W",null,null,"SK",null,"ArbStättV § 4\nDGUVV § 5\nGUV-V A 3\nDIN EN 50172 (VDE 0108-100)",12,48,32,32]
[454,"Beschallungsanlage","Lautsprecheranlagen","Sicherung der anlagenspezifischen Daten (Parameter, Konfigurationsdateien etc.) durchführen",null,"W",null,null,"SK",null,"ArbStättV § 4\nDGUVV § 5\nGUV-V A 3\nDIN EN 50172 (VDE 0108-100)",12,48,32,32]
[454,"Beschallungsanlage","Lautsprecheranlagen","Verifizierung der Datensicherung",null,"W",null,null,"SK",null,"ArbStättV § 4\nDGUVV § 5\nGUV-V A 3\nDIN EN 50172 (VDE 0108-100)",12,48,32,32]
[454,"Beschallungsanlage","Lautsprecheranlagen","Aufbewahrung der zuletzt erstellten Programm- und Datenkopien",null,"W",null,null,"SK",null,"ArbStättV § 4\nDGUVV § 5\nGUV-V A 3\nDIN EN 50172 (VDE 0108-100)",12,48,32,32]
[454,"Beschallungsanlage","Lautsprecheranlagen","Lautsprecherkreise auf Funktion und Sprachverständlichkeit prüfen","I",null,null,null,"SK",null,"ArbStättV § 4\nDGUVV § 5\nGUV-V A 3\nDIN EN 50172 (VDE 0108-100)",12,48,32,32]

{"sheet":"455","index":19,"n_rows":9,"n_cols":15,"rows_kept":9,"cut":false,"hidden":false,"merged":[]}
[{"$nulls":4},"Inspektion","Wartung","Instandsetzung","Sachverständiger","Sachkundige","Fachkraft",null,"Monate","Monate",{"$f":"IF([1]Fragen!$D$18=\"Ja\",\"Eine einfache Sichtkontrolle genügt\",\"Eine einfache Sichtkontrolle genügt nicht\")","v":{"$error":"#REF!"}}]
["Kostengruppe","Anlage (System)","Abgrenzung","Tätigkeit","I","W","IS","SV","SK","FK","normative Grundlage","min","max","Empfehlung Inspektion","Empfehlung Wartung"]
[455,"Antennenanlage ","Antennen-, Satelliten-, und BK-Anlagen","Auf Beschädigung, Korrosion und Befestigung prüfen","I",{"$nulls":4},"FK","-",12,48,32,32]
[455,"Antennenanlage ","Antennen-, Satelliten-, und BK-Anlagen","Funktionserhaltendes Reinigen",null,"W",null,null,null,"FK","-",12,48,32,32]
[455,"Antennenanlage ","Antennen-, Satelliten-, und BK-Anlagen","Antennen-Empfangsspannung prüfen","I",{"$nulls":4},"FK","-",12,48,32,32]
[455,"Antennenanlage ","Antennen-, Satelliten-, und BK-Anlagen","Antenne ggf. nachrichten",null,"W",null,null,null,"FK","-",12,48,32,32]
[455,"Antennenanlage ","Antennen-, Satelliten-, und BK-Anlagen","Verstärkerpegel prüfen","I",{"$nulls":4},"FK","-",12,48,32,32]
[455,"Antennenanlage ","Antennen-, Satelliten-, und BK-Anlagen","Verstärker ggf. nachstellen",null,"W",null,null,null,"FK","-",12,48,32,32]
[455,"Antennenanlage ","Antennen-, Satelliten-, und BK-Anlagen","Verteilernetz auf Einhaltung der Maximal- und Minimalwerte der Dämpfung prüfen","I",{"$nulls":4},"FK","-",12,48,32,32]

{"sheet":"456","index":20,"n_rows":25,"n_cols":15,"rows_kept":25,"cut":false,"hidden":false,"merged":[]}
[{"$nulls":4},"Inspektion","Wartung","Instandsetzung","Sachverständiger","Sachkundige","Fachkraft",null,"Monate","Monate",{"$f":"IF([1]Fragen!$D$18=\"Ja\",\"Eine einfache Sichtkontrolle genügt\",\"Eine einfache Sichtkontrolle genügt nicht\")","v":{"$error":"#REF!"}}]
["Kostengruppe","Anlage (System)","Abgrenzung","Tätigkeit","I","W","IS","SV","SK","FK","normative Grundlage","min","max","Empfehlung Inspektion","Empfehlung Wartung"]
[456,"Einbruchmeldeanlage",null,"Auf Verschmutzung, Beschädigung, Korrosion und Befestigung prüfen","I",{"$nulls":4},"FK","-",6,12,8,8]
[456,"Einbruchmeldeanlage",null,"Funktionserhaltendes Reinigen",null,"W",null,null,null,"FK","ArbStättV § 4\nDGUVV § 5\nGUV-V A3\nVDE 0833-1 (DIN VDE  0833-1)",6,12,8,8]
[456,"Einbruchmeldeanlage",null,"Geber auf Funktion prüfen","I",{"$nulls":4},"FK","ArbStättV § 4\nDGUVV § 5\nGUV-V A3\nVDE 0833-1 (DIN VDE  0833-1)",6,12,8,8]
[456,"Einbruchmeldeanlage",null,"Meldelinien auf Funktion prüfen","I",{"$nulls":4},"FK","ArbStättV § 4\nDGUVV § 5\nGUV-V A3\nVDE 0833-1 (DIN VDE  0833-1)",6,12,8,8]
[456,"Einbruchmeldeanlage",null,"Zentrale, Alarmeinrichtung und Stromversorgung auf Funktion prüfen","I",{"$nulls":4},"FK","ArbStättV § 4\nDGUVV § 5\nGUV-V A3\nVDE 0833-1 (DIN VDE  0833-1)",6,12,8,8]
[456,"Einbruchmeldeanlage",null,"Anschlüsse auf festen Sitz prüfen und ggf. nachziehen",null,"W",null,null,null,"FK","ArbStättV § 4\nDGUVV § 5\nGUV-V A3\nVDE 0833-1 (DIN VDE  0833-1)",6,12,8,8]
[456,"Gas-Warnanlage",null,"Auf Verschmutzung, Beschädigung, Korrosion und Befestigung prüfen","I",null,null,null,"SK",null,"ArbStättV § 4\nDGUVV § 5\nBGV C5 § 36\nGUV-V A3\nGUV-V C5\nDIN EN 60079-29-2 (VDE 0400-2)",6,12,12,12]
[456,"Gas-Warnanlage",null,"Ansaugeinrichtungen und Messköpfe auf Funktion prüfen","I",null,null,null,"SK",null,"ArbStättV § 4\nDGUVV § 5\nBGV C5 § 36\nGUV-V A3\nGUV-V C5\nDIN EN 60079-29-2 (VDE 0400-2)",6,12,12,12]
[456,"Gas-Warnanlage",null,"Filter wechseln",null,"W",null,null,"SK",null,"ArbStättV § 4\nDGUVV § 5\nBGV C5 § 36\nGUV-V A3\nGUV-V C5\nDIN EN 60079-29-2 (VDE 0400-2)",6,12,12,12]
[456,"Gas-Warnanlage",null,"Leitungen  auf Dichtheit prüfen","I",null,null,null,"SK",null,"ArbStättV § 4\nDGUVV § 5\nBGV C5 § 36\nGUV-V A3\nGUV-V C5\nDIN EN 60079-29-2 (VDE 0400-2)",6,12,12,12]
[456,"Gas-Warnanlage",null,"Konzentration/ Luftleistung prüfen","I",null,null,null,"SK",null,"ArbStättV § 4\nDGUVV § 5\nBGV C5 § 36\nGUV-V A3\nGUV-V C5\nDIN EN 60079-29-2 (VDE 0400-2)",6,12,12,12]
[456,"Gas-Warnanlage",null,"Einstellungen der Alarme prüfen","I",null,null,null,"SK",null,"ArbStättV § 4\nDGUVV § 5\nBGV C5 § 36\nGUV-V A3\nGUV-V C5\nDIN EN 60079-29-2 (VDE 0400-2)",6,12,12,12]
[456,"Gas-Warnanlage",null,"Störmeldungen, Alarmeinrichtungen und Warneinrichtungen auf Funktion prüfen","I",null,null,null,"SK",null,"ArbStättV § 4\nDGUVV § 5\nBGV C5 § 36\nGUV-V A3\nGUV-V C5\nDIN EN 60079-29-2 (VDE 0400-2)",6,12,12,12]
[456,"Gas-Warnanlage",null,"Nachjustieren",null,"W",null,null,"SK",null,"ArbStättV § 4\nDGUVV § 5\nBGV C5 § 36\nGUV-V A3\nGUV-V C5\nDIN EN 60079-29-2 (VDE 0400-2)",6,12,12,12]
[456,"Zugangskontrollanlage",null,"Auf Verschmutzung, Beschädigung, Korrosion und Befestigung prüfen","I",{"$nulls":4},"FK","-",12,48,32,32]
[456,"Zugangskontrollanlage",null,"Funktionserhaltendes Reinigen von Öffnungs-, Sperreinrichtungen und Schließern",null,"W",null,null,null,"FK","DGUVV § 5\nGUV-V A3 § 5",12,48,32,32]
[456,"Zugangskontrollanlage",null,"Zentrale Zugangseinrichtung und Stromversorgung auf Funktion prüfen","I",{"$nulls":4},"FK","DGUVV § 5\nGUV-V A3 § 5",12,48,32,32]
[456,"Zugangskontrollanlage",null,"Öffnungs-, Sperreinrichtungen und Schließer auf Funktion prüfen, schmieren und nachstellen",null,"W",null,null,null,"FK","DGUVV § 5\nGUV-V A3 § 5",12,48,32,32]
[456,"Videoüberwachungsanlage",null,"Auf Verschmutzung, Beschädigung, Korrosion und Befestigung prüfen","I",null,null,null,"SK",null,"ArbStättV § 4\nDGUVV § 5\nGUV-V A3 § 5",12,48,32,32]
[456,"Videoüberwachungsanlage",null,"Funktionserhaltendes Reinigen",null,"W",null,null,"SK",null,"ArbStättV § 4\nDGUVV § 5\nGUV-V A3 § 5",12,48,32,32]
[456,"Videoüberwachungsanlage",null,"Kameras, Stellmotoren und Monitoren auf Funktion prüfen","I",null,null,null,"SK",null,"ArbStättV § 4\nDGUVV § 5\nGUV-V A3 § 5",12,48,32,32]
[456,"Videoüberwachungsanlage",null,"Äußerlich reinigen",null,"W",null,null,"SK",null,"ArbStättV § 4\nDGUVV § 5\nGUV-V A3 § 5",12,48,32,32]
[456,"Videoüberwachungsanlage",null,"Anschlüsse auf festen Sitz prüfen und ggf. nachziehen",null,"W",null,null,"SK",null,"ArbStättV § 4\nDGUVV § 5\nGUV-V A3 § 5",12,48,32,32]

{"sheet":"461","index":21,"n_rows":8,"n_cols":15,"rows_kept":8,"cut":false,"hidden":false,"merged":[]}
[{"$nulls":4},"Inspektion","Wartung","Instandsetzung","Sachverständiger","Sachkundige","Fachkraft",null,"Monate","Monate",{"$f":"IF([1]Fragen!$D$18=\"Ja\",\"Eine einfache Sichtkontrolle genügt\",\"Eine einfache Sichtkontrolle genügt nicht\")","v":{"$error":"#REF!"}}]
["Kostengruppe","Anlage (System)","Abgrenzung","Tätigkeit","I","W","IS","SV","SK","FK","normative Grundlage","min","max","Empfehlung Inspektion","Empfehlung Wartung"]
[461,"Personenaufzug",null,"Wartungstätigkeiten nach Herstellervorschrift",null,"W",null,null,"SK",null,null,3,24,32,32]
[461,"Personenaufzug",null,"Inspektionstätigkeiten nach Herstellervorschrift","I",null,null,null,"SK",null,null,3,24]
[461,"Lastenaufzug",null,"Wartungstätigkeiten nach Herstellervorschrift",null,"W",null,null,"SK",null,null,3,36,32,32]
[461,"Lastenaufzug",null,"Inspektionstätigkeiten nach Herstellervorschrift","I",null,null,null,"SK",null,null,3,36]
[461,"Kleingüteraufzug",null,"Wartungstätigkeiten nach Herstellervorschrift",null,"W",null,null,"SK",null,null,3,36,32,32]
[461,"Kleingüteraufzug",null,"Inspektionstätigkeiten nach Herstellervorschrift","I",null,null,null,"SK",null,null,3,36]

{"sheet":"473","index":22,"n_rows":38,"n_cols":15,"rows_kept":38,"cut":false,"hidden":false,"merged":[]}
[{"$nulls":4},"Inspektion","Wartung","Instandsetzung","Sachverständiger","Sachkundige","Fachkraft",null,"Monate","Monate",{"$f":"IF([1]Fragen!$D$18=\"Ja\",\"Eine einfache Sichtkontrolle genügt\",\"Eine einfache Sichtkontrolle genügt nicht\")","v":{"$error":"#REF!"}}]
["Kostengruppe","Anlage (System)","Abgrenzung","Tätigkeit","I","W","IS","SV","SK","FK","normative Grundlage","min","max","Empfehlung Inspektion","Empfehlung Wartung"]
[473,"Druckluftanlage","Drucklufterzeuger","Auf Beschädigung prüfen","I",null,null,null,"SK",null,"DGUVV § 5\nGUV-V A3 § 5",12,48,32,32]
[473,"Druckluftanlage","Drucklufterzeuger","Ölstand prüfen","I",null,null,null,"SK",null,"DGUVV § 5\nGUV-V A3 § 5",12,48,32,32]
[473,"Druckluftanlage","Drucklufterzeuger","Kompressor auf Funktion prüfen","I",null,null,null,"SK",null,"DGUVV § 5\nGUV-V A3 § 5",12,48,32,32]
[473,"Druckluftanlage","Drucklufterzeuger","Schalt-, Sicherheitsgeräte und Reduzierstation auf Funktion prüfen","I",null,null,null,"SK",null,"DGUVV § 5\nGUV-V A3 § 5",12,48,32,32]
[473,"Druckluftanlage","Drucklufterzeuger","Automatische Entwässerung auf Funktion prüfen","I",null,null,null,"SK",null,"DGUVV § 5\nGUV-V A3 § 5",12,48,32,32]
[473,"Druckluftanlage","Drucklufterzeuger","Filter auf Verschmutzung prüfen","I",null,null,null,"SK",null,"DGUVV § 5\nGUV-V A3 § 5",12,48,32,32]
[473,"Druckluftanlage","Drucklufterzeuger","Entfeuchtungseinrichtung auf Funktion prüfen","I",null,null,null,"SK",null,"DGUVV § 5\nGUV-V A3 § 5",12,48,32,32]
[473,"Druckluftanlage","Drucklufterzeuger","Öl nachfüllen",null,"W",null,null,"SK",null,"DGUVV § 5\nGUV-V A3 § 5",12,48,32,32]
[473,"Druckluftanlage","Drucklufterzeuger","Öl wechseln",null,"W",null,null,"SK",null,"DGUVV § 5\nGUV-V A3 § 5",12,48,32,32]
[473,"Druckluftanlage","Drucklufterzeuger","Schalt-, Sicherheitsgeräte und Reduzierstation auf Funktion nachstellen",null,"W",null,null,"SK",null,"DGUVV § 5\nGUV-V A3 § 5",12,48,32,32]
[473,"Druckluftanlage","Drucklufterzeuger","Druckkessel und Reduzierstation entwässern",null,"W",null,null,"SK",null,"DGUVV § 5\nGUV-V A3 § 5",12,48,32,32]
[473,"Druckluftanlage","Drucklufterzeuger","Filter reinigen",null,"W",null,null,"SK",null,"DGUVV § 5\nGUV-V A3 § 5",12,48,32,32]
[473,"Druckluftanlage","Drucklufterzeuger","Filter auswechseln",null,"W",null,null,"SK",null,"DGUVV § 5\nGUV-V A3 § 5",12,48,32,32]
[473,"Druckluftanlage","Drucklufterzeuger","Reinigen",null,"W",null,null,"SK",null,"DGUVV § 5\nGUV-V A3 § 5",12,48,32,32]
[473,"Druckluftanlage","Druckluftaufbereitung und –verteilung","Äußerlich auf Beschädigung, Korrosion und Befestigung prüfen","I",{"$nulls":4},"FK","UVV",12,48,16,16]
[473,"Druckluftanlage","Druckluftaufbereitung und –verteilung","Funktionserhaltendes Reinigen","I",{"$nulls":4},"FK","UVV",12,48,16,16]
[473,"Druckluftanlage","Druckluftaufbereitung und –verteilung","Schalt-, Sicherheitsgeräte und Reduzierstation auf Funktion prüfen","I",{"$nulls":4},"FK","UVV",12,48,16,16]
[473,"Druckluftanlage","Druckluftaufbereitung und –verteilung","Schalt-, Sicherheitsgeräte und Reduzierstation nachstellen","I",{"$nulls":4},"FK","UVV",12,48,16,16]
[473,"Druckluftanlage","Druckluftaufbereitung und –verteilung","Manometer auf Beschädigung, Anzeige und Funktion prüfen\n(Plausibilitätsprüfung)","I",{"$nulls":4},"FK","UVV",12,48,16,16]
[473,"Druckluftanlage","Druckluftaufbereitung und –verteilung","Automatische Entwässerung auf Funktion prüfen","I",{"$nulls":4},"FK","UVV",12,48,16,16]
[473,"Druckluftanlage","Druckluftaufbereitung und –verteilung","Filter auf Verschmutzung prüfen","I",{"$nulls":4},"FK","UVV",12,48,16,16]
[473,"Druckluftanlage","Druckluftaufbereitung und –verteilung","Entfeuchtungseinrichtung auf Funktion prüfen","I",{"$nulls":4},"FK","UVV",12,48,16,16]
[473,"Druckluftanlage","Druckluftaufbereitung und –verteilung","Adsorptionstrockner äußerlich auf Dichtheit prüfen\n(Sichtprüfung)","I",{"$nulls":4},"FK","UVV",12,48,16,16]
[473,"Druckluftanlage","Druckluftaufbereitung und –verteilung","Blaugel-Indikator (bei Adsorptionstrockner) prüfen","I",{"$nulls":4},"FK","UVV",12,48,16,16]
[473,"Druckluftanlage","Druckluftaufbereitung und –verteilung","Kondensatableiter auf Funktion prüfen","I",{"$nulls":4},"FK","UVV",12,48,16,16]
[473,"Druckluftanlage","Druckluftaufbereitung und –verteilung","Leitungen und Armaturen äußerlich auf Dichtheit prüfen\n(optisch/akustisch)","I",{"$nulls":4},"FK","UVV",12,48,16,16]
[473,"Druckluftanlage","Druckluftaufbereitung und –verteilung","Wärmeübertrager (Kühler und Erhitzer) auf Verschmutzung prüfen","I",{"$nulls":4},"FK","UVV",12,48,16,16]
[473,"Druckluftanlage","Druckluftaufbereitung und –verteilung","Reduzierstation entwässern",null,"W",null,null,null,"FK","UVV",12,48,16,16]
[473,"Druckluftanlage","Druckluftaufbereitung und –verteilung","Filter reinigen",null,"W",null,null,null,"FK","UVV",12,48,16,16]
[473,"Druckluftanlage","Druckluftaufbereitung und –verteilung","Filter auswechseln",null,"W",null,null,null,"FK","UVV",12,48,16,16]
[473,"Verteilung und Aufbereitung für Gase","Versorgungsanlagen für technisches Gas","Auf Verschmutzung, Beschädigung, Korrosion (äußerlich) und Befestigung prüfen",{"$nulls":6},"DVGW G 495; \nDVGW G 600, 13;\nBetrSichV § 12, 14, 15, 16, 17\nNDAV, § 13, Abs 1, 2;",12,48,32,32]
[473,"Verteilung und Aufbereitung für Gase","Versorgungsanlagen für technisches Gas","Auf Funktion prüfen",{"$nulls":6},"DVGW G 495; \nDVGW G 600, 13;\nBetrSichV § 12, 14, 15, 16, 17\nNDAV, § 13, Abs 1, 2;",12,48,32,32]
[473,"Verteilung und Aufbereitung für Gase","Versorgungsanlagen für technisches Gas","Auf Dichtheit prüfen (optisch/ akustisch) / Druckprobe durchführen",{"$nulls":6},"DVGW G 495; \nDVGW G 600, 13;\nBetrSichV § 12, 14, 15, 16, 17\nNDAV, § 13, Abs 1, 2;",12,48,32,32]
[473,"Verteilung und Aufbereitung für Gase","Versorgungsanlagen für technisches Gas","Armaturen auf Beschädigung und Korrosion (äußerlich) prüfen",{"$nulls":6},"DVGW G 495; \nDVGW G 600, 13;\nBetrSichV § 12, 14, 15, 16, 17\nNDAV, § 13, Abs 1, 2;",12,48,32,32]
[473,"Verteilung und Aufbereitung für Gase","Versorgungsanlagen für technisches Gas","Armaturen auf Funktion prüfen",{"$nulls":6},"DVGW G 495; \nDVGW G 600, 13;\nBetrSichV § 12, 14, 15, 16, 17\nNDAV, § 13, Abs 1, 2;",12,48,32,32]
[473,"Verteilung und Aufbereitung für Gase","Versorgungsanlagen für technisches Gas","Armaturen auf Dichtheit prüfen",{"$nulls":6},"DVGW G 495; \nDVGW G 600, 13;\nBetrSichV § 12, 14, 15, 16, 17\nNDAV, § 13, Abs 1, 2;",12,48,32,32]

{"sheet":"474","index":23,"n_rows":16,"n_cols":15,"rows_kept":16,"cut":false,"hidden":false,"merged":[]}
[{"$nulls":4},"Inspektion","Wartung","Instandsetzung","Sachverständiger","Sachkundige","Fachkraft",null,"Monate","Monate",{"$f":"IF([1]Fragen!$D$18=\"Ja\",\"Eine einfache Sichtkontrolle genügt\",\"Eine einfache Sichtkontrolle genügt nicht\")","v":{"$error":"#REF!"}}]
["Kostengruppe","Anlage (System)","Abgrenzung","Tätigkeit","I","W","IS","SV","SK","FK","normative Grundlage","min","max","Empfehlung Inspektion","Empfehlung Wartung"]
[474,"Sprinkleranlage","Sprinkleranlagen","Ventilstationen auf Verschmutzung, Beschädigung und Korrosion (äußerlich) einschließlich Funktion und Dichtung prüfen","I",null,null,null,"SK",null,"SPrüfV § 2",12,36,32,32]
[474,"Sprinkleranlage","Sprinkleranlagen","Endschalter auf Befestigung prüfen","I",null,null,null,"SK",null,"SPrüfV § 2",12,36,32,32]
[474,"Sprinkleranlage","Sprinkleranlagen","Absperreinrichtungen und Regelarmaturen von Sprinkleranlagen auf Stellung prüfen","I",null,null,null,"SK",null,"SPrüfV § 2",12,36,32,32]
[474,"Sprinkleranlage","Sprinkleranlagen","Automatische Fördereinrichtungen auf Funktion prüfen","I",null,null,null,"SK",null,"SPrüfV § 2",12,36,32,32]
[474,"Sprinkleranlage","Sprinkleranlagen","Löschwasserbevorratung auf Füllstand prüfen und ggf. ergänzen","I",null,null,null,"SK",null,"SPrüfV § 2",12,36,32,32]
[474,"Sprinkleranlage","Sprinkleranlagen","Behälter und Rohrleitungssystem auf Betriebsdruck und Dichtung prüfen","I",null,null,null,"SK",null,"SPrüfV § 2",12,36,32,32]
[474,"Sprinkleranlage","Sprinkleranlagen","Behälter entleeren und Korrosionsschutz erneuern",null,"w",null,null,"SK",null,"SPrüfV § 2",12,36,32,32]
[474,"Sprinkleranlage","Sprinkleranlagen","Auf Verschmutzung, Beschädigung und Korrosion (äußerlich) prüfen","I",null,null,null,"SK",null,"SPrüfV § 2",12,36,32,32]
[474,"Sprinkleranlage","Sprinkleranlagen","MSR-Technik/ Antriebselemente prüfen","I",null,null,null,"SK",null,"SPrüfV § 2",12,36,32,32]
[474,"Sprinkleranlage","Sprinkleranlagen","Sprinklerzentrale auf zulässige Raumtemperatur prüfen","I",null,null,null,"SK",null,"SPrüfV § 2",12,36,32,32]
[474,"Sprinkleranlage","Sprinkleranlagen","Druckluftstation auf Funktion prüfen","I",null,null,null,"SK",null,"SPrüfV § 2",12,36,32,32]
[474,"Sprinkleranlage","Sprinkleranlagen","Manometer auf Anzeige und Funktion prüfen","I",null,null,null,"SK",null,"SPrüfV § 2",12,36,32,32]
[474,"Sprinkleranlage","Sprinkleranlagen","Sprinkler auf Behinderung der Wasserverteilung prüfen","I",null,null,null,"SK",null,"SPrüfV § 2",12,36,32,32]
[474,"Sprinkleranlage","Sprinkleranlagen","Sprinklereinteilung überprüfen (neue Raumeinteilung o.ä.)","I",null,null,null,"SK",null,"SPrüfV § 2",12,36,32,32]

{"sheet":"481","index":24,"n_rows":93,"n_cols":15,"rows_kept":93,"cut":false,"hidden":false,"merged":[]}
[{"$nulls":4},"Inspektion","Wartung","Instandsetzung","Sachverständiger","Sachkundige","Fachkraft",null,"Monate","Monate",{"$f":"IF([1]Fragen!$D$18=\"Ja\",\"Eine einfache Sichtkontrolle genügt\",\"Eine einfache Sichtkontrolle genügt nicht\")","v":{"$error":"#REF!"}}]
["Kostengruppe","Anlage (System)","Abgrenzung","Tätigkeit","I","W","IS","SV","SK","FK","normative Grundlage","min","max","Empfehlung Inspektion","Empfehlung Wartung"]
[481,"Automationssystem","Sensoren","Auf fach- und funktionsgerechte Installation und\nUmgebungsbedingungen prüfen","I",{"$nulls":4},"FK","DGUVV\nGUV-V A3",3,48,8,8]
[481,"Automationssystem","Sensoren","Auf Verschmutzung, Beschädigung, Korrosion und Befestigung prüfen","I",{"$nulls":4},"FK","-",3,48,8,8]
[481,"Automationssystem","Sensoren","Anschlussverbindungen prüfen","I",{"$nulls":4},"FK","-",3,48,8,8]
[481,"Automationssystem","Sensoren","Physikalische Messgrößen am Messort messen und protokollieren","I",{"$nulls":4},"FK","-",3,48,8,8]
[481,"Automationssystem","Sensoren","Funktionserhaltendes Reinigen",null,"W",null,null,null,"FK","-",3,48,8,8]
[481,"Automationssystem","Sensoren","Messsignale prüfen","I",{"$nulls":4},"FK","-",3,48,8,8]
[481,"Automationssystem","Sensoren","Nachjustieren/regenerieren",null,"W",null,null,null,"FK","-",3,48,8,8]
[481,"Automationssystem","Elektrische/ elektronische/ pneumatische Messwertgeber (z.B. Temperatur, Druck)","Auf fach- und funktionsgerechte Installation und Umgebungsbedingungen prüfen","I",{"$nulls":4},"FK","DGUVV\nGUV-V A3",3,48,8,8]
[481,"Automationssystem","Elektrische/ elektronische/ pneumatische Messwertgeber (z.B. Temperatur, Druck)","Auf Verschmutzung, Beschädigungen, Korrosion prüfen","I",{"$nulls":4},"FK","-",3,48,8,8]
[481,"Automationssystem","Elektrische/ elektronische/ pneumatische Messwertgeber (z.B. Temperatur, Druck)","Anschlussverbindungen auf elektrische/ mechanische Funktion prüfen","I",{"$nulls":4},"FK","-",3,48,8,8]
[481,"Automationssystem","Elektrische/ elektronische/ pneumatische Messwertgeber (z.B. Temperatur, Druck)","Physikalische Messgrößen am Messort messen und protokollieren","I",{"$nulls":4},"FK","-",3,48,8,8]
[481,"Automationssystem","Elektrische/ elektronische/ pneumatische Messwertgeber (z.B. Temperatur, Druck)","Elektrische /elektronische /pneumatische Messsignale prüfen","I",{"$nulls":4},"FK","-",3,48,8,8]
[481,"Automationssystem","Elektrische/ elektronische/ pneumatische Messwertgeber (z.B. Temperatur, Druck)","Schreibende Messgeräte auf Funktion prüfen","I",{"$nulls":4},"FK","-",3,48,8,8]
[481,"Automationssystem","Elektrische/ elektronische/ pneumatische Messwertgeber (z.B. Temperatur, Druck)","Reinigen",null,"W",null,null,null,"FK","-",3,48,8,8]
[481,"Automationssystem","Elektrische/ elektronische/ pneumatische Messwertgeber (z.B. Temperatur, Druck)","Nachstellen/ regenerieren",null,"W",null,null,null,"FK","-",3,48,8,8]
[481,"Automationssystem","Sicherheitseinrichtungen z.B. Wächter und Begrenzer","Auf fach- und funktionsgerechte Installation und Umgebungsbedingungen prüfen","I",{"$nulls":4},"FK","DGUVV\nGUV-V A3",3,48,8,8]
[481,"Automationssystem","Sicherheitseinrichtungen z.B. Wächter und Begrenzer","Auf Verschmutzung, Beschädigungen, Korrosion prüfen","I",{"$nulls":4},"FK","-",3,48,8,8]
[481,"Automationssystem","Sicherheitseinrichtungen z.B. Wächter und Begrenzer","Mechanische Funktion prüfen","I",{"$nulls":4},"FK","-",3,48,8,8]
[481,"Automationssystem","Sicherheitseinrichtungen z.B. Wächter und Begrenzer","Elektrische/ elektronische/ pneumatische Messsignale prüfen","I",{"$nulls":4},"FK","-",3,48,8,8]
[481,"Automationssystem","Sicherheitseinrichtungen z.B. Wächter und Begrenzer","Reinigen",null,"W",null,null,null,"FK","-",3,48,8,8]
[481,"Automationssystem","Sicherheitseinrichtungen z.B. Wächter und Begrenzer","Nachstellen",null,"W",null,null,null,"FK","-",3,48,8,8]
[481,"Automationssystem","Behälterüberwachungseinrichtungen","Auf Verschmutzung, Beschädigungen, Korrosion und Umgebungsbedingungen prüfen","I",{"$nulls":4},"FK","DGUVV\nGUV-V A3",3,48,8,8]
[481,"Automationssystem","Behälterüberwachungseinrichtungen","Füllstandsanzeigevorrichtung auf Funktion prüfen","I",{"$nulls":4},"FK","-",3,48,8,8]
[481,"Automationssystem","Behälterüberwachungseinrichtungen","Leckwarnsystem auf Funktion prüfen","I",{"$nulls":4},"FK","-",3,48,8,8]
[481,"Automationssystem","Behälterüberwachungseinrichtungen","Grenzwertgeber auf Funtion prüfen","I",{"$nulls":4},"FK","-",3,48,8,8]
[481,"Automationssystem","Behälterüberwachungseinrichtungen","Reinigen",null,"W",null,null,null,"FK","-",3,48,8,8]
[481,"Automationssystem","Analoge/ digitale, elektrische/ elektronische, pneumatische Regler, Zusatzmodule und Optimierungsgeräte","Auf fach- und funktionsgerechte Installation und Umgebungsbedingungen prüfen","I",{"$nulls":4},"FK","DGUVV\nGUV-V A3",3,48,8,8]
[481,"Automationssystem","Analoge/ digitale, elektrische/ elektronische, pneumatische Regler, Zusatzmodule und Optimierungsgeräte","Auf Verschmutzung, Beschädigungen und Korrosion prüfen","I",{"$nulls":4},"FK","-",3,48,8,8]
[481,"Automationssystem","Analoge/ digitale, elektrische/ elektronische, pneumatische Regler, Zusatzmodule und Optimierungsgeräte","Eigenspannungsversorgung prüfen (Pufferbatterie etc.)","I",{"$nulls":4},"FK","-",3,48,8,8]
[481,"Automationssystem","Analoge/ digitale, elektrische/ elektronische, pneumatische Regler, Zusatzmodule und Optimierungsgeräte","Anschlussverbindungen auf elektrische/ mechanische Funktion prüfen: ggf. nachziehen / nachstellen","I",{"$nulls":4},"FK","-",3,48,8,8]
[481,"Automationssystem","Analoge/ digitale, elektrische/ elektronische, pneumatische Regler, Zusatzmodule und Optimierungsgeräte","Funktionselemente (z.B. Bedienelemente, Uhren, Displays) prüfen","I",{"$nulls":4},"FK","-",3,48,8,8]
[481,"Automationssystem","Analoge/ digitale, elektrische/ elektronische, pneumatische Regler, Zusatzmodule und Optimierungsgeräte","Elektrische/ elektronische/ pneumatische Eingangssignale (z.B. Fühler, Ferneinsteller, Führungsgröße) prüfen","I",{"$nulls":4},"FK","-",3,48,8,8]
[481,"Automationssystem","Analoge/ digitale, elektrische/ elektronische, pneumatische Regler, Zusatzmodule und Optimierungsgeräte","Regler- /Modul- /Optimier-Funktionen und Stellsignal prüfen","I",{"$nulls":4},"FK","-",3,48,8,8]
[481,"Automationssystem","Analoge/ digitale, elektrische/ elektronische, pneumatische Regler, Zusatzmodule und Optimierungsgeräte","Regelkreis /Modulfunktion /Optimierungsfunktion gemäß Einstellparameter unter Berücksichtigung aller Zusatzfunktionen prüfen","I",{"$nulls":4},"FK","-",3,48,8,8]
[481,"Automationssystem","Analoge/ digitale, elektrische/ elektronische, pneumatische Regler, Zusatzmodule und Optimierungsgeräte","Reinigen",null,"W",null,null,null,"FK","-",3,48,8,8]
[481,"Automationssystem","Analoge/ digitale, elektrische/ elektronische, pneumatische Regler, Zusatzmodule und Optimierungsgeräte","Anschlussverbindungen auf elektrische / mechanische Funktion prüfen: ggf. nachziehen / nachstellen",null,"W",null,null,null,"FK","-",3,48,8,8]
[481,"Automationssystem","Analoge/ digitale, elektrische/ elektronische, pneumatische Regler, Zusatzmodule und Optimierungsgeräte","Funktionselemente (w.v.) einstellen, justieren, festziehen","I",{"$nulls":4},"FK","-",3,48,8,8]
[481,"Automationssystem","Analoge/ digitale, elektrische/ elektronische, pneumatische Regler, Zusatzmodule und Optimierungsgeräte","Signale abgleichen",null,"W",null,null,null,"FK","-",3,48,8,8]
[481,"Automationssystem","Analoge/ digitale, elektrische/ elektronische, pneumatische Regler, Zusatzmodule und Optimierungsgeräte","Regler- /Modul- /Optimier-Funktionen und Stellsignal nachstellen",null,"W",null,null,null,"FK","-",3,48,8,8]
[481,"Automationssystem","Analoge/ digitale, elektrische/ elektronische, pneumatische Regler, Zusatzmodule und Optimierungsgeräte","Regelkreis/ Modulfunktion/ Optimierungsfunktion gemäß Einstellparameter unter Berücksichtigung aller Zusatzfunktionen nachstellen",null,"W",null,null,null,"FK","-",3,48,8,8]
[481,"Automationssystem","Stellantriebe","Auf fach- und funktionsgerechte Installation und Umgebungsbedingungen prüfen","I",null,null,null,"SK",null,"DGUVV\nGUV-V A3",3,48,8,8]
[481,"Automationssystem","Stellantriebe","Auf Verschmutzung, Beschädigungen und Korrosion prüfen","I",null,null,null,"SK",null,"-",3,48,8,8]
[481,"Automationssystem","Stellantriebe","Auf äußere Dichtheit prüfen","I",null,null,null,"SK",null,"-",3,48,8,8]
[481,"Automationssystem","Stellantriebe","Anschlussverbindungen auf elektrische / mechanische Funktion prüfen, ggf. nachziehen","I",null,null,null,"SK",null,"-",3,48,8,8]
[481,"Automationssystem","Stellantriebe","Elektrische/ elektronische/ pneumatische Eingangssignale auf Arbeits-/ Stellbereich prüfen","I",null,null,null,"SK",null,"-",3,48,8,8]
[481,"Automationssystem","Stellantriebe","Sicherheitsstellung prüfen","I",null,null,null,"SK",null,"-",3,48,8,8]
[481,"Automationssystem","Stellantriebe","Stellungs- /Grenzwertgeber und Endlageschalter auf Funtktion prüfen","I",null,null,null,"SK",null,"-",3,48,8,8]
[481,"Automationssystem","Stellantriebe","Reinigen",null,"W",null,null,"SK",null,"-",3,48,8,8]
[481,"Automationssystem","Stellantriebe","Anschlussverbindungen auf elektrische/ mechanische Funktion prüfen, ggf. nachziehen",null,"W",null,null,"SK",null,"-",3,48,8,8]
[481,"Automationssystem","Stellantriebe","Nachstellen",null,"W",null,null,"SK",null,"-",3,48,8,8]
[481,"Automationssystem","Stellglieder (z.B. Ventile, Hähne, Klappen, Medium: Wasser)","Auf fach- und funktionsgerechte Installation und Umgebungsbedingungen prüfen","I",{"$nulls":4},"FK","DGUVV\nGUV-V A3",3,48,8,8]
[481,"Automationssystem","Stellglieder (z.B. Ventile, Hähne, Klappen, Medium: Wasser)","Auf Verschmutzung, Beschädigungen und Korrosion prüfen","I",{"$nulls":4},"FK","-",3,48,8,8]
[481,"Automationssystem","Stellglieder (z.B. Ventile, Hähne, Klappen, Medium: Wasser)","Anschlussverbindungen auf mechanische Funktion prüfen","I",{"$nulls":4},"FK","-",3,48,8,8]
[481,"Automationssystem","Stellglieder (z.B. Ventile, Hähne, Klappen, Medium: Wasser)","Auf Dichtheit prüfen","I",{"$nulls":4},"FK","-",3,48,8,8]
[481,"Automationssystem","Stellglieder (z.B. Ventile, Hähne, Klappen, Medium: Wasser)","Stopfbuchse prüfen","I",{"$nulls":4},"FK","-",3,48,8,8]
[481,"Automationssystem","Stellglieder (z.B. Ventile, Hähne, Klappen, Medium: Wasser)","Auf Funktion prüfen","I",{"$nulls":4},"FK","-",3,48,8,8]
[481,"Automationssystem","Stellglieder (z.B. Ventile, Hähne, Klappen, Medium: Wasser)","Reinigen",null,"W",null,null,null,"FK","-",3,48,8,8]
[481,"Automationssystem","Stellglieder (z.B. Ventile, Hähne, Klappen, Medium: Wasser)","Spindel schmieren",null,"W",null,null,null,"FK","-",3,48,8,8]
[481,"Automationssystem","Stellglieder (z.B. Ventile, Hähne, Klappen, Medium: Wasser)","Nachstellen",null,"W",null,null,null,"FK","-",3,48,8,8]
[481,"Raumautomationssystem (BUS-System)","Dezentrale Bussysteme","Auf fach- und funktionsgerechte Installation und\nUmgebungsbedingungen prüfen","I",{"$nulls":4},"FK","DGUVV\nGUV-V A3",3,48,8,8]
[481,"Raumautomationssystem (BUS-System)","Dezentrale Bussysteme","Auf Verschmutzung, Beschädigung, Korrosion und Befestigung prüfen","I",{"$nulls":4},"FK","-",3,48,8,8]
[481,"Raumautomationssystem (BUS-System)","Dezentrale Bussysteme","Funktionselemente (z. B. Bedien- und Anzeigeeinrichtungen) prüfen","I",{"$nulls":4},"FK","-",3,48,8,8]
[481,"Raumautomationssystem (BUS-System)","Dezentrale Bussysteme","Datensicherung durchführen",null,"W",null,null,null,"FK","-",3,48,8,8]
[481,"Raumautomationssystem (BUS-System)","Dezentrale Bussysteme","Funktionserhaltendes Reinigen",null,"W",null,null,null,"FK","-",3,48,8,8]
[481,"Raumautomationssystem (BUS-System)","Dezentrale Bussysteme","Eigenspannungsversorgung (z. B. Pufferbatterie) prüfen","I",{"$nulls":4},"FK","-",3,48,8,8]
[481,"Raumautomationssystem (BUS-System)","Dezentrale Bussysteme","Eigenspannungsversorgung (z. B. Pufferbatterie) austauschen",null,"W",null,null,null,"FK","-",3,48,8,8]
[481,"Raumautomationssystem (BUS-System)","Regler","Auf fach- und funktionsgerechte Installation und\nUmgebungsbedingungen prüfen","I",{"$nulls":4},"FK","-",3,48,8,8]
[481,"Raumautomationssystem (BUS-System)","Regler","Auf Verschmutzung, Beschädigung, Korrosion und Befestigung prüfen","I",{"$nulls":4},"FK","-",3,48,8,8]
[481,"Raumautomationssystem (BUS-System)","Regler","Anschlussverbindungen auf Funktion prüfen","I",{"$nulls":4},"FK","-",3,48,8,8]
[481,"Raumautomationssystem (BUS-System)","Regler","Funktionselemente (z. B. Bedien- und Anzeigeeinrichtungen) prüfen","I",{"$nulls":4},"FK","-",3,48,8,8]
[481,"Raumautomationssystem (BUS-System)","Regler","Funktionserhaltendes Reinigen",null,"W",null,null,null,"FK","-",3,48,8,8]
[481,"Raumautomationssystem (BUS-System)","Regler","Eigenspannungsversorgung prüfen (z. B. Pufferbatterie)","I",{"$nulls":4},"FK","-",3,48,8,8]
[481,"Raumautomationssystem (BUS-System)","Regler","Funktionselemente (z. B. Bedien- und Anzeigeeinrichtungen) einstellen, justieren, festziehen",null,"W",null,null,null,"FK","-",3,48,8,8]
[481,"Raumautomationssystem (BUS-System)","Regler","Eingangssignale (z. B. Fühler, Ferneinsteller, Führungsgröße) prüfen","I",{"$nulls":4},"FK","-",3,48,8,8]
[481,"Raumautomationssystem (BUS-System)","Regler","Regelkreis und Stellsignal prüfen","I",{"$nulls":4},"FK","-",3,48,8,8]
[481,"Raumautomationssystem (BUS-System)","Regler","Regelkreis und Stellsignal justieren",null,"W",null,null,null,"FK","-",3,48,8,8]
[481,"Raumautomationssystem (BUS-System)","Regler","Einstellwerte (Parameter) sichern und dokumentieren",null,"W",null,null,null,"FK","-",3,48,8,8]
[481,"Raumautomationssystem (BUS-System)","Unterstationen","Datensicherung durchführen","I",{"$nulls":4},"FK","-",3,48,8,8]
[481,"Raumautomationssystem (BUS-System)","Unterstationen","Auf fach- und funktionsgerechte Installation und\nUmgebungsbedingungen prüfen","I",{"$nulls":4},"FK","DGUVV\nGUV-V A3",3,48,8,8]
[481,"Raumautomationssystem (BUS-System)","Unterstationen","Auf Verschmutzung, Beschädigung, Korrosion und Befestigung prüfen","I",{"$nulls":4},"FK","-",3,48,8,8]
[481,"Raumautomationssystem (BUS-System)","Unterstationen","Be- und Entlüftung auf Verschmutzung prüfen","I",{"$nulls":4},"FK","-",3,48,8,8]
[481,"Raumautomationssystem (BUS-System)","Unterstationen","Anschlussverbindungen prüfen","I",{"$nulls":4},"FK","-",3,48,8,8]
[481,"Raumautomationssystem (BUS-System)","Unterstationen","Funktionselemente (z. B. Bedien- und Anzeigeeinrichtungen) \nprüfen","I",{"$nulls":4},"FK","-",3,48,8,8]
[481,"Raumautomationssystem (BUS-System)","Unterstationen","Doppel- oder Mehrfachrechner-Betrieb prüfen","I",{"$nulls":4},"FK","-",3,48,8,8]
[481,"Raumautomationssystem (BUS-System)","Unterstationen","Be- und Entlüftung reinigen",null,"W",null,null,null,"FK","-",3,48,8,8]
[481,"Raumautomationssystem (BUS-System)","Unterstationen","Filter der Be- und Entlüftung auswechseln",null,"W",null,null,null,"FK","-",3,48,8,8]
[481,"Raumautomationssystem (BUS-System)","Unterstationen","Funktionserhaltendes Reinigen",null,"W",null,null,null,"FK","-",3,48,8,8]
[481,"Raumautomationssystem (BUS-System)","Unterstationen","Eigenspannungsversorgung (z. B. Pufferbatterie) prüfen","I",{"$nulls":4},"FK","-",3,48,8,8]
[481,"Raumautomationssystem (BUS-System)","Unterstationen","Eigenspannungsversorgung (z. B. Pufferbatterie) austauschen",null,"W",null,null,null,"FK","-",3,48,8,8]
[481,"Raumautomationssystem (BUS-System)","Unterstationen","Funktionsprüfung mit Hilfe von Testprogrammen durchführen",null,"W",null,null,null,"FK","-",3,48,8,8]
[481,"Raumautomationssystem (BUS-System)","Unterstationen","Netzausfall und –wiederkehrverhalten prüfen","I",{"$nulls":4},"FK","-",3,48,8,8]

{"sheet":"482","index":25,"n_rows":24,"n_cols":15,"rows_kept":24,"cut":false,"hidden":false,"merged":[]}
[{"$nulls":4},"Inspektion","Wartung","Instandsetzung","Sachverständiger","Sachkundige","Fachkraft",null,"Monate","Monate",{"$f":"IF([1]Fragen!$D$18=\"Ja\",\"Eine einfache Sichtkontrolle genügt\",\"Eine einfache Sichtkontrolle genügt nicht\")","v":{"$error":"#REF!"}}]
["Kostengruppe","Anlage (System)","Abgrenzung","Tätigkeit","I","W","IS","SV","SK","FK","normative Grundlage","min","max","Empfehlung Inspektion","Empfehlung Wartung"]
[482,"GA-Schaltschrank","Schaltschränke, Bedientableaus","Auf fach- und funktionsgerechte Installation und Umgebungsbedingungen prüfen","I",null,null,null,"SK",null,"DGUVV § 5\nBGR-GUV-R 108\nGUV-V A3 § 5",12,48,32,32]
[482,"GA-Schaltschrank","Schaltschränke, Bedientableaus","Auf Verschmutzung, Beschädigung und Korrosion prüfen","I",null,null,null,"SK",null,"-",12,48,32,32]
[482,"GA-Schaltschrank","Schaltschränke, Bedientableaus","Schutzabdeckungen auf Vollständigkeit und Befestigung prüfen","I",null,null,null,"SK",null,"-",12,48,32,32]
[482,"GA-Schaltschrank","Schaltschränke, Bedientableaus","Anschlussverbindungen auf elektrische/ mechanische Funktion prüfen, ggf. nachziehen","I",null,null,null,"SK",null,"-",12,48,32,32]
[482,"GA-Schaltschrank","Schaltschränke, Bedientableaus","Funktionselemente (z.B. Bedien- und Anzeigeeinrichtungen) prüfen","I",null,null,null,"SK",null,"-",12,48,32,32]
[482,"GA-Schaltschrank","Schaltschränke, Bedientableaus","Optische und akustische Kontrolleinrichtungen prüfen","I",null,null,null,"SK",null,"-",12,48,32,32]
[482,"GA-Schaltschrank","Schaltschränke, Bedientableaus","Schmelzsicherungen auf Festsitz prüfen","I",null,null,null,"SK",null,"-",12,48,32,32]
[482,"GA-Schaltschrank","Schaltschränke, Bedientableaus","Leistungsschalter, Schütze und Relais auf Verschleiß und Beschädigungen prüfen (z.B. Kontaktabbrand)","I",null,null,null,"SK",null,"-",12,48,32,32]
[482,"GA-Schaltschrank","Schaltschränke, Bedientableaus","Schalt- und Steuervorgänge prüfen, z.B. Frostschutzfunktion","I",null,null,null,"SK",null,"-",12,48,32,32]
[482,"GA-Schaltschrank","Schaltschränke, Bedientableaus","Sicherheitseinrichtungen (z.B. thermische Auslöser) prüfen, ggf. nachstellen und protokollieren","I",null,null,null,"SK",null,"-",12,48,32,32]
[482,"GA-Schaltschrank","Schaltschränke, Bedientableaus","Einstellung von Schaltschrankkomponenten (z.B. Zeitrelais) prüfen","I",null,null,null,"SK",null,"-",12,48,32,32]
[482,"GA-Schaltschrank","Schaltschränke, Bedientableaus","Hand-, Automatik- und Fernbedingungsfunktion prüfen","I",null,null,null,"SK",null,"-",12,48,32,32]
[482,"GA-Schaltschrank","Schaltschränke, Bedientableaus","Reinigen",null,"W",null,null,"SK",null,"-",12,48,32,32]
[482,"GA-Schaltschrank","Schaltschränke, Bedientableaus","Anschlussverbindungen auf elektrische/ mechanische Funktion prüfen, ggf. nachziehen",null,"W",null,null,"SK",null,"-",12,48,32,32]
[482,"GA-Schaltschrank","Schaltschränke, Bedientableaus","Funktionselemente (w.v.) einstellen, nachstellen, festziehen",null,"W",null,null,"SK",null,"-",12,48,32,32]
[482,"GA-Schaltschrank","Schaltschränke, Bedientableaus","Sicherheitseinrichtungen (z.B. thermische Auslöser) prüfen, ggf. nachstellen und protokollieren",null,"W",null,null,"SK",null,"-",12,48,32,32]
[482,"GA-Schaltschrank","Schaltschränke, Bedientableaus","Hand-, Automatik- und Fernbedienungsfunktion nachstellen",null,"W",null,null,"SK",null,"-",12,48,32,32]
[482,"GA-Schaltschrank","Schaltschränke, Bedientableaus","Auf Verschmutzung, Beschädigung, Korrosion und Befestigung prüfen","I",null,null,null,"SK",null,"DGUVV § 5\nBGR-GUV-R 108\nGUV-V A3 § 5",12,48,32,32]
[482,"GA-Schaltschrank","Schaltschränke, Bedientableaus","Funktionserhaltendes Reinigen",null,"W",null,null,"SK",null,"-",12,48,32,32]
[482,"GA-Schaltschrank","Schaltschränke, Bedientableaus","Anschlüsse auf festen Sitz prüfen und ggf. nachziehen",null,"W",null,null,"SK",null,"-",12,48,32,32]
[482,"GA-Schaltschrank","Schaltschränke, Bedientableaus","FI-Schutzschalter auf Funktion prüfen","I",null,null,null,"SK",null,"-",12,48,32,32]
[482,"GA-Schaltschrank","Schaltschränke, Bedientableaus","Schutzabdeckungen auf Vollständigkeit prüfen","I",null,null,null,"SK",null,"-",12,48,32,32]

{"sheet":"483","index":26,"n_rows":69,"n_cols":15,"rows_kept":69,"cut":false,"hidden":false,"merged":[]}
[{"$nulls":4},"Inspektion","Wartung","Instandsetzung","Sachverständiger","Sachkundige","Fachkraft",null,"Monate","Monate",{"$f":"IF([1]Fragen!$D$18=\"Ja\",\"Eine einfache Sichtkontrolle genügt\",\"Eine einfache Sichtkontrolle genügt nicht\")","v":{"$error":"#REF!"}}]
["Kostengruppe","Anlage (System)","Abgrenzung","Tätigkeit","I","W","IS","SV","SK","FK","normative Grundlage","min","max","Empfehlung Inspektion","Empfehlung Wartung"]
[483,"Management-Ebene","Server/ Bedienstationen","Eigenspannungsversorgung prüfen (z.B. Pufferbatterie austauschen)","I",{"$nulls":4},"FK","-",12,48,32,32]
[483,"Management-Ebene","Server/ Bedienstationen","Belüftung, Luftfilter prüfen","I",{"$nulls":4},"FK","-",12,48,32,32]
[483,"Management-Ebene","Server/ Bedienstationen","Uhrzeitsynchronisierung prüfen","I",{"$nulls":4},"FK","-",12,48,32,32]
[483,"Management-Ebene","Server/ Bedienstationen","Automatische Initialisierung bei Netzwiederkehr prüfen","I",{"$nulls":4},"FK","-",12,48,32,32]
[483,"Management-Ebene","Server/ Bedienstationen","Schnittstellen zu den Peripheriegeräten prüfen","I",{"$nulls":4},"FK","-",12,48,32,32]
[483,"Management-Ebene","Server/ Bedienstationen","Datenfernübertragung prüfen","I",{"$nulls":4},"FK","-",12,48,32,32]
[483,"Management-Ebene","Server/ Bedienstationen","Doppel- oder Mehrfachrechner-Betriebe prüfen","I",{"$nulls":4},"FK","-",12,48,32,32]
[483,"Management-Ebene","Server/ Bedienstationen","Programm- und Datensicherung durchführen",null,"W",null,null,null,"FK","-",12,48,32,32]
[483,"Management-Ebene","Server/ Bedienstationen","Aufbewahrung der zuletzt erstellten Programm- und Datenkopien",null,"W",null,null,null,"FK","-",12,48,32,32]
[483,"Management-Ebene","Server/ Bedienstationen","Reinigen",null,"W",null,null,null,"FK","-",12,48,32,32]
[483,"Management-Ebene","Server/ Bedienstationen","Belüftung (Luftweg, Kühler) reinigen, Luftfilter reinigen bzw. austauschen",null,"W",null,null,null,"FK","-",12,48,32,32]
[483,"Management-Ebene","Server/ Bedienstationen","Systemcheck mit Neustart des Rechners durchführen",null,"W",null,null,null,"FK","-",12,48,32,32]
[483,"Management-Ebene","Server/ Bedienstationen","Virencheck",null,"W",null,null,null,"FK","-",12,48,32,32]
[483,"Management-Ebene","Server/ Bedienstationen","Testen von Anwenderprogrammen",null,"W",null,null,null,"FK","-",12,48,32,32]
[483,"Management-Ebene","Server/ Bedienstationen","Aktualisierung und Pflege der Systemsoftware",null,"W",null,null,null,"FK","-",12,48,32,32]
[483,"Management-Ebene","Zentraleinheit (Rechner)","Auf fach- und funktionsgerechte Installation und\nUmgebungsbedingungen prüfen","I",null,null,null,"SK",null,"BetrSichV § 10\nDGUVV § 5\nBGR-GUV-R 108\nGUV-V A3",12,48,32,32]
[483,"Management-Ebene","Zentraleinheit (Rechner)","Auf Verschmutzung, Beschädigung, Korrosion und Befestigung prüfen","I",null,null,null,"SK",null,"-",12,48,32,32]
[483,"Management-Ebene","Zentraleinheit (Rechner)","Be- und Entlüftung auf Verschmutzung prüfen","I",null,null,null,"SK",null,"-",12,48,32,32]
[483,"Management-Ebene","Zentraleinheit (Rechner)","Anschlussverbindungen prüfen","I",null,null,null,"SK",null,"-",12,48,32,32]
[483,"Management-Ebene","Zentraleinheit (Rechner)","Doppel- oder Mehrfachrechner-Betrieb prüfen","I",null,null,null,"SK",null,"-",12,48,32,32]
[483,"Management-Ebene","Zentraleinheit (Rechner)","Datensicherung durchführen",null,"W",null,null,"SK",null,"-",12,48,32,32]
[483,"Management-Ebene","Zentraleinheit (Rechner)","Be- und Entlüftung reinigen",null,"W",null,null,"SK",null,"-",12,48,32,32]
[483,"Management-Ebene","Zentraleinheit (Rechner)","Filter der Be- und Entlüftung auswechseln",null,"W",null,null,"SK",null,"-",12,48,32,32]
[483,"Management-Ebene","Zentraleinheit (Rechner)","Funktionserhaltendes Reinigen",null,"W",null,null,"SK",null,"-",12,48,32,32]
[483,"Management-Ebene","Zentraleinheit (Rechner)","Eigenspannungsversorgung (z. B. Pufferbatterie) prüfen","I",null,null,null,"SK",null,"-",12,48,32,32]
[483,"Management-Ebene","Zentraleinheit (Rechner)","Eigenspannungsversorgung (z. B. Pufferbatterie) austauschen",null,"W",null,null,"SK",null,"-",12,48,32,32]
[483,"Management-Ebene","Zentraleinheit (Rechner)","Funktionsprüfung mit Hilfe von Testprogrammen durchführen","I",null,null,null,"SK",null,"-",12,48,32,32]
[483,"Management-Ebene","Eingabegeräte","Auf fach- und funktionsgerechte Installation und\nUmgebungsbedingungen prüfen","I",{"$nulls":4},"FK","DGUVV\nGUV-V A3",12,48,32,32]
[483,"Management-Ebene","Eingabegeräte","Auf Verschmutzung, Beschädigung und Befestigung prüfen","I",{"$nulls":4},"FK","-",12,48,32,32]
[483,"Management-Ebene","Eingabegeräte","Funktion prüfen","I",{"$nulls":4},"FK","-",12,48,32,32]
[483,"Management-Ebene","Eingabegeräte","Anschlussverbindungen prüfen","I",{"$nulls":4},"FK","-",12,48,32,32]
[483,"Management-Ebene","Eingabegeräte","Funktionserhaltendes Reinigen",null,"W",null,null,null,"FK","-",12,48,32,32]
[483,"Management-Ebene","Eingabegeräte","Gerät kalibrieren",null,"W",null,null,null,"FK","-",12,48,32,32]
[483,"Management-Ebene","Eingabegeräte","Eigenspannungsversorgung (z. B. Pufferbatterie) prüfen","I",{"$nulls":4},"FK","-",12,48,32,32]
[483,"Management-Ebene","Eingabegeräte","Eigenspannungsversorgung (z. B. Pufferbatterie) austauschen",null,"W",null,null,null,"FK","-",12,48,32,32]
[483,"Management-Ebene","Eingabegeräte","Anschlussverbindungen herstellen",null,"W",null,null,null,"FK",null,12,48,32,32]
[483,"Management-Ebene","Ausgabegeräte","Auf fach- und funktionsgerechte Installation und\nUmgebungsbedingungen prüfen","I",null,null,null,"SK",null,"DGUVV\nGUV-V A3",12,48,32,32]
[483,"Management-Ebene","Ausgabegeräte","Auf Verschmutzung, Beschädigung und Befestigung prüfen","I",null,null,null,"SK",null,"-",12,48,32,32]
[483,"Management-Ebene","Ausgabegeräte","Be- und Entlüftung auf Verschmutzung prüfen","I",null,null,null,"SK",null,"-",12,48,32,32]
[483,"Management-Ebene","Ausgabegeräte","Funktion prüfen (Statusseite ausdrucken)","I",null,null,null,"SK",null,"-",12,48,32,32]
[483,"Management-Ebene","Ausgabegeräte","Anschlussverbindungen prüfen","I",null,null,null,"SK",null,"-",12,48,32,32]
[483,"Management-Ebene","Ausgabegeräte","Be- und Entlüftung reinigen",null,"W",null,null,"SK",null,"-",12,48,32,32]
[483,"Management-Ebene","Ausgabegeräte","Filter der Be- und Entlüftung auswechseln",null,"W",null,null,"SK",null,"-",12,48,32,32]
[483,"Management-Ebene","Ausgabegeräte","Funktionserhaltendes Reinigen",null,"W",null,null,"SK",null,"-",12,48,32,32]
[483,"Management-Ebene","Ausgabegeräte","Gerät kalibrieren",null,"W",null,null,"SK",null,"-",12,48,32,32]
[483,"Management-Ebene","Ausgabegeräte","Anschlussverbindungen herstellen",null,"W",null,null,"SK",null,"-",12,48,32,32]
[483,"Management-Ebene","Ausgabegeräte","Farbbänder, Farbstifte, Tinte austauschen",null,"W",null,null,"SK",null,"-",12,48,32,32]
[483,"Management-Ebene","Anzeigegeräte","Auf fach- und funktionsgerechte Installation und\nUmgebungsbedingungen prüfen","I",null,null,null,"SK",null,"-",12,48,32,32]
[483,"Management-Ebene","Anzeigegeräte","Auf Verschmutzung, Beschädigung und Befestigung prüfen","I",null,null,null,"SK",null,"-",12,48,32,32]
[483,"Management-Ebene","Anzeigegeräte","Be- und Entlüftung auf Verschmutzung prüfen","I",null,null,null,"SK",null,"-",12,48,32,32]
[483,"Management-Ebene","Anzeigegeräte","Funktion prüfen","I",null,null,null,"SK",null,"-",12,48,32,32]
[483,"Management-Ebene","Anzeigegeräte","Anschlussverbindungen prüfen","I",null,null,null,"SK",null,"-",12,48,32,32]
[483,"Management-Ebene","Anzeigegeräte","Be- und Entlüftung reinigen",null,"W",null,null,"SK",null,"-",12,48,32,32]
[483,"Management-Ebene","Anzeigegeräte","Filter der Be- und Entlüftung auswechseln",null,"W",null,null,"SK",null,"-",12,48,32,32]
[483,"Management-Ebene","Anzeigegeräte","Funktionserhaltendes Reinigen",null,"W",null,null,"SK",null,"-",12,48,32,32]
[483,"Management-Ebene","Anzeigegeräte","Gerät kalibrieren",null,"W",null,null,"SK",null,"-",12,48,32,32]
[483,"Management-Ebene","Anzeigegeräte","Eigenspannungsversorgung (z. B. Pufferbatterie) prüfen","I",null,null,null,"SK",null,"-",12,48,32,32]
[483,"Management-Ebene","Anzeigegeräte","Leitfähigkeitsmesseinrichtung auf Anzeige und Funktion prüfen","I",null,null,null,"SK",null,"-",12,48,32,32]
[483,"Management-Ebene","Anzeigegeräte","Eigenspannungsversorgung (z. B. Pufferbatterie) austauschen",null,"W",null,null,"SK",null,"-",12,48,32,32]
[483,"Management-Ebene","Anzeigegeräte","Anschlussverbindungen herstellen",null,"W",null,null,"SK",null,"-",12,48,32,32]
[483,"Management-Ebene","Speichergeräte","Auf fach- und funktionsgerechte Installation und\nUmgebungsbedingungen prüfen","I",{"$nulls":4},"FK","-",12,48,32,32]
[483,"Management-Ebene","Speichergeräte","Auf Verschmutzung, Beschädigung und Befestigung prüfen","I",{"$nulls":4},"FK","-",12,48,32,32]
[483,"Management-Ebene","Speichergeräte","Be- und Entlüftung auf Verschmutzung prüfen","I",{"$nulls":4},"FK","-",12,48,32,32]
[483,"Management-Ebene","Speichergeräte","Anschlussverbindungen prüfen","I",{"$nulls":4},"FK","-",12,48,32,32]
[483,"Management-Ebene","Speichergeräte","Be- und Entlüftung reinigen",null,"W",null,null,null,"FK","-",12,48,32,32]
[483,"Management-Ebene","Speichergeräte","Reinigen gemäß Herstellerspezifikation (z. B. Köpfe, Verriegelungen)",null,"W",null,null,null,"FK","-",12,48,32,32]
[483,"Management-Ebene","Speichergeräte","Anschlussverbindungen herstellen",null,"W",null,null,null,"FK","-",12,48,32,32]

{"sheet":"Tabelle34","index":27,"n_rows":2,"n_cols":15,"rows_kept":2,"cut":false,"hidden":false,"merged":[]}
[{"$nulls":4},"Inspektion","Wartung","Instandsetzung","Sachverständiger","Sachkundige","Fachkraft",null,"Monate","Monate",{"$f":"IF([1]Fragen!$D$18=\"Ja\",\"Eine einfache Sichtkontrolle genügt\",\"Eine einfache Sichtkontrolle genügt nicht\")","v":{"$error":"#REF!"}}]
["Kostengruppe","Anlage (System)","Abgrenzung","Tätigkeit","I","W","IS","SV","SK","FK","normative Grundlage","min","max","Empfehlung Inspektion","Empfehlung Wartung"]